Workbook

Sheet Overview
B1: PRA Disclosure Statement
C2: According to the Paperwork Reduction Act of 1995, no persons are required to respond to a collection of information unless it displays a valid OMB control number. The valid OMB control number for this information collection is 0938-1148 (CMS-10398 #56). The time required to complete this information collection is estimated to average 7.5 hours per response, including the time to review instructions, search existing data resources, gather the data needed, and complete and review the information collection. If you have comments concerning the accuracy of the time estimate(s) or suggestions for improving this form, please write to: CMS, 7500 Security Boulevard, Attn: PRA Reports Clearance Officer, Mail Stop C4-26-05, Baltimore, Maryland 21244-1850.
C4: Budget neutrality is a Federal policy that governs the Federal expenditures for1115 demonstrations. It is assured by placing an upper limit on the amount of Federal Financial Participation (FFP) the state can receive during the demonstration. The upper limit represents what the state could have received in the absence of the 1115 demonstration. The Budget Neutrality workbook will assist in collecting standardized data in order to determine financial performance for the demonstration in terms of budget neutrality. The workbook has two major groups of tabs: the first group collects and calculates Without Waiver (WOW) numbers, and the second group calculates With Waiver (WW) numbers. Data is collected per each demonstration Medicaid Eligibility Group (MEG), by demonstration year (DY). A Medicaid section 1115 demonstration is considered budget neutral if the Federal title XIX match, or funding received by the state (i.e., “with waiver” expenditures) do not exceed what the state would have (or could have) received without the demonstration (i.e., “without waiver” expenditures). The workbook provides the ability to evaluate any variance between WW and WOW calculations. The workbook consists of 15 tabs which contain different types of data and calculations. The following color schema is applied to the tabs:
B5: Blue | C5: Information populated in the Budget Neutrality workbook template based on the demonstration’s approved STC
B6: Red | C6: Information populated by states on a quarterly basis or per the reporting requirements defined in the STC
B7: Green | C7: Information automatically populated based on the input from other worksheets
B9: Note: Overview and Dropdowns tabs are read-only, no data entry is required. The Dropdowns tab displays the values used to build the dropdowns menus thoroughout the workbook,
B10: including the list of active waivers for the demonstration.
B12: Data Entry | C12: Within the tabs where a State User populates information (C Report, Total Adjustments, WW Spending Projected, MemMon Actual, MemMon Projected, and Summary TC tabs), yellow highlighted cells denote where data entry may be needed (depending on DY being updated).
B14: Pre-populated values in the downloaded Budget Neutrality workbook template
C15: The original workbook entries are based on the STCs and other demonstration approval documentation. These entries are made on the DY Def, MEG Def, WOW PMPM & Agg, Program Spending Limits, and Summary TC tab (Phase-Down Percentage and Cumulative Target Percentage fields). The MEG Def tab defines MEGs as Medicaid populations (core demonstration populations), Hypothetical populations (when a demonstration has separate budget neutrality agreements) and Tracking Only populations (for example, "pass-through" populations). The MEG Def tab also defines how expenditure numbers are calculated for a MEG (Per Capita vs. Aggregate) and the applicable scenarios (WOW, WW, or both). Also, the tab contains indicators defining MEG characteristics such as expenditure caps or applicability of savings phase-down calculations.
B17: Calculating With Waiver (WW) numbers
C18: WW numbers for each active DY of a demonstration are calculated based on a combination of actual WW expenditures, projected future expenditures, and any adjustments entered by a State User. The actual WW expenditures are copied from the Schedule C of the MBES CMS-64 report to the workbook (C Report tab). These numbers are automatically transferred to the C Report Grouper tab, where waiver expenditures are grouped by MEGs. The numbers are also transferred to the WW Spending Actual tab, which factors in adjustments entered on the Total Adjustments tab to calculate total actual WW expenditures. The WW Spending Total tab displays the actual WW expenditures plus future projected expenditures (transferred from the WW Spending Projected tab). Finally, the total WW actual and projected numbers are transferred to the Summary TC (Total Computable) tab (into the With-Waiver Total Expenditures section).
B20: Calculating Without Waiver (WOW) numbers
C21: WOW numbers can be obtained either one of two ways: using Aggregate or Per Capita calculations. If total projected expenditures for a MEG is known and the expenditure calculation type is defined as 'Aggregate' on the MEG Def tab, the total projected expenditure amount is entered for each active DY. However, if the expenditure calculation type is defined as 'Per Capita', total projected expenditures are derived by multiplying per member per month (PMPM) costs by the actual number of member months. Both Aggregate and PMPM numbers are populated on the WOW PMPM & Agg tab. The number of actual member months (number of beneficiaries times the number of months enrolled) are entered by a State User on the MemMon Actual tab for each DY. On the MemMon Projected tab, State User enters projected numbers. The totals for actual and projected member months are calculated on the MemMon Total tab. WOW aggregate, PMPM and member month data is then moved to the the Without-Waiver Total Expenditures section of the Summary TC tab, where final calculations are performed. Based on information from all tabs, the WW and WOW numbers are compared to determine the budget neutrality status of the demonstration.
B23: Below are the definitions for the tabs of the workbook which require data entries from State User.
B25: On top of the C Report tab, enter data in the following highlighted cells:
C27: ‘Data Pulled On:’ - enter the date the source file used to enter data on this tab was pulled
C28: ‘For the Time Period Through :’ - enter the date through which the source file data was pulled
C29: Reporting DY' - enter the Demonstration Year (DY) for which data is being reported. Entered DY value must align with DYs from the DY Def tab.
C30: Reporting Quarter' - enter a number of the quarter (values 1 through 4) for which data is being reported.
C32: Notes:
C33: - Dates must be entered in the following format: mm/dd/yyyy
C34: - Reporting DY and Reporting Quarter entries affect which portion of the 'Medicaid Aggregate' and 'Medicaid Aggregate - WOW only' amounts for a DY will be calculated as Actuals, and which will be calculated as Projected
C35: - Entry for each of these four fields is required for the workbook submission. If any field is not populated, you will receive an error and the document will not be uploaded to the system.
B37: State User enters information on the following tabs:
B39: C Report Tab
C41: Open Schedule C of the CMS 64 Expenditure Report. Under your state, locate expenditure data for the specific demonstration. From this location on the CMS 64 Expenditure Report, copy expenditure data cells for all DYs (active and non-active). On the C Report tab, paste the data into the correct cell/row. Repeat the copy and paste process for MAP Waivers section (Total Computable and Federal Share) and ADM Waivers section (if applicable). Verify that the pasted numbers are correctly aligned with the Waiver Name values.
B43: Total Adjustments tab
C45: When adjustments are relevant for a demonstration, enter the actual numbers of total contributions to the reported expenditures, per each MEG, for the reporting quarter. Add new reported adjustments to any existing numbers for previous quarters for the reported DY. Note: Any adjustments that reduce expenditures must be entered as negative numbers (for example, -$10,000).
B47: WW Spending Projected tab
C49: Enter projected annual expenditures for each MEG for the active DYs of a demonstration. For each reporting quarter, update the projected numbers so they reflect only future quarter projections. Please see the example for the MemMon Projected tab.
B51: MemMonth Actual tab
C53: For each MEG, calculate the actual number of member months for the reported quarter and add this number to the previously entered number for the same DY. For example, for Q3 reporting period, add Q3 member months to the existing number for the same MEG and DY and enter the result into the same cell.
B56: MemMonth Projected tab
C58: For each MEG, enter projected (future) annual member months for all active DYs of the demonstration. Adjust future DY numbers as needed. For the current DY, enter only the number that reflects future quarters. For example, for Q3 reporting, only enter the projected number for Q4. There should be no projected numbers for completed (actual) DYs.
B60: Summary TC tab
C61: In the Net Variance section, for each DY, enter estimated numbers in row '1115A Dual Demonstration Savings (state preliminary estimate)'.
C62: In the next row, '1115A Dual Demonstration Savings (OACT certified)' enter certified numbers.
C63: Both estimated and certified numbers must be negative, as dual demonstration savings numbers reduce the Net Variance amount.

Sheet DY Def
A3: Demonstration Years Definitions
A5: DY | B5: 1 | C5: 2 | D5: 3 | E5: 4 | F5: 5 | G5: 6 | H5: 7 | I5: 8 | J5: 9 | K5: 10 | L5: 11 | M5: 12 | N5: 13 | O5: 14 | P5: 15 | Q5: 16 | R5: 17 | S5: 18 | T5: 19 | U5: 20 | V5: 21 | W5: 22 | X5: 23 | Y5: 24 | Z5: 25 | AA5: 26 | AB5: 27 | AC5: 28 | AD5: 29 | AE5: 30
A6: Start Date | B6: 1997-07-01 | C6: 1998-07-01 | D6: 1999-07-01 | E6: 2000-07-01 | F6: 2001-07-01 | G6: 2002-07-01 | H6: 2003-07-01 | I6: 2004-07-01 | J6: 2005-07-01 | K6: 2006-07-01 | L6: 2007-07-01 | M6: 2000-07-01 | N6: 2000-07-01 | O6: 2000-07-01 | P6: 2011-07-01 | Q6: 2012-07-01 | R6: 2013-07-01 | S6: 2014-07-01 | T6: 2015-07-01 | U6: 2016-07-01 | V6: 2017-07-01 | W6: 2018-07-01 | X6: 2019-07-01 | Y6: 2020-07-01 | Z6: 2021-07-01
A7: End Date | B7: 1998-06-30 | C7: 1999-06-30 | D7: 2000-06-30 | E7: 2001-06-30 | F7: 2002-06-30 | G7: 2003-06-30 | H7: 2004-06-30 | I7: 2005-06-30 | J7: 2006-06-30 | K7: 2007-06-30 | L7: 2001-06-30 | M7: 2001-06-30 | N7: 2001-06-30 | O7: 2001-06-30 | P7: 2012-06-30 | Q7: 2013-06-30 | R7: 2014-06-30 | S7: 2015-06-30 | T7: 2016-06-30 | U7: 2017-06-30 | V7: 2018-06-30 | W7: 2019-06-30 | X7: 2020-06-30 | Y7: 2021-06-30 | Z7: 2022-06-30

Sheet MEG Def
H1: Enter any general comments / notes:
B3: MEG Definitions
B5: MEG Name | C5: MEG Description | E5: WOW | F5: WW | G5: Per Capita or Aggregate | H5: Savings Phase-Down | I5: Expenditures Subject to Cap? | J5: Hypothetical Populations Included in Calculations? | K5: Start DY | L5: Start Date | M5: End DY | N5: End Date
B6: Medicaid Per Capita
A7: 1 | B7: Base Families | C7: Eligible non-disabled individuals enrolled in MassHealth Standard, as well as eligible non-disabled individuals enrolled in MassHealth Limited (emergency services only) | E7: Yes | F7: Yes | G7: Per Capita | H7: Savings Phase-Down | I7: No | J7: N/A | K7: 1 | L7: =IF(K7<>"",(LOOKUP(K7,'DY Def'!$A$5:$AE$5,'DY Def'!$A$6:$AE$6)),"") -> 1997-07-01 | M7: 25 | N7: =IF(M7<>"",(LOOKUP(M7,'DY Def'!$A$5:$AE$5,'DY Def'!$A$7:$AE$7)),"") -> 2022-06-30
A8: 2 | B8: Base Disabled/MCB | C8: Eligible individuals with disabilities enrolled in Standard, individuals enrolled in CommonHealth who spend down to eligibility, as well as eligible disabled individuals enrolled in Limited (emergency services only) | E8: Yes | F8: Yes | G8: Per Capita | H8: Savings Phase-Down | I8: No | J8: N/A | K8: 1 | L8: =IF(K8<>"",(LOOKUP(K8,'DY Def'!$A$5:$AE$5,'DY Def'!$A$6:$AE$6)),"") -> 1997-07-01 | M8: 25 | N8: =IF(M8<>"",(LOOKUP(M8,'DY Def'!$A$5:$AE$5,'DY Def'!$A$7:$AE$7)),"") -> 2022-06-30
A9: 3 | B9: 1902 (r) 2 Children | C9: Medicaid expansion children and pregnant women who are enrolled in MassHealth Standard, as well as eligible children and pregnant women enrolled in MassHealth Limited (emergency services only) | E9: Yes | F9: Yes | G9: Per Capita | H9: Savings Phase-Down | I9: No | J9: N/A | K9: 1 | L9: =IF(K9<>"",(LOOKUP(K9,'DY Def'!$A$5:$AE$5,'DY Def'!$A$6:$AE$6)),"") -> 1997-07-01 | M9: 25 | N9: =IF(M9<>"",(LOOKUP(M9,'DY Def'!$A$5:$AE$5,'DY Def'!$A$7:$AE$7)),"") -> 2022-06-30
A10: 4 | B10: 1902 (r) 2 Disabled | C10: Eligible individuals with disabilities enrolled in Standard with income between 114.1 percent and 133 percent of the FPL, as well as eligible individuals with disabilities enrolled in MassHealth Limited (emergency services only) | E10: Yes | F10: Yes | G10: Per Capita | H10: Savings Phase-Down | I10: No | J10: N/A | K10: 1 | L10: =IF(K10<>"",(LOOKUP(K10,'DY Def'!$A$5:$AE$5,'DY Def'!$A$6:$AE$6)),"") -> 1997-07-01 | M10: 25 | N10: =IF(M10<>"",(LOOKUP(M10,'DY Def'!$A$5:$AE$5,'DY Def'!$A$7:$AE$7)),"") -> 2022-06-30
A11: 5 | B11: 1902 (r) 2 BCCDP | C11: Individuals eligible under the Breast and Cervical Cancer Demonstration Program who are enrolled in Standard | E11: Yes | F11: Yes | G11: Per Capita | H11: Savings Phase-Down | I11: No | J11: N/A | K11: 1 | L11: =IF(K11<>"",(LOOKUP(K11,'DY Def'!$A$5:$AE$5,'DY Def'!$A$6:$AE$6)),"") -> 1997-07-01 | M11: 25 | N11: =IF(M11<>"",(LOOKUP(M11,'DY Def'!$A$5:$AE$5,'DY Def'!$A$7:$AE$7)),"") -> 2022-06-30
A12: 6 | B12: Base Families 21 RO | C12: Base Families costs if CHIP allotment exhausted | E12: Yes | F12: Yes | G12: Per Capita | H12: Savings Phase-Down | I12: No | J12: N/A | K12: 1 | L12: =IF(K12<>"",(LOOKUP(K12,'DY Def'!$A$5:$AE$5,'DY Def'!$A$6:$AE$6)),"") -> 1997-07-01 | M12: 25 | N12: =IF(M12<>"",(LOOKUP(M12,'DY Def'!$A$5:$AE$5,'DY Def'!$A$7:$AE$7)),"") -> 2022-06-30
A13: 7 | B13: 1902 (r) 2 RO | C13: 1902(r)(2) costs if CHIP allotment exhausted | E13: Yes | F13: Yes | G13: Per Capita | H13: Savings Phase-Down | I13: No | J13: N/A | K13: 1 | L13: =IF(K13<>"",(LOOKUP(K13,'DY Def'!$A$5:$AE$5,'DY Def'!$A$6:$AE$6)),"") -> 1997-07-01 | M13: 25 | N13: =IF(M13<>"",(LOOKUP(M13,'DY Def'!$A$5:$AE$5,'DY Def'!$A$7:$AE$7)),"") -> 2022-06-30
B15: Medicaid Per Capita - WOW only
H16: N/A | J16: N/A | L16: =IF(K16<>"",(LOOKUP(K16,'DY Def'!$A$5:$AE$5,'DY Def'!$A$6:$AE$6)),"") ->  | N16: =IF(M16<>"",(LOOKUP(M16,'DY Def'!$A$5:$AE$5,'DY Def'!$A$7:$AE$7)),"") -> 
H17: N/A | J17: N/A | L17: =IF(K17<>"",(LOOKUP(K17,'DY Def'!$A$5:$AE$5,'DY Def'!$A$6:$AE$6)),"") ->  | N17: =IF(M17<>"",(LOOKUP(M17,'DY Def'!$A$5:$AE$5,'DY Def'!$A$7:$AE$7)),"") -> 
H18: N/A | J18: N/A | L18: =IF(K18<>"",(LOOKUP(K18,'DY Def'!$A$5:$AE$5,'DY Def'!$A$6:$AE$6)),"") ->  | N18: =IF(M18<>"",(LOOKUP(M18,'DY Def'!$A$5:$AE$5,'DY Def'!$A$7:$AE$7)),"") -> 
H19: N/A | J19: N/A | L19: =IF(K19<>"",(LOOKUP(K19,'DY Def'!$A$5:$AE$5,'DY Def'!$A$6:$AE$6)),"") ->  | N19: =IF(M19<>"",(LOOKUP(M19,'DY Def'!$A$5:$AE$5,'DY Def'!$A$7:$AE$7)),"") -> 
H20: N/A | J20: N/A | L20: =IF(K20<>"",(LOOKUP(K20,'DY Def'!$A$5:$AE$5,'DY Def'!$A$6:$AE$6)),"") ->  | N20: =IF(M20<>"",(LOOKUP(M20,'DY Def'!$A$5:$AE$5,'DY Def'!$A$7:$AE$7)),"") -> 
B22: Medicaid Aggregate
H23: N/A | J23: N/A | L23: =IF(K23<>"",(LOOKUP(K23,'DY Def'!$A$5:$AE$5,'DY Def'!$A$6:$AE$6)),"") ->  | N23: =IF(M23<>"",(LOOKUP(M23,'DY Def'!$A$5:$AE$5,'DY Def'!$A$7:$AE$7)),"") -> 
H24: N/A | J24: N/A | L24: =IF(K24<>"",(LOOKUP(K24,'DY Def'!$A$5:$AE$5,'DY Def'!$A$6:$AE$6)),"") ->  | N24: =IF(M24<>"",(LOOKUP(M24,'DY Def'!$A$5:$AE$5,'DY Def'!$A$7:$AE$7)),"") -> 
H25: N/A | J25: N/A | L25: =IF(K25<>"",(LOOKUP(K25,'DY Def'!$A$5:$AE$5,'DY Def'!$A$6:$AE$6)),"") ->  | N25: =IF(M25<>"",(LOOKUP(M25,'DY Def'!$A$5:$AE$5,'DY Def'!$A$7:$AE$7)),"") -> 
H26: N/A | J26: N/A | L26: =IF(K26<>"",(LOOKUP(K26,'DY Def'!$A$5:$AE$5,'DY Def'!$A$6:$AE$6)),"") ->  | N26: =IF(M26<>"",(LOOKUP(M26,'DY Def'!$A$5:$AE$5,'DY Def'!$A$7:$AE$7)),"") -> 
H27: N/A | J27: N/A | L27: =IF(K27<>"",(LOOKUP(K27,'DY Def'!$A$5:$AE$5,'DY Def'!$A$6:$AE$6)),"") ->  | N27: =IF(M27<>"",(LOOKUP(M27,'DY Def'!$A$5:$AE$5,'DY Def'!$A$7:$AE$7)),"") -> 
B29: Medicaid Aggregate - WOW only
A30: 1 | B30: DSH | C30: Diverted Disproportionate Share Hospital funding | E30: Yes | F30: No | G30: Aggregate | H30: N/A | I30: Yes | J30: N/A | K30: 1 | L30: =IF(K30<>"",(LOOKUP(K30,'DY Def'!$A$5:$AE$5,'DY Def'!$A$6:$AE$6)),"") -> 1997-07-01 | M30: 25 | N30: =IF(M30<>"",(LOOKUP(M30,'DY Def'!$A$5:$AE$5,'DY Def'!$A$7:$AE$7)),"") -> 2022-06-30
H31: N/A | J31: N/A | L31: =IF(K31<>"",(LOOKUP(K31,'DY Def'!$A$5:$AE$5,'DY Def'!$A$6:$AE$6)),"") ->  | N31: =IF(M31<>"",(LOOKUP(M31,'DY Def'!$A$5:$AE$5,'DY Def'!$A$7:$AE$7)),"") -> 
H32: N/A | J32: N/A | L32: =IF(K32<>"",(LOOKUP(K32,'DY Def'!$A$5:$AE$5,'DY Def'!$A$6:$AE$6)),"") ->  | N32: =IF(M32<>"",(LOOKUP(M32,'DY Def'!$A$5:$AE$5,'DY Def'!$A$7:$AE$7)),"") -> 
H33: N/A | J33: N/A | L33: =IF(K33<>"",(LOOKUP(K33,'DY Def'!$A$5:$AE$5,'DY Def'!$A$6:$AE$6)),"") ->  | N33: =IF(M33<>"",(LOOKUP(M33,'DY Def'!$A$5:$AE$5,'DY Def'!$A$7:$AE$7)),"") -> 
H34: N/A | J34: N/A | L34: =IF(K34<>"",(LOOKUP(K34,'DY Def'!$A$5:$AE$5,'DY Def'!$A$6:$AE$6)),"") ->  | N34: =IF(M34<>"",(LOOKUP(M34,'DY Def'!$A$5:$AE$5,'DY Def'!$A$7:$AE$7)),"") -> 
B36: Medicaid Aggregate - WW only
A37: 1 | B37: e-Family Assistance | C37: Eligible children receiving premium assistance or direct coverage through 200 percent of the FPL enrolled in Family Assistance. | E37: No | F37: Yes | G37: Aggregate | H37: N/A | I37: No | J37: N/A | K37: 21 | L37: =IF(K37<>"",(LOOKUP(K37,'DY Def'!$A$5:$AE$5,'DY Def'!$A$6:$AE$6)),"") -> 2017-07-01 | M37: 25 | N37: =IF(M37<>"",(LOOKUP(M37,'DY Def'!$A$5:$AE$5,'DY Def'!$A$7:$AE$7)),"") -> 2022-06-30
A38: 2 | B38: e-HIV/FA | C38: Eligible individuals with HIV/AIDS with incomes from 133 through 200 percent of the FPL who are enrolled in Family Assistance | E38: No | F38: Yes | G38: Aggregate | H38: N/A | I38: No | J38: N/A | K38: 21 | L38: =IF(K38<>"",(LOOKUP(K38,'DY Def'!$A$5:$AE$5,'DY Def'!$A$6:$AE$6)),"") -> 2017-07-01 | M38: 25 | N38: =IF(M38<>"",(LOOKUP(M38,'DY Def'!$A$5:$AE$5,'DY Def'!$A$7:$AE$7)),"") -> 2022-06-30
A39: 3 | B39: SBE | C39: Subsidies or reimbursement for ESI made to eligible individuals | E39: No | F39: Yes | G39: Aggregate | H39: N/A | I39: No | J39: N/A | K39: 21 | L39: =IF(K39<>"",(LOOKUP(K39,'DY Def'!$A$5:$AE$5,'DY Def'!$A$6:$AE$6)),"") -> 2017-07-01 | M39: 25 | N39: =IF(M39<>"",(LOOKUP(M39,'DY Def'!$A$5:$AE$5,'DY Def'!$A$7:$AE$7)),"") -> 2022-06-30
A40: 4 | B40: SNCP-DSRIP | C40: Expenditures for Delivery System Reform Payments (DSRIP) for the period July 1, 2017 through June 30, 2022 | E40: No | F40: Yes | G40: Aggregate | H40: N/A | I40: Yes | J40: N/A | K40: 21 | L40: =IF(K40<>"",(LOOKUP(K40,'DY Def'!$A$5:$AE$5,'DY Def'!$A$6:$AE$6)),"") -> 2017-07-01 | M40: 25 | N40: =IF(M40<>"",(LOOKUP(M40,'DY Def'!$A$5:$AE$5,'DY Def'!$A$7:$AE$7)),"") -> 2022-06-30
A41: 5 | B41: SNCP-DSRIP-ACO | C41: Expenditures for the Accountable Care Organization payments associated with the DSRIP for the period July 1, 2017 through June 30, 2022. | E41: No | F41: Yes | G41: Aggregate | H41: N/A | I41: Yes | J41: N/A | K41: 21 | L41: =IF(K41<>"",(LOOKUP(K41,'DY Def'!$A$5:$AE$5,'DY Def'!$A$6:$AE$6)),"") -> 2017-07-01 | M41: 25 | N41: =IF(M41<>"",(LOOKUP(M41,'DY Def'!$A$5:$AE$5,'DY Def'!$A$7:$AE$7)),"") -> 2022-06-30
A42: 6 | B42: SNCP-DSRIP-CP | C42: Expenditures for the Community Partner payments associated with the DSRIP. | E42: No | F42: Yes | G42: Aggregate | H42: N/A | I42: Yes | J42: N/A | K42: 21 | L42: =IF(K42<>"",(LOOKUP(K42,'DY Def'!$A$5:$AE$5,'DY Def'!$A$6:$AE$6)),"") -> 2017-07-01 | M42: 25 | N42: =IF(M42<>"",(LOOKUP(M42,'DY Def'!$A$5:$AE$5,'DY Def'!$A$7:$AE$7)),"") -> 2022-06-30
A43: 7 | B43: SNCP-DSRIP-SWI | C43: Expenditures for the Statewide Investment payments associated with the DSRIP. | E43: No | F43: Yes | G43: Aggregate | H43: N/A | I43: Yes | J43: N/A | K43: 21 | L43: =IF(K43<>"",(LOOKUP(K43,'DY Def'!$A$5:$AE$5,'DY Def'!$A$6:$AE$6)),"") -> 2017-07-01 | M43: 25 | N43: =IF(M43<>"",(LOOKUP(M43,'DY Def'!$A$5:$AE$5,'DY Def'!$A$7:$AE$7)),"") -> 2022-06-30
A44: 8 | B44: SNCP-DSRIP-Operations | C44: Expenditures for the allocated portion of DSRIP associated with statewide operations, implementation, and oversight. | E44: No | F44: Yes | G44: Aggregate | H44: N/A | I44: Yes | J44: N/A | K44: 21 | L44: =IF(K44<>"",(LOOKUP(K44,'DY Def'!$A$5:$AE$5,'DY Def'!$A$6:$AE$6)),"") -> 2017-07-01 | M44: 25 | N44: =IF(M44<>"",(LOOKUP(M44,'DY Def'!$A$5:$AE$5,'DY Def'!$A$7:$AE$7)),"") -> 2022-06-30
A45: 9 | B45: SNCP-PHTII | C45: Expenditures authorized under the Public Hospital Transformation and Incentives Initiative | E45: No | F45: Yes | G45: Aggregate | H45: N/A | I45: Yes | J45: N/A | K45: 21 | L45: =IF(K45<>"",(LOOKUP(K45,'DY Def'!$A$5:$AE$5,'DY Def'!$A$6:$AE$6)),"") -> 2017-07-01 | M45: 25 | N45: =IF(M45<>"",(LOOKUP(M45,'DY Def'!$A$5:$AE$5,'DY Def'!$A$7:$AE$7)),"") -> 2022-06-30
A46: 10 | B46: SNCP-DSH-HSNTF | C46: Expenditures authorized under the Health Safety Net program as referenced on Attachment E item 4. | E46: No | F46: Yes | G46: Aggregate | H46: N/A | I46: No | J46: N/A | K46: 21 | L46: =IF(K46<>"",(LOOKUP(K46,'DY Def'!$A$5:$AE$5,'DY Def'!$A$6:$AE$6)),"") -> 2017-07-01 | M46: 25 | N46: =IF(M46<>"",(LOOKUP(M46,'DY Def'!$A$5:$AE$5,'DY Def'!$A$7:$AE$7)),"") -> 2022-06-30
A47: 11 | B47: SNCP-DSH-IMD | C47: Expenditures authorized under the SNCP for IMD services, as referenced on Attachment E item 5, excluding expenditures reported under STC 91(f)(30). | E47: No | F47: Yes | G47: Aggregate | H47: N/A | I47: No | J47: N/A | K47: 21 | L47: =IF(K47<>"",(LOOKUP(K47,'DY Def'!$A$5:$AE$5,'DY Def'!$A$6:$AE$6)),"") -> 2017-07-01 | M47: 25 | N47: =IF(M47<>"",(LOOKUP(M47,'DY Def'!$A$5:$AE$5,'DY Def'!$A$7:$AE$7)),"") -> 2022-06-30
A48: 12 | B48: SNCP-DSH-CPE | C48: Expenditures for State owned non-acute hospitals operated by the Department of Public Health and the Department of Mental Health, as referenced on Attachment E items 6 and 7. | E48: No | F48: Yes | G48: Aggregate | H48: N/A | I48: No | J48: N/A | K48: 21 | L48: =IF(K48<>"",(LOOKUP(K48,'DY Def'!$A$5:$AE$5,'DY Def'!$A$6:$AE$6)),"") -> 2017-07-01 | M48: 25 | N48: =IF(M48<>"",(LOOKUP(M48,'DY Def'!$A$5:$AE$5,'DY Def'!$A$7:$AE$7)),"") -> 2022-06-30
A49: 13 | B49: SNCP-UCC | C49: Expenditures authorized under the Uncompensated Care Pool | E49: No | F49: Yes | G49: Aggregate | H49: N/A | I49: Yes | J49: N/A | K49: 21 | L49: =IF(K49<>"",(LOOKUP(K49,'DY Def'!$A$5:$AE$5,'DY Def'!$A$6:$AE$6)),"") -> 2017-07-01 | M49: 25 | N49: =IF(M49<>"",(LOOKUP(M49,'DY Def'!$A$5:$AE$5,'DY Def'!$A$7:$AE$7)),"") -> 2022-06-30
A50: 14 | B50: SNCP-OTHER | C50: All other expenditures authorized under the SNCP, including Public Services Hospital Safety Net Care Payments and Safety Net Provider Payments, as referenced on Attachment E items 1 and 8. | E50: No | F50: Yes | G50: Aggregate | H50: N/A | I50: No | J50: N/A | K50: 21 | L50: =IF(K50<>"",(LOOKUP(K50,'DY Def'!$A$5:$AE$5,'DY Def'!$A$6:$AE$6)),"") -> 2017-07-01 | M50: 25 | N50: =IF(M50<>"",(LOOKUP(M50,'DY Def'!$A$5:$AE$5,'DY Def'!$A$7:$AE$7)),"") -> 2022-06-30
A51: 15 | B51: DSHP-Health Connector Subsidies | C51: Expenditures for premium subsidy wrap under the demonstration. | E51: No | F51: Yes | G51: Aggregate | H51: N/A | I51: No | J51: N/A | K51: 21 | L51: =IF(K51<>"",(LOOKUP(K51,'DY Def'!$A$5:$AE$5,'DY Def'!$A$6:$AE$6)),"") -> 2017-07-01 | M51: 25 | N51: =IF(M51<>"",(LOOKUP(M51,'DY Def'!$A$5:$AE$5,'DY Def'!$A$7:$AE$7)),"") -> 2022-06-30
A52: 16 | B52: DSHP-CSR | C52: Expenditures for cost sharing subsidy wrap under the demonstration. | E52: No | F52: Yes | G52: Aggregate | H52: N/A | I52: No | J52: N/A | K52: 21 | L52: =IF(K52<>"",(LOOKUP(K52,'DY Def'!$A$5:$AE$5,'DY Def'!$A$6:$AE$6)),"") -> 2017-07-01 | M52: 25 | N52: =IF(M52<>"",(LOOKUP(M52,'DY Def'!$A$5:$AE$5,'DY Def'!$A$7:$AE$7)),"") -> 2022-06-30
A53: 17 | B53: Provisional Eligibility | C53: Expenditures for amounts spent on individuals found not eligible for Medicaid benefits under this authority consistent with STC 24. | E53: No | F53: Yes | G53: Aggregate | H53: N/A | I53: No | J53: N/A | K53: 21 | L53: =IF(K53<>"",(LOOKUP(K53,'DY Def'!$A$5:$AE$5,'DY Def'!$A$6:$AE$6)),"") -> 2017-07-01 | M53: 25 | N53: =IF(M53<>"",(LOOKUP(M53,'DY Def'!$A$5:$AE$5,'DY Def'!$A$7:$AE$7)),"") -> 2022-06-30
A54: 18 | B54: TANF/EAEDC | C54: Expenditures for health care related costs for individuals receiving Temporary Assistance for Needy Families and Emergency Aid to Elders, Disabled and Children. | E54: No | F54: Yes | G54: Aggregate | H54: N/A | I54: No | J54: N/A | K54: 21 | L54: =IF(K54<>"",(LOOKUP(K54,'DY Def'!$A$5:$AE$5,'DY Def'!$A$6:$AE$6)),"") -> 2017-07-01 | M54: 25 | N54: =IF(M54<>"",(LOOKUP(M54,'DY Def'!$A$5:$AE$5,'DY Def'!$A$7:$AE$7)),"") -> 2022-06-30
A55: 19 | B55: End of Month Coverage | C55: Beneficiaries determined eligible for subsidized QHP coverage through Massachusetts Health Connector but who are not enrolled in a QHP. | E55: No | F55: Yes | G55: Aggregate | H55: N/A | I55: No | J55: N/A | K55: 21 | L55: =IF(K55<>"",(LOOKUP(K55,'DY Def'!$A$5:$AE$5,'DY Def'!$A$6:$AE$6)),"") -> 2017-07-01 | M55: 25 | N55: =IF(M55<>"",(LOOKUP(M55,'DY Def'!$A$5:$AE$5,'DY Def'!$A$7:$AE$7)),"") -> 2022-06-30
A56: 20 | B56: Continuous Eligibility | C56: Expenditures for continuous eligibility period up to 12 months for those enrolled in a student health insurance program. | E56: No | F56: Yes | G56: Aggregate | H56: N/A | I56: No | J56: N/A | K56: 21 | L56: =IF(K56<>"",(LOOKUP(K56,'DY Def'!$A$5:$AE$5,'DY Def'!$A$6:$AE$6)),"") -> 2017-07-01 | M56: 25 | N56: =IF(M56<>"",(LOOKUP(M56,'DY Def'!$A$5:$AE$5,'DY Def'!$A$7:$AE$7)),"") -> 2022-06-30
A57: 21 | B57: SUD | C57: All expenditures for services provided to an individual while they are a patient in an IMD for SUD treatment described in Table D of Section V. | E57: No | F57: Yes | G57: Aggregate | H57: N/A | I57: No | J57: N/A | K57: 21 | L57: =IF(K57<>"",(LOOKUP(K57,'DY Def'!$A$5:$AE$5,'DY Def'!$A$6:$AE$6)),"") -> 2017-07-01 | M57: 25 | N57: =IF(M57<>"",(LOOKUP(M57,'DY Def'!$A$5:$AE$5,'DY Def'!$A$7:$AE$7)),"") -> 2022-06-30
B59: Hypothetical 1 Per Capita | J59: Hypothetical Test 1
A60: 1 | B60: CommonHealth | C60: CommonHealth Adults - Expenditures for health care-related costs for: a. Adults aged 19 through 64 who are totally and permanently disabled and not eligible for comprehensive coverage under the Massachusetts state plan. b. Adults aged 65 and over who are not eligible for comprehensive coverage under the Massachusetts state plan, with disabilities that would meet the federal definition of “permanent and total disability” if these adults were under the age of 65. CommonHealth Children - Expenditures for health care-related costs for children from birth through age 18 who are totally and permanently disabled with incomes greater than 150 percent of the Federal poverty level (FPL) and who are noteligible for comprehensive coverage under the Massachusetts state plan. | E60: Yes | F60: Yes | G60: Per Capita | H60: N/A | I60: No | J60: Yes | K60: 1 | L60: =IF(K60<>"",(LOOKUP(K60,'DY Def'!$A$5:$AE$5,'DY Def'!$A$6:$AE$6)),"") -> 1997-07-01 | M60: 25 | N60: =IF(M60<>"",(LOOKUP(M60,'DY Def'!$A$5:$AE$5,'DY Def'!$A$7:$AE$7)),"") -> 2022-06-30
A61: 2 | B61: CommonHealth XXI | C61: Title XXI-eligible higher income children with disabilities enrolled in title XIX CommonHealth after allotment is exhausted | E61: Yes | F61: Yes | G61: Per Capita | H61: N/A | I61: No | J61: Yes | K61: 1 | L61: =IF(K61<>"",(LOOKUP(K61,'DY Def'!$A$5:$AE$5,'DY Def'!$A$6:$AE$6)),"") -> 1997-07-01 | M61: 25 | N61: =IF(M61<>"",(LOOKUP(M61,'DY Def'!$A$5:$AE$5,'DY Def'!$A$7:$AE$7)),"") -> 2022-06-30
H62: N/A | L62: =IF(K62<>"",(LOOKUP(K62,'DY Def'!$A$5:$AE$5,'DY Def'!$A$6:$AE$6)),"") ->  | N62: =IF(M62<>"",(LOOKUP(M62,'DY Def'!$A$5:$AE$5,'DY Def'!$A$7:$AE$7)),"") -> 
B64: Hypothetical 1 Aggregate
H65: N/A | L65: =IF(K65<>"",(LOOKUP(K65,'DY Def'!$A$5:$AE$5,'DY Def'!$A$6:$AE$6)),"") ->  | N65: =IF(M65<>"",(LOOKUP(M65,'DY Def'!$A$5:$AE$5,'DY Def'!$A$7:$AE$7)),"") -> 
H66: N/A | L66: =IF(K66<>"",(LOOKUP(K66,'DY Def'!$A$5:$AE$5,'DY Def'!$A$6:$AE$6)),"") ->  | N66: =IF(M66<>"",(LOOKUP(M66,'DY Def'!$A$5:$AE$5,'DY Def'!$A$7:$AE$7)),"") -> 
H67: N/A | L67: =IF(K67<>"",(LOOKUP(K67,'DY Def'!$A$5:$AE$5,'DY Def'!$A$6:$AE$6)),"") ->  | N67: =IF(M67<>"",(LOOKUP(M67,'DY Def'!$A$5:$AE$5,'DY Def'!$A$7:$AE$7)),"") -> 
B69: Hypothetical 2 Per Capita | J69: Hypothetical Test 2
A70: 1 | B70: Out-of-state Former Foster Care Youth | C70: Expenditures to extend eligibility for full Medicaid State Plan benefits (MassHealth Standard) to former foster care youth who are under age 26, were in foster care under the responsibility of a state other than Massachusetts or a Tribe in such a state when they turned 18 or a higher age at which the state’s or Tribe’s foster care assistance ends, and were enrolled in Medicaid under that state’s Medicaid state plan or 1115 demonstration at any time during the foster care period in which they aged out. | E70: Yes | F70: Yes | G70: Per Capita | H70: N/A | I70: No | J70: Yes | K70: 1 | L70: =IF(K70<>"",(LOOKUP(K70,'DY Def'!$A$5:$AE$5,'DY Def'!$A$6:$AE$6)),"") -> 1997-07-01 | M70: 25 | N70: =IF(M70<>"",(LOOKUP(M70,'DY Def'!$A$5:$AE$5,'DY Def'!$A$7:$AE$7)),"") -> 2022-06-30
H71: N/A | L71: =IF(K71<>"",(LOOKUP(K71,'DY Def'!$A$5:$AE$5,'DY Def'!$A$6:$AE$6)),"") ->  | N71: =IF(M71<>"",(LOOKUP(M71,'DY Def'!$A$5:$AE$5,'DY Def'!$A$7:$AE$7)),"") -> 
H72: N/A | L72: =IF(K72<>"",(LOOKUP(K72,'DY Def'!$A$5:$AE$5,'DY Def'!$A$6:$AE$6)),"") ->  | N72: =IF(M72<>"",(LOOKUP(M72,'DY Def'!$A$5:$AE$5,'DY Def'!$A$7:$AE$7)),"") -> 
B74: Hypothetical 2 Aggregate
H75: N/A | L75: =IF(K75<>"",(LOOKUP(K75,'DY Def'!$A$5:$AE$5,'DY Def'!$A$6:$AE$6)),"") ->  | N75: =IF(M75<>"",(LOOKUP(M75,'DY Def'!$A$5:$AE$5,'DY Def'!$A$7:$AE$7)),"") -> 
H76: N/A | L76: =IF(K76<>"",(LOOKUP(K76,'DY Def'!$A$5:$AE$5,'DY Def'!$A$6:$AE$6)),"") ->  | N76: =IF(M76<>"",(LOOKUP(M76,'DY Def'!$A$5:$AE$5,'DY Def'!$A$7:$AE$7)),"") -> 
H77: N/A | L77: =IF(K77<>"",(LOOKUP(K77,'DY Def'!$A$5:$AE$5,'DY Def'!$A$6:$AE$6)),"") ->  | N77: =IF(M77<>"",(LOOKUP(M77,'DY Def'!$A$5:$AE$5,'DY Def'!$A$7:$AE$7)),"") -> 
N78: =IF(M78<>"",(LOOKUP(M78,'DY Def'!$A$5:$AE$5,'DY Def'!$A$7:$AE$7)),"") -> 
B79: Hypothetical 3 Per Capita | J79: Hypothetical Test 3
A80: 1 | B80: New Adult Group | C80: Adults eligible for Medicaid as the group defined in section 1902(a)(10)(A)(i)(VIII) of the Act | E80: Yes | F80: Yes | G80: Per Capita | H80: N/A | I80: No | J80: No | K80: 1 | L80: =IF(K80<>"",(LOOKUP(K80,'DY Def'!$A$5:$AE$5,'DY Def'!$A$6:$AE$6)),"") -> 1997-07-01 | M80: 25 | N80: =IF(M80<>"",(LOOKUP(M80,'DY Def'!$A$5:$AE$5,'DY Def'!$A$7:$AE$7)),"") -> 2022-06-30
H81: N/A | L81: =IF(K81<>"",(LOOKUP(K81,'DY Def'!$A$5:$AE$5,'DY Def'!$A$6:$AE$6)),"") ->  | N81: =IF(M81<>"",(LOOKUP(M81,'DY Def'!$A$5:$AE$5,'DY Def'!$A$7:$AE$7)),"") -> 
H82: N/A | L82: =IF(K82<>"",(LOOKUP(K82,'DY Def'!$A$5:$AE$5,'DY Def'!$A$6:$AE$6)),"") ->  | N82: =IF(M82<>"",(LOOKUP(M82,'DY Def'!$A$5:$AE$5,'DY Def'!$A$7:$AE$7)),"") -> 
B84: Hypothetical 3 Aggregate
H85: N/A | L85: =IF(K85<>"",(LOOKUP(K85,'DY Def'!$A$5:$AE$5,'DY Def'!$A$6:$AE$6)),"") ->  | N85: =IF(M85<>"",(LOOKUP(M85,'DY Def'!$A$5:$AE$5,'DY Def'!$A$7:$AE$7)),"") -> 
H86: N/A | L86: =IF(K86<>"",(LOOKUP(K86,'DY Def'!$A$5:$AE$5,'DY Def'!$A$6:$AE$6)),"") ->  | N86: =IF(M86<>"",(LOOKUP(M86,'DY Def'!$A$5:$AE$5,'DY Def'!$A$7:$AE$7)),"") -> 
H87: N/A | L87: =IF(K87<>"",(LOOKUP(K87,'DY Def'!$A$5:$AE$5,'DY Def'!$A$6:$AE$6)),"") ->  | N87: =IF(M87<>"",(LOOKUP(M87,'DY Def'!$A$5:$AE$5,'DY Def'!$A$7:$AE$7)),"") -> 
N88: =IF(M88<>"",(LOOKUP(M88,'DY Def'!$A$5:$AE$5,'DY Def'!$A$7:$AE$7)),"") -> 
B89: Tracking Only | N89: =IF(M89<>"",(LOOKUP(M89,'DY Def'!$A$5:$AE$5,'DY Def'!$A$7:$AE$7)),"") -> 
N90: =IF(M90<>"",(LOOKUP(M90,'DY Def'!$A$5:$AE$5,'DY Def'!$A$7:$AE$7)),"") -> 
N91: =IF(M91<>"",(LOOKUP(M91,'DY Def'!$A$5:$AE$5,'DY Def'!$A$7:$AE$7)),"") -> 
N92: =IF(M92<>"",(LOOKUP(M92,'DY Def'!$A$5:$AE$5,'DY Def'!$A$7:$AE$7)),"") -> 
N93: =IF(M93<>"",(LOOKUP(M93,'DY Def'!$A$5:$AE$5,'DY Def'!$A$7:$AE$7)),"") -> 
N94: =IF(M94<>"",(LOOKUP(M94,'DY Def'!$A$5:$AE$5,'DY Def'!$A$7:$AE$7)),"") -> 
N95: =IF(M95<>"",(LOOKUP(M95,'DY Def'!$A$5:$AE$5,'DY Def'!$A$7:$AE$7)),"") -> 
N96: =IF(M96<>"",(LOOKUP(M96,'DY Def'!$A$5:$AE$5,'DY Def'!$A$7:$AE$7)),"") -> 
N97: =IF(M97<>"",(LOOKUP(M97,'DY Def'!$A$5:$AE$5,'DY Def'!$A$7:$AE$7)),"") -> 
N98: =IF(M98<>"",(LOOKUP(M98,'DY Def'!$A$5:$AE$5,'DY Def'!$A$7:$AE$7)),"") -> 
N99: =IF(M99<>"",(LOOKUP(M99,'DY Def'!$A$5:$AE$5,'DY Def'!$A$7:$AE$7)),"") -> 
N100: =IF(M100<>"",(LOOKUP(M100,'DY Def'!$A$5:$AE$5,'DY Def'!$A$7:$AE$7)),"") -> 
N101: =IF(M101<>"",(LOOKUP(M101,'DY Def'!$A$5:$AE$5,'DY Def'!$A$7:$AE$7)),"") -> 
N102: =IF(M102<>"",(LOOKUP(M102,'DY Def'!$A$5:$AE$5,'DY Def'!$A$7:$AE$7)),"") -> 
N103: =IF(M103<>"",(LOOKUP(M103,'DY Def'!$A$5:$AE$5,'DY Def'!$A$7:$AE$7)),"") -> 
N104: =IF(M104<>"",(LOOKUP(M104,'DY Def'!$A$5:$AE$5,'DY Def'!$A$7:$AE$7)),"") -> 
N105: =IF(M105<>"",(LOOKUP(M105,'DY Def'!$A$5:$AE$5,'DY Def'!$A$7:$AE$7)),"") -> 
N106: =IF(M106<>"",(LOOKUP(M106,'DY Def'!$A$5:$AE$5,'DY Def'!$A$7:$AE$7)),"") -> 
N107: =IF(M107<>"",(LOOKUP(M107,'DY Def'!$A$5:$AE$5,'DY Def'!$A$7:$AE$7)),"") -> 
N108: =IF(M108<>"",(LOOKUP(M108,'DY Def'!$A$5:$AE$5,'DY Def'!$A$7:$AE$7)),"") -> 
N109: =IF(M109<>"",(LOOKUP(M109,'DY Def'!$A$5:$AE$5,'DY Def'!$A$7:$AE$7)),"") -> 
N110: =IF(M110<>"",(LOOKUP(M110,'DY Def'!$A$5:$AE$5,'DY Def'!$A$7:$AE$7)),"") -> 
N111: =IF(M111<>"",(LOOKUP(M111,'DY Def'!$A$5:$AE$5,'DY Def'!$A$7:$AE$7)),"") -> 
N112: =IF(M112<>"",(LOOKUP(M112,'DY Def'!$A$5:$AE$5,'DY Def'!$A$7:$AE$7)),"") -> 
N113: =IF(M113<>"",(LOOKUP(M113,'DY Def'!$A$5:$AE$5,'DY Def'!$A$7:$AE$7)),"") -> 
N114: =IF(M114<>"",(LOOKUP(M114,'DY Def'!$A$5:$AE$5,'DY Def'!$A$7:$AE$7)),"") -> 
N115: =IF(M115<>"",(LOOKUP(M115,'DY Def'!$A$5:$AE$5,'DY Def'!$A$7:$AE$7)),"") -> 
N116: =IF(M116<>"",(LOOKUP(M116,'DY Def'!$A$5:$AE$5,'DY Def'!$A$7:$AE$7)),"") -> 
N117: =IF(M117<>"",(LOOKUP(M117,'DY Def'!$A$5:$AE$5,'DY Def'!$A$7:$AE$7)),"") -> 
N118: =IF(M118<>"",(LOOKUP(M118,'DY Def'!$A$5:$AE$5,'DY Def'!$A$7:$AE$7)),"") -> 
N119: =IF(M119<>"",(LOOKUP(M119,'DY Def'!$A$5:$AE$5,'DY Def'!$A$7:$AE$7)),"") -> 
N120: =IF(M120<>"",(LOOKUP(M120,'DY Def'!$A$5:$AE$5,'DY Def'!$A$7:$AE$7)),"") -> 
N121: =IF(M121<>"",(LOOKUP(M121,'DY Def'!$A$5:$AE$5,'DY Def'!$A$7:$AE$7)),"") -> 
N122: =IF(M122<>"",(LOOKUP(M122,'DY Def'!$A$5:$AE$5,'DY Def'!$A$7:$AE$7)),"") -> 
N123: =IF(M123<>"",(LOOKUP(M123,'DY Def'!$A$5:$AE$5,'DY Def'!$A$7:$AE$7)),"") -> 
N124: =IF(M124<>"",(LOOKUP(M124,'DY Def'!$A$5:$AE$5,'DY Def'!$A$7:$AE$7)),"") -> 
N125: =IF(M125<>"",(LOOKUP(M125,'DY Def'!$A$5:$AE$5,'DY Def'!$A$7:$AE$7)),"") -> 
L129: =IF(K129<>"",(LOOKUP(K129,'DY Def'!$A$5:$AE$5,'DY Def'!$A$6:$AE$6)),"") -> 

Sheet WOW PMPM & Agg
B3: WOW PMPMs and Aggregates
D6: DEMONSTRATION YEARS (DY)
D7: ='[1]DY Def'!B$5 -> 1 | E7: ='[1]DY Def'!C$5 -> 2 | F7: ='[1]DY Def'!D$5 -> 3 | G7: ='[1]DY Def'!E$5 -> 4 | H7: ='[1]DY Def'!F$5 -> 5 | I7: ='[1]DY Def'!G$5 -> 6 | J7: ='[1]DY Def'!H$5 -> 7 | K7: ='[1]DY Def'!I$5 -> 8 | L7: ='[1]DY Def'!J$5 -> 9 | M7: ='[1]DY Def'!K$5 -> 10 | N7: ='[1]DY Def'!L$5 -> 11 | O7: ='[1]DY Def'!M$5 -> 12 | P7: ='[1]DY Def'!N$5 -> 13 | Q7: ='[1]DY Def'!O$5 -> 14 | R7: ='[1]DY Def'!P$5 -> 15 | S7: ='[1]DY Def'!Q$5 -> 16 | T7: ='[1]DY Def'!R$5 -> 17 | U7: ='[1]DY Def'!S$5 -> 18 | V7: ='[1]DY Def'!T$5 -> 19 | W7: ='[1]DY Def'!U$5 -> 20 | X7: ='[1]DY Def'!V$5 -> 21 | Y7: ='[1]DY Def'!W$5 -> 22 | Z7: ='[1]DY Def'!X$5 -> 23 | AA7: ='[1]DY Def'!Y$5 -> 24 | AB7: ='[1]DY Def'!Z$5 -> 25 | AC7: ='DY Def'!AA$5 -> 26 | AD7: ='DY Def'!AB$5 -> 27 | AE7: ='DY Def'!AC$5 -> 28 | AF7: ='DY Def'!AD$5 -> 29 | AG7: ='DY Def'!AE$5 -> 30
B9: Medicaid Per Capita
B10: =IFERROR(VLOOKUP(C10,'MEG Def'!$A$7:$B$14,2),"") -> Base Families | C10: 1 | X10: 753.1 | Y10: 781.72 | Z10: 811.42 | AA10: 842.25 | AB10: 874.26
B11: =IFERROR(VLOOKUP(C11,'MEG Def'!$A$7:$B$14,2),"") -> Base Disabled/MCB | C11: 2 | X11: 1647.49 | Y11: 1713.39 | Z11: 1781.93 | AA11: 1853.21 | AB11: 1927.34
B12: =IFERROR(VLOOKUP(C12,'MEG Def'!$A$7:$B$14,2),"") -> 1902 (r) 2 Children | C12: 3 | X12: 597.02 | Y12: 618.51 | Z12: 640.78 | AA12: 663.85 | AB12: 687.75
B13: =IFERROR(VLOOKUP(C13,'MEG Def'!$A$7:$B$14,2),"") -> 1902 (r) 2 Disabled | C13: 4 | X13: 1284.97 | Y13: 1331.23 | Z13: 1379.15 | AA13: 1428.8 | AB13: 1480.24
B14: =IFERROR(VLOOKUP(C14,'MEG Def'!$A$7:$B$14,2),"") -> 1902 (r) 2 BCCDP | C14: 5 | X14: 4928.56 | Y14: 5105.99 | Z14: 5289.81 | AA14: 5480.24 | AB14: 5677.53
B15: =IFERROR(VLOOKUP(C15,'MEG Def'!$A$7:$B$14,2),"") -> Base Families 21 RO | C15: 6 | X15: 753.1 | Y15: 781.72 | Z15: 811.42 | AA15: 842.25 | AB15: 874.26
B16: =IFERROR(VLOOKUP(C16,'MEG Def'!$A$7:$B$14,2),"") -> 1902 (r) 2 RO | C16: 7 | X16: 597.02 | Y16: 618.51 | Z16: 640.78 | AA16: 663.85 | AB16: 687.75
B18: Medicaid Per Capita - WOW only
B19: =IFERROR(VLOOKUP(C19,'MEG Def'!$A$16:$B$21,2),0) -> 0
B20: =IFERROR(VLOOKUP(C20,'MEG Def'!$A$16:$B$21,2),0) -> 0
B21: =IFERROR(VLOOKUP(C21,'MEG Def'!$A$16:$B$21,2),0) -> 0
B22: =IFERROR(VLOOKUP(C22,'MEG Def'!$A$16:$B$21,2),0) -> 0
B23: =IFERROR(VLOOKUP(C23,'MEG Def'!$A$16:$B$21,2),0) -> 0
B25: Medicaid Aggregate
B26: =IFERROR(VLOOKUP(C26,'MEG Def'!$A$23:$B$28,2),"") -> 
B27: =IFERROR(VLOOKUP(C27,'MEG Def'!$A$23:$B$28,2),"") -> 
B28: =IFERROR(VLOOKUP(C28,'MEG Def'!$A$23:$B$28,2),"") -> 
B29: =IFERROR(VLOOKUP(C29,'MEG Def'!$A$23:$B$28,2),"") -> 
B30: =IFERROR(VLOOKUP(C30,'MEG Def'!$A$23:$B$28,2),"") -> 
B32: Medicaid Aggregate - WOW only
B33: =IFERROR(VLOOKUP(C33,'MEG Def'!$A$30:$B$35,2),0) -> DSH | C33: 1 | X33: 680109698.5 | Y33: 695930158.5 | Z33: 710007362.5 | AA33: 720822506 | AB33: 0
B34: =IFERROR(VLOOKUP(C34,'MEG Def'!$A$30:$B$35,2),0) -> 0
B35: =IFERROR(VLOOKUP(C35,'MEG Def'!$A$30:$B$35,2),0) -> 0
B36: =IFERROR(VLOOKUP(C36,'MEG Def'!$A$30:$B$35,2),0) -> 0
B37: =IFERROR(VLOOKUP(C37,'MEG Def'!$A$30:$B$35,2),0) -> 0
D40: DEMONSTRATION YEARS (DY)
D41: ='[1]DY Def'!B$5 -> 1 | E41: ='[1]DY Def'!C$5 -> 2 | F41: ='[1]DY Def'!D$5 -> 3 | G41: ='[1]DY Def'!E$5 -> 4 | H41: ='[1]DY Def'!F$5 -> 5 | I41: ='[1]DY Def'!G$5 -> 6 | J41: ='[1]DY Def'!H$5 -> 7 | K41: ='[1]DY Def'!I$5 -> 8 | L41: ='[1]DY Def'!J$5 -> 9 | M41: ='[1]DY Def'!K$5 -> 10 | N41: ='[1]DY Def'!L$5 -> 11 | O41: ='[1]DY Def'!M$5 -> 12 | P41: ='[1]DY Def'!N$5 -> 13 | Q41: ='[1]DY Def'!O$5 -> 14 | R41: ='[1]DY Def'!P$5 -> 15 | S41: ='[1]DY Def'!Q$5 -> 16 | T41: ='[1]DY Def'!R$5 -> 17 | U41: ='[1]DY Def'!S$5 -> 18 | V41: ='[1]DY Def'!T$5 -> 19 | W41: ='[1]DY Def'!U$5 -> 20 | X41: ='[1]DY Def'!V$5 -> 21 | Y41: ='[1]DY Def'!W$5 -> 22 | Z41: ='[1]DY Def'!X$5 -> 23 | AA41: ='[1]DY Def'!Y$5 -> 24 | AB41: ='[1]DY Def'!Z$5 -> 25 | AC41: ='DY Def'!AA$5 -> 26 | AD41: ='DY Def'!AB$5 -> 27 | AE41: ='DY Def'!AC$5 -> 28 | AF41: ='DY Def'!AD$5 -> 29 | AG41: ='DY Def'!AE$5 -> 30
B43: Hypothetical 1 Per Capita
B44: =IFERROR(VLOOKUP(C44,'MEG Def'!$A$60:$B$63,2),"") -> CommonHealth | C44: 1 | X44: 776.08 | Y44: 813.33 | Z44: 852.37 | AA44: 893.28 | AB44: 936.16
B45: =IFERROR(VLOOKUP(C45,'MEG Def'!$A$60:$B$63,2),"") -> CommonHealth XXI | C45: 2 | X45: 776.08 | Y45: 813.33 | Z45: 852.37 | AA45: 893.28 | AB45: 936.16
B46: =IFERROR(VLOOKUP(C46,'MEG Def'!$A$60:$B$63,2),"") -> 
B48: Hypothetical 1 Aggregate
B49: =IFERROR(VLOOKUP(C49,'MEG Def'!#REF!,2),0) -> 0
B50: =IFERROR(VLOOKUP(C50,'MEG Def'!#REF!,2),0) -> 0
B51: =IFERROR(VLOOKUP(C51,'MEG Def'!#REF!,2),0) -> 0
D54: DEMONSTRATION YEARS (DY)
D55: ='[1]DY Def'!B$5 -> 1 | E55: ='[1]DY Def'!C$5 -> 2 | F55: ='[1]DY Def'!D$5 -> 3 | G55: ='[1]DY Def'!E$5 -> 4 | H55: ='[1]DY Def'!F$5 -> 5 | I55: ='[1]DY Def'!G$5 -> 6 | J55: ='[1]DY Def'!H$5 -> 7 | K55: ='[1]DY Def'!I$5 -> 8 | L55: ='[1]DY Def'!J$5 -> 9 | M55: ='[1]DY Def'!K$5 -> 10 | N55: ='[1]DY Def'!L$5 -> 11 | O55: ='[1]DY Def'!M$5 -> 12 | P55: ='[1]DY Def'!N$5 -> 13 | Q55: ='[1]DY Def'!O$5 -> 14 | R55: ='[1]DY Def'!P$5 -> 15 | S55: ='[1]DY Def'!Q$5 -> 16 | T55: ='[1]DY Def'!R$5 -> 17 | U55: ='[1]DY Def'!S$5 -> 18 | V55: ='[1]DY Def'!T$5 -> 19 | W55: ='[1]DY Def'!U$5 -> 20 | X55: ='[1]DY Def'!V$5 -> 21 | Y55: ='[1]DY Def'!W$5 -> 22 | Z55: ='[1]DY Def'!X$5 -> 23 | AA55: ='[1]DY Def'!Y$5 -> 24 | AB55: ='[1]DY Def'!Z$5 -> 25 | AC55: ='DY Def'!AA$5 -> 26 | AD55: ='DY Def'!AB$5 -> 27 | AE55: ='DY Def'!AC$5 -> 28 | AF55: ='DY Def'!AD$5 -> 29 | AG55: ='DY Def'!AE$5 -> 30
B57: Hypothetical 2 Per Capita
B58: =IFERROR(VLOOKUP(C58,'MEG Def'!$A$70:$B$73,2),0) -> Out-of-state Former Foster Care Youth | C58: 1 | X58: 350.41 | Y58: 365.48 | Z58: 381.19 | AA58: 397.58 | AB58: 414.68
B59: =IFERROR(VLOOKUP(C59,'MEG Def'!$A$70:$B$73,2),0) -> 0
B60: =IFERROR(VLOOKUP(C60,'MEG Def'!$A$70:$B$73,2),0) -> 0
B62: Hypothetical 2 Aggregate
B63: =IFERROR(VLOOKUP(C63,'MEG Def'!$A$75:$B$78,2),0) -> 0
B64: =IFERROR(VLOOKUP(C64,'MEG Def'!$A$75:$B$78,2),0) -> 0
B65: =IFERROR(VLOOKUP(C65,'MEG Def'!$A$75:$B$78,2),0) -> 0
D68: DEMONSTRATION YEARS (DY)
D69: ='[1]DY Def'!B$5 -> 1 | E69: ='[1]DY Def'!C$5 -> 2 | F69: ='[1]DY Def'!D$5 -> 3 | G69: ='[1]DY Def'!E$5 -> 4 | H69: ='[1]DY Def'!F$5 -> 5 | I69: ='[1]DY Def'!G$5 -> 6 | J69: ='[1]DY Def'!H$5 -> 7 | K69: ='[1]DY Def'!I$5 -> 8 | L69: ='[1]DY Def'!J$5 -> 9 | M69: ='[1]DY Def'!K$5 -> 10 | N69: ='[1]DY Def'!L$5 -> 11 | O69: ='[1]DY Def'!M$5 -> 12 | P69: ='[1]DY Def'!N$5 -> 13 | Q69: ='[1]DY Def'!O$5 -> 14 | R69: ='[1]DY Def'!P$5 -> 15 | S69: ='[1]DY Def'!Q$5 -> 16 | T69: ='[1]DY Def'!R$5 -> 17 | U69: ='[1]DY Def'!S$5 -> 18 | V69: ='[1]DY Def'!T$5 -> 19 | W69: ='[1]DY Def'!U$5 -> 20 | X69: ='[1]DY Def'!V$5 -> 21 | Y69: ='[1]DY Def'!W$5 -> 22 | Z69: ='[1]DY Def'!X$5 -> 23 | AA69: ='[1]DY Def'!Y$5 -> 24 | AB69: ='[1]DY Def'!Z$5 -> 25 | AC69: ='DY Def'!AA$5 -> 26 | AD69: ='DY Def'!AB$5 -> 27 | AE69: ='DY Def'!AC$5 -> 28 | AF69: ='DY Def'!AD$5 -> 29 | AG69: ='DY Def'!AE$5 -> 30
B71: Hypothetical 3 Per Capita
B72: =IFERROR(VLOOKUP(C72,'MEG Def'!$A$80:$B$83,2),0) -> New Adult Group | C72: 1 | X72: 561.68 | Y72: 585.83 | Z72: 611.02 | AA72: 637.29 | AB72: 664.7
B73: =IFERROR(VLOOKUP(C73,'MEG Def'!$A$80:$B$83,2),0) -> 0
B74: =IFERROR(VLOOKUP(C74,'MEG Def'!$A$80:$B$83,2),0) -> 0
B76: Hypothetical 3 Aggregate
B77: =IFERROR(VLOOKUP(C77,'MEG Def'!$A$75:$B$78,2),0) -> 0
B78: =IFERROR(VLOOKUP(C78,'MEG Def'!$A$75:$B$78,2),0) -> 0
B79: =IFERROR(VLOOKUP(C79,'MEG Def'!$A$75:$B$78,2),0) -> 0

Sheet Program Spending Limits
B3: Program Spending Limits
C6: Cap Amounts per Demonstration Year | AG6: TOTAL
B7: Program Name and Associated MEGs | C7: ='DY Def'!B$5 -> 1 | D7: ='DY Def'!C$5 -> 2 | E7: ='DY Def'!D$5 -> 3 | F7: ='DY Def'!E$5 -> 4 | G7: ='DY Def'!F$5 -> 5 | H7: ='DY Def'!G$5 -> 6 | I7: ='DY Def'!H$5 -> 7 | J7: ='DY Def'!I$5 -> 8 | K7: ='DY Def'!J$5 -> 9 | L7: ='DY Def'!K$5 -> 10 | M7: ='DY Def'!L$5 -> 11 | N7: ='DY Def'!M$5 -> 12 | O7: ='DY Def'!N$5 -> 13 | P7: ='DY Def'!O$5 -> 14 | Q7: ='DY Def'!P$5 -> 15 | R7: ='DY Def'!Q$5 -> 16 | S7: ='DY Def'!R$5 -> 17 | T7: ='DY Def'!S$5 -> 18 | U7: ='DY Def'!T$5 -> 19 | V7: ='DY Def'!U$5 -> 20 | W7: ='DY Def'!V$5 -> 21 | X7: ='DY Def'!W$5 -> 22 | Y7: ='DY Def'!X$5 -> 23 | Z7: ='DY Def'!Y$5 -> 24 | AA7: ='DY Def'!Z$5 -> 25 | AB7: ='DY Def'!AA$5 -> 26 | AC7: ='DY Def'!AB$5 -> 27 | AD7: ='DY Def'!AC$5 -> 28 | AE7: ='DY Def'!AD$5 -> 29 | AF7: ='DY Def'!AE$5 -> 30
B8: Spending Cap | AG8: =SUM(C8:AF8) -> 0
B10: SNCP-DSRIP | W10: 425000000 | X10: 425000000 | Y10: 400000000 | Z10: 325000000 | AA10: 225000000 | AG10: =SUM(C10:AF10) -> 1800000000
B11: Expenditures Subject to Cap
B13: SNCP-DSRIP-ACO | C13: =SUMIF('WW Spending Actual'!$B$10:$B$67,'Program Spending Limits'!$B13,'WW Spending Actual'!D$10:D$67) -> 0 | D13: =SUMIF('WW Spending Actual'!$B$10:$B$67,'Program Spending Limits'!$B13,'WW Spending Actual'!E$10:E$67) -> 0 | E13: =SUMIF('WW Spending Actual'!$B$10:$B$67,'Program Spending Limits'!$B13,'WW Spending Actual'!F$10:F$67) -> 0 | F13: =SUMIF('WW Spending Actual'!$B$10:$B$67,'Program Spending Limits'!$B13,'WW Spending Actual'!G$10:G$67) -> 0 | G13: =SUMIF('WW Spending Actual'!$B$10:$B$67,'Program Spending Limits'!$B13,'WW Spending Actual'!H$10:H$67) -> 0 | H13: =SUMIF('WW Spending Actual'!$B$10:$B$67,'Program Spending Limits'!$B13,'WW Spending Actual'!I$10:I$67) -> 0 | I13: =SUMIF('WW Spending Actual'!$B$10:$B$67,'Program Spending Limits'!$B13,'WW Spending Actual'!J$10:J$67) -> 0 | J13: =SUMIF('WW Spending Actual'!$B$10:$B$67,'Program Spending Limits'!$B13,'WW Spending Actual'!K$10:K$67) -> 0 | K13: =SUMIF('WW Spending Actual'!$B$10:$B$67,'Program Spending Limits'!$B13,'WW Spending Actual'!L$10:L$67) -> 0 | L13: =SUMIF('WW Spending Actual'!$B$10:$B$67,'Program Spending Limits'!$B13,'WW Spending Actual'!M$10:M$67) -> 0 | M13: =SUMIF('WW Spending Actual'!$B$10:$B$67,'Program Spending Limits'!$B13,'WW Spending Actual'!N$10:N$67) -> 0 | N13: =SUMIF('WW Spending Actual'!$B$10:$B$67,'Program Spending Limits'!$B13,'WW Spending Actual'!O$10:O$67) -> 0 | O13: =SUMIF('WW Spending Actual'!$B$10:$B$67,'Program Spending Limits'!$B13,'WW Spending Actual'!P$10:P$67) -> 0 | P13: =SUMIF('WW Spending Actual'!$B$10:$B$67,'Program Spending Limits'!$B13,'WW Spending Actual'!Q$10:Q$67) -> 0 | Q13: =SUMIF('WW Spending Actual'!$B$10:$B$67,'Program Spending Limits'!$B13,'WW Spending Actual'!R$10:R$67) -> 0 | R13: =SUMIF('WW Spending Actual'!$B$10:$B$67,'Program Spending Limits'!$B13,'WW Spending Actual'!S$10:S$67) -> 0 | S13: =SUMIF('WW Spending Actual'!$B$10:$B$67,'Program Spending Limits'!$B13,'WW Spending Actual'!T$10:T$67) -> 0 | T13: =SUMIF('WW Spending Actual'!$B$10:$B$67,'Program Spending Limits'!$B13,'WW Spending Actual'!U$10:U$67) -> 0 | U13: =SUMIF('WW Spending Actual'!$B$10:$B$67,'Program Spending Limits'!$B13,'WW Spending Actual'!V$10:V$67) -> 0 | V13: =SUMIF('WW Spending Actual'!$B$10:$B$67,'Program Spending Limits'!$B13,'WW Spending Actual'!W$10:W$67) -> 0 | W13: =SUMIF('WW Spending Actual'!$B$10:$B$67,'Program Spending Limits'!$B13,'WW Spending Actual'!X$10:X$67) -> 0 | X13: =SUMIF('WW Spending Actual'!$B$10:$B$67,'Program Spending Limits'!$B13,'WW Spending Actual'!Y$10:Y$67) -> 0 | Y13: =SUMIF('WW Spending Actual'!$B$10:$B$67,'Program Spending Limits'!$B13,'WW Spending Actual'!Z$10:Z$67) -> 0 | Z13: =SUMIF('WW Spending Actual'!$B$10:$B$67,'Program Spending Limits'!$B13,'WW Spending Actual'!AA$10:AA$67) -> 0 | AA13: =SUMIF('WW Spending Actual'!$B$10:$B$67,'Program Spending Limits'!$B13,'WW Spending Actual'!AB$10:AB$67) -> 0 | AB13: =SUMIF('WW Spending Actual'!$B$10:$B$67,'Program Spending Limits'!$B13,'WW Spending Actual'!AC$10:AC$67) -> 0 | AC13: =SUMIF('WW Spending Actual'!$B$10:$B$67,'Program Spending Limits'!$B13,'WW Spending Actual'!AD$10:AD$67) -> 0 | AD13: =SUMIF('WW Spending Actual'!$B$10:$B$67,'Program Spending Limits'!$B13,'WW Spending Actual'!AE$10:AE$67) -> 0 | AE13: =SUMIF('WW Spending Actual'!$B$10:$B$67,'Program Spending Limits'!$B13,'WW Spending Actual'!AF$10:AF$67) -> 0 | AF13: =SUMIF('WW Spending Actual'!$B$10:$B$67,'Program Spending Limits'!$B13,'WW Spending Actual'!AG$10:AG$67) -> 0
B14: SNCP-DSRIP-CP | C14: =SUMIF('WW Spending Actual'!$B$10:$B$67,'Program Spending Limits'!$B14,'WW Spending Actual'!D$10:D$67) -> 0 | D14: =SUMIF('WW Spending Actual'!$B$10:$B$67,'Program Spending Limits'!$B14,'WW Spending Actual'!E$10:E$67) -> 0 | E14: =SUMIF('WW Spending Actual'!$B$10:$B$67,'Program Spending Limits'!$B14,'WW Spending Actual'!F$10:F$67) -> 0 | F14: =SUMIF('WW Spending Actual'!$B$10:$B$67,'Program Spending Limits'!$B14,'WW Spending Actual'!G$10:G$67) -> 0 | G14: =SUMIF('WW Spending Actual'!$B$10:$B$67,'Program Spending Limits'!$B14,'WW Spending Actual'!H$10:H$67) -> 0 | H14: =SUMIF('WW Spending Actual'!$B$10:$B$67,'Program Spending Limits'!$B14,'WW Spending Actual'!I$10:I$67) -> 0 | I14: =SUMIF('WW Spending Actual'!$B$10:$B$67,'Program Spending Limits'!$B14,'WW Spending Actual'!J$10:J$67) -> 0 | J14: =SUMIF('WW Spending Actual'!$B$10:$B$67,'Program Spending Limits'!$B14,'WW Spending Actual'!K$10:K$67) -> 0 | K14: =SUMIF('WW Spending Actual'!$B$10:$B$67,'Program Spending Limits'!$B14,'WW Spending Actual'!L$10:L$67) -> 0 | L14: =SUMIF('WW Spending Actual'!$B$10:$B$67,'Program Spending Limits'!$B14,'WW Spending Actual'!M$10:M$67) -> 0 | M14: =SUMIF('WW Spending Actual'!$B$10:$B$67,'Program Spending Limits'!$B14,'WW Spending Actual'!N$10:N$67) -> 0 | N14: =SUMIF('WW Spending Actual'!$B$10:$B$67,'Program Spending Limits'!$B14,'WW Spending Actual'!O$10:O$67) -> 0 | O14: =SUMIF('WW Spending Actual'!$B$10:$B$67,'Program Spending Limits'!$B14,'WW Spending Actual'!P$10:P$67) -> 0 | P14: =SUMIF('WW Spending Actual'!$B$10:$B$67,'Program Spending Limits'!$B14,'WW Spending Actual'!Q$10:Q$67) -> 0 | Q14: =SUMIF('WW Spending Actual'!$B$10:$B$67,'Program Spending Limits'!$B14,'WW Spending Actual'!R$10:R$67) -> 0 | R14: =SUMIF('WW Spending Actual'!$B$10:$B$67,'Program Spending Limits'!$B14,'WW Spending Actual'!S$10:S$67) -> 0 | S14: =SUMIF('WW Spending Actual'!$B$10:$B$67,'Program Spending Limits'!$B14,'WW Spending Actual'!T$10:T$67) -> 0 | T14: =SUMIF('WW Spending Actual'!$B$10:$B$67,'Program Spending Limits'!$B14,'WW Spending Actual'!U$10:U$67) -> 0 | U14: =SUMIF('WW Spending Actual'!$B$10:$B$67,'Program Spending Limits'!$B14,'WW Spending Actual'!V$10:V$67) -> 0 | V14: =SUMIF('WW Spending Actual'!$B$10:$B$67,'Program Spending Limits'!$B14,'WW Spending Actual'!W$10:W$67) -> 0 | W14: =SUMIF('WW Spending Actual'!$B$10:$B$67,'Program Spending Limits'!$B14,'WW Spending Actual'!X$10:X$67) -> 0 | X14: =SUMIF('WW Spending Actual'!$B$10:$B$67,'Program Spending Limits'!$B14,'WW Spending Actual'!Y$10:Y$67) -> 0 | Y14: =SUMIF('WW Spending Actual'!$B$10:$B$67,'Program Spending Limits'!$B14,'WW Spending Actual'!Z$10:Z$67) -> 0 | Z14: =SUMIF('WW Spending Actual'!$B$10:$B$67,'Program Spending Limits'!$B14,'WW Spending Actual'!AA$10:AA$67) -> 0 | AA14: =SUMIF('WW Spending Actual'!$B$10:$B$67,'Program Spending Limits'!$B14,'WW Spending Actual'!AB$10:AB$67) -> 0
B15: SNCP-DSRIP-SWI
B16: SNCP-DSRIP-Operations
B18: Variance | C18: =C10-SUM(C13:C15) -> 0 | D18: =D10-SUM(D13:D15) -> 0 | E18: 0 | F18: 0 | G18: 0 | H18: 0 | I18: 0 | J18: 0 | K18: 0 | L18: 0 | M18: 0 | N18: 0 | O18: 0 | P18: 0 | Q18: 0 | R18: 0 | S18: 0 | T18: 0 | U18: 0 | V18: 0 | W18: 425000000 | X18: 425000000 | Y18: 400000000 | Z18: 325000000 | AA18: 225000000 | AB18: 0 | AC18: 0 | AD18: 0 | AE18: 0 | AF18: 0 | AG18: =SUM(C18:AF18) -> 1800000000
B19: Over or Under | C19: =IF(C18<0,"Over",".") -> . | D19: . | E19: . | F19: . | G19: . | H19: . | I19: . | J19: . | K19: . | L19: . | M19: . | N19: . | O19: . | P19: . | Q19: . | R19: . | S19: . | T19: . | U19: . | V19: . | W19: . | X19: . | Y19: . | Z19: . | AA19: . | AB19: . | AC19: . | AD19: . | AE19: . | AF19: . | AG19: =IF(AG18<0,"Over",".") -> .
C21: Cap Amounts per Demonstration Year | AG21: TOTAL
B22: Program Name and Associated MEGs | C22: ='DY Def'!B$5 -> 1 | D22: ='DY Def'!C$5 -> 2 | E22: ='DY Def'!D$5 -> 3 | F22: ='DY Def'!E$5 -> 4 | G22: ='DY Def'!F$5 -> 5 | H22: ='DY Def'!G$5 -> 6 | I22: ='DY Def'!H$5 -> 7 | J22: ='DY Def'!I$5 -> 8 | K22: ='DY Def'!J$5 -> 9 | L22: ='DY Def'!K$5 -> 10 | M22: ='DY Def'!L$5 -> 11 | N22: ='DY Def'!M$5 -> 12 | O22: ='DY Def'!N$5 -> 13 | P22: ='DY Def'!O$5 -> 14 | Q22: ='DY Def'!P$5 -> 15 | R22: ='DY Def'!Q$5 -> 16 | S22: ='DY Def'!R$5 -> 17 | T22: ='DY Def'!S$5 -> 18 | U22: ='DY Def'!T$5 -> 19 | V22: ='DY Def'!U$5 -> 20 | W22: ='DY Def'!V$5 -> 21 | X22: ='DY Def'!W$5 -> 22 | Y22: ='DY Def'!X$5 -> 23 | Z22: ='DY Def'!Y$5 -> 24 | AA22: ='DY Def'!Z$5 -> 25 | AB22: ='DY Def'!AA$5 -> 26 | AC22: ='DY Def'!AB$5 -> 27 | AD22: ='DY Def'!AC$5 -> 28 | AE22: ='DY Def'!AD$5 -> 29 | AF22: ='DY Def'!AE$5 -> 30
B23: Spending Cap | AG23: =SUM(C23:AF23) -> 0
B25: SNCP-UCC | W25: 212000000 | X25: 100000000 | Y25: 100000000 | Z25: 100000000 | AA25: 100000000 | AG25: =SUM(C25:AF25) -> 612000000
B26: Expenditures Subject to Cap
B28: SNCP-UCC | C28: =SUMIF('WW Spending Actual'!$B$10:$B$67,'Program Spending Limits'!$B28,'WW Spending Actual'!D$10:D$67) -> 0 | D28: =SUMIF('WW Spending Actual'!$B$10:$B$67,'Program Spending Limits'!$B28,'WW Spending Actual'!E$10:E$67) -> 0 | E28: =SUMIF('WW Spending Actual'!$B$10:$B$67,'Program Spending Limits'!$B28,'WW Spending Actual'!F$10:F$67) -> 0 | F28: =SUMIF('WW Spending Actual'!$B$10:$B$67,'Program Spending Limits'!$B28,'WW Spending Actual'!G$10:G$67) -> 0 | G28: =SUMIF('WW Spending Actual'!$B$10:$B$67,'Program Spending Limits'!$B28,'WW Spending Actual'!H$10:H$67) -> 0 | H28: =SUMIF('WW Spending Actual'!$B$10:$B$67,'Program Spending Limits'!$B28,'WW Spending Actual'!I$10:I$67) -> 0 | I28: =SUMIF('WW Spending Actual'!$B$10:$B$67,'Program Spending Limits'!$B28,'WW Spending Actual'!J$10:J$67) -> 0 | J28: =SUMIF('WW Spending Actual'!$B$10:$B$67,'Program Spending Limits'!$B28,'WW Spending Actual'!K$10:K$67) -> 0 | K28: =SUMIF('WW Spending Actual'!$B$10:$B$67,'Program Spending Limits'!$B28,'WW Spending Actual'!L$10:L$67) -> 0 | L28: =SUMIF('WW Spending Actual'!$B$10:$B$67,'Program Spending Limits'!$B28,'WW Spending Actual'!M$10:M$67) -> 0 | M28: =SUMIF('WW Spending Actual'!$B$10:$B$67,'Program Spending Limits'!$B28,'WW Spending Actual'!N$10:N$67) -> 0 | N28: =SUMIF('WW Spending Actual'!$B$10:$B$67,'Program Spending Limits'!$B28,'WW Spending Actual'!O$10:O$67) -> 0 | O28: =SUMIF('WW Spending Actual'!$B$10:$B$67,'Program Spending Limits'!$B28,'WW Spending Actual'!P$10:P$67) -> 0 | P28: =SUMIF('WW Spending Actual'!$B$10:$B$67,'Program Spending Limits'!$B28,'WW Spending Actual'!Q$10:Q$67) -> 0 | Q28: =SUMIF('WW Spending Actual'!$B$10:$B$67,'Program Spending Limits'!$B28,'WW Spending Actual'!R$10:R$67) -> 0 | R28: =SUMIF('WW Spending Actual'!$B$10:$B$67,'Program Spending Limits'!$B28,'WW Spending Actual'!S$10:S$67) -> 0 | S28: =SUMIF('WW Spending Actual'!$B$10:$B$67,'Program Spending Limits'!$B28,'WW Spending Actual'!T$10:T$67) -> 0 | T28: =SUMIF('WW Spending Actual'!$B$10:$B$67,'Program Spending Limits'!$B28,'WW Spending Actual'!U$10:U$67) -> 0 | U28: =SUMIF('WW Spending Actual'!$B$10:$B$67,'Program Spending Limits'!$B28,'WW Spending Actual'!V$10:V$67) -> 0 | V28: =SUMIF('WW Spending Actual'!$B$10:$B$67,'Program Spending Limits'!$B28,'WW Spending Actual'!W$10:W$67) -> 0 | W28: =SUMIF('WW Spending Actual'!$B$10:$B$67,'Program Spending Limits'!$B28,'WW Spending Actual'!X$10:X$67) -> 0 | X28: =SUMIF('WW Spending Actual'!$B$10:$B$67,'Program Spending Limits'!$B28,'WW Spending Actual'!Y$10:Y$67) -> 0 | Y28: =SUMIF('WW Spending Actual'!$B$10:$B$67,'Program Spending Limits'!$B28,'WW Spending Actual'!Z$10:Z$67) -> 0 | Z28: =SUMIF('WW Spending Actual'!$B$10:$B$67,'Program Spending Limits'!$B28,'WW Spending Actual'!AA$10:AA$67) -> 0 | AA28: =SUMIF('WW Spending Actual'!$B$10:$B$67,'Program Spending Limits'!$B28,'WW Spending Actual'!AB$10:AB$67) -> 0 | AB28: =SUMIF('WW Spending Actual'!$B$10:$B$67,'Program Spending Limits'!$B28,'WW Spending Actual'!AC$10:AC$67) -> 0 | AC28: =SUMIF('WW Spending Actual'!$B$10:$B$67,'Program Spending Limits'!$B28,'WW Spending Actual'!AD$10:AD$67) -> 0 | AD28: =SUMIF('WW Spending Actual'!$B$10:$B$67,'Program Spending Limits'!$B28,'WW Spending Actual'!AE$10:AE$67) -> 0 | AE28: =SUMIF('WW Spending Actual'!$B$10:$B$67,'Program Spending Limits'!$B28,'WW Spending Actual'!AF$10:AF$67) -> 0 | AF28: =SUMIF('WW Spending Actual'!$B$10:$B$67,'Program Spending Limits'!$B28,'WW Spending Actual'!AG$10:AG$67) -> 0
B30: Variance | C30: =C25-C28 -> 0 | D30: 0 | E30: 0 | F30: 0 | G30: 0 | H30: 0 | I30: 0 | J30: 0 | K30: 0 | L30: 0 | M30: 0 | N30: 0 | O30: 0 | P30: 0 | Q30: 0 | R30: 0 | S30: 0 | T30: 0 | U30: 0 | V30: 0 | W30: 212000000 | X30: 100000000 | Y30: 100000000 | Z30: 100000000 | AA30: 100000000 | AB30: 0 | AC30: 0 | AD30: 0 | AE30: 0 | AF30: 0 | AG30: =SUM(C30:AF30) -> 612000000
B31: Over or Under | C31: =IF(C30<0,"Over",".") -> . | D31: . | E31: . | F31: . | G31: . | H31: . | I31: . | J31: . | K31: . | L31: . | M31: . | N31: . | O31: . | P31: . | Q31: . | R31: . | S31: . | T31: . | U31: . | V31: . | W31: . | X31: . | Y31: . | Z31: . | AA31: . | AB31: . | AC31: . | AD31: . | AE31: . | AF31: . | AG31: =IF(AG30<0,"Over",".") -> .
C33: Cap Amounts per Demonstration Year | AG33: TOTAL
B34: Program Name and Associated MEGs | C34: ='DY Def'!B$5 -> 1 | D34: ='DY Def'!C$5 -> 2 | E34: ='DY Def'!D$5 -> 3 | F34: ='DY Def'!E$5 -> 4 | G34: ='DY Def'!F$5 -> 5 | H34: ='DY Def'!G$5 -> 6 | I34: ='DY Def'!H$5 -> 7 | J34: ='DY Def'!I$5 -> 8 | K34: ='DY Def'!J$5 -> 9 | L34: ='DY Def'!K$5 -> 10 | M34: ='DY Def'!L$5 -> 11 | N34: ='DY Def'!M$5 -> 12 | O34: ='DY Def'!N$5 -> 13 | P34: ='DY Def'!O$5 -> 14 | Q34: ='DY Def'!P$5 -> 15 | R34: ='DY Def'!Q$5 -> 16 | S34: ='DY Def'!R$5 -> 17 | T34: ='DY Def'!S$5 -> 18 | U34: ='DY Def'!T$5 -> 19 | V34: ='DY Def'!U$5 -> 20 | W34: ='DY Def'!V$5 -> 21 | X34: ='DY Def'!W$5 -> 22 | Y34: ='DY Def'!X$5 -> 23 | Z34: ='DY Def'!Y$5 -> 24 | AA34: ='DY Def'!Z$5 -> 25 | AB34: ='DY Def'!AA$5 -> 26 | AC34: ='DY Def'!AB$5 -> 27 | AD34: ='DY Def'!AC$5 -> 28 | AE34: ='DY Def'!AD$5 -> 29 | AF34: ='DY Def'!AE$5 -> 30
B35: Spending Cap | AG35: =SUM(C35:AF35) -> 0
B37: SNCP-PHTII | W37: 309000000 | X37: 243000000 | Y37: 120000000 | Z37: 100000000 | AA37: 100000000 | AG37: =SUM(C37:AF37) -> 872000000
B38: Expenditures Subject to Cap
B40: SNCP-PHTII | C40: =SUMIF('WW Spending Actual'!$B$10:$B$67,'Program Spending Limits'!$B40,'WW Spending Actual'!D$10:D$67) -> 0 | D40: =SUMIF('WW Spending Actual'!$B$10:$B$67,'Program Spending Limits'!$B40,'WW Spending Actual'!E$10:E$67) -> 0 | E40: =SUMIF('WW Spending Actual'!$B$10:$B$67,'Program Spending Limits'!$B40,'WW Spending Actual'!F$10:F$67) -> 0 | F40: =SUMIF('WW Spending Actual'!$B$10:$B$67,'Program Spending Limits'!$B40,'WW Spending Actual'!G$10:G$67) -> 0 | G40: =SUMIF('WW Spending Actual'!$B$10:$B$67,'Program Spending Limits'!$B40,'WW Spending Actual'!H$10:H$67) -> 0 | H40: =SUMIF('WW Spending Actual'!$B$10:$B$67,'Program Spending Limits'!$B40,'WW Spending Actual'!I$10:I$67) -> 0 | I40: =SUMIF('WW Spending Actual'!$B$10:$B$67,'Program Spending Limits'!$B40,'WW Spending Actual'!J$10:J$67) -> 0 | J40: =SUMIF('WW Spending Actual'!$B$10:$B$67,'Program Spending Limits'!$B40,'WW Spending Actual'!K$10:K$67) -> 0 | K40: =SUMIF('WW Spending Actual'!$B$10:$B$67,'Program Spending Limits'!$B40,'WW Spending Actual'!L$10:L$67) -> 0 | L40: =SUMIF('WW Spending Actual'!$B$10:$B$67,'Program Spending Limits'!$B40,'WW Spending Actual'!M$10:M$67) -> 0 | M40: =SUMIF('WW Spending Actual'!$B$10:$B$67,'Program Spending Limits'!$B40,'WW Spending Actual'!N$10:N$67) -> 0 | N40: =SUMIF('WW Spending Actual'!$B$10:$B$67,'Program Spending Limits'!$B40,'WW Spending Actual'!O$10:O$67) -> 0 | O40: =SUMIF('WW Spending Actual'!$B$10:$B$67,'Program Spending Limits'!$B40,'WW Spending Actual'!P$10:P$67) -> 0 | P40: =SUMIF('WW Spending Actual'!$B$10:$B$67,'Program Spending Limits'!$B40,'WW Spending Actual'!Q$10:Q$67) -> 0 | Q40: =SUMIF('WW Spending Actual'!$B$10:$B$67,'Program Spending Limits'!$B40,'WW Spending Actual'!R$10:R$67) -> 0 | R40: =SUMIF('WW Spending Actual'!$B$10:$B$67,'Program Spending Limits'!$B40,'WW Spending Actual'!S$10:S$67) -> 0 | S40: =SUMIF('WW Spending Actual'!$B$10:$B$67,'Program Spending Limits'!$B40,'WW Spending Actual'!T$10:T$67) -> 0 | T40: =SUMIF('WW Spending Actual'!$B$10:$B$67,'Program Spending Limits'!$B40,'WW Spending Actual'!U$10:U$67) -> 0 | U40: =SUMIF('WW Spending Actual'!$B$10:$B$67,'Program Spending Limits'!$B40,'WW Spending Actual'!V$10:V$67) -> 130391551 | V40: =SUMIF('WW Spending Actual'!$B$10:$B$67,'Program Spending Limits'!$B40,'WW Spending Actual'!W$10:W$67) -> 163997778 | W40: =SUMIF('WW Spending Actual'!$B$10:$B$67,'Program Spending Limits'!$B40,'WW Spending Actual'!X$10:X$67) -> 309000000 | X40: =SUMIF('WW Spending Actual'!$B$10:$B$67,'Program Spending Limits'!$B40,'WW Spending Actual'!Y$10:Y$67) -> 243000000 | Y40: =SUMIF('WW Spending Actual'!$B$10:$B$67,'Program Spending Limits'!$B40,'WW Spending Actual'!Z$10:Z$67) -> 114000000 | Z40: =SUMIF('WW Spending Actual'!$B$10:$B$67,'Program Spending Limits'!$B40,'WW Spending Actual'!AA$10:AA$67) -> 0 | AA40: =SUMIF('WW Spending Actual'!$B$10:$B$67,'Program Spending Limits'!$B40,'WW Spending Actual'!AB$10:AB$67) -> 0 | AB40: =SUMIF('WW Spending Actual'!$B$10:$B$67,'Program Spending Limits'!$B40,'WW Spending Actual'!AC$10:AC$67) -> 0 | AC40: =SUMIF('WW Spending Actual'!$B$10:$B$67,'Program Spending Limits'!$B40,'WW Spending Actual'!AD$10:AD$67) -> 0 | AD40: =SUMIF('WW Spending Actual'!$B$10:$B$67,'Program Spending Limits'!$B40,'WW Spending Actual'!AE$10:AE$67) -> 0 | AE40: =SUMIF('WW Spending Actual'!$B$10:$B$67,'Program Spending Limits'!$B40,'WW Spending Actual'!AF$10:AF$67) -> 0 | AF40: =SUMIF('WW Spending Actual'!$B$10:$B$67,'Program Spending Limits'!$B40,'WW Spending Actual'!AG$10:AG$67) -> 0
B42: Variance | C42: =C37-C40 -> 0 | D42: 0 | E42: 0 | F42: 0 | G42: 0 | H42: 0 | I42: 0 | J42: 0 | K42: 0 | L42: 0 | M42: 0 | N42: 0 | O42: 0 | P42: 0 | Q42: 0 | R42: 0 | S42: 0 | T42: 0 | U42: -130391551 | V42: -163997778 | W42: 0 | X42: 0 | Y42: 6000000 | Z42: 100000000 | AA42: 100000000 | AB42: 0 | AC42: 0 | AD42: 0 | AE42: 0 | AF42: 0 | AG42: =SUM(C42:AF42) -> -88389329
B43: Over or Under | C43: =IF(C42<0,"Over",".") -> . | D43: . | E43: . | F43: . | G43: . | H43: . | I43: . | J43: . | K43: . | L43: . | M43: . | N43: . | O43: . | P43: . | Q43: . | R43: . | S43: . | T43: . | U43: Over | V43: Over | W43: . | X43: . | Y43: . | Z43: . | AA43: . | AB43: . | AC43: . | AD43: . | AE43: . | AF43: . | AG43: =IF(AG42<0,"Over",".") -> Over

Sheet C Report
G2: Data Pulled On: | H2: 2020-11-23 | J2: Reporting DY | K2: 24
G3: For the Time Period Through: | H3: 2020-09-30 | J3: Reporting Quarter | K3: 1
A5: Paste all information related to the demonstration from Schedule C of the CMS 64 Waiver Expenditure Report.
A6: 1. On the Schedule C Report, locate rows relevant to all expenditures for a specific demonstration.
A7: 2. Complete two rounds of copy/paste starting from the cell in column A (Waiver Name).
A8: · MAP Waivers/ Total Computable section – into cell A100
A9: · MAP Waivers/ Federal Share section – into cell A200
A10: 3. If ADM waivers are applicable to the demonstration, complete two more rounds of copy/paste starting
A11: from the cell in column A (Waiver Name).
A12: · ADM Waivers/ Total Computable section – cell A300
A13: · ADM Waivers/ Federal Share section – cell A400
A97: MAP Waivers
A99: Total Computable
A100: Waiver Name | B100: A | C100: 01 | D100: 02 | E100: 03 | F100: 04 | G100: 05 | H100: 06 | I100: 07 | J100: 08 | K100: 09 | L100: 10 | M100: 11 | N100: 12 | O100: 13 | P100: 14 | Q100: 15 | R100: 16 | S100: 17 | T100: 18 | U100: 19 | V100: 20 | W100: 21 | X100: 22 | Y100: 23 | Z100: 24 | AA100: 25 | AB100: 26 | AC100: 27 | AD100: 28 | AE100: 29 | AF100: 30 | AG100: Total | AH100: Total Less Non-Adds
A101: 1115 BPHC | B101: 0 | C101: 0 | D101: 0 | E101: 0 | F101: 0 | G101: 0 | H101: 0 | I101: 0 | J101: 0 | K101: 0 | L101: 0 | M101: 0 | N101: 0 | O101: 0 | P101: 0 | Q101: 0 | R101: 0 | S101: 0 | T101: 0 | U101: 0 | V101: 0 | W101: 0 | X101: 0 | Y101: 0 | Z101: 0 | AA101: 0 | AB101: 0 | AC101: 0 | AD101: 0 | AE101: 0 | AF101: 0 | AG101: 105129157 | AH101: 105129157
A102: 1115 CMHLTH | B102: 0 | C102: 0 | D102: 0 | E102: 0 | F102: 0 | G102: 0 | H102: 0 | I102: 0 | J102: 0 | K102: 0 | L102: 0 | M102: 0 | N102: 0 | O102: 0 | P102: 0 | Q102: 0 | R102: 0 | S102: 0 | T102: 0 | U102: 0 | V102: 0 | W102: 0 | X102: 0 | Y102: 0 | Z102: 0 | AA102: 0 | AB102: 0 | AC102: 0 | AD102: 0 | AE102: 0 | AF102: 0 | AG102: 2383766 | AH102: 2383766
A103: 1115 CPHC | B103: 0 | C103: 0 | D103: 0 | E103: 0 | F103: 0 | G103: 0 | H103: 0 | I103: 0 | J103: 0 | K103: 0 | L103: 0 | M103: 0 | N103: 0 | O103: 0 | P103: 0 | Q103: 0 | R103: 0 | S103: 0 | T103: 0 | U103: 0 | V103: 0 | W103: 0 | X103: 0 | Y103: 0 | Z103: 0 | AA103: 0 | AB103: 0 | AC103: 0 | AD103: 0 | AE103: 0 | AF103: 0 | AG103: 36969708 | AH103: 36969708
A104: 1115 LIMITD | B104: 0 | C104: 0 | D104: 0 | E104: 0 | F104: 0 | G104: 0 | H104: 0 | I104: 0 | J104: 0 | K104: 0 | L104: 0 | M104: 0 | N104: 0 | O104: 0 | P104: 0 | Q104: 0 | R104: 0 | S104: 0 | T104: 0 | U104: 0 | V104: 0 | W104: 0 | X104: 0 | Y104: 0 | Z104: 0 | AA104: 0 | AB104: 0 | AC104: 0 | AD104: 0 | AE104: 0 | AF104: 0 | AG104: 101423 | AH104: 101423
A105: 1115 STNDRT | B105: 0 | C105: 0 | D105: 0 | E105: 0 | F105: 0 | G105: 0 | H105: 0 | I105: 0 | J105: 0 | K105: 0 | L105: 0 | M105: 0 | N105: 0 | O105: 0 | P105: 0 | Q105: 0 | R105: 0 | S105: 0 | T105: 0 | U105: 0 | V105: 0 | W105: 0 | X105: 0 | Y105: 0 | Z105: 0 | AA105: 0 | AB105: 0 | AC105: 0 | AD105: 0 | AE105: 0 | AF105: 0 | AG105: 124406758 | AH105: 124406758
A106: 1115-BASIC | B106: 0 | C106: 34412171 | D106: 127659803 | E106: 46079527 | F106: 0 | G106: 0 | H106: 0 | I106: 0 | J106: 0 | K106: 0 | L106: 0 | M106: 0 | N106: 0 | O106: 0 | P106: 0 | Q106: 0 | R106: 0 | S106: 0 | T106: 0 | U106: 0 | V106: 0 | W106: 0 | X106: 0 | Y106: 0 | Z106: 0 | AA106: 0 | AB106: 0 | AC106: 0 | AD106: 0 | AE106: 0 | AF106: 0 | AG106: 229514089 | AH106: 229514089
A107: 1115-BPHC | B107: 0 | C107: 3287934 | D107: 168674714 | E107: 138512847 | F107: 0 | G107: 0 | H107: 0 | I107: 0 | J107: 0 | K107: 0 | L107: 0 | M107: 0 | N107: 0 | O107: 0 | P107: 0 | Q107: 0 | R107: 0 | S107: 0 | T107: 0 | U107: 0 | V107: 0 | W107: 0 | X107: 0 | Y107: 0 | Z107: 0 | AA107: 0 | AB107: 0 | AC107: 0 | AD107: 0 | AE107: 0 | AF107: 0 | AG107: 313462084 | AH107: 313462084
A108: 1115-CMHLTH | B108: 0 | C108: 13155552 | D108: 29807739 | E108: 20811960 | F108: 0 | G108: 0 | H108: 0 | I108: 0 | J108: 0 | K108: 0 | L108: 0 | M108: 0 | N108: 0 | O108: 0 | P108: 0 | Q108: 0 | R108: 0 | S108: 0 | T108: 0 | U108: 0 | V108: 0 | W108: 0 | X108: 0 | Y108: 0 | Z108: 0 | AA108: 0 | AB108: 0 | AC108: 0 | AD108: 0 | AE108: 0 | AF108: 0 | AG108: 77148490 | AH108: 77148490
A109: 1115-CPHC | B109: 0 | C109: 1399172 | D109: 60536845 | E109: 58728469 | F109: 0 | G109: 0 | H109: 0 | I109: 0 | J109: 0 | K109: 0 | L109: 0 | M109: 0 | N109: 0 | O109: 0 | P109: 0 | Q109: 0 | R109: 0 | S109: 0 | T109: 0 | U109: 0 | V109: 0 | W109: 0 | X109: 0 | Y109: 0 | Z109: 0 | AA109: 0 | AB109: 0 | AC109: 0 | AD109: 0 | AE109: 0 | AF109: 0 | AG109: 121453981 | AH109: 121453981
A110: 1115-IRP | B110: 0 | C110: 0 | D110: 751961 | E110: 436730 | F110: 0 | G110: 0 | H110: 0 | I110: 0 | J110: 0 | K110: 0 | L110: 0 | M110: 0 | N110: 0 | O110: 0 | P110: 0 | Q110: 0 | R110: 0 | S110: 0 | T110: 0 | U110: 0 | V110: 0 | W110: 0 | X110: 0 | Y110: 0 | Z110: 0 | AA110: 0 | AB110: 0 | AC110: 0 | AD110: 0 | AE110: 0 | AF110: 0 | AG110: 1188691 | AH110: 1188691
A111: 1115-LIMITD | B111: 0 | C111: 3052304 | D111: 8987168 | E111: 4244188 | F111: 0 | G111: 0 | H111: 0 | I111: 0 | J111: 0 | K111: 0 | L111: 0 | M111: 0 | N111: 0 | O111: 0 | P111: 0 | Q111: 0 | R111: 0 | S111: 0 | T111: 0 | U111: 0 | V111: 0 | W111: 0 | X111: 0 | Y111: 0 | Z111: 0 | AA111: 0 | AB111: 0 | AC111: 0 | AD111: 0 | AE111: 0 | AF111: 0 | AG111: 17908502 | AH111: 17908502
A112: 1115-MHSPY | B112: 0 | C112: 6114 | D112: 259466 | E112: 70818 | F112: 0 | G112: 0 | H112: 0 | I112: 0 | J112: 0 | K112: 0 | L112: 0 | M112: 0 | N112: 0 | O112: 0 | P112: 0 | Q112: 0 | R112: 0 | S112: 0 | T112: 0 | U112: 0 | V112: 0 | W112: 0 | X112: 0 | Y112: 0 | Z112: 0 | AA112: 0 | AB112: 0 | AC112: 0 | AD112: 0 | AE112: 0 | AF112: 0 | AG112: 336398 | AH112: 336398
A113: 1115-MSP | B113: 0 | C113: 9708204 | D113: 8227360 | E113: 1724253 | F113: 0 | G113: 0 | H113: 0 | I113: 0 | J113: 0 | K113: 0 | L113: 0 | M113: 0 | N113: 0 | O113: 0 | P113: 0 | Q113: 0 | R113: 0 | S113: 0 | T113: 0 | U113: 0 | V113: 0 | W113: 0 | X113: 0 | Y113: 0 | Z113: 0 | AA113: 0 | AB113: 0 | AC113: 0 | AD113: 0 | AE113: 0 | AF113: 0 | AG113: 20980275 | AH113: 20980275
A114: 1115-STNDRD | B114: 0 | C114: 727736079 | D114: 1314307410 | E114: 613253830 | F114: 0 | G114: 0 | H114: 0 | I114: 0 | J114: 0 | K114: 0 | L114: 0 | M114: 0 | N114: 0 | O114: 0 | P114: 0 | Q114: 0 | R114: 0 | S114: 0 | T114: 0 | U114: 0 | V114: 0 | W114: 0 | X114: 0 | Y114: 0 | Z114: 0 | AA114: 0 | AB114: 0 | AC114: 0 | AD114: 0 | AE114: 0 | AF114: 0 | AG114: 3403015613 | AH114: 3403015613
A115: 115-STNDRD | B115: 0 | C115: 0 | D115: 397237576 | E115: 0 | F115: 0 | G115: 0 | H115: 0 | I115: 0 | J115: 0 | K115: 0 | L115: 0 | M115: 0 | N115: 0 | O115: 0 | P115: 0 | Q115: 0 | R115: 0 | S115: 0 | T115: 0 | U115: 0 | V115: 0 | W115: 0 | X115: 0 | Y115: 0 | Z115: 0 | AA115: 0 | AB115: 0 | AC115: 0 | AD115: 0 | AE115: 0 | AF115: 0 | AG115: 397237576 | AH115: 397237576
A116: 1902(r)(2) Children | B116: 0 | C116: 0 | D116: 0 | E116: 0 | F116: 0 | G116: -808 | H116: 408 | I116: 13661 | J116: 1898971 | K116: 49012288 | L116: 61430644 | M116: 42805611 | N116: 30574860 | O116: 44927755 | P116: -18192429 | Q116: 55470600 | R116: 58390281 | S116: 70073797 | T116: 95009995 | U116: 117711287 | V116: 141921814 | W116: 96124870 | X116: 78740273 | Y116: 73411564 | Z116: 18471923 | AA116: 0 | AB116: 0 | AC116: 0 | AD116: 0 | AE116: 0 | AF116: 0 | AG116: 1017797365 | AH116: 1017797365
A117: 1902(r)(2) Disabled | B117: 0 | C117: 0 | D117: 0 | E117: 0 | F117: 0 | G117: -4601 | H117: 15036 | I117: 155368 | J117: 6151729 | K117: 62693624 | L117: 48183994 | M117: 43957808 | N117: 57952008 | O117: 52179853 | P117: 52587197 | Q117: 49658053 | R117: 51171804 | S117: 52386763 | T117: 46440492 | U117: 53769289 | V117: 58826270 | W117: 55836760 | X117: 60198685 | Y117: 62724513 | Z117: 12671197 | AA117: 0 | AB117: 0 | AC117: 0 | AD117: 0 | AE117: 0 | AF117: 0 | AG117: 827555842 | AH117: 827555842
A118: Base Childless Adults (19-20) | B118: 0 | C118: 0 | D118: 0 | E118: 0 | F118: 0 | G118: 0 | H118: 0 | I118: 0 | J118: 0 | K118: 0 | L118: 0 | M118: 0 | N118: 0 | O118: 0 | P118: 0 | Q118: 0 | R118: 0 | S118: 56607164 | T118: 58176642 | U118: 88543451 | V118: 97156345 | W118: 110025292 | X118: 121132248 | Y118: 135556168 | Z118: 20553817 | AA118: 0 | AB118: 0 | AC118: 0 | AD118: 0 | AE118: 0 | AF118: 0 | AG118: 687751127 | AH118: 687751127
A119: Base Childless Adults (Care Plus) | B119: 0 | C119: 0 | D119: 0 | E119: 0 | F119: 0 | G119: 0 | H119: 0 | I119: 0 | J119: 0 | K119: 0 | L119: 0 | M119: 0 | N119: 0 | O119: 0 | P119: 0 | Q119: 0 | R119: 0 | S119: 1051355772 | T119: 1189553150 | U119: 1823488557 | V119: 1764190774 | W119: 1684526487 | X119: 1615449420 | Y119: 1772656450 | Z119: 450058160 | AA119: 0 | AB119: 0 | AC119: 0 | AD119: 0 | AE119: 0 | AF119: 0 | AG119: 11351278770 | AH119: 11351278770
A120: Base Childless Adults (Standard ABP) | B120: 0 | C120: 0 | D120: 0 | E120: 0 | F120: 0 | G120: 0 | H120: 0 | I120: 0 | J120: 0 | K120: 0 | L120: 0 | M120: 0 | N120: 0 | O120: 0 | P120: 0 | Q120: 0 | R120: 0 | S120: 39616816 | T120: 90471218 | U120: 140960402 | V120: 220676976 | W120: 398943774 | X120: 455730659 | Y120: 277557804 | Z120: 51999711 | AA120: 0 | AB120: 0 | AC120: 0 | AD120: 0 | AE120: 0 | AF120: 0 | AG120: 1675957360 | AH120: 1675957360
A121: Base Disabled | B121: 0 | C121: 0 | D121: 0 | E121: 0 | F121: 0 | G121: 707476 | H121: 388868 | I121: 1671804 | J121: 192729141 | K121: 1544511841 | L121: 1666269428 | M121: 1782203157 | N121: 1886683441 | O121: 1927988836 | P121: 2270459789 | Q121: 2118029202 | R121: 2153518717 | S121: 2264668415 | T121: 2440299885 | U121: 2412731374 | V121: 2444670462 | W121: 2446111317 | X121: 2617746590 | Y121: 2666468455 | Z121: 551343756 | AA121: 0 | AB121: 0 | AC121: 0 | AD121: 0 | AE121: 0 | AF121: 0 | AG121: 33389201954 | AH121: 33389201954
A122: Base Families | B122: 0 | C122: 0 | D122: 0 | E122: 0 | F122: 0 | G122: 12197 | H122: 18950 | I122: 472232 | J122: 90387621 | K122: 1858065692 | L122: 1950432163 | M122: 2099630153 | N122: 2215564231 | O122: 2403138092 | P122: 2346601674 | Q122: 2515022243 | R122: 2542329941 | S122: 2606498844 | T122: 2926909306 | U122: 2968007801 | V122: 2865569268 | W122: 2929562794 | X122: 2984738205 | Y122: 3068488154 | Z122: 630556097 | AA122: 0 | AB122: 0 | AC122: 0 | AD122: 0 | AE122: 0 | AF122: 0 | AG122: 39002005658 | AH122: 39002005658
A123: Base MCB | B123: 0 | C123: 0 | D123: 0 | E123: 0 | F123: 0 | G123: -2105 | H123: -76 | I123: 12445 | J123: 244738 | K123: 1777702 | L123: 1332869 | M123: 1491720 | N123: 1157932 | O123: 190689 | P123: 0 | Q123: 524 | R123: 216 | S123: 1205 | T123: 0 | U123: 0 | V123: 0 | W123: 0 | X123: 0 | Y123: 0 | Z123: 0 | AA123: 0 | AB123: 0 | AC123: 0 | AD123: 0 | AE123: 0 | AF123: 0 | AG123: 6207859 | AH123: 6207859
A124: BASIC | B124: 0 | C124: 7425 | D124: 1259991 | E124: 101070563 | F124: 161753971 | G124: 12710563 | H124: 0 | I124: 0 | J124: 0 | K124: 0 | L124: 0 | M124: 0 | N124: 0 | O124: 0 | P124: 0 | Q124: 0 | R124: 0 | S124: 0 | T124: 0 | U124: 0 | V124: 0 | W124: 0 | X124: 0 | Y124: 0 | Z124: 0 | AA124: 0 | AB124: 0 | AC124: 0 | AD124: 0 | AE124: 0 | AF124: 0 | AG124: 276802513 | AH124: 276802513
A125: BPHC | B125: 0 | C125: 0 | D125: 0 | E125: 23391802 | F125: 221736018 | G125: 6669798 | H125: 0 | I125: 0 | J125: 0 | K125: 0 | L125: 0 | M125: 0 | N125: 0 | O125: 0 | P125: 0 | Q125: 0 | R125: 0 | S125: 0 | T125: 0 | U125: 0 | V125: 0 | W125: 0 | X125: 0 | Y125: 0 | Z125: 0 | AA125: 0 | AB125: 0 | AC125: 0 | AD125: 0 | AE125: 0 | AF125: 0 | AG125: 251797618 | AH125: 251797618
A126: CommCare-133 | B126: 0 | C126: 0 | D126: 0 | E126: 0 | F126: 0 | G126: 0 | H126: 0 | I126: 0 | J126: 0 | K126: 0 | L126: 0 | M126: 0 | N126: 0 | O126: 97101247 | P126: 404126169 | Q126: 387422325 | R126: 363321426 | S126: 191892964 | T126: 0 | U126: 0 | V126: 0 | W126: 0 | X126: 0 | Y126: 0 | Z126: 0 | AA126: 0 | AB126: 0 | AC126: 0 | AD126: 0 | AE126: 0 | AF126: 0 | AG126: 1443864131 | AH126: 1443864131
A127: CommCare-19-20 | B127: 0 | C127: 0 | D127: 0 | E127: 0 | F127: 0 | G127: 0 | H127: 0 | I127: 0 | J127: 0 | K127: 0 | L127: 0 | M127: 0 | N127: 0 | O127: 42673532 | P127: 38541368 | Q127: 28367949 | R127: 24914545 | S127: 12943670 | T127: 0 | U127: 0 | V127: 0 | W127: 0 | X127: 0 | Y127: 0 | Z127: 0 | AA127: 0 | AB127: 0 | AC127: 0 | AD127: 0 | AE127: 0 | AF127: 0 | AG127: 147441064 | AH127: 147441064
A128: COMMONHEALTH | B128: 0 | C128: 121129 | D128: 1271439 | E128: 42334215 | F128: 78265367 | G128: 12547914 | H128: 0 | I128: 0 | J128: 0 | K128: 0 | L128: 0 | M128: 0 | N128: 0 | O128: 0 | P128: 0 | Q128: 0 | R128: 0 | S128: 0 | T128: 0 | U128: 0 | V128: 0 | W128: 0 | X128: 0 | Y128: 0 | Z128: 0 | AA128: 0 | AB128: 0 | AC128: 0 | AD128: 0 | AE128: 0 | AF128: 0 | AG128: 134540064 | AH128: 134540064
A129: CPHC | B129: 0 | C129: 0 | D129: 0 | E129: 8389673 | F129: 90121926 | G129: 2667441 | H129: 0 | I129: 0 | J129: 0 | K129: 0 | L129: 0 | M129: 0 | N129: 0 | O129: 0 | P129: 0 | Q129: 0 | R129: 0 | S129: 0 | T129: 0 | U129: 0 | V129: 0 | W129: 0 | X129: 0 | Y129: 0 | Z129: 0 | AA129: 0 | AB129: 0 | AC129: 0 | AD129: 0 | AE129: 0 | AF129: 0 | AG129: 101179040 | AH129: 101179040
A130: DSH | B130: 0 | C130: 571232529 | D130: 563951050 | E130: 535856198 | F130: 401893551 | G130: 98868418 | H130: 0 | I130: 0 | J130: 0 | K130: 0 | L130: 0 | M130: 0 | N130: 0 | O130: 0 | P130: 0 | Q130: 0 | R130: 0 | S130: 0 | T130: 0 | U130: 0 | V130: 0 | W130: 0 | X130: 0 | Y130: 0 | Z130: 0 | AA130: 0 | AB130: 0 | AC130: 0 | AD130: 0 | AE130: 0 | AF130: 0 | AG130: 2171801746 | AH130: 2171801746
A131: DSHP-CommCare Transition | B131: 0 | C131: 0 | D131: 0 | E131: 0 | F131: 0 | G131: 0 | H131: 0 | I131: 0 | J131: 0 | K131: 0 | L131: 0 | M131: 0 | N131: 0 | O131: 0 | P131: 0 | Q131: 0 | R131: 0 | S131: 72127439 | T131: 172707779 | U131: 0 | V131: 0 | W131: 0 | X131: 0 | Y131: 0 | Z131: 0 | AA131: 0 | AB131: 0 | AC131: 0 | AD131: 0 | AE131: 0 | AF131: 0 | AG131: 244835218 | AH131: 244835218
A132: DSHP-CSR | B132: 0 | C132: 0 | D132: 0 | E132: 0 | F132: 0 | G132: 0 | H132: 0 | I132: 0 | J132: 0 | K132: 0 | L132: 0 | M132: 0 | N132: 0 | O132: 0 | P132: 0 | Q132: 0 | R132: 0 | S132: 0 | T132: 0 | U132: 0 | V132: 62054086 | W132: 101287543 | X132: 134790876 | Y132: 134033016 | Z132: 26165962 | AA132: 0 | AB132: 0 | AC132: 0 | AD132: 0 | AE132: 0 | AF132: 0 | AG132: 458331483 | AH132: 458331483
A133: DSHP-Health Connector subsidies | B133: 0 | C133: 0 | D133: 0 | E133: 0 | F133: 0 | G133: 0 | H133: 0 | I133: 0 | J133: 0 | K133: 0 | L133: 0 | M133: 0 | N133: 0 | O133: 0 | P133: 0 | Q133: 0 | R133: 0 | S133: 0 | T133: 31385699 | U133: 98682856 | V133: 110987289 | W133: 108917689 | X133: 132579163 | Y133: 144480079 | Z133: 33796886 | AA133: 0 | AB133: 0 | AC133: 0 | AD133: 0 | AE133: 0 | AF133: 0 | AG133: 660829661 | AH133: 660829661
A134: DSHP-Health Connector Subsidy | B134: 0 | C134: 0 | D134: 0 | E134: 0 | F134: 0 | G134: 0 | H134: 0 | I134: 0 | J134: 0 | K134: 0 | L134: 0 | M134: 0 | N134: 0 | O134: 0 | P134: 0 | Q134: 0 | R134: 0 | S134: 0 | T134: 0 | U134: 0 | V134: 0 | W134: 0 | X134: 0 | Y134: 0 | Z134: 0 | AA134: 0 | AB134: 0 | AC134: 0 | AD134: 0 | AE134: 0 | AF134: 0 | AG134: 0 | AH134: 0
A135: DSHP-Temporary Coverage | B135: 0 | C135: 0 | D135: 0 | E135: 0 | F135: 0 | G135: 0 | H135: 0 | I135: 0 | J135: 0 | K135: 0 | L135: 0 | M135: 0 | N135: 0 | O135: 0 | P135: -1146 | Q135: 0 | R135: 0 | S135: 162192499 | T135: 478111075 | U135: 615371 | V135: 0 | W135: 0 | X135: 0 | Y135: 0 | Z135: 0 | AA135: 0 | AB135: 0 | AC135: 0 | AD135: 0 | AE135: 0 | AF135: 0 | AG135: 640917799 | AH135: 640917799
A136: DSRIP | B136: 0 | C136: 0 | D136: 0 | E136: 0 | F136: 0 | G136: 0 | H136: 0 | I136: 0 | J136: 0 | K136: 0 | L136: 0 | M136: 0 | N136: 0 | O136: 0 | P136: 0 | Q136: 0 | R136: 0 | S136: 0 | T136: 0 | U136: 0 | V136: 0 | W136: 0 | X136: 0 | Y136: 32812517 | Z136: 508028 | AA136: 0 | AB136: 0 | AC136: 0 | AD136: 0 | AE136: 0 | AF136: 0 | AG136: 33320545 | AH136: 33320545
A137: e-Family Assistance | B137: 0 | C137: 0 | D137: 0 | E137: 0 | F137: 0 | G137: 0 | H137: 0 | I137: 7 | J137: 42938 | K137: 3503369 | L137: 3919053 | M137: 5809164 | N137: 6864268 | O137: 11672531 | P137: 13420464 | Q137: 0 | R137: 0 | S137: 0 | T137: 0 | U137: 0 | V137: 0 | W137: 0 | X137: 0 | Y137: 0 | Z137: 0 | AA137: 0 | AB137: 0 | AC137: 0 | AD137: 0 | AE137: 0 | AF137: 0 | AG137: 45231794 | AH137: 45231794
A138: e-HIV/FA | B138: 0 | C138: 0 | D138: 0 | E138: 0 | F138: 0 | G138: 15818 | H138: 1332 | I138: -7824 | J138: 874100 | K138: 14500059 | L138: 16346143 | M138: 18350702 | N138: 19735876 | O138: 23747195 | P138: 24861045 | Q138: 24483613 | R138: 26098662 | S138: 18356043 | T138: 8063606 | U138: 7691151 | V138: 8151752 | W138: 9630164 | X138: 11725819 | Y138: 11205798 | Z138: 2317520 | AA138: 0 | AB138: 0 | AC138: 0 | AD138: 0 | AE138: 0 | AF138: 0 | AG138: 246148574 | AH138: 246148574
A139: IRP | B139: 0 | C139: 0 | D139: 0 | E139: 936631 | F139: 1827727 | G139: 461923 | H139: 0 | I139: 0 | J139: 0 | K139: 0 | L139: 0 | M139: 0 | N139: 0 | O139: 0 | P139: 0 | Q139: 0 | R139: 0 | S139: 0 | T139: 0 | U139: 0 | V139: 0 | W139: 0 | X139: 0 | Y139: 0 | Z139: 0 | AA139: 0 | AB139: 0 | AC139: 0 | AD139: 0 | AE139: 0 | AF139: 0 | AG139: 3226281 | AH139: 3226281
A140: LIMITED | B140: 0 | C140: 21436 | D140: 428493 | E140: 11716491 | F140: 22511000 | G140: 3316314 | H140: 0 | I140: 0 | J140: 0 | K140: 0 | L140: 0 | M140: 0 | N140: 0 | O140: 0 | P140: 0 | Q140: 0 | R140: 0 | S140: 0 | T140: 0 | U140: 0 | V140: 0 | W140: 0 | X140: 0 | Y140: 0 | Z140: 0 | AA140: 0 | AB140: 0 | AC140: 0 | AD140: 0 | AE140: 0 | AF140: 0 | AG140: 37993734 | AH140: 37993734
A141: Mass Health Basic | B141: 0 | C141: -12138 | D141: -4788 | E141: -140630 | F141: 2213467 | G141: 82475245 | H141: 0 | I141: 0 | J141: 0 | K141: 0 | L141: 0 | M141: 0 | N141: 0 | O141: 0 | P141: 0 | Q141: 0 | R141: 0 | S141: 0 | T141: 0 | U141: 0 | V141: 0 | W141: 0 | X141: 0 | Y141: 0 | Z141: 0 | AA141: 0 | AB141: 0 | AC141: 0 | AD141: 0 | AE141: 0 | AF141: 0 | AG141: 84531156 | AH141: 84531156
A142: Mass Health BPHC | B142: 0 | C142: 0 | D142: 0 | E142: 0 | F142: 0 | G142: 184921984 | H142: 0 | I142: 0 | J142: 0 | K142: 0 | L142: 0 | M142: 0 | N142: 0 | O142: 0 | P142: 0 | Q142: 0 | R142: 0 | S142: 0 | T142: 0 | U142: 0 | V142: 0 | W142: 0 | X142: 0 | Y142: 0 | Z142: 0 | AA142: 0 | AB142: 0 | AC142: 0 | AD142: 0 | AE142: 0 | AF142: 0 | AG142: 184921984 | AH142: 184921984
A143: Mass Health Commonhealth | B143: 0 | C143: -1351 | D143: 21257 | E143: 182205 | F143: 2882462 | G143: 49660016 | H143: 0 | I143: 0 | J143: 0 | K143: 0 | L143: 0 | M143: 0 | N143: 0 | O143: 0 | P143: 0 | Q143: 0 | R143: 0 | S143: 0 | T143: 0 | U143: 0 | V143: 0 | W143: 0 | X143: 0 | Y143: 0 | Z143: 0 | AA143: 0 | AB143: 0 | AC143: 0 | AD143: 0 | AE143: 0 | AF143: 0 | AG143: 52744589 | AH143: 52744589
A144: Mass Health CPHC | B144: 0 | C144: 0 | D144: 0 | E144: 0 | F144: 0 | G144: 129986792 | H144: 0 | I144: 0 | J144: 0 | K144: 0 | L144: 0 | M144: 0 | N144: 0 | O144: 0 | P144: 0 | Q144: 0 | R144: 0 | S144: 0 | T144: 0 | U144: 0 | V144: 0 | W144: 0 | X144: 0 | Y144: 0 | Z144: 0 | AA144: 0 | AB144: 0 | AC144: 0 | AD144: 0 | AE144: 0 | AF144: 0 | AG144: 129986792 | AH144: 129986792
A145: Mass Health DSH | B145: 0 | C145: 8450000 | D145: 2650000 | E145: 0 | F145: 16986393 | G145: 74159863 | H145: 0 | I145: 0 | J145: 0 | K145: 0 | L145: 0 | M145: 0 | N145: 0 | O145: 0 | P145: 0 | Q145: 0 | R145: 0 | S145: 0 | T145: 0 | U145: 0 | V145: 0 | W145: 0 | X145: 0 | Y145: 0 | Z145: 0 | AA145: 0 | AB145: 0 | AC145: 0 | AD145: 0 | AE145: 0 | AF145: 0 | AG145: 102246256 | AH145: 102246256
A146: Mass Health IRP | B146: 0 | C146: 0 | D146: 0 | E146: 2939974 | F146: 11931522 | G146: 8875681 | H146: 0 | I146: 0 | J146: 0 | K146: 0 | L146: 0 | M146: 0 | N146: 0 | O146: 0 | P146: 0 | Q146: 0 | R146: 0 | S146: 0 | T146: 0 | U146: 0 | V146: 0 | W146: 0 | X146: 0 | Y146: 0 | Z146: 0 | AA146: 0 | AB146: 0 | AC146: 0 | AD146: 0 | AE146: 0 | AF146: 0 | AG146: 23747177 | AH146: 23747177
A147: Mass Health Limited | B147: 0 | C147: 101164 | D147: 74594 | E147: 27856 | F147: 1037798 | G147: 14471249 | H147: 0 | I147: 0 | J147: 0 | K147: 0 | L147: 0 | M147: 0 | N147: 0 | O147: 0 | P147: 0 | Q147: 0 | R147: 0 | S147: 0 | T147: 0 | U147: 0 | V147: 0 | W147: 0 | X147: 0 | Y147: 0 | Z147: 0 | AA147: 0 | AB147: 0 | AC147: 0 | AD147: 0 | AE147: 0 | AF147: 0 | AG147: 15712661 | AH147: 15712661
A148: Mass Health MHSPY | B148: 0 | C148: 0 | D148: 0 | E148: 0 | F148: 0 | G148: 73260 | H148: 0 | I148: 0 | J148: 0 | K148: 0 | L148: 0 | M148: 0 | N148: 0 | O148: 0 | P148: 0 | Q148: 0 | R148: 0 | S148: 0 | T148: 0 | U148: 0 | V148: 0 | W148: 0 | X148: 0 | Y148: 0 | Z148: 0 | AA148: 0 | AB148: 0 | AC148: 0 | AD148: 0 | AE148: 0 | AF148: 0 | AG148: 73260 | AH148: 73260
A149: Mass Health MSP | B149: 0 | C149: 0 | D149: 0 | E149: 0 | F149: 0 | G149: 4094126 | H149: 0 | I149: 0 | J149: 0 | K149: 0 | L149: 0 | M149: 0 | N149: 0 | O149: 0 | P149: 0 | Q149: 0 | R149: 0 | S149: 0 | T149: 0 | U149: 0 | V149: 0 | W149: 0 | X149: 0 | Y149: 0 | Z149: 0 | AA149: 0 | AB149: 0 | AC149: 0 | AD149: 0 | AE149: 0 | AF149: 0 | AG149: 4094126 | AH149: 4094126
A150: Mass Health Standard | B150: 0 | C150: -252098 | D150: 26503 | E150: 591934 | F150: 31552046 | G150: 527333456 | H150: 0 | I150: 0 | J150: 0 | K150: 0 | L150: 0 | M150: 0 | N150: 0 | O150: 0 | P150: 0 | Q150: 0 | R150: 0 | S150: 0 | T150: 0 | U150: 0 | V150: 0 | W150: 0 | X150: 0 | Y150: 0 | Z150: 0 | AA150: 0 | AB150: 0 | AC150: 0 | AD150: 0 | AE150: 0 | AF150: 0 | AG150: 559251841 | AH150: 559251841
A151: MassHealth - Basic | B151: 0 | C151: 0 | D151: 0 | E151: 0 | F151: 120190 | G151: 31605412 | H151: 102030176 | I151: 0 | J151: 0 | K151: 0 | L151: 0 | M151: 0 | N151: 0 | O151: 0 | P151: 0 | Q151: 0 | R151: 0 | S151: 0 | T151: 0 | U151: 0 | V151: 0 | W151: 0 | X151: 0 | Y151: 0 | Z151: 0 | AA151: 0 | AB151: 0 | AC151: 0 | AD151: 0 | AE151: 0 | AF151: 0 | AG151: 133755778 | AH151: 133755778
A152: MassHealth - BPHC | B152: 0 | C152: 0 | D152: 0 | E152: 0 | F152: 0 | G152: 33762009 | H152: 279281508 | I152: 0 | J152: 0 | K152: 0 | L152: 0 | M152: 0 | N152: 0 | O152: 0 | P152: 0 | Q152: 0 | R152: 0 | S152: 0 | T152: 0 | U152: 0 | V152: 0 | W152: 0 | X152: 0 | Y152: 0 | Z152: 0 | AA152: 0 | AB152: 0 | AC152: 0 | AD152: 0 | AE152: 0 | AF152: 0 | AG152: 313043517 | AH152: 313043517
A153: MassHealth - CommonHealth | B153: 0 | C153: 0 | D153: 0 | E153: 0 | F153: 501926 | G153: 16999520 | H153: 80274968 | I153: 0 | J153: 0 | K153: 0 | L153: 0 | M153: 0 | N153: 0 | O153: 0 | P153: 0 | Q153: 0 | R153: 0 | S153: 0 | T153: 0 | U153: 0 | V153: 0 | W153: 0 | X153: 0 | Y153: 0 | Z153: 0 | AA153: 0 | AB153: 0 | AC153: 0 | AD153: 0 | AE153: 0 | AF153: 0 | AG153: 97776414 | AH153: 97776414
A154: MassHealth - CPHC | B154: 0 | C154: 0 | D154: 0 | E154: 0 | F154: 0 | G154: -33762009 | H154: 149140216 | I154: 0 | J154: 0 | K154: 0 | L154: 0 | M154: 0 | N154: 0 | O154: 0 | P154: 0 | Q154: 0 | R154: 0 | S154: 0 | T154: 0 | U154: 0 | V154: 0 | W154: 0 | X154: 0 | Y154: 0 | Z154: 0 | AA154: 0 | AB154: 0 | AC154: 0 | AD154: 0 | AE154: 0 | AF154: 0 | AG154: 115378207 | AH154: 115378207
A155: MassHealth - DSH | B155: 0 | C155: 0 | D155: 0 | E155: 0 | F155: 26249999 | G155: -26249999 | H155: 358335051 | I155: 0 | J155: 0 | K155: 0 | L155: 0 | M155: 0 | N155: 0 | O155: 0 | P155: 0 | Q155: 0 | R155: 0 | S155: 0 | T155: 0 | U155: 0 | V155: 0 | W155: 0 | X155: 0 | Y155: 0 | Z155: 0 | AA155: 0 | AB155: 0 | AC155: 0 | AD155: 0 | AE155: 0 | AF155: 0 | AG155: 358335051 | AH155: 358335051
A156: MassHealth - IRP | B156: 0 | C156: 0 | D156: 0 | E156: 0 | F156: 0 | G156: 0 | H156: 21522880 | I156: 0 | J156: 0 | K156: 0 | L156: 0 | M156: 0 | N156: 0 | O156: 0 | P156: 0 | Q156: 0 | R156: 0 | S156: 0 | T156: 0 | U156: 0 | V156: 0 | W156: 0 | X156: 0 | Y156: 0 | Z156: 0 | AA156: 0 | AB156: 0 | AC156: 0 | AD156: 0 | AE156: 0 | AF156: 0 | AG156: 21522880 | AH156: 21522880
A157: MassHealth - Limited | B157: 0 | C157: 0 | D157: 0 | E157: 0 | F157: 239453 | G157: 6026169 | H157: 18942953 | I157: 0 | J157: 0 | K157: 0 | L157: 0 | M157: 0 | N157: 0 | O157: 0 | P157: 0 | Q157: 0 | R157: 0 | S157: 0 | T157: 0 | U157: 0 | V157: 0 | W157: 0 | X157: 0 | Y157: 0 | Z157: 0 | AA157: 0 | AB157: 0 | AC157: 0 | AD157: 0 | AE157: 0 | AF157: 0 | AG157: 25208575 | AH157: 25208575
A158: MassHealth - MHSPY | B158: 0 | C158: 0 | D158: 0 | E158: 0 | F158: 0 | G158: 0 | H158: 262875 | I158: 0 | J158: 0 | K158: 0 | L158: 0 | M158: 0 | N158: 0 | O158: 0 | P158: 0 | Q158: 0 | R158: 0 | S158: 0 | T158: 0 | U158: 0 | V158: 0 | W158: 0 | X158: 0 | Y158: 0 | Z158: 0 | AA158: 0 | AB158: 0 | AC158: 0 | AD158: 0 | AE158: 0 | AF158: 0 | AG158: 262875 | AH158: 262875
A159: MassHealth - MSP | B159: 0 | C159: 0 | D159: 0 | E159: 0 | F159: 0 | G159: 4455683 | H159: 31232768 | I159: 0 | J159: 0 | K159: 0 | L159: 0 | M159: 0 | N159: 0 | O159: 0 | P159: 0 | Q159: 0 | R159: 0 | S159: 0 | T159: 0 | U159: 0 | V159: 0 | W159: 0 | X159: 0 | Y159: 0 | Z159: 0 | AA159: 0 | AB159: 0 | AC159: 0 | AD159: 0 | AE159: 0 | AF159: 0 | AG159: 35688451 | AH159: 35688451
A160: MassHealth - Standard | B160: 0 | C160: 0 | D160: 0 | E160: 0 | F160: 5631986 | G160: 390587936 | H160: 1418398950 | I160: 0 | J160: 0 | K160: 0 | L160: 0 | M160: 0 | N160: 0 | O160: 0 | P160: 0 | Q160: 0 | R160: 0 | S160: 0 | T160: 0 | U160: 0 | V160: 0 | W160: 0 | X160: 0 | Y160: 0 | Z160: 0 | AA160: 0 | AB160: 0 | AC160: 0 | AD160: 0 | AE160: 0 | AF160: 0 | AG160: 1814618872 | AH160: 1814618872
A161: MassHealth Basic | B161: 0 | C161: 0 | D161: 0 | E161: 0 | F161: 327412 | G161: 40760491 | H161: 0 | I161: 0 | J161: 0 | K161: 0 | L161: 0 | M161: 0 | N161: 0 | O161: 0 | P161: 0 | Q161: 0 | R161: 0 | S161: 0 | T161: 0 | U161: 0 | V161: 0 | W161: 0 | X161: 0 | Y161: 0 | Z161: 0 | AA161: 0 | AB161: 0 | AC161: 0 | AD161: 0 | AE161: 0 | AF161: 0 | AG161: 41087903 | AH161: 41087903
A162: MassHealth BPHC | B162: 0 | C162: 0 | D162: 0 | E162: 0 | F162: 0 | G162: 30226638 | H162: 0 | I162: 0 | J162: 0 | K162: 0 | L162: 0 | M162: 0 | N162: 0 | O162: 0 | P162: 0 | Q162: 0 | R162: 0 | S162: 0 | T162: 0 | U162: 0 | V162: 0 | W162: 0 | X162: 0 | Y162: 0 | Z162: 0 | AA162: 0 | AB162: 0 | AC162: 0 | AD162: 0 | AE162: 0 | AF162: 0 | AG162: 30226638 | AH162: 30226638
A163: MassHealth Commonhealth | B163: 0 | C163: 0 | D163: 0 | E163: 0 | F163: 503545 | G163: 25501024 | H163: 0 | I163: 0 | J163: 0 | K163: 0 | L163: 0 | M163: 0 | N163: 0 | O163: 0 | P163: 0 | Q163: 0 | R163: 0 | S163: 0 | T163: 0 | U163: 0 | V163: 0 | W163: 0 | X163: 0 | Y163: 0 | Z163: 0 | AA163: 0 | AB163: 0 | AC163: 0 | AD163: 0 | AE163: 0 | AF163: 0 | AG163: 26004569 | AH163: 26004569
A164: MassHealth CPHC | B164: 0 | C164: 0 | D164: 0 | E164: 0 | F164: 0 | G164: 75131306 | H164: 0 | I164: 0 | J164: 0 | K164: 0 | L164: 0 | M164: 0 | N164: 0 | O164: 0 | P164: 0 | Q164: 0 | R164: 0 | S164: 0 | T164: 0 | U164: 0 | V164: 0 | W164: 0 | X164: 0 | Y164: 0 | Z164: 0 | AA164: 0 | AB164: 0 | AC164: 0 | AD164: 0 | AE164: 0 | AF164: 0 | AG164: 75131306 | AH164: 75131306
A165: MassHealth DSH | B165: 0 | C165: 1432242 | D165: 401249 | E165: 1139900 | F165: 7854943 | G165: 380452516 | H165: 0 | I165: 0 | J165: 0 | K165: 0 | L165: 0 | M165: 0 | N165: 0 | O165: 0 | P165: 0 | Q165: 0 | R165: 0 | S165: 0 | T165: 0 | U165: 0 | V165: 0 | W165: 0 | X165: 0 | Y165: 0 | Z165: 0 | AA165: 0 | AB165: 0 | AC165: 0 | AD165: 0 | AE165: 0 | AF165: 0 | AG165: 391280850 | AH165: 391280850
A166: MassHealth IRP | B166: 0 | C166: 0 | D166: 0 | E166: 0 | F166: 0 | G166: 10217514 | H166: 0 | I166: 0 | J166: 0 | K166: 0 | L166: 0 | M166: 0 | N166: 0 | O166: 0 | P166: 0 | Q166: 0 | R166: 0 | S166: 0 | T166: 0 | U166: 0 | V166: 0 | W166: 0 | X166: 0 | Y166: 0 | Z166: 0 | AA166: 0 | AB166: 0 | AC166: 0 | AD166: 0 | AE166: 0 | AF166: 0 | AG166: 10217514 | AH166: 10217514
A167: MassHealth Limited | B167: 0 | C167: 0 | D167: 2915 | E167: 0 | F167: 155512 | G167: 6955840 | H167: 0 | I167: 0 | J167: 0 | K167: 0 | L167: 0 | M167: 0 | N167: 0 | O167: 0 | P167: 0 | Q167: 0 | R167: 0 | S167: 0 | T167: 0 | U167: 0 | V167: 0 | W167: 0 | X167: 0 | Y167: 0 | Z167: 0 | AA167: 0 | AB167: 0 | AC167: 0 | AD167: 0 | AE167: 0 | AF167: 0 | AG167: 7114267 | AH167: 7114267
A168: MassHealth MHSPY | B168: 0 | C168: 0 | D168: 0 | E168: 0 | F168: 0 | G168: 271264 | H168: 0 | I168: 0 | J168: 0 | K168: 0 | L168: 0 | M168: 0 | N168: 0 | O168: 0 | P168: 0 | Q168: 0 | R168: 0 | S168: 0 | T168: 0 | U168: 0 | V168: 0 | W168: 0 | X168: 0 | Y168: 0 | Z168: 0 | AA168: 0 | AB168: 0 | AC168: 0 | AD168: 0 | AE168: 0 | AF168: 0 | AG168: 271264 | AH168: 271264
A169: MassHealth MSP | B169: 0 | C169: 0 | D169: 0 | E169: 0 | F169: 0 | G169: 12067550 | H169: 0 | I169: 0 | J169: 0 | K169: 0 | L169: 0 | M169: 0 | N169: 0 | O169: 0 | P169: 0 | Q169: 0 | R169: 0 | S169: 0 | T169: 0 | U169: 0 | V169: 0 | W169: 0 | X169: 0 | Y169: 0 | Z169: 0 | AA169: 0 | AB169: 0 | AC169: 0 | AD169: 0 | AE169: 0 | AF169: 0 | AG169: 12067550 | AH169: 12067550
A170: MassHealth Standard | B170: 0 | C170: 74530 | D170: 263759 | E170: 624017 | F170: 18226170 | G170: 1126360905 | H170: 0 | I170: 0 | J170: 0 | K170: 0 | L170: 0 | M170: 0 | N170: 0 | O170: 0 | P170: 0 | Q170: 0 | R170: 0 | S170: 0 | T170: 0 | U170: 0 | V170: 0 | W170: 0 | X170: 0 | Y170: 0 | Z170: 0 | AA170: 0 | AB170: 0 | AC170: 0 | AD170: 0 | AE170: 0 | AF170: 0 | AG170: 1145549381 | AH170: 1145549381
A171: MassHealth-Basic | B171: 0 | C171: 0 | D171: 0 | E171: 0 | F171: 22347 | G171: 462346 | H171: 46626202 | I171: 37865048 | J171: 44375585 | K171: 85430312 | L171: 104597951 | M171: 116099358 | N171: 122498183 | O171: 129480975 | P171: 155828331 | Q171: 166208687 | R171: 163097491 | S171: 71469222 | T171: 1645409 | U171: 0 | V171: 0 | W171: 0 | X171: 0 | Y171: 0 | Z171: 0 | AA171: 0 | AB171: 0 | AC171: 0 | AD171: 0 | AE171: 0 | AF171: 0 | AG171: 1245707447 | AH171: 1245707447
A172: MassHealth-BCCTP | B172: 0 | C172: 0 | D172: 0 | E172: 0 | F172: 0 | G172: 0 | H172: 0 | I172: 406737 | J172: 2121926 | K172: 4268563 | L172: 4611448 | M172: 3982474 | N172: 4595808 | O172: 6043172 | P172: 4753489 | Q172: 3922931 | R172: 3593595 | S172: 3041734 | T172: 3873604 | U172: 5402585 | V172: 6877141 | W172: 9791399 | X172: 13492920 | Y172: 14032126 | Z172: 2719486 | AA172: 0 | AB172: 0 | AC172: 0 | AD172: 0 | AE172: 0 | AF172: 0 | AG172: 97531138 | AH172: 97531138
A173: MassHealth-BPHC | B173: 0 | C173: 0 | D173: 0 | E173: 0 | F173: 119176370 | G173: 133075723 | H173: 235134647 | I173: 719729953 | J173: 955297535 | K173: 0 | L173: 0 | M173: 0 | N173: 0 | O173: 0 | P173: 0 | Q173: 9121 | R173: 23 | S173: 0 | T173: 0 | U173: 0 | V173: 0 | W173: 0 | X173: 0 | Y173: 0 | Z173: 0 | AA173: 0 | AB173: 0 | AC173: 0 | AD173: 0 | AE173: 0 | AF173: 0 | AG173: 2162423372 | AH173: 2162423372
A174: MassHealth-CommonHealth | B174: 0 | C174: 0 | D174: 0 | E174: 0 | F174: 160935 | G174: 488309 | H174: 50123321 | I174: 131231034 | J174: 132491136 | K174: 109818022 | L174: 96428950 | M174: 89839500 | N174: 87197060 | O174: 72430230 | P174: 78416123 | Q174: 78520489 | R174: 83143459 | S174: 92474930 | T174: 92217296 | U174: 101223254 | V174: 110673283 | W174: 117679728 | X174: 131711215 | Y174: 139405901 | Z174: 25627328 | AA174: 0 | AB174: 0 | AC174: 0 | AD174: 0 | AE174: 0 | AF174: 0 | AG174: 1821301503 | AH174: 1821301503
A175: MassHealth-CPHC | B175: 0 | C175: 0 | D175: 0 | E175: 0 | F175: 95613774 | G175: 113437164 | H175: 165171669 | I175: 443501008 | J175: 490134530 | K175: 0 | L175: 0 | M175: 0 | N175: 0 | O175: 0 | P175: 0 | Q175: 0 | R175: 0 | S175: 0 | T175: 0 | U175: 0 | V175: 0 | W175: 0 | X175: 0 | Y175: 0 | Z175: 0 | AA175: 0 | AB175: 0 | AC175: 0 | AD175: 0 | AE175: 0 | AF175: 0 | AG175: 1307858145 | AH175: 1307858145
A176: MassHealth-DSH | B176: 0 | C176: 0 | D176: 0 | E176: 11454602 | F176: 8521775 | G176: 0 | H176: 81955640 | I176: 556311593 | J176: 588686620 | K176: 0 | L176: 0 | M176: 0 | N176: 0 | O176: 0 | P176: 0 | Q176: 0 | R176: 0 | S176: 0 | T176: 0 | U176: 0 | V176: 0 | W176: 0 | X176: 0 | Y176: 0 | Z176: 0 | AA176: 0 | AB176: 0 | AC176: 0 | AD176: 0 | AE176: 0 | AF176: 0 | AG176: 1246930230 | AH176: 1246930230
A177: MassHealth-Essential | B177: 0 | C177: 0 | D177: 0 | E177: 0 | F177: 0 | G177: 0 | H177: 0 | I177: 29365586 | J177: 156600005 | K177: 200156990 | L177: 268475171 | M177: 298713473 | N177: 326426354 | O177: 380861734 | P177: 404629590 | Q177: 476295543 | R177: 515516399 | S177: 307415525 | T177: 8092581 | U177: 0 | V177: 0 | W177: 0 | X177: 0 | Y177: 0 | Z177: 0 | AA177: 0 | AB177: 0 | AC177: 0 | AD177: 0 | AE177: 0 | AF177: 0 | AG177: 3372548951 | AH177: 3372548951
A178: MassHealth-IRP | B178: 0 | C178: 0 | D178: 0 | E178: 0 | F178: 0 | G178: 0 | H178: 7271476 | I178: 34219382 | J178: 38951048 | K178: 30402692 | L178: 31664243 | M178: 38868770 | N178: 38048147 | O178: 31098635 | P178: 26158629 | Q178: 22079592 | R178: 18374800 | S178: 11463694 | T178: 637519 | U178: 206468 | V178: 85521 | W178: 0 | X178: 0 | Y178: 0 | Z178: 0 | AA178: 0 | AB178: 0 | AC178: 0 | AD178: 0 | AE178: 0 | AF178: 0 | AG178: 329530616 | AH178: 329530616
A179: MassHealth-Limited | B179: 0 | C179: 0 | D179: 0 | E179: 0 | F179: 12238733 | G179: 8726088 | H179: 23217000 | I179: 51352667 | J179: 36880409 | K179: 0 | L179: 0 | M179: 0 | N179: 0 | O179: 0 | P179: 0 | Q179: 0 | R179: 0 | S179: 0 | T179: 0 | U179: 0 | V179: 0 | W179: 0 | X179: 0 | Y179: 0 | Z179: 0 | AA179: 0 | AB179: 0 | AC179: 0 | AD179: 0 | AE179: 0 | AF179: 0 | AG179: 132414897 | AH179: 132414897
A180: MassHealth-MHSPY | B180: 0 | C180: 0 | D180: 0 | E180: 0 | F180: -28841 | G180: -58831 | H180: -96486 | I180: 666171 | J180: 1995703 | K180: 3732653 | L180: 4239858 | M180: 4634635 | N180: 4354267 | O180: 0 | P180: 0 | Q180: 0 | R180: 0 | S180: 0 | T180: 0 | U180: 0 | V180: 0 | W180: 0 | X180: 0 | Y180: 0 | Z180: 0 | AA180: 0 | AB180: 0 | AC180: 0 | AD180: 0 | AE180: 0 | AF180: 0 | AG180: 19439129 | AH180: 19439129
A181: MassHealth-MSP | B181: 0 | C181: 0 | D181: 0 | E181: 0 | F181: 0 | G181: 0 | H181: 0 | I181: 11496286 | J181: 13394689 | K181: 12260405 | L181: 19908325 | M181: 28492914 | N181: 62815797 | O181: 133238682 | P181: 148855740 | Q181: 140022251 | R181: 67599624 | S181: 58541221 | T181: 22177049 | U181: 0 | V181: 0 | W181: 0 | X181: 0 | Y181: 0 | Z181: 0 | AA181: 0 | AB181: 0 | AC181: 0 | AD181: 0 | AE181: 0 | AF181: 0 | AG181: 718802983 | AH181: 718802983
A182: MassHealth-Standard | B182: 0 | C182: 0 | D182: 0 | E182: 16494346 | F182: -419107565 | G182: 31414804 | H182: 842610825 | I182: 2601915615 | J182: 2518395358 | K182: 0 | L182: 0 | M182: 0 | N182: 0 | O182: 0 | P182: 0 | Q182: 0 | R182: 0 | S182: 0 | T182: 0 | U182: 0 | V182: 0 | W182: 0 | X182: 0 | Y182: 0 | Z182: 0 | AA182: 0 | AB182: 0 | AC182: 0 | AD182: 0 | AE182: 0 | AF182: 0 | AG182: 5591723383 | AH182: 5591723383
A183: MassHeath-MSP | B183: 0 | C183: 0 | D183: 0 | E183: 0 | F183: 0 | G183: 0 | H183: 10867908 | I183: 17052894 | J183: 0 | K183: 0 | L183: 0 | M183: 0 | N183: 0 | O183: 0 | P183: 0 | Q183: 0 | R183: 0 | S183: 0 | T183: 0 | U183: 0 | V183: 0 | W183: 0 | X183: 0 | Y183: 0 | Z183: 0 | AA183: 0 | AB183: 0 | AC183: 0 | AD183: 0 | AE183: 0 | AF183: 0 | AG183: 27920802 | AH183: 27920802
A184: MHSPY | B184: 0 | C184: 0 | D184: 0 | E184: 106046 | F184: 261294 | G184: 73260 | H184: 0 | I184: 0 | J184: 0 | K184: 0 | L184: 0 | M184: 0 | N184: 0 | O184: 0 | P184: 0 | Q184: 0 | R184: 0 | S184: 0 | T184: 0 | U184: 0 | V184: 0 | W184: 0 | X184: 0 | Y184: 0 | Z184: 0 | AA184: 0 | AB184: 0 | AC184: 0 | AD184: 0 | AE184: 0 | AF184: 0 | AG184: 440600 | AH184: 440600
A185: MSP | B185: 0 | C185: 0 | D185: 4667992 | E185: 10575337 | F185: 7504799 | G185: 3018793 | H185: 0 | I185: 0 | J185: 0 | K185: 0 | L185: 0 | M185: 0 | N185: 0 | O185: 0 | P185: 0 | Q185: 0 | R185: 0 | S185: 0 | T185: 0 | U185: 0 | V185: 0 | W185: 0 | X185: 0 | Y185: 0 | Z185: 0 | AA185: 0 | AB185: 0 | AC185: 0 | AD185: 0 | AE185: 0 | AF185: 0 | AG185: 25766921 | AH185: 25766921
A186: Safety Net Provider Payments | B186: 0 | C186: 0 | D186: 0 | E186: 0 | F186: 0 | G186: 0 | H186: 0 | I186: 0 | J186: 0 | K186: 0 | L186: 0 | M186: 0 | N186: 0 | O186: 0 | P186: 0 | Q186: 0 | R186: 0 | S186: 0 | T186: 0 | U186: 0 | V186: 0 | W186: 180210000 | X186: 172938500 | Y186: 248235500 | Z186: 0 | AA186: 0 | AB186: 0 | AC186: 0 | AD186: 0 | AE186: 0 | AF186: 0 | AG186: 601384000 | AH186: 601384000
A187: SBE-PA | B187: 0 | C187: 0 | D187: 0 | E187: 0 | F187: 0 | G187: 0 | H187: 0 | I187: 0 | J187: 0 | K187: 0 | L187: 0 | M187: 0 | N187: 0 | O187: 0 | P187: 0 | Q187: 0 | R187: 0 | S187: 0 | T187: 810248 | U187: 0 | V187: 0 | W187: 22687 | X187: 9182 | Y187: 0 | Z187: 0 | AA187: 0 | AB187: 0 | AC187: 0 | AD187: 0 | AE187: 0 | AF187: 0 | AG187: 842117 | AH187: 842117
A188: SNCP | B188: 0 | C188: 0 | D188: 0 | E188: 0 | F188: 0 | G188: 0 | H188: 0 | I188: 0 | J188: 0 | K188: 1364487987 | L188: 1363460882 | M188: 1344408351 | N188: 1674419733 | O188: 1268948058 | P188: 820538771 | Q188: 451711293 | R188: 193501443 | S188: 363413149 | T188: 17472034 | U188: 35858307 | V188: 140000000 | W188: 20000000 | X188: 20000000 | Y188: 20000000 | Z188: 0 | AA188: 0 | AB188: 0 | AC188: 0 | AD188: 0 | AE188: 0 | AF188: 0 | AG188: 9098220008 | AH188: 9098220008
A189: SNCP DSTI | B189: 0 | C189: 0 | D189: 0 | E189: 0 | F189: 0 | G189: 0 | H189: 0 | I189: 0 | J189: 0 | K189: 0 | L189: 0 | M189: 0 | N189: 0 | O189: 0 | P189: 0 | Q189: 209252400 | R189: 208471394 | S189: 208283232 | T189: 209331403 | U189: 213818666 | V189: 211318666 | W189: 0 | X189: 0 | Y189: 0 | Z189: 0 | AA189: 0 | AB189: 0 | AC189: 0 | AD189: 0 | AE189: 0 | AF189: 0 | AG189: 1260475761 | AH189: 1260475761
A190: SNCP-CommCare | B190: 0 | C190: 0 | D190: 0 | E190: 0 | F190: 0 | G190: 0 | H190: 0 | I190: 0 | J190: 0 | K190: 0 | L190: 0 | M190: 0 | N190: 0 | O190: 69882535 | P190: 305707044 | Q190: 305116182 | R190: 304115882 | S190: 163140390 | T190: 0 | U190: 0 | V190: 0 | W190: 0 | X190: 0 | Y190: 0 | Z190: 0 | AA190: 0 | AB190: 0 | AC190: 0 | AD190: 0 | AE190: 0 | AF190: 0 | AG190: 1147962033 | AH190: 1147962033
A191: SNCP-CPE | B191: 0 | C191: 0 | D191: 0 | E191: 0 | F191: 0 | G191: 0 | H191: 0 | I191: 0 | J191: 0 | K191: 0 | L191: 0 | M191: 0 | N191: 0 | O191: 0 | P191: 0 | Q191: 0 | R191: 0 | S191: 0 | T191: 0 | U191: 0 | V191: 136988216 | W191: 155000217 | X191: 83754573 | Y191: 142264485 | Z191: 0 | AA191: 0 | AB191: 0 | AC191: 0 | AD191: 0 | AE191: 0 | AF191: 0 | AG191: 518007491 | AH191: 518007491
A192: SNCP-DSH-HSNTF | B192: 0 | C192: 0 | D192: 0 | E192: 0 | F192: 0 | G192: 0 | H192: 0 | I192: 0 | J192: 0 | K192: 0 | L192: 0 | M192: 0 | N192: 0 | O192: 0 | P192: 0 | Q192: 0 | R192: 0 | S192: 0 | T192: 0 | U192: 0 | V192: 0 | W192: 0 | X192: 0 | Y192: 0 | Z192: 0 | AA192: 0 | AB192: 0 | AC192: 0 | AD192: 0 | AE192: 0 | AF192: 0 | AG192: 0 | AH192: 0
A193: SNCP-DSHP | B193: 0 | C193: 0 | D193: 0 | E193: 0 | F193: 0 | G193: 0 | H193: 0 | I193: 0 | J193: 0 | K193: 0 | L193: 0 | M193: 0 | N193: 0 | O193: 0 | P193: 385000000 | Q193: 360000000 | R193: 310000090 | S193: 155137936 | T193: 365671031 | U193: 257000000 | V193: 123310706 | W193: 0 | X193: 0 | Y193: 0 | Z193: 0 | AA193: 0 | AB193: 0 | AC193: 0 | AD193: 0 | AE193: 0 | AF193: 0 | AG193: 1956119763 | AH193: 1956119763
A194: SNCP-DSRIP | B194: 0 | C194: 0 | D194: 0 | E194: 0 | F194: 0 | G194: 0 | H194: 0 | I194: 0 | J194: 0 | K194: 0 | L194: 0 | M194: 0 | N194: 0 | O194: 0 | P194: 0 | Q194: 0 | R194: 0 | S194: 0 | T194: 0 | U194: 0 | V194: 0 | W194: 289823537 | X194: 285379587 | Y194: 125799503 | Z194: 0 | AA194: 0 | AB194: 0 | AC194: 0 | AD194: 0 | AE194: 0 | AF194: 0 | AG194: 701002627 | AH194: 701002627
A195: SNCP-HSNTF | B195: 0 | C195: 0 | D195: 0 | E195: 0 | F195: 0 | G195: 0 | H195: 0 | I195: 0 | J195: 0 | K195: 0 | L195: 0 | M195: 0 | N195: 0 | O195: 0 | P195: 41781976 | Q195: 77698623 | R195: 128214687 | S195: 156211424 | T195: 169210251 | U195: 149688790 | V195: 144717613 | W195: 229621717 | X195: 238157666 | Y195: 241564300 | Z195: 63486810 | AA195: 0 | AB195: 0 | AC195: 0 | AD195: 0 | AE195: 0 | AF195: 0 | AG195: 1640353857 | AH195: 1640353857
A196: SNCP-IMD | B196: 0 | C196: 0 | D196: 0 | E196: 0 | F196: 0 | G196: 0 | H196: 0 | I196: 0 | J196: 0 | K196: 0 | L196: 0 | M196: 0 | N196: 0 | O196: 0 | P196: 0 | Q196: 0 | R196: 0 | S196: 0 | T196: 1256 | U196: 1410664 | V196: 47208948 | W196: 28954675 | X196: 104244677 | Y196: 94789899 | Z196: 0 | AA196: 0 | AB196: 0 | AC196: 0 | AD196: 0 | AE196: 0 | AF196: 0 | AG196: 276610119 | AH196: 276610119
A197: SNCP-Other | B197: 0 | C197: 0 | D197: 0 | E197: 0 | F197: 0 | G197: 0 | H197: 0 | I197: 0 | J197: 0 | K197: 0 | L197: 0 | M197: 0 | N197: 0 | O197: 0 | P197: 0 | Q197: -41531 | R197: 3113 | S197: -4947550 | T197: 157412572 | U197: 201778502 | V197: 22118742 | W197: 0 | X197: 0 | Y197: 0 | Z197: 0 | AA197: 0 | AB197: 0 | AC197: 0 | AD197: 0 | AE197: 0 | AF197: 0 | AG197: 376323848 | AH197: 376323848
A198: SNCP-PHTII | B198: 0 | C198: 0 | D198: 0 | E198: 0 | F198: 0 | G198: 0 | H198: 0 | I198: 0 | J198: 0 | K198: 0 | L198: 0 | M198: 0 | N198: 0 | O198: 0 | P198: 0 | Q198: 0 | R198: 0 | S198: 0 | T198: 0 | U198: 130391551 | V198: 163997778 | W198: 309000000 | X198: 243000000 | Y198: 114000000 | Z198: 0 | AA198: 0 | AB198: 0 | AC198: 0 | AD198: 0 | AE198: 0 | AF198: 0 | AG198: 960389329 | AH198: 960389329
A199: STANDARD | B199: 0 | C199: 312149 | D199: 27279642 | E199: 1273654732 | F199: 1978985782 | G199: 230774640 | H199: 0 | I199: 0 | J199: 0 | K199: 0 | L199: 0 | M199: 0 | N199: 0 | O199: 0 | P199: 0 | Q199: 0 | R199: 0 | S199: 0 | T199: 0 | U199: 0 | V199: 0 | W199: 0 | X199: 0 | Y199: 0 | Z199: 0 | AA199: 0 | AB199: 0 | AC199: 0 | AD199: 0 | AE199: 0 | AF199: 0 | AG199: 3511006945 | AH199: 3511006945
A200: Waiver Name | B200: A | C200: 01 | D200: 02 | E200: 03 | F200: 04 | G200: 05 | H200: 06 | I200: 07 | J200: 08 | K200: 09 | L200: 10 | M200: 11 | N200: 12 | O200: 13 | P200: 14 | Q200: 15 | R200: 16 | S200: 17 | T200: 18 | U200: 19 | V200: 20 | W200: 21 | X200: 22 | Y200: 23 | Z200: 24 | AA200: 25 | AB200: 26 | AC200: 27 | AD200: 28 | AE200: 29 | AF200: 30 | AG200: Total | AH200: Total Less Non-Adds
A201: 1115 BPHC | B201: 0 | C201: 0 | D201: 0 | E201: 0 | F201: 0 | G201: 0 | H201: 0 | I201: 0 | J201: 0 | K201: 0 | L201: 0 | M201: 0 | N201: 0 | O201: 0 | P201: 0 | Q201: 0 | R201: 0 | S201: 0 | T201: 0 | U201: 0 | V201: 0 | W201: 0 | X201: 0 | Y201: 0 | Z201: 0 | AA201: 0 | AB201: 0 | AC201: 0 | AD201: 0 | AE201: 0 | AF201: 0 | AG201: 52564579 | AH201: 52564579
A202: 1115 CMHLTH | B202: 0 | C202: 0 | D202: 0 | E202: 0 | F202: 0 | G202: 0 | H202: 0 | I202: 0 | J202: 0 | K202: 0 | L202: 0 | M202: 0 | N202: 0 | O202: 0 | P202: 0 | Q202: 0 | R202: 0 | S202: 0 | T202: 0 | U202: 0 | V202: 0 | W202: 0 | X202: 0 | Y202: 0 | Z202: 0 | AA202: 0 | AB202: 0 | AC202: 0 | AD202: 0 | AE202: 0 | AF202: 0 | AG202: 1194266 | AH202: 1194266
A203: 1115 CPHC | B203: 0 | C203: 0 | D203: 0 | E203: 0 | F203: 0 | G203: 0 | H203: 0 | I203: 0 | J203: 0 | K203: 0 | L203: 0 | M203: 0 | N203: 0 | O203: 0 | P203: 0 | Q203: 0 | R203: 0 | S203: 0 | T203: 0 | U203: 0 | V203: 0 | W203: 0 | X203: 0 | Y203: 0 | Z203: 0 | AA203: 0 | AB203: 0 | AC203: 0 | AD203: 0 | AE203: 0 | AF203: 0 | AG203: 18484854 | AH203: 18484854
A204: 1115 LIMITD | B204: 0 | C204: 0 | D204: 0 | E204: 0 | F204: 0 | G204: 0 | H204: 0 | I204: 0 | J204: 0 | K204: 0 | L204: 0 | M204: 0 | N204: 0 | O204: 0 | P204: 0 | Q204: 0 | R204: 0 | S204: 0 | T204: 0 | U204: 0 | V204: 0 | W204: 0 | X204: 0 | Y204: 0 | Z204: 0 | AA204: 0 | AB204: 0 | AC204: 0 | AD204: 0 | AE204: 0 | AF204: 0 | AG204: 50841 | AH204: 50841
A205: 1115 STNDRT | B205: 0 | C205: 0 | D205: 0 | E205: 0 | F205: 0 | G205: 0 | H205: 0 | I205: 0 | J205: 0 | K205: 0 | L205: 0 | M205: 0 | N205: 0 | O205: 0 | P205: 0 | Q205: 0 | R205: 0 | S205: 0 | T205: 0 | U205: 0 | V205: 0 | W205: 0 | X205: 0 | Y205: 0 | Z205: 0 | AA205: 0 | AB205: 0 | AC205: 0 | AD205: 0 | AE205: 0 | AF205: 0 | AG205: 62739545 | AH205: 62739545
A206: 1115-BASIC | B206: 0 | C206: 17247350 | D206: 63990868 | E206: 23100634 | F206: 0 | G206: 0 | H206: 0 | I206: 0 | J206: 0 | K206: 0 | L206: 0 | M206: 0 | N206: 0 | O206: 0 | P206: 0 | Q206: 0 | R206: 0 | S206: 0 | T206: 0 | U206: 0 | V206: 0 | W206: 0 | X206: 0 | Y206: 0 | Z206: 0 | AA206: 0 | AB206: 0 | AC206: 0 | AD206: 0 | AE206: 0 | AF206: 0 | AG206: 115054601 | AH206: 115054601
A207: 1115-BPHC | B207: 0 | C207: 1643967 | D207: 84337358 | E207: 69256424 | F207: 0 | G207: 0 | H207: 0 | I207: 0 | J207: 0 | K207: 0 | L207: 0 | M207: 0 | N207: 0 | O207: 0 | P207: 0 | Q207: 0 | R207: 0 | S207: 0 | T207: 0 | U207: 0 | V207: 0 | W207: 0 | X207: 0 | Y207: 0 | Z207: 0 | AA207: 0 | AB207: 0 | AC207: 0 | AD207: 0 | AE207: 0 | AF207: 0 | AG207: 156731044 | AH207: 156731044
A208: 1115-CMHLTH | B208: 0 | C208: 6583231 | D208: 14920489 | E208: 10417839 | F208: 0 | G208: 0 | H208: 0 | I208: 0 | J208: 0 | K208: 0 | L208: 0 | M208: 0 | N208: 0 | O208: 0 | P208: 0 | Q208: 0 | R208: 0 | S208: 0 | T208: 0 | U208: 0 | V208: 0 | W208: 0 | X208: 0 | Y208: 0 | Z208: 0 | AA208: 0 | AB208: 0 | AC208: 0 | AD208: 0 | AE208: 0 | AF208: 0 | AG208: 38615211 | AH208: 38615211
A209: 1115-CPHC | B209: 0 | C209: 699586 | D209: 30268423 | E209: 29364235 | F209: 0 | G209: 0 | H209: 0 | I209: 0 | J209: 0 | K209: 0 | L209: 0 | M209: 0 | N209: 0 | O209: 0 | P209: 0 | Q209: 0 | R209: 0 | S209: 0 | T209: 0 | U209: 0 | V209: 0 | W209: 0 | X209: 0 | Y209: 0 | Z209: 0 | AA209: 0 | AB209: 0 | AC209: 0 | AD209: 0 | AE209: 0 | AF209: 0 | AG209: 60726992 | AH209: 60726992
A210: 1115-IRP | B210: 0 | C210: 0 | D210: 375981 | E210: 218365 | F210: 0 | G210: 0 | H210: 0 | I210: 0 | J210: 0 | K210: 0 | L210: 0 | M210: 0 | N210: 0 | O210: 0 | P210: 0 | Q210: 0 | R210: 0 | S210: 0 | T210: 0 | U210: 0 | V210: 0 | W210: 0 | X210: 0 | Y210: 0 | Z210: 0 | AA210: 0 | AB210: 0 | AC210: 0 | AD210: 0 | AE210: 0 | AF210: 0 | AG210: 594346 | AH210: 594346
A211: 1115-LIMITD | B211: 0 | C211: 1544537 | D211: 4544577 | E211: 2138912 | F211: 0 | G211: 0 | H211: 0 | I211: 0 | J211: 0 | K211: 0 | L211: 0 | M211: 0 | N211: 0 | O211: 0 | P211: 0 | Q211: 0 | R211: 0 | S211: 0 | T211: 0 | U211: 0 | V211: 0 | W211: 0 | X211: 0 | Y211: 0 | Z211: 0 | AA211: 0 | AB211: 0 | AC211: 0 | AD211: 0 | AE211: 0 | AF211: 0 | AG211: 9045720 | AH211: 9045720
A212: 1115-MHSPY | B212: 0 | C212: 3058 | D212: 129735 | E212: 35409 | F212: 0 | G212: 0 | H212: 0 | I212: 0 | J212: 0 | K212: 0 | L212: 0 | M212: 0 | N212: 0 | O212: 0 | P212: 0 | Q212: 0 | R212: 0 | S212: 0 | T212: 0 | U212: 0 | V212: 0 | W212: 0 | X212: 0 | Y212: 0 | Z212: 0 | AA212: 0 | AB212: 0 | AC212: 0 | AD212: 0 | AE212: 0 | AF212: 0 | AG212: 168202 | AH212: 168202
A213: 1115-MSP | B213: 0 | C213: 4854105 | D213: 4113684 | E213: 862128 | F213: 0 | G213: 0 | H213: 0 | I213: 0 | J213: 0 | K213: 0 | L213: 0 | M213: 0 | N213: 0 | O213: 0 | P213: 0 | Q213: 0 | R213: 0 | S213: 0 | T213: 0 | U213: 0 | V213: 0 | W213: 0 | X213: 0 | Y213: 0 | Z213: 0 | AA213: 0 | AB213: 0 | AC213: 0 | AD213: 0 | AE213: 0 | AF213: 0 | AG213: 10490146 | AH213: 10490146
A214: 1115-STNDRD | B214: 0 | C214: 366012755 | D214: 660962395 | E214: 308414406 | F214: 0 | G214: 0 | H214: 0 | I214: 0 | J214: 0 | K214: 0 | L214: 0 | M214: 0 | N214: 0 | O214: 0 | P214: 0 | Q214: 0 | R214: 0 | S214: 0 | T214: 0 | U214: 0 | V214: 0 | W214: 0 | X214: 0 | Y214: 0 | Z214: 0 | AA214: 0 | AB214: 0 | AC214: 0 | AD214: 0 | AE214: 0 | AF214: 0 | AG214: 1711374419 | AH214: 1711374419
A215: 115-STNDRD | B215: 0 | C215: 0 | D215: 199675216 | E215: 0 | F215: 0 | G215: 0 | H215: 0 | I215: 0 | J215: 0 | K215: 0 | L215: 0 | M215: 0 | N215: 0 | O215: 0 | P215: 0 | Q215: 0 | R215: 0 | S215: 0 | T215: 0 | U215: 0 | V215: 0 | W215: 0 | X215: 0 | Y215: 0 | Z215: 0 | AA215: 0 | AB215: 0 | AC215: 0 | AD215: 0 | AE215: 0 | AF215: 0 | AG215: 199675216 | AH215: 199675216
A216: 1902(r)(2) Children | B216: 0 | C216: 0 | D216: 0 | E216: 0 | F216: 0 | G216: -386 | H216: 203 | I216: 8878 | J216: 1143056 | K216: 25172154 | L216: 31344286 | M216: 22570802 | N216: 18523837 | O216: 28406047 | P216: -11248145 | Q216: 29004135 | R216: 30424525 | S216: 36120635 | T216: 49351945 | U216: 60369604 | V216: 72240764 | W216: 49411509 | X216: 40528265 | Y216: 39876524 | Z216: 10446644 | AA216: 0 | AB216: 0 | AC216: 0 | AD216: 0 | AE216: 0 | AF216: 0 | AG216: 533695282 | AH216: 533695282
A217: 1902(r)(2) Disabled | B217: 0 | C217: 0 | D217: 0 | E217: 0 | F217: 0 | G217: -2317 | H217: 7522 | I217: 77691 | J217: 3093723 | K217: 31413507 | L217: 24296904 | M217: 22209165 | N217: 34057136 | O217: 32092030 | P217: 30934003 | Q217: 24902858 | R217: 25771303 | S217: 26784984 | T217: 23346016 | U217: 26879638 | V217: 29395961 | W217: 27905265 | X217: 30148552 | Y217: 33748426 | Z217: 7108185 | AA217: 0 | AB217: 0 | AC217: 0 | AD217: 0 | AE217: 0 | AF217: 0 | AG217: 434170552 | AH217: 434170552
A218: Base Childless Adults (19-20) | B218: 0 | C218: 0 | D218: 0 | E218: 0 | F218: 0 | G218: 0 | H218: 0 | I218: 0 | J218: 0 | K218: 0 | L218: 0 | M218: 0 | N218: 0 | O218: 0 | P218: 0 | Q218: 0 | R218: 0 | S218: 42795098 | T218: 46086582 | U218: 73453694 | V218: 83173129 | W218: 96504994 | X218: 110859773 | Y218: 124132109 | Z218: 18498434 | AA218: 0 | AB218: 0 | AC218: 0 | AD218: 0 | AE218: 0 | AF218: 0 | AG218: 595503813 | AH218: 595503813
A219: Base Childless Adults (Care Plus) | B219: 0 | C219: 0 | D219: 0 | E219: 0 | F219: 0 | G219: 0 | H219: 0 | I219: 0 | J219: 0 | K219: 0 | L219: 0 | M219: 0 | N219: 0 | O219: 0 | P219: 0 | Q219: 0 | R219: 0 | S219: 792064288 | T219: 933805701 | U219: 1502232787 | V219: 1508660387 | W219: 1476764111 | X219: 1477421823 | Y219: 1616790502 | Z219: 405053398 | AA219: 0 | AB219: 0 | AC219: 0 | AD219: 0 | AE219: 0 | AF219: 0 | AG219: 9712792997 | AH219: 9712792997
A220: Base Childless Adults (Standard ABP) | B220: 0 | C220: 0 | D220: 0 | E220: 0 | F220: 0 | G220: 0 | H220: 0 | I220: 0 | J220: 0 | K220: 0 | L220: 0 | M220: 0 | N220: 0 | O220: 0 | P220: 0 | Q220: 0 | R220: 0 | S220: 29971240 | T220: 71640044 | U220: 117234709 | V220: 188893007 | W220: 351617567 | X220: 416142849 | Y220: 253359066 | Z220: 46799740 | AA220: 0 | AB220: 0 | AC220: 0 | AD220: 0 | AE220: 0 | AF220: 0 | AG220: 1475658222 | AH220: 1475658222
A221: Base Disabled | B221: 0 | C221: 0 | D221: 0 | E221: 0 | F221: 0 | G221: 358189 | H221: 194435 | I221: 839164 | J221: 97016942 | K221: 774814289 | L221: 838443486 | M221: 898092793 | N221: 1093869401 | O221: 1186677267 | P221: 1345881482 | Q221: 1061928159 | R221: 1082731994 | S221: 1149322069 | T221: 1229212284 | U221: 1205460292 | V221: 1220717732 | W221: 1222259421 | X221: 1308517154 | Y221: 1422816597 | Z221: 308924846 | AA221: 0 | AB221: 0 | AC221: 0 | AD221: 0 | AE221: 0 | AF221: 0 | AG221: 17448077996 | AH221: 17448077996
A222: Base Families | B222: 0 | C222: 0 | D222: 0 | E222: 0 | F222: 0 | G222: 6901 | H222: 8990 | I222: 249889 | J222: 46880581 | K222: 936261857 | L222: 983808741 | M222: 1061917283 | N222: 1283630544 | O222: 1485194424 | P222: 1394401152 | Q222: 1271766941 | R222: 1291456942 | S222: 1340864494 | T222: 1486608329 | U222: 1494177047 | V222: 1442759191 | W222: 1477774570 | X222: 1506890679 | Y222: 1652642442 | Z222: 353940634 | AA222: 0 | AB222: 0 | AC222: 0 | AD222: 0 | AE222: 0 | AF222: 0 | AG222: 20511241631 | AH222: 20511241631
A223: Base MCB | B223: 0 | C223: 0 | D223: 0 | E223: 0 | F223: 0 | G223: -1125 | H223: -38 | I223: 6223 | J223: 122549 | K223: 889440 | L223: 687793 | M223: 751931 | N223: 665885 | O223: 117437 | P223: 0 | Q223: 264 | R223: 109 | S223: 603 | T223: 0 | U223: 0 | V223: 0 | W223: 0 | X223: 0 | Y223: 0 | Z223: 0 | AA223: 0 | AB223: 0 | AC223: 0 | AD223: 0 | AE223: 0 | AF223: 0 | AG223: 3241071 | AH223: 3241071
A224: BASIC | B224: 0 | C224: 5573 | D224: 644085 | E224: 50669890 | F224: 81079943 | G224: 6381137 | H224: 0 | I224: 0 | J224: 0 | K224: 0 | L224: 0 | M224: 0 | N224: 0 | O224: 0 | P224: 0 | Q224: 0 | R224: 0 | S224: 0 | T224: 0 | U224: 0 | V224: 0 | W224: 0 | X224: 0 | Y224: 0 | Z224: 0 | AA224: 0 | AB224: 0 | AC224: 0 | AD224: 0 | AE224: 0 | AF224: 0 | AG224: 138780628 | AH224: 138780628
A225: BPHC | B225: 0 | C225: 0 | D225: 0 | E225: 11695902 | F225: 110868010 | G225: 3334899 | H225: 0 | I225: 0 | J225: 0 | K225: 0 | L225: 0 | M225: 0 | N225: 0 | O225: 0 | P225: 0 | Q225: 0 | R225: 0 | S225: 0 | T225: 0 | U225: 0 | V225: 0 | W225: 0 | X225: 0 | Y225: 0 | Z225: 0 | AA225: 0 | AB225: 0 | AC225: 0 | AD225: 0 | AE225: 0 | AF225: 0 | AG225: 125898811 | AH225: 125898811
A226: CommCare-133 | B226: 0 | C226: 0 | D226: 0 | E226: 0 | F226: 0 | G226: 0 | H226: 0 | I226: 0 | J226: 0 | K226: 0 | L226: 0 | M226: 0 | N226: 0 | O226: 59804658 | P226: 241220012 | Q226: 194388700 | R226: 184171106 | S226: 97379648 | T226: -7088 | U226: 0 | V226: 0 | W226: 0 | X226: 0 | Y226: 0 | Z226: 0 | AA226: 0 | AB226: 0 | AC226: 0 | AD226: 0 | AE226: 0 | AF226: 0 | AG226: 776957036 | AH226: 776957036
A227: CommCare-19-20 | B227: 0 | C227: 0 | D227: 0 | E227: 0 | F227: 0 | G227: 0 | H227: 0 | I227: 0 | J227: 0 | K227: 0 | L227: 0 | M227: 0 | N227: 0 | O227: 26282628 | P227: 23072325 | Q227: 14230247 | R227: 12629424 | S227: 6564428 | T227: -88 | U227: 0 | V227: 0 | W227: 0 | X227: 0 | Y227: 0 | Z227: 0 | AA227: 0 | AB227: 0 | AC227: 0 | AD227: 0 | AE227: 0 | AF227: 0 | AG227: 82778964 | AH227: 82778964
A228: COMMONHEALTH | B228: 0 | C228: 60571 | D228: 635815 | E228: 21187637 | F228: 39177495 | G228: 6281844 | H228: 0 | I228: 0 | J228: 0 | K228: 0 | L228: 0 | M228: 0 | N228: 0 | O228: 0 | P228: 0 | Q228: 0 | R228: 0 | S228: 0 | T228: 0 | U228: 0 | V228: 0 | W228: 0 | X228: 0 | Y228: 0 | Z228: 0 | AA228: 0 | AB228: 0 | AC228: 0 | AD228: 0 | AE228: 0 | AF228: 0 | AG228: 67343362 | AH228: 67343362
A229: CPHC | B229: 0 | C229: 0 | D229: 0 | E229: 4194837 | F229: 45060964 | G229: 1333721 | H229: 0 | I229: 0 | J229: 0 | K229: 0 | L229: 0 | M229: 0 | N229: 0 | O229: 0 | P229: 0 | Q229: 0 | R229: 0 | S229: 0 | T229: 0 | U229: 0 | V229: 0 | W229: 0 | X229: 0 | Y229: 0 | Z229: 0 | AA229: 0 | AB229: 0 | AC229: 0 | AD229: 0 | AE229: 0 | AF229: 0 | AG229: 50589522 | AH229: 50589522
A230: DSH | B230: 0 | C230: 285616265 | D230: 281975525 | E230: 267928099 | F230: 200946776 | G230: 49434209 | H230: 0 | I230: 0 | J230: 0 | K230: 0 | L230: 0 | M230: 0 | N230: 0 | O230: 0 | P230: 0 | Q230: 0 | R230: 0 | S230: 0 | T230: 0 | U230: 0 | V230: 0 | W230: 0 | X230: 0 | Y230: 0 | Z230: 0 | AA230: 0 | AB230: 0 | AC230: 0 | AD230: 0 | AE230: 0 | AF230: 0 | AG230: 1085900874 | AH230: 1085900874
A231: DSHP-CommCare Transition | B231: 0 | C231: 0 | D231: 0 | E231: 0 | F231: 0 | G231: 0 | H231: 0 | I231: 0 | J231: 0 | K231: 0 | L231: 0 | M231: 0 | N231: 0 | O231: 0 | P231: 0 | Q231: 0 | R231: 0 | S231: 36064229 | T231: 86353890 | U231: 0 | V231: 0 | W231: 0 | X231: 0 | Y231: 0 | Z231: 0 | AA231: 0 | AB231: 0 | AC231: 0 | AD231: 0 | AE231: 0 | AF231: 0 | AG231: 122418119 | AH231: 122418119
A232: DSHP-CSR | B232: 0 | C232: 0 | D232: 0 | E232: 0 | F232: 0 | G232: 0 | H232: 0 | I232: 0 | J232: 0 | K232: 0 | L232: 0 | M232: 0 | N232: 0 | O232: 0 | P232: 0 | Q232: 0 | R232: 0 | S232: 0 | T232: 0 | U232: 0 | V232: 31027044 | W232: 50643772 | X232: 67395440 | Y232: 71083828 | Z232: 14705271 | AA232: 0 | AB232: 0 | AC232: 0 | AD232: 0 | AE232: 0 | AF232: 0 | AG232: 234855355 | AH232: 234855355
A233: DSHP-Health Connector subsidies | B233: 0 | C233: 0 | D233: 0 | E233: 0 | F233: 0 | G233: 0 | H233: 0 | I233: 0 | J233: 0 | K233: 0 | L233: 0 | M233: 0 | N233: 0 | O233: 0 | P233: 0 | Q233: 0 | R233: 0 | S233: 0 | T233: 15692850 | U233: 49341429 | V233: 55493644 | W233: 54458846 | X233: 66289583 | Y233: 76466754 | Z233: 18993850 | AA233: 0 | AB233: 0 | AC233: 0 | AD233: 0 | AE233: 0 | AF233: 0 | AG233: 336736956 | AH233: 336736956
A234: DSHP-Health Connector Subsidy | B234: 0 | C234: 0 | D234: 0 | E234: 0 | F234: 0 | G234: 0 | H234: 0 | I234: 0 | J234: 0 | K234: 0 | L234: 0 | M234: 0 | N234: 0 | O234: 0 | P234: 0 | Q234: 0 | R234: 0 | S234: 0 | T234: 0 | U234: 0 | V234: 0 | W234: 0 | X234: 0 | Y234: 0 | Z234: 0 | AA234: 0 | AB234: 0 | AC234: 0 | AD234: 0 | AE234: 0 | AF234: 0 | AG234: 0 | AH234: 0
A235: DSHP-Temporary Coverage | B235: 0 | C235: 0 | D235: 0 | E235: 0 | F235: 0 | G235: 0 | H235: 0 | I235: 0 | J235: 0 | K235: 0 | L235: 0 | M235: 0 | N235: 0 | O235: 0 | P235: -573 | Q235: 0 | R235: 0 | S235: 83426199 | T235: 244918223 | U235: 304001 | V235: 0 | W235: 0 | X235: 0 | Y235: 0 | Z235: 0 | AA235: 0 | AB235: 0 | AC235: 0 | AD235: 0 | AE235: 0 | AF235: 0 | AG235: 328647850 | AH235: 328647850
A236: DSRIP | B236: 0 | C236: 0 | D236: 0 | E236: 0 | F236: 0 | G236: 0 | H236: 0 | I236: 0 | J236: 0 | K236: 0 | L236: 0 | M236: 0 | N236: 0 | O236: 0 | P236: 0 | Q236: 0 | R236: 0 | S236: 0 | T236: 0 | U236: 0 | V236: 0 | W236: 0 | X236: 0 | Y236: 18440635 | Z236: 285512 | AA236: 0 | AB236: 0 | AC236: 0 | AD236: 0 | AE236: 0 | AF236: 0 | AG236: 18726147 | AH236: 18726147
A237: e-Family Assistance | B237: 0 | C237: 0 | D237: 0 | E237: 0 | F237: 0 | G237: 0 | H237: 0 | I237: 4 | J237: 21569 | K237: 1751718 | L237: 1959884 | M237: 2909242 | N237: 3955158 | O237: 7189111 | P237: 7999707 | Q237: 0 | R237: 0 | S237: 0 | T237: 0 | U237: 0 | V237: 0 | W237: 0 | X237: 0 | Y237: 0 | Z237: 0 | AA237: 0 | AB237: 0 | AC237: 0 | AD237: 0 | AE237: 0 | AF237: 0 | AG237: 25786393 | AH237: 25786393
A238: e-HIV/FA | B238: 0 | C238: 0 | D238: 0 | E238: 0 | F238: 0 | G238: 7909 | H238: 666 | I238: -3911 | J238: 436714 | K238: 7254463 | L238: 8201015 | M238: 9200061 | N238: 11415482 | O238: 14620355 | P238: 14692254 | Q238: 12262117 | R238: 13088604 | S238: 9231251 | T238: 4053214 | U238: 3849475 | V238: 4080743 | W238: 4823060 | X238: 5880111 | Y238: 6012742 | Z238: 1300914 | AA238: 0 | AB238: 0 | AC238: 0 | AD238: 0 | AE238: 0 | AF238: 0 | AG238: 130407239 | AH238: 130407239
A239: IRP | B239: 0 | C239: 0 | D239: 0 | E239: 468316 | F239: 913865 | G239: 230962 | H239: 0 | I239: 0 | J239: 0 | K239: 0 | L239: 0 | M239: 0 | N239: 0 | O239: 0 | P239: 0 | Q239: 0 | R239: 0 | S239: 0 | T239: 0 | U239: 0 | V239: 0 | W239: 0 | X239: 0 | Y239: 0 | Z239: 0 | AA239: 0 | AB239: 0 | AC239: 0 | AD239: 0 | AE239: 0 | AF239: 0 | AG239: 1613143 | AH239: 1613143
A240: LIMITED | B240: 0 | C240: 10717 | D240: 225862 | E240: 5955991 | F240: 11388918 | G240: 1673673 | H240: 0 | I240: 0 | J240: 0 | K240: 0 | L240: 0 | M240: 0 | N240: 0 | O240: 0 | P240: 0 | Q240: 0 | R240: 0 | S240: 0 | T240: 0 | U240: 0 | V240: 0 | W240: 0 | X240: 0 | Y240: 0 | Z240: 0 | AA240: 0 | AB240: 0 | AC240: 0 | AD240: 0 | AE240: 0 | AF240: 0 | AG240: 19255161 | AH240: 19255161
A241: Mass Health Basic | B241: 0 | C241: -6070 | D241: -2393 | E241: -68542 | F241: 1115545 | G241: 41343706 | H241: 0 | I241: 0 | J241: 0 | K241: 0 | L241: 0 | M241: 0 | N241: 0 | O241: 0 | P241: 0 | Q241: 0 | R241: 0 | S241: 0 | T241: 0 | U241: 0 | V241: 0 | W241: 0 | X241: 0 | Y241: 0 | Z241: 0 | AA241: 0 | AB241: 0 | AC241: 0 | AD241: 0 | AE241: 0 | AF241: 0 | AG241: 42382246 | AH241: 42382246
A242: Mass Health BPHC | B242: 0 | C242: 0 | D242: 0 | E242: 0 | F242: 0 | G242: 92460992 | H242: 0 | I242: 0 | J242: 0 | K242: 0 | L242: 0 | M242: 0 | N242: 0 | O242: 0 | P242: 0 | Q242: 0 | R242: 0 | S242: 0 | T242: 0 | U242: 0 | V242: 0 | W242: 0 | X242: 0 | Y242: 0 | Z242: 0 | AA242: 0 | AB242: 0 | AC242: 0 | AD242: 0 | AE242: 0 | AF242: 0 | AG242: 92460992 | AH242: 92460992
A243: Mass Health Commonhealth | B243: 0 | C243: -677 | D243: 10631 | E243: 91106 | F243: 1441363 | G243: 24853145 | H243: 0 | I243: 0 | J243: 0 | K243: 0 | L243: 0 | M243: 0 | N243: 0 | O243: 0 | P243: 0 | Q243: 0 | R243: 0 | S243: 0 | T243: 0 | U243: 0 | V243: 0 | W243: 0 | X243: 0 | Y243: 0 | Z243: 0 | AA243: 0 | AB243: 0 | AC243: 0 | AD243: 0 | AE243: 0 | AF243: 0 | AG243: 26395568 | AH243: 26395568
A244: Mass Health CPHC | B244: 0 | C244: 0 | D244: 0 | E244: 0 | F244: 0 | G244: 64993396 | H244: 0 | I244: 0 | J244: 0 | K244: 0 | L244: 0 | M244: 0 | N244: 0 | O244: 0 | P244: 0 | Q244: 0 | R244: 0 | S244: 0 | T244: 0 | U244: 0 | V244: 0 | W244: 0 | X244: 0 | Y244: 0 | Z244: 0 | AA244: 0 | AB244: 0 | AC244: 0 | AD244: 0 | AE244: 0 | AF244: 0 | AG244: 64993396 | AH244: 64993396
A245: Mass Health DSH | B245: 0 | C245: 4225000 | D245: 1325000 | E245: 0 | F245: 8493197 | G245: 37079932 | H245: 0 | I245: 0 | J245: 0 | K245: 0 | L245: 0 | M245: 0 | N245: 0 | O245: 0 | P245: 0 | Q245: 0 | R245: 0 | S245: 0 | T245: 0 | U245: 0 | V245: 0 | W245: 0 | X245: 0 | Y245: 0 | Z245: 0 | AA245: 0 | AB245: 0 | AC245: 0 | AD245: 0 | AE245: 0 | AF245: 0 | AG245: 51123129 | AH245: 51123129
A246: Mass Health IRP | B246: 0 | C246: 0 | D246: 0 | E246: 1469987 | F246: 5965761 | G246: 4437841 | H246: 0 | I246: 0 | J246: 0 | K246: 0 | L246: 0 | M246: 0 | N246: 0 | O246: 0 | P246: 0 | Q246: 0 | R246: 0 | S246: 0 | T246: 0 | U246: 0 | V246: 0 | W246: 0 | X246: 0 | Y246: 0 | Z246: 0 | AA246: 0 | AB246: 0 | AC246: 0 | AD246: 0 | AE246: 0 | AF246: 0 | AG246: 11873589 | AH246: 11873589
A247: Mass Health Limited | B247: 0 | C247: 50583 | D247: 38197 | E247: 16670 | F247: 540781 | G247: 7301710 | H247: 0 | I247: 0 | J247: 0 | K247: 0 | L247: 0 | M247: 0 | N247: 0 | O247: 0 | P247: 0 | Q247: 0 | R247: 0 | S247: 0 | T247: 0 | U247: 0 | V247: 0 | W247: 0 | X247: 0 | Y247: 0 | Z247: 0 | AA247: 0 | AB247: 0 | AC247: 0 | AD247: 0 | AE247: 0 | AF247: 0 | AG247: 7947941 | AH247: 7947941
A248: Mass Health MHSPY | B248: 0 | C248: 0 | D248: 0 | E248: 0 | F248: 0 | G248: 36630 | H248: 0 | I248: 0 | J248: 0 | K248: 0 | L248: 0 | M248: 0 | N248: 0 | O248: 0 | P248: 0 | Q248: 0 | R248: 0 | S248: 0 | T248: 0 | U248: 0 | V248: 0 | W248: 0 | X248: 0 | Y248: 0 | Z248: 0 | AA248: 0 | AB248: 0 | AC248: 0 | AD248: 0 | AE248: 0 | AF248: 0 | AG248: 36630 | AH248: 36630
A249: Mass Health MSP | B249: 0 | C249: 0 | D249: 0 | E249: 0 | F249: 0 | G249: 2047066 | H249: 0 | I249: 0 | J249: 0 | K249: 0 | L249: 0 | M249: 0 | N249: 0 | O249: 0 | P249: 0 | Q249: 0 | R249: 0 | S249: 0 | T249: 0 | U249: 0 | V249: 0 | W249: 0 | X249: 0 | Y249: 0 | Z249: 0 | AA249: 0 | AB249: 0 | AC249: 0 | AD249: 0 | AE249: 0 | AF249: 0 | AG249: 2047066 | AH249: 2047066
A250: Mass Health Standard | B250: 0 | C250: -126049 | D250: 15902 | E250: 307676 | F250: 16035882 | G250: 264979109 | H250: 0 | I250: 0 | J250: 0 | K250: 0 | L250: 0 | M250: 0 | N250: 0 | O250: 0 | P250: 0 | Q250: 0 | R250: 0 | S250: 0 | T250: 0 | U250: 0 | V250: 0 | W250: 0 | X250: 0 | Y250: 0 | Z250: 0 | AA250: 0 | AB250: 0 | AC250: 0 | AD250: 0 | AE250: 0 | AF250: 0 | AG250: 281212520 | AH250: 281212520
A251: MassHealth - Basic | B251: 0 | C251: 0 | D251: 0 | E251: 0 | F251: 60177 | G251: 15838027 | H251: 51099048 | I251: 0 | J251: 0 | K251: 0 | L251: 0 | M251: 0 | N251: 0 | O251: 0 | P251: 0 | Q251: 0 | R251: 0 | S251: 0 | T251: 0 | U251: 0 | V251: 0 | W251: 0 | X251: 0 | Y251: 0 | Z251: 0 | AA251: 0 | AB251: 0 | AC251: 0 | AD251: 0 | AE251: 0 | AF251: 0 | AG251: 66997252 | AH251: 66997252
A252: MassHealth - BPHC | B252: 0 | C252: 0 | D252: 0 | E252: 0 | F252: 0 | G252: 16881005 | H252: 139640755 | I252: 0 | J252: 0 | K252: 0 | L252: 0 | M252: 0 | N252: 0 | O252: 0 | P252: 0 | Q252: 0 | R252: 0 | S252: 0 | T252: 0 | U252: 0 | V252: 0 | W252: 0 | X252: 0 | Y252: 0 | Z252: 0 | AA252: 0 | AB252: 0 | AC252: 0 | AD252: 0 | AE252: 0 | AF252: 0 | AG252: 156521760 | AH252: 156521760
A253: MassHealth - CommonHealth | B253: 0 | C253: 0 | D253: 0 | E253: 0 | F253: 250982 | G253: 8508261 | H253: 40176876 | I253: 0 | J253: 0 | K253: 0 | L253: 0 | M253: 0 | N253: 0 | O253: 0 | P253: 0 | Q253: 0 | R253: 0 | S253: 0 | T253: 0 | U253: 0 | V253: 0 | W253: 0 | X253: 0 | Y253: 0 | Z253: 0 | AA253: 0 | AB253: 0 | AC253: 0 | AD253: 0 | AE253: 0 | AF253: 0 | AG253: 48936119 | AH253: 48936119
A254: MassHealth - CPHC | B254: 0 | C254: 0 | D254: 0 | E254: 0 | F254: 0 | G254: -16881005 | H254: 74570109 | I254: 0 | J254: 0 | K254: 0 | L254: 0 | M254: 0 | N254: 0 | O254: 0 | P254: 0 | Q254: 0 | R254: 0 | S254: 0 | T254: 0 | U254: 0 | V254: 0 | W254: 0 | X254: 0 | Y254: 0 | Z254: 0 | AA254: 0 | AB254: 0 | AC254: 0 | AD254: 0 | AE254: 0 | AF254: 0 | AG254: 57689104 | AH254: 57689104
A255: MassHealth - DSH | B255: 0 | C255: 0 | D255: 0 | E255: 0 | F255: 13125000 | G255: -13125000 | H255: 179167526 | I255: 0 | J255: 0 | K255: 0 | L255: 0 | M255: 0 | N255: 0 | O255: 0 | P255: 0 | Q255: 0 | R255: 0 | S255: 0 | T255: 0 | U255: 0 | V255: 0 | W255: 0 | X255: 0 | Y255: 0 | Z255: 0 | AA255: 0 | AB255: 0 | AC255: 0 | AD255: 0 | AE255: 0 | AF255: 0 | AG255: 179167526 | AH255: 179167526
A256: MassHealth - IRP | B256: 0 | C256: 0 | D256: 0 | E256: 0 | F256: 0 | G256: 0 | H256: 10761441 | I256: 0 | J256: 0 | K256: 0 | L256: 0 | M256: 0 | N256: 0 | O256: 0 | P256: 0 | Q256: 0 | R256: 0 | S256: 0 | T256: 0 | U256: 0 | V256: 0 | W256: 0 | X256: 0 | Y256: 0 | Z256: 0 | AA256: 0 | AB256: 0 | AC256: 0 | AD256: 0 | AE256: 0 | AF256: 0 | AG256: 10761441 | AH256: 10761441
A257: MassHealth - Limited | B257: 0 | C257: 0 | D257: 0 | E257: 0 | F257: 133170 | G257: 3085913 | H257: 9539085 | I257: 0 | J257: 0 | K257: 0 | L257: 0 | M257: 0 | N257: 0 | O257: 0 | P257: 0 | Q257: 0 | R257: 0 | S257: 0 | T257: 0 | U257: 0 | V257: 0 | W257: 0 | X257: 0 | Y257: 0 | Z257: 0 | AA257: 0 | AB257: 0 | AC257: 0 | AD257: 0 | AE257: 0 | AF257: 0 | AG257: 12758168 | AH257: 12758168
A258: MassHealth - MHSPY | B258: 0 | C258: 0 | D258: 0 | E258: 0 | F258: 0 | G258: 0 | H258: 131439 | I258: 0 | J258: 0 | K258: 0 | L258: 0 | M258: 0 | N258: 0 | O258: 0 | P258: 0 | Q258: 0 | R258: 0 | S258: 0 | T258: 0 | U258: 0 | V258: 0 | W258: 0 | X258: 0 | Y258: 0 | Z258: 0 | AA258: 0 | AB258: 0 | AC258: 0 | AD258: 0 | AE258: 0 | AF258: 0 | AG258: 131439 | AH258: 131439
A259: MassHealth - MSP | B259: 0 | C259: 0 | D259: 0 | E259: 0 | F259: 0 | G259: 2227842 | H259: 15616390 | I259: 0 | J259: 0 | K259: 0 | L259: 0 | M259: 0 | N259: 0 | O259: 0 | P259: 0 | Q259: 0 | R259: 0 | S259: 0 | T259: 0 | U259: 0 | V259: 0 | W259: 0 | X259: 0 | Y259: 0 | Z259: 0 | AA259: 0 | AB259: 0 | AC259: 0 | AD259: 0 | AE259: 0 | AF259: 0 | AG259: 17844232 | AH259: 17844232
A260: MassHealth - Standard | B260: 0 | C260: 0 | D260: 0 | E260: 0 | F260: 2887491 | G260: 196434743 | H260: 712013386 | I260: 0 | J260: 0 | K260: 0 | L260: 0 | M260: 0 | N260: 0 | O260: 0 | P260: 0 | Q260: 0 | R260: 0 | S260: 0 | T260: 0 | U260: 0 | V260: 0 | W260: 0 | X260: 0 | Y260: 0 | Z260: 0 | AA260: 0 | AB260: 0 | AC260: 0 | AD260: 0 | AE260: 0 | AF260: 0 | AG260: 911335620 | AH260: 911335620
A261: MassHealth Basic | B261: 0 | C261: 0 | D261: 0 | E261: 0 | F261: 164326 | G261: 20437412 | H261: 0 | I261: 0 | J261: 0 | K261: 0 | L261: 0 | M261: 0 | N261: 0 | O261: 0 | P261: 0 | Q261: 0 | R261: 0 | S261: 0 | T261: 0 | U261: 0 | V261: 0 | W261: 0 | X261: 0 | Y261: 0 | Z261: 0 | AA261: 0 | AB261: 0 | AC261: 0 | AD261: 0 | AE261: 0 | AF261: 0 | AG261: 20601738 | AH261: 20601738
A262: MassHealth BPHC | B262: 0 | C262: 0 | D262: 0 | E262: 0 | F262: 0 | G262: 15113319 | H262: 0 | I262: 0 | J262: 0 | K262: 0 | L262: 0 | M262: 0 | N262: 0 | O262: 0 | P262: 0 | Q262: 0 | R262: 0 | S262: 0 | T262: 0 | U262: 0 | V262: 0 | W262: 0 | X262: 0 | Y262: 0 | Z262: 0 | AA262: 0 | AB262: 0 | AC262: 0 | AD262: 0 | AE262: 0 | AF262: 0 | AG262: 15113319 | AH262: 15113319
A263: MassHealth Commonhealth | B263: 0 | C263: 0 | D263: 0 | E263: 0 | F263: 252499 | G263: 12764499 | H263: 0 | I263: 0 | J263: 0 | K263: 0 | L263: 0 | M263: 0 | N263: 0 | O263: 0 | P263: 0 | Q263: 0 | R263: 0 | S263: 0 | T263: 0 | U263: 0 | V263: 0 | W263: 0 | X263: 0 | Y263: 0 | Z263: 0 | AA263: 0 | AB263: 0 | AC263: 0 | AD263: 0 | AE263: 0 | AF263: 0 | AG263: 13016998 | AH263: 13016998
A264: MassHealth CPHC | B264: 0 | C264: 0 | D264: 0 | E264: 0 | F264: 0 | G264: 37565654 | H264: 0 | I264: 0 | J264: 0 | K264: 0 | L264: 0 | M264: 0 | N264: 0 | O264: 0 | P264: 0 | Q264: 0 | R264: 0 | S264: 0 | T264: 0 | U264: 0 | V264: 0 | W264: 0 | X264: 0 | Y264: 0 | Z264: 0 | AA264: 0 | AB264: 0 | AC264: 0 | AD264: 0 | AE264: 0 | AF264: 0 | AG264: 37565654 | AH264: 37565654
A265: MassHealth DSH | B265: 0 | C265: 716122 | D265: 200625 | E265: 569950 | F265: 3927472 | G265: 190226259 | H265: 0 | I265: 0 | J265: 0 | K265: 0 | L265: 0 | M265: 0 | N265: 0 | O265: 0 | P265: 0 | Q265: 0 | R265: 0 | S265: 0 | T265: 0 | U265: 0 | V265: 0 | W265: 0 | X265: 0 | Y265: 0 | Z265: 0 | AA265: 0 | AB265: 0 | AC265: 0 | AD265: 0 | AE265: 0 | AF265: 0 | AG265: 195640428 | AH265: 195640428
A266: MassHealth IRP | B266: 0 | C266: 0 | D266: 0 | E266: 0 | F266: 0 | G266: 5108757 | H266: 0 | I266: 0 | J266: 0 | K266: 0 | L266: 0 | M266: 0 | N266: 0 | O266: 0 | P266: 0 | Q266: 0 | R266: 0 | S266: 0 | T266: 0 | U266: 0 | V266: 0 | W266: 0 | X266: 0 | Y266: 0 | Z266: 0 | AA266: 0 | AB266: 0 | AC266: 0 | AD266: 0 | AE266: 0 | AF266: 0 | AG266: 5108757 | AH266: 5108757
A267: MassHealth Limited | B267: 0 | C267: 0 | D267: 1458 | E267: 0 | F267: 93785 | G267: 3521367 | H267: 0 | I267: 0 | J267: 0 | K267: 0 | L267: 0 | M267: 0 | N267: 0 | O267: 0 | P267: 0 | Q267: 0 | R267: 0 | S267: 0 | T267: 0 | U267: 0 | V267: 0 | W267: 0 | X267: 0 | Y267: 0 | Z267: 0 | AA267: 0 | AB267: 0 | AC267: 0 | AD267: 0 | AE267: 0 | AF267: 0 | AG267: 3616610 | AH267: 3616610
A268: MassHealth MHSPY | B268: 0 | C268: 0 | D268: 0 | E268: 0 | F268: 0 | G268: 135632 | H268: 0 | I268: 0 | J268: 0 | K268: 0 | L268: 0 | M268: 0 | N268: 0 | O268: 0 | P268: 0 | Q268: 0 | R268: 0 | S268: 0 | T268: 0 | U268: 0 | V268: 0 | W268: 0 | X268: 0 | Y268: 0 | Z268: 0 | AA268: 0 | AB268: 0 | AC268: 0 | AD268: 0 | AE268: 0 | AF268: 0 | AG268: 135632 | AH268: 135632
A269: MassHealth MSP | B269: 0 | C269: 0 | D269: 0 | E269: 0 | F269: 0 | G269: 6033779 | H269: 0 | I269: 0 | J269: 0 | K269: 0 | L269: 0 | M269: 0 | N269: 0 | O269: 0 | P269: 0 | Q269: 0 | R269: 0 | S269: 0 | T269: 0 | U269: 0 | V269: 0 | W269: 0 | X269: 0 | Y269: 0 | Z269: 0 | AA269: 0 | AB269: 0 | AC269: 0 | AD269: 0 | AE269: 0 | AF269: 0 | AG269: 6033779 | AH269: 6033779
A270: MassHealth Standard | B270: 0 | C270: 37236 | D270: 132270 | E270: 322275 | F270: 9365710 | G270: 566103752 | H270: 0 | I270: 0 | J270: 0 | K270: 0 | L270: 0 | M270: 0 | N270: 0 | O270: 0 | P270: 0 | Q270: 0 | R270: 0 | S270: 0 | T270: 0 | U270: 0 | V270: 0 | W270: 0 | X270: 0 | Y270: 0 | Z270: 0 | AA270: 0 | AB270: 0 | AC270: 0 | AD270: 0 | AE270: 0 | AF270: 0 | AG270: 575961243 | AH270: 575961243
A271: MassHealth-Basic | B271: 0 | C271: 0 | D271: 0 | E271: 0 | F271: -10880 | G271: 164739 | H271: 24692387 | I271: 19962378 | J271: 22248916 | K271: 42950714 | L271: 52591715 | M271: 58454834 | N271: 70701053 | O271: 79849205 | P271: 92312183 | Q271: 83284196 | R271: 81690231 | S271: 36233335 | T271: 822706 | U271: 0 | V271: 0 | W271: 0 | X271: 0 | Y271: 0 | Z271: 0 | AA271: 0 | AB271: 0 | AC271: 0 | AD271: 0 | AE271: 0 | AF271: 0 | AG271: 665947712 | AH271: 665947712
A272: MassHealth-BCCTP | B272: 0 | C272: 0 | D272: 0 | E272: 0 | F272: 0 | G272: 0 | H272: 0 | I272: 261581 | J272: 1369779 | K272: 2646594 | L272: 2917990 | M272: 2498092 | N272: 2947438 | O272: 3889126 | P272: 3032234 | Q272: 2416254 | R272: 2183714 | S272: 1813463 | T272: 2286867 | U272: 3303329 | V272: 4425260 | W272: 6360740 | X272: 8823814 | Y272: 9183704 | Z272: 1749905 | AA272: 0 | AB272: 0 | AC272: 0 | AD272: 0 | AE272: 0 | AF272: 0 | AG272: 62109884 | AH272: 62109884
A273: MassHealth-BPHC | B273: 0 | C273: 0 | D273: 0 | E273: 0 | F273: 59588185 | G273: 66537862 | H273: 120398350 | I273: 381071494 | J273: 481196577 | K273: 0 | L273: 0 | M273: 0 | N273: 0 | O273: 0 | P273: 0 | Q273: 4561 | R273: 12 | S273: 0 | T273: 0 | U273: 0 | V273: 0 | W273: 0 | X273: 0 | Y273: 0 | Z273: 0 | AA273: 0 | AB273: 0 | AC273: 0 | AD273: 0 | AE273: 0 | AF273: 0 | AG273: 1108797041 | AH273: 1108797041
A274: MassHealth-CommonHealth | B274: 0 | C274: 0 | D274: 0 | E274: 0 | F274: 84031 | G274: 250650 | H274: 26551938 | I274: 69144994 | J274: 66264016 | K274: 54979288 | L274: 48422877 | M274: 45267776 | N274: 50628632 | O274: 44511096 | P274: 46233133 | Q274: 39367652 | R274: 41837630 | S274: 46883741 | T274: 46385475 | U274: 50596094 | V274: 55297867 | W274: 58860200 | X274: 65938959 | Y274: 74757186 | Z274: 14386198 | AA274: 0 | AB274: 0 | AC274: 0 | AD274: 0 | AE274: 0 | AF274: 0 | AG274: 946649433 | AH274: 946649433
A275: MassHealth-CPHC | B275: 0 | C275: 0 | D275: 0 | E275: 0 | F275: 47806888 | G275: 56718583 | H275: 84417277 | I275: 233403441 | J275: 246935709 | K275: 0 | L275: 0 | M275: 0 | N275: 0 | O275: 0 | P275: 0 | Q275: 0 | R275: 0 | S275: 0 | T275: 0 | U275: 0 | V275: 0 | W275: 0 | X275: 0 | Y275: 0 | Z275: 0 | AA275: 0 | AB275: 0 | AC275: 0 | AD275: 0 | AE275: 0 | AF275: 0 | AG275: 669281898 | AH275: 669281898
A276: MassHealth-DSH | B276: 0 | C276: 0 | D276: 0 | E276: 5727301 | F276: 4260888 | G276: 0 | H276: 40977820 | I276: 278155799 | J276: 294343312 | K276: 1 | L276: 0 | M276: 0 | N276: 0 | O276: 0 | P276: 0 | Q276: 0 | R276: 0 | S276: 0 | T276: 0 | U276: 0 | V276: 0 | W276: 0 | X276: 0 | Y276: 0 | Z276: 0 | AA276: 0 | AB276: 0 | AC276: 0 | AD276: 0 | AE276: 0 | AF276: 0 | AG276: 623465121 | AH276: 623465121
A277: MassHealth-Essential | B277: 0 | C277: 0 | D277: 0 | E277: 0 | F277: 0 | G277: 0 | H277: 0 | I277: 15326744 | J277: 78325680 | K277: 100198373 | L277: 135073032 | M277: 150239413 | N277: 189948325 | O277: 234747567 | P277: 238778839 | Q277: 239145785 | R277: 259150439 | S277: 156668885 | T277: 4046314 | U277: 0 | V277: 0 | W277: 0 | X277: 0 | Y277: 0 | Z277: 0 | AA277: 0 | AB277: 0 | AC277: 0 | AD277: 0 | AE277: 0 | AF277: 0 | AG277: 1801649396 | AH277: 1801649396
A278: MassHealth-IRP | B278: 0 | C278: 0 | D278: 0 | E278: 0 | F278: 0 | G278: 0 | H278: 3850247 | I278: 18119163 | J278: 19475525 | K278: 15201349 | L278: 15832125 | M278: 19434389 | N278: 21579751 | O278: 19153654 | P278: 15652452 | Q278: 11039796 | R278: 9187403 | S278: 5731848 | T278: 318760 | U278: 103235 | V278: 42762 | W278: 0 | X278: 1 | Y278: 0 | Z278: 0 | AA278: 0 | AB278: 0 | AC278: 0 | AD278: 0 | AE278: 0 | AF278: 0 | AG278: 174722460 | AH278: 174722460
A279: MassHealth-Limited | B279: 0 | C279: 0 | D279: 0 | E279: 0 | F279: 6116246 | G279: 4357456 | H279: 12077055 | I279: 26978586 | J279: 18440216 | K279: 0 | L279: 0 | M279: 0 | N279: 0 | O279: 0 | P279: 0 | Q279: 0 | R279: 0 | S279: 0 | T279: 0 | U279: 0 | V279: 0 | W279: 0 | X279: 0 | Y279: 0 | Z279: 0 | AA279: 0 | AB279: 0 | AC279: 0 | AD279: 0 | AE279: 0 | AF279: 0 | AG279: 67969559 | AH279: 67969559
A280: MassHealth-MHSPY | B280: 0 | C280: 0 | D280: 0 | E280: 0 | F280: -14421 | G280: -29416 | H280: -45782 | I280: 352738 | J280: 997852 | K280: 1866327 | L280: 2119930 | M280: 2317318 | N280: 2473943 | O280: 0 | P280: 0 | Q280: 0 | R280: 0 | S280: 0 | T280: 0 | U280: 0 | V280: 0 | W280: 0 | X280: 0 | Y280: 0 | Z280: 0 | AA280: 0 | AB280: 0 | AC280: 0 | AD280: 0 | AE280: 0 | AF280: 0 | AG280: 10038489 | AH280: 10038489
A281: MassHealth-MSP | B281: 0 | C281: 0 | D281: 0 | E281: 0 | F281: 0 | G281: 0 | H281: 0 | I281: 6087282 | J281: 6697357 | K281: 6130215 | L281: 9954172 | M281: 14246466 | N281: 36471764 | O281: 82061706 | P281: 88836957 | Q281: 70011131 | R281: 33799814 | S281: 29270612 | T281: 11088526 | U281: 0 | V281: 0 | W281: 0 | X281: 0 | Y281: 0 | Z281: 0 | AA281: 0 | AB281: 0 | AC281: 0 | AD281: 0 | AE281: 0 | AF281: 0 | AG281: 394656002 | AH281: 394656002
A282: MassHealth-Standard | B282: 0 | C282: 0 | D282: 0 | E282: 8247173 | F282: -209943811 | G282: 15077908 | H282: 448520195 | I282: 1372439836 | J282: 1263623825 | K282: 0 | L282: 0 | M282: 0 | N282: 0 | O282: 0 | P282: 0 | Q282: 0 | R282: 0 | S282: 0 | T282: 0 | U282: 0 | V282: 0 | W282: 0 | X282: 0 | Y282: 0 | Z282: 0 | AA282: 0 | AB282: 0 | AC282: 0 | AD282: 0 | AE282: 0 | AF282: 0 | AG282: 2897965126 | AH282: 2897965126
A283: MassHeath-MSP | B283: 0 | C283: 0 | D283: 0 | E283: 0 | F283: 0 | G283: 0 | H283: 5754557 | I283: 9029508 | J283: 0 | K283: 0 | L283: 0 | M283: 0 | N283: 0 | O283: 0 | P283: 0 | Q283: 0 | R283: 0 | S283: 0 | T283: 0 | U283: 0 | V283: 0 | W283: 0 | X283: 0 | Y283: 0 | Z283: 0 | AA283: 0 | AB283: 0 | AC283: 0 | AD283: 0 | AE283: 0 | AF283: 0 | AG283: 14784065 | AH283: 14784065
A284: MHSPY | B284: 0 | C284: 0 | D284: 0 | E284: 53023 | F284: 130647 | G284: 36630 | H284: 0 | I284: 0 | J284: 0 | K284: 0 | L284: 0 | M284: 0 | N284: 0 | O284: 0 | P284: 0 | Q284: 0 | R284: 0 | S284: 0 | T284: 0 | U284: 0 | V284: 0 | W284: 0 | X284: 0 | Y284: 0 | Z284: 0 | AA284: 0 | AB284: 0 | AC284: 0 | AD284: 0 | AE284: 0 | AF284: 0 | AG284: 220300 | AH284: 220300
A285: MSP | B285: 0 | C285: 0 | D285: 2333999 | E285: 5287672 | F285: 3752405 | G285: 1509399 | H285: 0 | I285: 0 | J285: 0 | K285: 0 | L285: 0 | M285: 0 | N285: 0 | O285: 0 | P285: 0 | Q285: 0 | R285: 0 | S285: 0 | T285: 0 | U285: 0 | V285: 0 | W285: 0 | X285: 0 | Y285: 0 | Z285: 0 | AA285: 0 | AB285: 0 | AC285: 0 | AD285: 0 | AE285: 0 | AF285: 0 | AG285: 12883475 | AH285: 12883475
A286: Safety Net Provider Payments | B286: 0 | C286: 0 | D286: 0 | E286: 0 | F286: 0 | G286: 0 | H286: 0 | I286: 0 | J286: 0 | K286: 0 | L286: 0 | M286: 0 | N286: 0 | O286: 0 | P286: 0 | Q286: 0 | R286: 0 | S286: 0 | T286: 0 | U286: 0 | V286: 0 | W286: 90693520 | X286: 87213777 | Y286: 139508352 | Z286: 0 | AA286: 0 | AB286: 0 | AC286: 0 | AD286: 0 | AE286: 0 | AF286: 0 | AG286: 317415649 | AH286: 317415649
... 28 more rows

Sheet C Report Grouper
B3: C Report Grouper
D4: MAP Waivers Only
B6: Total Computable
B7: MEG Names | D7: C Report Waiver Names | E7: DEMONSTRATION YEARS (DY)
E8: ='DY Def'!B$5 -> 1 | F8: ='DY Def'!C$5 -> 2 | G8: ='DY Def'!D$5 -> 3 | H8: ='DY Def'!E$5 -> 4 | I8: ='DY Def'!F$5 -> 5 | J8: ='DY Def'!G$5 -> 6 | K8: ='DY Def'!H$5 -> 7 | L8: ='DY Def'!I$5 -> 8 | M8: ='DY Def'!J$5 -> 9 | N8: ='DY Def'!K$5 -> 10 | O8: ='DY Def'!L$5 -> 11 | P8: ='DY Def'!M$5 -> 12 | Q8: ='DY Def'!N$5 -> 13 | R8: ='DY Def'!O$5 -> 14 | S8: ='DY Def'!P$5 -> 15 | T8: ='DY Def'!Q$5 -> 16 | U8: ='DY Def'!R$5 -> 17 | V8: ='DY Def'!S$5 -> 18 | W8: ='DY Def'!T$5 -> 19 | X8: ='DY Def'!U$5 -> 20 | Y8: ='DY Def'!V$5 -> 21 | Z8: ='DY Def'!W$5 -> 22 | AA8: ='DY Def'!X$5 -> 23 | AB8: ='DY Def'!Y$5 -> 24 | AC8: ='DY Def'!Z$5 -> 25 | AD8: ='DY Def'!AA$5 -> 26 | AE8: ='DY Def'!AB$5 -> 27 | AF8: ='DY Def'!AC$5 -> 28 | AG8: ='DY Def'!AD$5 -> 29 | AH8: ='DY Def'!AE$5 -> 30
B9: Medicaid Per Capita
B10: =IFERROR(VLOOKUP(C10,'MEG Def'!$A$7:$B$14,2),"") -> Base Families | C10: 1 | D10: Base Families | E10: =IF($D$4="MAP+ADM Waivers",SUMIF('C Report'!$A$100:$A$199,'C Report Grouper'!$D10,'C Report'!C$100:C$199)+SUMIF('C Report'!$A$300:$A$399,'C Report Grouper'!$D10,'C Report'!C$300:C$399),SUMIF('C Report'!$A$100:$A$199,'C Report Grouper'!$D10,'C Report'!C$100:C$199)) -> 0 | F10: =IF($D$4="MAP+ADM Waivers",SUMIF('C Report'!$A$100:$A$199,'C Report Grouper'!$D10,'C Report'!D$100:D$199)+SUMIF('C Report'!$A$300:$A$399,'C Report Grouper'!$D10,'C Report'!D$300:D$399),SUMIF('C Report'!$A$100:$A$199,'C Report Grouper'!$D10,'C Report'!D$100:D$199)) -> 0 | G10: =IF($D$4="MAP+ADM Waivers",SUMIF('C Report'!$A$100:$A$199,'C Report Grouper'!$D10,'C Report'!E$100:E$199)+SUMIF('C Report'!$A$300:$A$399,'C Report Grouper'!$D10,'C Report'!E$300:E$399),SUMIF('C Report'!$A$100:$A$199,'C Report Grouper'!$D10,'C Report'!E$100:E$199)) -> 0 | H10: =IF($D$4="MAP+ADM Waivers",SUMIF('C Report'!$A$100:$A$199,'C Report Grouper'!$D10,'C Report'!F$100:F$199)+SUMIF('C Report'!$A$300:$A$399,'C Report Grouper'!$D10,'C Report'!F$300:F$399),SUMIF('C Report'!$A$100:$A$199,'C Report Grouper'!$D10,'C Report'!F$100:F$199)) -> 0 | I10: =IF($D$4="MAP+ADM Waivers",SUMIF('C Report'!$A$100:$A$199,'C Report Grouper'!$D10,'C Report'!G$100:G$199)+SUMIF('C Report'!$A$300:$A$399,'C Report Grouper'!$D10,'C Report'!G$300:G$399),SUMIF('C Report'!$A$100:$A$199,'C Report Grouper'!$D10,'C Report'!G$100:G$199)) -> 12197 | J10: =IF($D$4="MAP+ADM Waivers",SUMIF('C Report'!$A$100:$A$199,'C Report Grouper'!$D10,'C Report'!H$100:H$199)+SUMIF('C Report'!$A$300:$A$399,'C Report Grouper'!$D10,'C Report'!H$300:H$399),SUMIF('C Report'!$A$100:$A$199,'C Report Grouper'!$D10,'C Report'!H$100:H$199)) -> 18950 | K10: =IF($D$4="MAP+ADM Waivers",SUMIF('C Report'!$A$100:$A$199,'C Report Grouper'!$D10,'C Report'!I$100:I$199)+SUMIF('C Report'!$A$300:$A$399,'C Report Grouper'!$D10,'C Report'!I$300:I$399),SUMIF('C Report'!$A$100:$A$199,'C Report Grouper'!$D10,'C Report'!I$100:I$199)) -> 472232 | L10: =IF($D$4="MAP+ADM Waivers",SUMIF('C Report'!$A$100:$A$199,'C Report Grouper'!$D10,'C Report'!J$100:J$199)+SUMIF('C Report'!$A$300:$A$399,'C Report Grouper'!$D10,'C Report'!J$300:J$399),SUMIF('C Report'!$A$100:$A$199,'C Report Grouper'!$D10,'C Report'!J$100:J$199)) -> 90387621 | M10: =IF($D$4="MAP+ADM Waivers",SUMIF('C Report'!$A$100:$A$199,'C Report Grouper'!$D10,'C Report'!K$100:K$199)+SUMIF('C Report'!$A$300:$A$399,'C Report Grouper'!$D10,'C Report'!K$300:K$399),SUMIF('C Report'!$A$100:$A$199,'C Report Grouper'!$D10,'C Report'!K$100:K$199)) -> 1858065692 | N10: =IF($D$4="MAP+ADM Waivers",SUMIF('C Report'!$A$100:$A$199,'C Report Grouper'!$D10,'C Report'!L$100:L$199)+SUMIF('C Report'!$A$300:$A$399,'C Report Grouper'!$D10,'C Report'!L$300:L$399),SUMIF('C Report'!$A$100:$A$199,'C Report Grouper'!$D10,'C Report'!L$100:L$199)) -> 1950432163 | O10: =IF($D$4="MAP+ADM Waivers",SUMIF('C Report'!$A$100:$A$199,'C Report Grouper'!$D10,'C Report'!M$100:M$199)+SUMIF('C Report'!$A$300:$A$399,'C Report Grouper'!$D10,'C Report'!M$300:M$399),SUMIF('C Report'!$A$100:$A$199,'C Report Grouper'!$D10,'C Report'!M$100:M$199)) -> 2099630153 | P10: =IF($D$4="MAP+ADM Waivers",SUMIF('C Report'!$A$100:$A$199,'C Report Grouper'!$D10,'C Report'!N$100:N$199)+SUMIF('C Report'!$A$300:$A$399,'C Report Grouper'!$D10,'C Report'!N$300:N$399),SUMIF('C Report'!$A$100:$A$199,'C Report Grouper'!$D10,'C Report'!N$100:N$199)) -> 2215564231 | Q10: =IF($D$4="MAP+ADM Waivers",SUMIF('C Report'!$A$100:$A$199,'C Report Grouper'!$D10,'C Report'!O$100:O$199)+SUMIF('C Report'!$A$300:$A$399,'C Report Grouper'!$D10,'C Report'!O$300:O$399),SUMIF('C Report'!$A$100:$A$199,'C Report Grouper'!$D10,'C Report'!O$100:O$199)) -> 2403138092 | R10: =IF($D$4="MAP+ADM Waivers",SUMIF('C Report'!$A$100:$A$199,'C Report Grouper'!$D10,'C Report'!P$100:P$199)+SUMIF('C Report'!$A$300:$A$399,'C Report Grouper'!$D10,'C Report'!P$300:P$399),SUMIF('C Report'!$A$100:$A$199,'C Report Grouper'!$D10,'C Report'!P$100:P$199)) -> 2346601674 | S10: =IF($D$4="MAP+ADM Waivers",SUMIF('C Report'!$A$100:$A$199,'C Report Grouper'!$D10,'C Report'!Q$100:Q$199)+SUMIF('C Report'!$A$300:$A$399,'C Report Grouper'!$D10,'C Report'!Q$300:Q$399),SUMIF('C Report'!$A$100:$A$199,'C Report Grouper'!$D10,'C Report'!Q$100:Q$199)) -> 2515022243 | T10: =IF($D$4="MAP+ADM Waivers",SUMIF('C Report'!$A$100:$A$199,'C Report Grouper'!$D10,'C Report'!R$100:R$199)+SUMIF('C Report'!$A$300:$A$399,'C Report Grouper'!$D10,'C Report'!R$300:R$399),SUMIF('C Report'!$A$100:$A$199,'C Report Grouper'!$D10,'C Report'!R$100:R$199)) -> 2542329941 | U10: =IF($D$4="MAP+ADM Waivers",SUMIF('C Report'!$A$100:$A$199,'C Report Grouper'!$D10,'C Report'!S$100:S$199)+SUMIF('C Report'!$A$300:$A$399,'C Report Grouper'!$D10,'C Report'!S$300:S$399),SUMIF('C Report'!$A$100:$A$199,'C Report Grouper'!$D10,'C Report'!S$100:S$199)) -> 2606498844 | V10: =IF($D$4="MAP+ADM Waivers",SUMIF('C Report'!$A$100:$A$199,'C Report Grouper'!$D10,'C Report'!T$100:T$199)+SUMIF('C Report'!$A$300:$A$399,'C Report Grouper'!$D10,'C Report'!T$300:T$399),SUMIF('C Report'!$A$100:$A$199,'C Report Grouper'!$D10,'C Report'!T$100:T$199)) -> 2926909306 | W10: =IF($D$4="MAP+ADM Waivers",SUMIF('C Report'!$A$100:$A$199,'C Report Grouper'!$D10,'C Report'!U$100:U$199)+SUMIF('C Report'!$A$300:$A$399,'C Report Grouper'!$D10,'C Report'!U$300:U$399),SUMIF('C Report'!$A$100:$A$199,'C Report Grouper'!$D10,'C Report'!U$100:U$199)) -> 2968007801 | X10: =IF($D$4="MAP+ADM Waivers",SUMIF('C Report'!$A$100:$A$199,'C Report Grouper'!$D10,'C Report'!V$100:V$199)+SUMIF('C Report'!$A$300:$A$399,'C Report Grouper'!$D10,'C Report'!V$300:V$399),SUMIF('C Report'!$A$100:$A$199,'C Report Grouper'!$D10,'C Report'!V$100:V$199)) -> 2865569268 | Y10: =IF($D$4="MAP+ADM Waivers",SUMIF('C Report'!$A$100:$A$199,'C Report Grouper'!$D10,'C Report'!W$100:W$199)+SUMIF('C Report'!$A$300:$A$399,'C Report Grouper'!$D10,'C Report'!W$300:W$399),SUMIF('C Report'!$A$100:$A$199,'C Report Grouper'!$D10,'C Report'!W$100:W$199)) -> 2929562794 | Z10: =IF($D$4="MAP+ADM Waivers",SUMIF('C Report'!$A$100:$A$199,'C Report Grouper'!$D10,'C Report'!X$100:X$199)+SUMIF('C Report'!$A$300:$A$399,'C Report Grouper'!$D10,'C Report'!X$300:X$399),SUMIF('C Report'!$A$100:$A$199,'C Report Grouper'!$D10,'C Report'!X$100:X$199)) -> 2984738205 | AA10: =IF($D$4="MAP+ADM Waivers",SUMIF('C Report'!$A$100:$A$199,'C Report Grouper'!$D10,'C Report'!Y$100:Y$199)+SUMIF('C Report'!$A$300:$A$399,'C Report Grouper'!$D10,'C Report'!Y$300:Y$399),SUMIF('C Report'!$A$100:$A$199,'C Report Grouper'!$D10,'C Report'!Y$100:Y$199)) -> 3068488154 | AB10: =IF($D$4="MAP+ADM Waivers",SUMIF('C Report'!$A$100:$A$199,'C Report Grouper'!$D10,'C Report'!Z$100:Z$199)+SUMIF('C Report'!$A$300:$A$399,'C Report Grouper'!$D10,'C Report'!Z$300:Z$399),SUMIF('C Report'!$A$100:$A$199,'C Report Grouper'!$D10,'C Report'!Z$100:Z$199)) -> 630556097 | AC10: =IF($D$4="MAP+ADM Waivers",SUMIF('C Report'!$A$100:$A$199,'C Report Grouper'!$D10,'C Report'!AA$100:AA$199)+SUMIF('C Report'!$A$300:$A$399,'C Report Grouper'!$D10,'C Report'!AA$300:AA$399),SUMIF('C Report'!$A$100:$A$199,'C Report Grouper'!$D10,'C Report'!AA$100:AA$199)) -> 0 | AD10: =IF($D$4="MAP+ADM Waivers",SUMIF('C Report'!$A$100:$A$199,'C Report Grouper'!$D10,'C Report'!AB$100:AB$199)+SUMIF('C Report'!$A$300:$A$399,'C Report Grouper'!$D10,'C Report'!AB$300:AB$399),SUMIF('C Report'!$A$100:$A$199,'C Report Grouper'!$D10,'C Report'!AB$100:AB$199)) -> 0 | AE10: =IF($D$4="MAP+ADM Waivers",SUMIF('C Report'!$A$100:$A$199,'C Report Grouper'!$D10,'C Report'!AC$100:AC$199)+SUMIF('C Report'!$A$300:$A$399,'C Report Grouper'!$D10,'C Report'!AC$300:AC$399),SUMIF('C Report'!$A$100:$A$199,'C Report Grouper'!$D10,'C Report'!AC$100:AC$199)) -> 0 | AF10: =IF($D$4="MAP+ADM Waivers",SUMIF('C Report'!$A$100:$A$199,'C Report Grouper'!$D10,'C Report'!AD$100:AD$199)+SUMIF('C Report'!$A$300:$A$399,'C Report Grouper'!$D10,'C Report'!AD$300:AD$399),SUMIF('C Report'!$A$100:$A$199,'C Report Grouper'!$D10,'C Report'!AD$100:AD$199)) -> 0 | AG10: =IF($D$4="MAP+ADM Waivers",SUMIF('C Report'!$A$100:$A$199,'C Report Grouper'!$D10,'C Report'!AE$100:AE$199)+SUMIF('C Report'!$A$300:$A$399,'C Report Grouper'!$D10,'C Report'!AE$300:AE$399),SUMIF('C Report'!$A$100:$A$199,'C Report Grouper'!$D10,'C Report'!AE$100:AE$199)) -> 0 | AH10: =IF($D$4="MAP+ADM Waivers",SUMIF('C Report'!$A$100:$A$199,'C Report Grouper'!$D10,'C Report'!AF$100:AF$199)+SUMIF('C Report'!$A$300:$A$399,'C Report Grouper'!$D10,'C Report'!AF$300:AF$399),SUMIF('C Report'!$A$100:$A$199,'C Report Grouper'!$D10,'C Report'!AF$100:AF$199)) -> 0
B11: =IFERROR(VLOOKUP(C11,'MEG Def'!$A$7:$B$14,2),"") -> Base Disabled/MCB | C11: 2 | D11: Base Disabled | E11: =IF($D$4="MAP+ADM Waivers",SUMIF('C Report'!$A$100:$A$199,'C Report Grouper'!$D11,'C Report'!C$100:C$199)+SUMIF('C Report'!$A$300:$A$399,'C Report Grouper'!$D11,'C Report'!C$300:C$399),SUMIF('C Report'!$A$100:$A$199,'C Report Grouper'!$D11,'C Report'!C$100:C$199)) -> 0 | F11: =IF($D$4="MAP+ADM Waivers",SUMIF('C Report'!$A$100:$A$199,'C Report Grouper'!$D11,'C Report'!D$100:D$199)+SUMIF('C Report'!$A$300:$A$399,'C Report Grouper'!$D11,'C Report'!D$300:D$399),SUMIF('C Report'!$A$100:$A$199,'C Report Grouper'!$D11,'C Report'!D$100:D$199)) -> 0 | G11: =IF($D$4="MAP+ADM Waivers",SUMIF('C Report'!$A$100:$A$199,'C Report Grouper'!$D11,'C Report'!E$100:E$199)+SUMIF('C Report'!$A$300:$A$399,'C Report Grouper'!$D11,'C Report'!E$300:E$399),SUMIF('C Report'!$A$100:$A$199,'C Report Grouper'!$D11,'C Report'!E$100:E$199)) -> 0 | H11: =IF($D$4="MAP+ADM Waivers",SUMIF('C Report'!$A$100:$A$199,'C Report Grouper'!$D11,'C Report'!F$100:F$199)+SUMIF('C Report'!$A$300:$A$399,'C Report Grouper'!$D11,'C Report'!F$300:F$399),SUMIF('C Report'!$A$100:$A$199,'C Report Grouper'!$D11,'C Report'!F$100:F$199)) -> 0 | I11: =IF($D$4="MAP+ADM Waivers",SUMIF('C Report'!$A$100:$A$199,'C Report Grouper'!$D11,'C Report'!G$100:G$199)+SUMIF('C Report'!$A$300:$A$399,'C Report Grouper'!$D11,'C Report'!G$300:G$399),SUMIF('C Report'!$A$100:$A$199,'C Report Grouper'!$D11,'C Report'!G$100:G$199)) -> 707476 | J11: =IF($D$4="MAP+ADM Waivers",SUMIF('C Report'!$A$100:$A$199,'C Report Grouper'!$D11,'C Report'!H$100:H$199)+SUMIF('C Report'!$A$300:$A$399,'C Report Grouper'!$D11,'C Report'!H$300:H$399),SUMIF('C Report'!$A$100:$A$199,'C Report Grouper'!$D11,'C Report'!H$100:H$199)) -> 388868 | K11: =IF($D$4="MAP+ADM Waivers",SUMIF('C Report'!$A$100:$A$199,'C Report Grouper'!$D11,'C Report'!I$100:I$199)+SUMIF('C Report'!$A$300:$A$399,'C Report Grouper'!$D11,'C Report'!I$300:I$399),SUMIF('C Report'!$A$100:$A$199,'C Report Grouper'!$D11,'C Report'!I$100:I$199)) -> 1671804 | L11: =IF($D$4="MAP+ADM Waivers",SUMIF('C Report'!$A$100:$A$199,'C Report Grouper'!$D11,'C Report'!J$100:J$199)+SUMIF('C Report'!$A$300:$A$399,'C Report Grouper'!$D11,'C Report'!J$300:J$399),SUMIF('C Report'!$A$100:$A$199,'C Report Grouper'!$D11,'C Report'!J$100:J$199)) -> 192729141 | M11: =IF($D$4="MAP+ADM Waivers",SUMIF('C Report'!$A$100:$A$199,'C Report Grouper'!$D11,'C Report'!K$100:K$199)+SUMIF('C Report'!$A$300:$A$399,'C Report Grouper'!$D11,'C Report'!K$300:K$399),SUMIF('C Report'!$A$100:$A$199,'C Report Grouper'!$D11,'C Report'!K$100:K$199)) -> 1544511841 | N11: =IF($D$4="MAP+ADM Waivers",SUMIF('C Report'!$A$100:$A$199,'C Report Grouper'!$D11,'C Report'!L$100:L$199)+SUMIF('C Report'!$A$300:$A$399,'C Report Grouper'!$D11,'C Report'!L$300:L$399),SUMIF('C Report'!$A$100:$A$199,'C Report Grouper'!$D11,'C Report'!L$100:L$199)) -> 1666269428 | O11: =IF($D$4="MAP+ADM Waivers",SUMIF('C Report'!$A$100:$A$199,'C Report Grouper'!$D11,'C Report'!M$100:M$199)+SUMIF('C Report'!$A$300:$A$399,'C Report Grouper'!$D11,'C Report'!M$300:M$399),SUMIF('C Report'!$A$100:$A$199,'C Report Grouper'!$D11,'C Report'!M$100:M$199)) -> 1782203157 | P11: =IF($D$4="MAP+ADM Waivers",SUMIF('C Report'!$A$100:$A$199,'C Report Grouper'!$D11,'C Report'!N$100:N$199)+SUMIF('C Report'!$A$300:$A$399,'C Report Grouper'!$D11,'C Report'!N$300:N$399),SUMIF('C Report'!$A$100:$A$199,'C Report Grouper'!$D11,'C Report'!N$100:N$199)) -> 1886683441 | Q11: =IF($D$4="MAP+ADM Waivers",SUMIF('C Report'!$A$100:$A$199,'C Report Grouper'!$D11,'C Report'!O$100:O$199)+SUMIF('C Report'!$A$300:$A$399,'C Report Grouper'!$D11,'C Report'!O$300:O$399),SUMIF('C Report'!$A$100:$A$199,'C Report Grouper'!$D11,'C Report'!O$100:O$199)) -> 1927988836 | R11: =IF($D$4="MAP+ADM Waivers",SUMIF('C Report'!$A$100:$A$199,'C Report Grouper'!$D11,'C Report'!P$100:P$199)+SUMIF('C Report'!$A$300:$A$399,'C Report Grouper'!$D11,'C Report'!P$300:P$399),SUMIF('C Report'!$A$100:$A$199,'C Report Grouper'!$D11,'C Report'!P$100:P$199)) -> 2270459789 | S11: =IF($D$4="MAP+ADM Waivers",SUMIF('C Report'!$A$100:$A$199,'C Report Grouper'!$D11,'C Report'!Q$100:Q$199)+SUMIF('C Report'!$A$300:$A$399,'C Report Grouper'!$D11,'C Report'!Q$300:Q$399),SUMIF('C Report'!$A$100:$A$199,'C Report Grouper'!$D11,'C Report'!Q$100:Q$199)) -> 2118029202 | T11: =IF($D$4="MAP+ADM Waivers",SUMIF('C Report'!$A$100:$A$199,'C Report Grouper'!$D11,'C Report'!R$100:R$199)+SUMIF('C Report'!$A$300:$A$399,'C Report Grouper'!$D11,'C Report'!R$300:R$399),SUMIF('C Report'!$A$100:$A$199,'C Report Grouper'!$D11,'C Report'!R$100:R$199)) -> 2153518717 | U11: =IF($D$4="MAP+ADM Waivers",SUMIF('C Report'!$A$100:$A$199,'C Report Grouper'!$D11,'C Report'!S$100:S$199)+SUMIF('C Report'!$A$300:$A$399,'C Report Grouper'!$D11,'C Report'!S$300:S$399),SUMIF('C Report'!$A$100:$A$199,'C Report Grouper'!$D11,'C Report'!S$100:S$199)) -> 2264668415 | V11: =IF($D$4="MAP+ADM Waivers",SUMIF('C Report'!$A$100:$A$199,'C Report Grouper'!$D11,'C Report'!T$100:T$199)+SUMIF('C Report'!$A$300:$A$399,'C Report Grouper'!$D11,'C Report'!T$300:T$399),SUMIF('C Report'!$A$100:$A$199,'C Report Grouper'!$D11,'C Report'!T$100:T$199)) -> 2440299885 | W11: =IF($D$4="MAP+ADM Waivers",SUMIF('C Report'!$A$100:$A$199,'C Report Grouper'!$D11,'C Report'!U$100:U$199)+SUMIF('C Report'!$A$300:$A$399,'C Report Grouper'!$D11,'C Report'!U$300:U$399),SUMIF('C Report'!$A$100:$A$199,'C Report Grouper'!$D11,'C Report'!U$100:U$199)) -> 2412731374 | X11: =IF($D$4="MAP+ADM Waivers",SUMIF('C Report'!$A$100:$A$199,'C Report Grouper'!$D11,'C Report'!V$100:V$199)+SUMIF('C Report'!$A$300:$A$399,'C Report Grouper'!$D11,'C Report'!V$300:V$399),SUMIF('C Report'!$A$100:$A$199,'C Report Grouper'!$D11,'C Report'!V$100:V$199)) -> 2444670462 | Y11: =IF($D$4="MAP+ADM Waivers",SUMIF('C Report'!$A$100:$A$199,'C Report Grouper'!$D11,'C Report'!W$100:W$199)+SUMIF('C Report'!$A$300:$A$399,'C Report Grouper'!$D11,'C Report'!W$300:W$399),SUMIF('C Report'!$A$100:$A$199,'C Report Grouper'!$D11,'C Report'!W$100:W$199)) -> 2446111317 | Z11: =IF($D$4="MAP+ADM Waivers",SUMIF('C Report'!$A$100:$A$199,'C Report Grouper'!$D11,'C Report'!X$100:X$199)+SUMIF('C Report'!$A$300:$A$399,'C Report Grouper'!$D11,'C Report'!X$300:X$399),SUMIF('C Report'!$A$100:$A$199,'C Report Grouper'!$D11,'C Report'!X$100:X$199)) -> 2617746590 | AA11: =IF($D$4="MAP+ADM Waivers",SUMIF('C Report'!$A$100:$A$199,'C Report Grouper'!$D11,'C Report'!Y$100:Y$199)+SUMIF('C Report'!$A$300:$A$399,'C Report Grouper'!$D11,'C Report'!Y$300:Y$399),SUMIF('C Report'!$A$100:$A$199,'C Report Grouper'!$D11,'C Report'!Y$100:Y$199)) -> 2666468455 | AB11: =IF($D$4="MAP+ADM Waivers",SUMIF('C Report'!$A$100:$A$199,'C Report Grouper'!$D11,'C Report'!Z$100:Z$199)+SUMIF('C Report'!$A$300:$A$399,'C Report Grouper'!$D11,'C Report'!Z$300:Z$399),SUMIF('C Report'!$A$100:$A$199,'C Report Grouper'!$D11,'C Report'!Z$100:Z$199)) -> 551343756 | AC11: =IF($D$4="MAP+ADM Waivers",SUMIF('C Report'!$A$100:$A$199,'C Report Grouper'!$D11,'C Report'!AA$100:AA$199)+SUMIF('C Report'!$A$300:$A$399,'C Report Grouper'!$D11,'C Report'!AA$300:AA$399),SUMIF('C Report'!$A$100:$A$199,'C Report Grouper'!$D11,'C Report'!AA$100:AA$199)) -> 0 | AD11: =IF($D$4="MAP+ADM Waivers",SUMIF('C Report'!$A$100:$A$199,'C Report Grouper'!$D11,'C Report'!AB$100:AB$199)+SUMIF('C Report'!$A$300:$A$399,'C Report Grouper'!$D11,'C Report'!AB$300:AB$399),SUMIF('C Report'!$A$100:$A$199,'C Report Grouper'!$D11,'C Report'!AB$100:AB$199)) -> 0 | AE11: =IF($D$4="MAP+ADM Waivers",SUMIF('C Report'!$A$100:$A$199,'C Report Grouper'!$D11,'C Report'!AC$100:AC$199)+SUMIF('C Report'!$A$300:$A$399,'C Report Grouper'!$D11,'C Report'!AC$300:AC$399),SUMIF('C Report'!$A$100:$A$199,'C Report Grouper'!$D11,'C Report'!AC$100:AC$199)) -> 0 | AF11: =IF($D$4="MAP+ADM Waivers",SUMIF('C Report'!$A$100:$A$199,'C Report Grouper'!$D11,'C Report'!AD$100:AD$199)+SUMIF('C Report'!$A$300:$A$399,'C Report Grouper'!$D11,'C Report'!AD$300:AD$399),SUMIF('C Report'!$A$100:$A$199,'C Report Grouper'!$D11,'C Report'!AD$100:AD$199)) -> 0 | AG11: =IF($D$4="MAP+ADM Waivers",SUMIF('C Report'!$A$100:$A$199,'C Report Grouper'!$D11,'C Report'!AE$100:AE$199)+SUMIF('C Report'!$A$300:$A$399,'C Report Grouper'!$D11,'C Report'!AE$300:AE$399),SUMIF('C Report'!$A$100:$A$199,'C Report Grouper'!$D11,'C Report'!AE$100:AE$199)) -> 0 | AH11: =IF($D$4="MAP+ADM Waivers",SUMIF('C Report'!$A$100:$A$199,'C Report Grouper'!$D11,'C Report'!AF$100:AF$199)+SUMIF('C Report'!$A$300:$A$399,'C Report Grouper'!$D11,'C Report'!AF$300:AF$399),SUMIF('C Report'!$A$100:$A$199,'C Report Grouper'!$D11,'C Report'!AF$100:AF$199)) -> 0
B12: =IFERROR(VLOOKUP(C12,'MEG Def'!$A$7:$B$14,2),"") -> 1902 (r) 2 Children | C12: 3 | D12: 1902(r)(2) Children | E12: =IF($D$4="MAP+ADM Waivers",SUMIF('C Report'!$A$100:$A$199,'C Report Grouper'!$D12,'C Report'!C$100:C$199)+SUMIF('C Report'!$A$300:$A$399,'C Report Grouper'!$D12,'C Report'!C$300:C$399),SUMIF('C Report'!$A$100:$A$199,'C Report Grouper'!$D12,'C Report'!C$100:C$199)) -> 0 | F12: =IF($D$4="MAP+ADM Waivers",SUMIF('C Report'!$A$100:$A$199,'C Report Grouper'!$D12,'C Report'!D$100:D$199)+SUMIF('C Report'!$A$300:$A$399,'C Report Grouper'!$D12,'C Report'!D$300:D$399),SUMIF('C Report'!$A$100:$A$199,'C Report Grouper'!$D12,'C Report'!D$100:D$199)) -> 0 | G12: =IF($D$4="MAP+ADM Waivers",SUMIF('C Report'!$A$100:$A$199,'C Report Grouper'!$D12,'C Report'!E$100:E$199)+SUMIF('C Report'!$A$300:$A$399,'C Report Grouper'!$D12,'C Report'!E$300:E$399),SUMIF('C Report'!$A$100:$A$199,'C Report Grouper'!$D12,'C Report'!E$100:E$199)) -> 0 | H12: =IF($D$4="MAP+ADM Waivers",SUMIF('C Report'!$A$100:$A$199,'C Report Grouper'!$D12,'C Report'!F$100:F$199)+SUMIF('C Report'!$A$300:$A$399,'C Report Grouper'!$D12,'C Report'!F$300:F$399),SUMIF('C Report'!$A$100:$A$199,'C Report Grouper'!$D12,'C Report'!F$100:F$199)) -> 0 | I12: =IF($D$4="MAP+ADM Waivers",SUMIF('C Report'!$A$100:$A$199,'C Report Grouper'!$D12,'C Report'!G$100:G$199)+SUMIF('C Report'!$A$300:$A$399,'C Report Grouper'!$D12,'C Report'!G$300:G$399),SUMIF('C Report'!$A$100:$A$199,'C Report Grouper'!$D12,'C Report'!G$100:G$199)) -> -808 | J12: =IF($D$4="MAP+ADM Waivers",SUMIF('C Report'!$A$100:$A$199,'C Report Grouper'!$D12,'C Report'!H$100:H$199)+SUMIF('C Report'!$A$300:$A$399,'C Report Grouper'!$D12,'C Report'!H$300:H$399),SUMIF('C Report'!$A$100:$A$199,'C Report Grouper'!$D12,'C Report'!H$100:H$199)) -> 408 | K12: =IF($D$4="MAP+ADM Waivers",SUMIF('C Report'!$A$100:$A$199,'C Report Grouper'!$D12,'C Report'!I$100:I$199)+SUMIF('C Report'!$A$300:$A$399,'C Report Grouper'!$D12,'C Report'!I$300:I$399),SUMIF('C Report'!$A$100:$A$199,'C Report Grouper'!$D12,'C Report'!I$100:I$199)) -> 13661 | L12: =IF($D$4="MAP+ADM Waivers",SUMIF('C Report'!$A$100:$A$199,'C Report Grouper'!$D12,'C Report'!J$100:J$199)+SUMIF('C Report'!$A$300:$A$399,'C Report Grouper'!$D12,'C Report'!J$300:J$399),SUMIF('C Report'!$A$100:$A$199,'C Report Grouper'!$D12,'C Report'!J$100:J$199)) -> 1898971 | M12: =IF($D$4="MAP+ADM Waivers",SUMIF('C Report'!$A$100:$A$199,'C Report Grouper'!$D12,'C Report'!K$100:K$199)+SUMIF('C Report'!$A$300:$A$399,'C Report Grouper'!$D12,'C Report'!K$300:K$399),SUMIF('C Report'!$A$100:$A$199,'C Report Grouper'!$D12,'C Report'!K$100:K$199)) -> 49012288 | N12: =IF($D$4="MAP+ADM Waivers",SUMIF('C Report'!$A$100:$A$199,'C Report Grouper'!$D12,'C Report'!L$100:L$199)+SUMIF('C Report'!$A$300:$A$399,'C Report Grouper'!$D12,'C Report'!L$300:L$399),SUMIF('C Report'!$A$100:$A$199,'C Report Grouper'!$D12,'C Report'!L$100:L$199)) -> 61430644 | O12: =IF($D$4="MAP+ADM Waivers",SUMIF('C Report'!$A$100:$A$199,'C Report Grouper'!$D12,'C Report'!M$100:M$199)+SUMIF('C Report'!$A$300:$A$399,'C Report Grouper'!$D12,'C Report'!M$300:M$399),SUMIF('C Report'!$A$100:$A$199,'C Report Grouper'!$D12,'C Report'!M$100:M$199)) -> 42805611 | P12: =IF($D$4="MAP+ADM Waivers",SUMIF('C Report'!$A$100:$A$199,'C Report Grouper'!$D12,'C Report'!N$100:N$199)+SUMIF('C Report'!$A$300:$A$399,'C Report Grouper'!$D12,'C Report'!N$300:N$399),SUMIF('C Report'!$A$100:$A$199,'C Report Grouper'!$D12,'C Report'!N$100:N$199)) -> 30574860 | Q12: =IF($D$4="MAP+ADM Waivers",SUMIF('C Report'!$A$100:$A$199,'C Report Grouper'!$D12,'C Report'!O$100:O$199)+SUMIF('C Report'!$A$300:$A$399,'C Report Grouper'!$D12,'C Report'!O$300:O$399),SUMIF('C Report'!$A$100:$A$199,'C Report Grouper'!$D12,'C Report'!O$100:O$199)) -> 44927755 | R12: =IF($D$4="MAP+ADM Waivers",SUMIF('C Report'!$A$100:$A$199,'C Report Grouper'!$D12,'C Report'!P$100:P$199)+SUMIF('C Report'!$A$300:$A$399,'C Report Grouper'!$D12,'C Report'!P$300:P$399),SUMIF('C Report'!$A$100:$A$199,'C Report Grouper'!$D12,'C Report'!P$100:P$199)) -> -18192429 | S12: =IF($D$4="MAP+ADM Waivers",SUMIF('C Report'!$A$100:$A$199,'C Report Grouper'!$D12,'C Report'!Q$100:Q$199)+SUMIF('C Report'!$A$300:$A$399,'C Report Grouper'!$D12,'C Report'!Q$300:Q$399),SUMIF('C Report'!$A$100:$A$199,'C Report Grouper'!$D12,'C Report'!Q$100:Q$199)) -> 55470600 | T12: =IF($D$4="MAP+ADM Waivers",SUMIF('C Report'!$A$100:$A$199,'C Report Grouper'!$D12,'C Report'!R$100:R$199)+SUMIF('C Report'!$A$300:$A$399,'C Report Grouper'!$D12,'C Report'!R$300:R$399),SUMIF('C Report'!$A$100:$A$199,'C Report Grouper'!$D12,'C Report'!R$100:R$199)) -> 58390281 | U12: =IF($D$4="MAP+ADM Waivers",SUMIF('C Report'!$A$100:$A$199,'C Report Grouper'!$D12,'C Report'!S$100:S$199)+SUMIF('C Report'!$A$300:$A$399,'C Report Grouper'!$D12,'C Report'!S$300:S$399),SUMIF('C Report'!$A$100:$A$199,'C Report Grouper'!$D12,'C Report'!S$100:S$199)) -> 70073797 | V12: =IF($D$4="MAP+ADM Waivers",SUMIF('C Report'!$A$100:$A$199,'C Report Grouper'!$D12,'C Report'!T$100:T$199)+SUMIF('C Report'!$A$300:$A$399,'C Report Grouper'!$D12,'C Report'!T$300:T$399),SUMIF('C Report'!$A$100:$A$199,'C Report Grouper'!$D12,'C Report'!T$100:T$199)) -> 95009995 | W12: =IF($D$4="MAP+ADM Waivers",SUMIF('C Report'!$A$100:$A$199,'C Report Grouper'!$D12,'C Report'!U$100:U$199)+SUMIF('C Report'!$A$300:$A$399,'C Report Grouper'!$D12,'C Report'!U$300:U$399),SUMIF('C Report'!$A$100:$A$199,'C Report Grouper'!$D12,'C Report'!U$100:U$199)) -> 117711287 | X12: =IF($D$4="MAP+ADM Waivers",SUMIF('C Report'!$A$100:$A$199,'C Report Grouper'!$D12,'C Report'!V$100:V$199)+SUMIF('C Report'!$A$300:$A$399,'C Report Grouper'!$D12,'C Report'!V$300:V$399),SUMIF('C Report'!$A$100:$A$199,'C Report Grouper'!$D12,'C Report'!V$100:V$199)) -> 141921814 | Y12: =IF($D$4="MAP+ADM Waivers",SUMIF('C Report'!$A$100:$A$199,'C Report Grouper'!$D12,'C Report'!W$100:W$199)+SUMIF('C Report'!$A$300:$A$399,'C Report Grouper'!$D12,'C Report'!W$300:W$399),SUMIF('C Report'!$A$100:$A$199,'C Report Grouper'!$D12,'C Report'!W$100:W$199)) -> 96124870 | Z12: =IF($D$4="MAP+ADM Waivers",SUMIF('C Report'!$A$100:$A$199,'C Report Grouper'!$D12,'C Report'!X$100:X$199)+SUMIF('C Report'!$A$300:$A$399,'C Report Grouper'!$D12,'C Report'!X$300:X$399),SUMIF('C Report'!$A$100:$A$199,'C Report Grouper'!$D12,'C Report'!X$100:X$199)) -> 78740273 | AA12: =IF($D$4="MAP+ADM Waivers",SUMIF('C Report'!$A$100:$A$199,'C Report Grouper'!$D12,'C Report'!Y$100:Y$199)+SUMIF('C Report'!$A$300:$A$399,'C Report Grouper'!$D12,'C Report'!Y$300:Y$399),SUMIF('C Report'!$A$100:$A$199,'C Report Grouper'!$D12,'C Report'!Y$100:Y$199)) -> 73411564 | AB12: =IF($D$4="MAP+ADM Waivers",SUMIF('C Report'!$A$100:$A$199,'C Report Grouper'!$D12,'C Report'!Z$100:Z$199)+SUMIF('C Report'!$A$300:$A$399,'C Report Grouper'!$D12,'C Report'!Z$300:Z$399),SUMIF('C Report'!$A$100:$A$199,'C Report Grouper'!$D12,'C Report'!Z$100:Z$199)) -> 18471923 | AC12: =IF($D$4="MAP+ADM Waivers",SUMIF('C Report'!$A$100:$A$199,'C Report Grouper'!$D12,'C Report'!AA$100:AA$199)+SUMIF('C Report'!$A$300:$A$399,'C Report Grouper'!$D12,'C Report'!AA$300:AA$399),SUMIF('C Report'!$A$100:$A$199,'C Report Grouper'!$D12,'C Report'!AA$100:AA$199)) -> 0 | AD12: =IF($D$4="MAP+ADM Waivers",SUMIF('C Report'!$A$100:$A$199,'C Report Grouper'!$D12,'C Report'!AB$100:AB$199)+SUMIF('C Report'!$A$300:$A$399,'C Report Grouper'!$D12,'C Report'!AB$300:AB$399),SUMIF('C Report'!$A$100:$A$199,'C Report Grouper'!$D12,'C Report'!AB$100:AB$199)) -> 0 | AE12: =IF($D$4="MAP+ADM Waivers",SUMIF('C Report'!$A$100:$A$199,'C Report Grouper'!$D12,'C Report'!AC$100:AC$199)+SUMIF('C Report'!$A$300:$A$399,'C Report Grouper'!$D12,'C Report'!AC$300:AC$399),SUMIF('C Report'!$A$100:$A$199,'C Report Grouper'!$D12,'C Report'!AC$100:AC$199)) -> 0 | AF12: =IF($D$4="MAP+ADM Waivers",SUMIF('C Report'!$A$100:$A$199,'C Report Grouper'!$D12,'C Report'!AD$100:AD$199)+SUMIF('C Report'!$A$300:$A$399,'C Report Grouper'!$D12,'C Report'!AD$300:AD$399),SUMIF('C Report'!$A$100:$A$199,'C Report Grouper'!$D12,'C Report'!AD$100:AD$199)) -> 0 | AG12: =IF($D$4="MAP+ADM Waivers",SUMIF('C Report'!$A$100:$A$199,'C Report Grouper'!$D12,'C Report'!AE$100:AE$199)+SUMIF('C Report'!$A$300:$A$399,'C Report Grouper'!$D12,'C Report'!AE$300:AE$399),SUMIF('C Report'!$A$100:$A$199,'C Report Grouper'!$D12,'C Report'!AE$100:AE$199)) -> 0 | AH12: =IF($D$4="MAP+ADM Waivers",SUMIF('C Report'!$A$100:$A$199,'C Report Grouper'!$D12,'C Report'!AF$100:AF$199)+SUMIF('C Report'!$A$300:$A$399,'C Report Grouper'!$D12,'C Report'!AF$300:AF$399),SUMIF('C Report'!$A$100:$A$199,'C Report Grouper'!$D12,'C Report'!AF$100:AF$199)) -> 0
B13: =IFERROR(VLOOKUP(C13,'MEG Def'!$A$7:$B$14,2),"") -> 1902 (r) 2 Disabled | C13: 4 | D13: 1902(r)(2) Disabled | E13: =IF($D$4="MAP+ADM Waivers",SUMIF('C Report'!$A$100:$A$199,'C Report Grouper'!$D13,'C Report'!C$100:C$199)+SUMIF('C Report'!$A$300:$A$399,'C Report Grouper'!$D13,'C Report'!C$300:C$399),SUMIF('C Report'!$A$100:$A$199,'C Report Grouper'!$D13,'C Report'!C$100:C$199)) -> 0 | F13: =IF($D$4="MAP+ADM Waivers",SUMIF('C Report'!$A$100:$A$199,'C Report Grouper'!$D13,'C Report'!D$100:D$199)+SUMIF('C Report'!$A$300:$A$399,'C Report Grouper'!$D13,'C Report'!D$300:D$399),SUMIF('C Report'!$A$100:$A$199,'C Report Grouper'!$D13,'C Report'!D$100:D$199)) -> 0 | G13: =IF($D$4="MAP+ADM Waivers",SUMIF('C Report'!$A$100:$A$199,'C Report Grouper'!$D13,'C Report'!E$100:E$199)+SUMIF('C Report'!$A$300:$A$399,'C Report Grouper'!$D13,'C Report'!E$300:E$399),SUMIF('C Report'!$A$100:$A$199,'C Report Grouper'!$D13,'C Report'!E$100:E$199)) -> 0 | H13: =IF($D$4="MAP+ADM Waivers",SUMIF('C Report'!$A$100:$A$199,'C Report Grouper'!$D13,'C Report'!F$100:F$199)+SUMIF('C Report'!$A$300:$A$399,'C Report Grouper'!$D13,'C Report'!F$300:F$399),SUMIF('C Report'!$A$100:$A$199,'C Report Grouper'!$D13,'C Report'!F$100:F$199)) -> 0 | I13: =IF($D$4="MAP+ADM Waivers",SUMIF('C Report'!$A$100:$A$199,'C Report Grouper'!$D13,'C Report'!G$100:G$199)+SUMIF('C Report'!$A$300:$A$399,'C Report Grouper'!$D13,'C Report'!G$300:G$399),SUMIF('C Report'!$A$100:$A$199,'C Report Grouper'!$D13,'C Report'!G$100:G$199)) -> -4601 | J13: =IF($D$4="MAP+ADM Waivers",SUMIF('C Report'!$A$100:$A$199,'C Report Grouper'!$D13,'C Report'!H$100:H$199)+SUMIF('C Report'!$A$300:$A$399,'C Report Grouper'!$D13,'C Report'!H$300:H$399),SUMIF('C Report'!$A$100:$A$199,'C Report Grouper'!$D13,'C Report'!H$100:H$199)) -> 15036 | K13: =IF($D$4="MAP+ADM Waivers",SUMIF('C Report'!$A$100:$A$199,'C Report Grouper'!$D13,'C Report'!I$100:I$199)+SUMIF('C Report'!$A$300:$A$399,'C Report Grouper'!$D13,'C Report'!I$300:I$399),SUMIF('C Report'!$A$100:$A$199,'C Report Grouper'!$D13,'C Report'!I$100:I$199)) -> 155368 | L13: =IF($D$4="MAP+ADM Waivers",SUMIF('C Report'!$A$100:$A$199,'C Report Grouper'!$D13,'C Report'!J$100:J$199)+SUMIF('C Report'!$A$300:$A$399,'C Report Grouper'!$D13,'C Report'!J$300:J$399),SUMIF('C Report'!$A$100:$A$199,'C Report Grouper'!$D13,'C Report'!J$100:J$199)) -> 6151729 | M13: =IF($D$4="MAP+ADM Waivers",SUMIF('C Report'!$A$100:$A$199,'C Report Grouper'!$D13,'C Report'!K$100:K$199)+SUMIF('C Report'!$A$300:$A$399,'C Report Grouper'!$D13,'C Report'!K$300:K$399),SUMIF('C Report'!$A$100:$A$199,'C Report Grouper'!$D13,'C Report'!K$100:K$199)) -> 62693624 | N13: =IF($D$4="MAP+ADM Waivers",SUMIF('C Report'!$A$100:$A$199,'C Report Grouper'!$D13,'C Report'!L$100:L$199)+SUMIF('C Report'!$A$300:$A$399,'C Report Grouper'!$D13,'C Report'!L$300:L$399),SUMIF('C Report'!$A$100:$A$199,'C Report Grouper'!$D13,'C Report'!L$100:L$199)) -> 48183994 | O13: =IF($D$4="MAP+ADM Waivers",SUMIF('C Report'!$A$100:$A$199,'C Report Grouper'!$D13,'C Report'!M$100:M$199)+SUMIF('C Report'!$A$300:$A$399,'C Report Grouper'!$D13,'C Report'!M$300:M$399),SUMIF('C Report'!$A$100:$A$199,'C Report Grouper'!$D13,'C Report'!M$100:M$199)) -> 43957808 | P13: =IF($D$4="MAP+ADM Waivers",SUMIF('C Report'!$A$100:$A$199,'C Report Grouper'!$D13,'C Report'!N$100:N$199)+SUMIF('C Report'!$A$300:$A$399,'C Report Grouper'!$D13,'C Report'!N$300:N$399),SUMIF('C Report'!$A$100:$A$199,'C Report Grouper'!$D13,'C Report'!N$100:N$199)) -> 57952008 | Q13: =IF($D$4="MAP+ADM Waivers",SUMIF('C Report'!$A$100:$A$199,'C Report Grouper'!$D13,'C Report'!O$100:O$199)+SUMIF('C Report'!$A$300:$A$399,'C Report Grouper'!$D13,'C Report'!O$300:O$399),SUMIF('C Report'!$A$100:$A$199,'C Report Grouper'!$D13,'C Report'!O$100:O$199)) -> 52179853 | R13: =IF($D$4="MAP+ADM Waivers",SUMIF('C Report'!$A$100:$A$199,'C Report Grouper'!$D13,'C Report'!P$100:P$199)+SUMIF('C Report'!$A$300:$A$399,'C Report Grouper'!$D13,'C Report'!P$300:P$399),SUMIF('C Report'!$A$100:$A$199,'C Report Grouper'!$D13,'C Report'!P$100:P$199)) -> 52587197 | S13: =IF($D$4="MAP+ADM Waivers",SUMIF('C Report'!$A$100:$A$199,'C Report Grouper'!$D13,'C Report'!Q$100:Q$199)+SUMIF('C Report'!$A$300:$A$399,'C Report Grouper'!$D13,'C Report'!Q$300:Q$399),SUMIF('C Report'!$A$100:$A$199,'C Report Grouper'!$D13,'C Report'!Q$100:Q$199)) -> 49658053 | T13: =IF($D$4="MAP+ADM Waivers",SUMIF('C Report'!$A$100:$A$199,'C Report Grouper'!$D13,'C Report'!R$100:R$199)+SUMIF('C Report'!$A$300:$A$399,'C Report Grouper'!$D13,'C Report'!R$300:R$399),SUMIF('C Report'!$A$100:$A$199,'C Report Grouper'!$D13,'C Report'!R$100:R$199)) -> 51171804 | U13: =IF($D$4="MAP+ADM Waivers",SUMIF('C Report'!$A$100:$A$199,'C Report Grouper'!$D13,'C Report'!S$100:S$199)+SUMIF('C Report'!$A$300:$A$399,'C Report Grouper'!$D13,'C Report'!S$300:S$399),SUMIF('C Report'!$A$100:$A$199,'C Report Grouper'!$D13,'C Report'!S$100:S$199)) -> 52386763 | V13: =IF($D$4="MAP+ADM Waivers",SUMIF('C Report'!$A$100:$A$199,'C Report Grouper'!$D13,'C Report'!T$100:T$199)+SUMIF('C Report'!$A$300:$A$399,'C Report Grouper'!$D13,'C Report'!T$300:T$399),SUMIF('C Report'!$A$100:$A$199,'C Report Grouper'!$D13,'C Report'!T$100:T$199)) -> 46440492 | W13: =IF($D$4="MAP+ADM Waivers",SUMIF('C Report'!$A$100:$A$199,'C Report Grouper'!$D13,'C Report'!U$100:U$199)+SUMIF('C Report'!$A$300:$A$399,'C Report Grouper'!$D13,'C Report'!U$300:U$399),SUMIF('C Report'!$A$100:$A$199,'C Report Grouper'!$D13,'C Report'!U$100:U$199)) -> 53769289 | X13: =IF($D$4="MAP+ADM Waivers",SUMIF('C Report'!$A$100:$A$199,'C Report Grouper'!$D13,'C Report'!V$100:V$199)+SUMIF('C Report'!$A$300:$A$399,'C Report Grouper'!$D13,'C Report'!V$300:V$399),SUMIF('C Report'!$A$100:$A$199,'C Report Grouper'!$D13,'C Report'!V$100:V$199)) -> 58826270 | Y13: =IF($D$4="MAP+ADM Waivers",SUMIF('C Report'!$A$100:$A$199,'C Report Grouper'!$D13,'C Report'!W$100:W$199)+SUMIF('C Report'!$A$300:$A$399,'C Report Grouper'!$D13,'C Report'!W$300:W$399),SUMIF('C Report'!$A$100:$A$199,'C Report Grouper'!$D13,'C Report'!W$100:W$199)) -> 55836760 | Z13: =IF($D$4="MAP+ADM Waivers",SUMIF('C Report'!$A$100:$A$199,'C Report Grouper'!$D13,'C Report'!X$100:X$199)+SUMIF('C Report'!$A$300:$A$399,'C Report Grouper'!$D13,'C Report'!X$300:X$399),SUMIF('C Report'!$A$100:$A$199,'C Report Grouper'!$D13,'C Report'!X$100:X$199)) -> 60198685 | AA13: =IF($D$4="MAP+ADM Waivers",SUMIF('C Report'!$A$100:$A$199,'C Report Grouper'!$D13,'C Report'!Y$100:Y$199)+SUMIF('C Report'!$A$300:$A$399,'C Report Grouper'!$D13,'C Report'!Y$300:Y$399),SUMIF('C Report'!$A$100:$A$199,'C Report Grouper'!$D13,'C Report'!Y$100:Y$199)) -> 62724513 | AB13: =IF($D$4="MAP+ADM Waivers",SUMIF('C Report'!$A$100:$A$199,'C Report Grouper'!$D13,'C Report'!Z$100:Z$199)+SUMIF('C Report'!$A$300:$A$399,'C Report Grouper'!$D13,'C Report'!Z$300:Z$399),SUMIF('C Report'!$A$100:$A$199,'C Report Grouper'!$D13,'C Report'!Z$100:Z$199)) -> 12671197 | AC13: =IF($D$4="MAP+ADM Waivers",SUMIF('C Report'!$A$100:$A$199,'C Report Grouper'!$D13,'C Report'!AA$100:AA$199)+SUMIF('C Report'!$A$300:$A$399,'C Report Grouper'!$D13,'C Report'!AA$300:AA$399),SUMIF('C Report'!$A$100:$A$199,'C Report Grouper'!$D13,'C Report'!AA$100:AA$199)) -> 0 | AD13: =IF($D$4="MAP+ADM Waivers",SUMIF('C Report'!$A$100:$A$199,'C Report Grouper'!$D13,'C Report'!AB$100:AB$199)+SUMIF('C Report'!$A$300:$A$399,'C Report Grouper'!$D13,'C Report'!AB$300:AB$399),SUMIF('C Report'!$A$100:$A$199,'C Report Grouper'!$D13,'C Report'!AB$100:AB$199)) -> 0 | AE13: =IF($D$4="MAP+ADM Waivers",SUMIF('C Report'!$A$100:$A$199,'C Report Grouper'!$D13,'C Report'!AC$100:AC$199)+SUMIF('C Report'!$A$300:$A$399,'C Report Grouper'!$D13,'C Report'!AC$300:AC$399),SUMIF('C Report'!$A$100:$A$199,'C Report Grouper'!$D13,'C Report'!AC$100:AC$199)) -> 0 | AF13: =IF($D$4="MAP+ADM Waivers",SUMIF('C Report'!$A$100:$A$199,'C Report Grouper'!$D13,'C Report'!AD$100:AD$199)+SUMIF('C Report'!$A$300:$A$399,'C Report Grouper'!$D13,'C Report'!AD$300:AD$399),SUMIF('C Report'!$A$100:$A$199,'C Report Grouper'!$D13,'C Report'!AD$100:AD$199)) -> 0 | AG13: =IF($D$4="MAP+ADM Waivers",SUMIF('C Report'!$A$100:$A$199,'C Report Grouper'!$D13,'C Report'!AE$100:AE$199)+SUMIF('C Report'!$A$300:$A$399,'C Report Grouper'!$D13,'C Report'!AE$300:AE$399),SUMIF('C Report'!$A$100:$A$199,'C Report Grouper'!$D13,'C Report'!AE$100:AE$199)) -> 0 | AH13: =IF($D$4="MAP+ADM Waivers",SUMIF('C Report'!$A$100:$A$199,'C Report Grouper'!$D13,'C Report'!AF$100:AF$199)+SUMIF('C Report'!$A$300:$A$399,'C Report Grouper'!$D13,'C Report'!AF$300:AF$399),SUMIF('C Report'!$A$100:$A$199,'C Report Grouper'!$D13,'C Report'!AF$100:AF$199)) -> 0
B14: =IFERROR(VLOOKUP(C14,'MEG Def'!$A$7:$B$14,2),"") -> 1902 (r) 2 BCCDP | C14: 5 | D14: MassHealth-BCCTP | E14: =IF($D$4="MAP+ADM Waivers",SUMIF('C Report'!$A$100:$A$199,'C Report Grouper'!$D14,'C Report'!C$100:C$199)+SUMIF('C Report'!$A$300:$A$399,'C Report Grouper'!$D14,'C Report'!C$300:C$399),SUMIF('C Report'!$A$100:$A$199,'C Report Grouper'!$D14,'C Report'!C$100:C$199)) -> 0 | F14: =IF($D$4="MAP+ADM Waivers",SUMIF('C Report'!$A$100:$A$199,'C Report Grouper'!$D14,'C Report'!D$100:D$199)+SUMIF('C Report'!$A$300:$A$399,'C Report Grouper'!$D14,'C Report'!D$300:D$399),SUMIF('C Report'!$A$100:$A$199,'C Report Grouper'!$D14,'C Report'!D$100:D$199)) -> 0 | G14: =IF($D$4="MAP+ADM Waivers",SUMIF('C Report'!$A$100:$A$199,'C Report Grouper'!$D14,'C Report'!E$100:E$199)+SUMIF('C Report'!$A$300:$A$399,'C Report Grouper'!$D14,'C Report'!E$300:E$399),SUMIF('C Report'!$A$100:$A$199,'C Report Grouper'!$D14,'C Report'!E$100:E$199)) -> 0 | H14: =IF($D$4="MAP+ADM Waivers",SUMIF('C Report'!$A$100:$A$199,'C Report Grouper'!$D14,'C Report'!F$100:F$199)+SUMIF('C Report'!$A$300:$A$399,'C Report Grouper'!$D14,'C Report'!F$300:F$399),SUMIF('C Report'!$A$100:$A$199,'C Report Grouper'!$D14,'C Report'!F$100:F$199)) -> 0 | I14: =IF($D$4="MAP+ADM Waivers",SUMIF('C Report'!$A$100:$A$199,'C Report Grouper'!$D14,'C Report'!G$100:G$199)+SUMIF('C Report'!$A$300:$A$399,'C Report Grouper'!$D14,'C Report'!G$300:G$399),SUMIF('C Report'!$A$100:$A$199,'C Report Grouper'!$D14,'C Report'!G$100:G$199)) -> 0 | J14: =IF($D$4="MAP+ADM Waivers",SUMIF('C Report'!$A$100:$A$199,'C Report Grouper'!$D14,'C Report'!H$100:H$199)+SUMIF('C Report'!$A$300:$A$399,'C Report Grouper'!$D14,'C Report'!H$300:H$399),SUMIF('C Report'!$A$100:$A$199,'C Report Grouper'!$D14,'C Report'!H$100:H$199)) -> 0 | K14: =IF($D$4="MAP+ADM Waivers",SUMIF('C Report'!$A$100:$A$199,'C Report Grouper'!$D14,'C Report'!I$100:I$199)+SUMIF('C Report'!$A$300:$A$399,'C Report Grouper'!$D14,'C Report'!I$300:I$399),SUMIF('C Report'!$A$100:$A$199,'C Report Grouper'!$D14,'C Report'!I$100:I$199)) -> 406737 | L14: =IF($D$4="MAP+ADM Waivers",SUMIF('C Report'!$A$100:$A$199,'C Report Grouper'!$D14,'C Report'!J$100:J$199)+SUMIF('C Report'!$A$300:$A$399,'C Report Grouper'!$D14,'C Report'!J$300:J$399),SUMIF('C Report'!$A$100:$A$199,'C Report Grouper'!$D14,'C Report'!J$100:J$199)) -> 2121926 | M14: =IF($D$4="MAP+ADM Waivers",SUMIF('C Report'!$A$100:$A$199,'C Report Grouper'!$D14,'C Report'!K$100:K$199)+SUMIF('C Report'!$A$300:$A$399,'C Report Grouper'!$D14,'C Report'!K$300:K$399),SUMIF('C Report'!$A$100:$A$199,'C Report Grouper'!$D14,'C Report'!K$100:K$199)) -> 4268563 | N14: =IF($D$4="MAP+ADM Waivers",SUMIF('C Report'!$A$100:$A$199,'C Report Grouper'!$D14,'C Report'!L$100:L$199)+SUMIF('C Report'!$A$300:$A$399,'C Report Grouper'!$D14,'C Report'!L$300:L$399),SUMIF('C Report'!$A$100:$A$199,'C Report Grouper'!$D14,'C Report'!L$100:L$199)) -> 4611448 | O14: =IF($D$4="MAP+ADM Waivers",SUMIF('C Report'!$A$100:$A$199,'C Report Grouper'!$D14,'C Report'!M$100:M$199)+SUMIF('C Report'!$A$300:$A$399,'C Report Grouper'!$D14,'C Report'!M$300:M$399),SUMIF('C Report'!$A$100:$A$199,'C Report Grouper'!$D14,'C Report'!M$100:M$199)) -> 3982474 | P14: =IF($D$4="MAP+ADM Waivers",SUMIF('C Report'!$A$100:$A$199,'C Report Grouper'!$D14,'C Report'!N$100:N$199)+SUMIF('C Report'!$A$300:$A$399,'C Report Grouper'!$D14,'C Report'!N$300:N$399),SUMIF('C Report'!$A$100:$A$199,'C Report Grouper'!$D14,'C Report'!N$100:N$199)) -> 4595808 | Q14: =IF($D$4="MAP+ADM Waivers",SUMIF('C Report'!$A$100:$A$199,'C Report Grouper'!$D14,'C Report'!O$100:O$199)+SUMIF('C Report'!$A$300:$A$399,'C Report Grouper'!$D14,'C Report'!O$300:O$399),SUMIF('C Report'!$A$100:$A$199,'C Report Grouper'!$D14,'C Report'!O$100:O$199)) -> 6043172 | R14: =IF($D$4="MAP+ADM Waivers",SUMIF('C Report'!$A$100:$A$199,'C Report Grouper'!$D14,'C Report'!P$100:P$199)+SUMIF('C Report'!$A$300:$A$399,'C Report Grouper'!$D14,'C Report'!P$300:P$399),SUMIF('C Report'!$A$100:$A$199,'C Report Grouper'!$D14,'C Report'!P$100:P$199)) -> 4753489 | S14: =IF($D$4="MAP+ADM Waivers",SUMIF('C Report'!$A$100:$A$199,'C Report Grouper'!$D14,'C Report'!Q$100:Q$199)+SUMIF('C Report'!$A$300:$A$399,'C Report Grouper'!$D14,'C Report'!Q$300:Q$399),SUMIF('C Report'!$A$100:$A$199,'C Report Grouper'!$D14,'C Report'!Q$100:Q$199)) -> 3922931 | T14: =IF($D$4="MAP+ADM Waivers",SUMIF('C Report'!$A$100:$A$199,'C Report Grouper'!$D14,'C Report'!R$100:R$199)+SUMIF('C Report'!$A$300:$A$399,'C Report Grouper'!$D14,'C Report'!R$300:R$399),SUMIF('C Report'!$A$100:$A$199,'C Report Grouper'!$D14,'C Report'!R$100:R$199)) -> 3593595 | U14: =IF($D$4="MAP+ADM Waivers",SUMIF('C Report'!$A$100:$A$199,'C Report Grouper'!$D14,'C Report'!S$100:S$199)+SUMIF('C Report'!$A$300:$A$399,'C Report Grouper'!$D14,'C Report'!S$300:S$399),SUMIF('C Report'!$A$100:$A$199,'C Report Grouper'!$D14,'C Report'!S$100:S$199)) -> 3041734 | V14: =IF($D$4="MAP+ADM Waivers",SUMIF('C Report'!$A$100:$A$199,'C Report Grouper'!$D14,'C Report'!T$100:T$199)+SUMIF('C Report'!$A$300:$A$399,'C Report Grouper'!$D14,'C Report'!T$300:T$399),SUMIF('C Report'!$A$100:$A$199,'C Report Grouper'!$D14,'C Report'!T$100:T$199)) -> 3873604 | W14: =IF($D$4="MAP+ADM Waivers",SUMIF('C Report'!$A$100:$A$199,'C Report Grouper'!$D14,'C Report'!U$100:U$199)+SUMIF('C Report'!$A$300:$A$399,'C Report Grouper'!$D14,'C Report'!U$300:U$399),SUMIF('C Report'!$A$100:$A$199,'C Report Grouper'!$D14,'C Report'!U$100:U$199)) -> 5402585 | X14: =IF($D$4="MAP+ADM Waivers",SUMIF('C Report'!$A$100:$A$199,'C Report Grouper'!$D14,'C Report'!V$100:V$199)+SUMIF('C Report'!$A$300:$A$399,'C Report Grouper'!$D14,'C Report'!V$300:V$399),SUMIF('C Report'!$A$100:$A$199,'C Report Grouper'!$D14,'C Report'!V$100:V$199)) -> 6877141 | Y14: =IF($D$4="MAP+ADM Waivers",SUMIF('C Report'!$A$100:$A$199,'C Report Grouper'!$D14,'C Report'!W$100:W$199)+SUMIF('C Report'!$A$300:$A$399,'C Report Grouper'!$D14,'C Report'!W$300:W$399),SUMIF('C Report'!$A$100:$A$199,'C Report Grouper'!$D14,'C Report'!W$100:W$199)) -> 9791399 | Z14: =IF($D$4="MAP+ADM Waivers",SUMIF('C Report'!$A$100:$A$199,'C Report Grouper'!$D14,'C Report'!X$100:X$199)+SUMIF('C Report'!$A$300:$A$399,'C Report Grouper'!$D14,'C Report'!X$300:X$399),SUMIF('C Report'!$A$100:$A$199,'C Report Grouper'!$D14,'C Report'!X$100:X$199)) -> 13492920 | AA14: =IF($D$4="MAP+ADM Waivers",SUMIF('C Report'!$A$100:$A$199,'C Report Grouper'!$D14,'C Report'!Y$100:Y$199)+SUMIF('C Report'!$A$300:$A$399,'C Report Grouper'!$D14,'C Report'!Y$300:Y$399),SUMIF('C Report'!$A$100:$A$199,'C Report Grouper'!$D14,'C Report'!Y$100:Y$199)) -> 14032126 | AB14: =IF($D$4="MAP+ADM Waivers",SUMIF('C Report'!$A$100:$A$199,'C Report Grouper'!$D14,'C Report'!Z$100:Z$199)+SUMIF('C Report'!$A$300:$A$399,'C Report Grouper'!$D14,'C Report'!Z$300:Z$399),SUMIF('C Report'!$A$100:$A$199,'C Report Grouper'!$D14,'C Report'!Z$100:Z$199)) -> 2719486 | AC14: =IF($D$4="MAP+ADM Waivers",SUMIF('C Report'!$A$100:$A$199,'C Report Grouper'!$D14,'C Report'!AA$100:AA$199)+SUMIF('C Report'!$A$300:$A$399,'C Report Grouper'!$D14,'C Report'!AA$300:AA$399),SUMIF('C Report'!$A$100:$A$199,'C Report Grouper'!$D14,'C Report'!AA$100:AA$199)) -> 0 | AD14: =IF($D$4="MAP+ADM Waivers",SUMIF('C Report'!$A$100:$A$199,'C Report Grouper'!$D14,'C Report'!AB$100:AB$199)+SUMIF('C Report'!$A$300:$A$399,'C Report Grouper'!$D14,'C Report'!AB$300:AB$399),SUMIF('C Report'!$A$100:$A$199,'C Report Grouper'!$D14,'C Report'!AB$100:AB$199)) -> 0 | AE14: =IF($D$4="MAP+ADM Waivers",SUMIF('C Report'!$A$100:$A$199,'C Report Grouper'!$D14,'C Report'!AC$100:AC$199)+SUMIF('C Report'!$A$300:$A$399,'C Report Grouper'!$D14,'C Report'!AC$300:AC$399),SUMIF('C Report'!$A$100:$A$199,'C Report Grouper'!$D14,'C Report'!AC$100:AC$199)) -> 0 | AF14: =IF($D$4="MAP+ADM Waivers",SUMIF('C Report'!$A$100:$A$199,'C Report Grouper'!$D14,'C Report'!AD$100:AD$199)+SUMIF('C Report'!$A$300:$A$399,'C Report Grouper'!$D14,'C Report'!AD$300:AD$399),SUMIF('C Report'!$A$100:$A$199,'C Report Grouper'!$D14,'C Report'!AD$100:AD$199)) -> 0 | AG14: =IF($D$4="MAP+ADM Waivers",SUMIF('C Report'!$A$100:$A$199,'C Report Grouper'!$D14,'C Report'!AE$100:AE$199)+SUMIF('C Report'!$A$300:$A$399,'C Report Grouper'!$D14,'C Report'!AE$300:AE$399),SUMIF('C Report'!$A$100:$A$199,'C Report Grouper'!$D14,'C Report'!AE$100:AE$199)) -> 0 | AH14: =IF($D$4="MAP+ADM Waivers",SUMIF('C Report'!$A$100:$A$199,'C Report Grouper'!$D14,'C Report'!AF$100:AF$199)+SUMIF('C Report'!$A$300:$A$399,'C Report Grouper'!$D14,'C Report'!AF$300:AF$399),SUMIF('C Report'!$A$100:$A$199,'C Report Grouper'!$D14,'C Report'!AF$100:AF$199)) -> 0
B15: =IFERROR(VLOOKUP(C15,'MEG Def'!$A$7:$B$14,2),"") -> Base Families 21 RO | C15: 6 | D15: Base Fam XXI RO | E15: =IF($D$4="MAP+ADM Waivers",SUMIF('C Report'!$A$100:$A$199,'C Report Grouper'!$D15,'C Report'!C$100:C$199)+SUMIF('C Report'!$A$300:$A$399,'C Report Grouper'!$D15,'C Report'!C$300:C$399),SUMIF('C Report'!$A$100:$A$199,'C Report Grouper'!$D15,'C Report'!C$100:C$199)) -> 0 | F15: =IF($D$4="MAP+ADM Waivers",SUMIF('C Report'!$A$100:$A$199,'C Report Grouper'!$D15,'C Report'!D$100:D$199)+SUMIF('C Report'!$A$300:$A$399,'C Report Grouper'!$D15,'C Report'!D$300:D$399),SUMIF('C Report'!$A$100:$A$199,'C Report Grouper'!$D15,'C Report'!D$100:D$199)) -> 0 | G15: =IF($D$4="MAP+ADM Waivers",SUMIF('C Report'!$A$100:$A$199,'C Report Grouper'!$D15,'C Report'!E$100:E$199)+SUMIF('C Report'!$A$300:$A$399,'C Report Grouper'!$D15,'C Report'!E$300:E$399),SUMIF('C Report'!$A$100:$A$199,'C Report Grouper'!$D15,'C Report'!E$100:E$199)) -> 0 | H15: =IF($D$4="MAP+ADM Waivers",SUMIF('C Report'!$A$100:$A$199,'C Report Grouper'!$D15,'C Report'!F$100:F$199)+SUMIF('C Report'!$A$300:$A$399,'C Report Grouper'!$D15,'C Report'!F$300:F$399),SUMIF('C Report'!$A$100:$A$199,'C Report Grouper'!$D15,'C Report'!F$100:F$199)) -> 0 | I15: =IF($D$4="MAP+ADM Waivers",SUMIF('C Report'!$A$100:$A$199,'C Report Grouper'!$D15,'C Report'!G$100:G$199)+SUMIF('C Report'!$A$300:$A$399,'C Report Grouper'!$D15,'C Report'!G$300:G$399),SUMIF('C Report'!$A$100:$A$199,'C Report Grouper'!$D15,'C Report'!G$100:G$199)) -> 0 | J15: =IF($D$4="MAP+ADM Waivers",SUMIF('C Report'!$A$100:$A$199,'C Report Grouper'!$D15,'C Report'!H$100:H$199)+SUMIF('C Report'!$A$300:$A$399,'C Report Grouper'!$D15,'C Report'!H$300:H$399),SUMIF('C Report'!$A$100:$A$199,'C Report Grouper'!$D15,'C Report'!H$100:H$199)) -> 0 | K15: =IF($D$4="MAP+ADM Waivers",SUMIF('C Report'!$A$100:$A$199,'C Report Grouper'!$D15,'C Report'!I$100:I$199)+SUMIF('C Report'!$A$300:$A$399,'C Report Grouper'!$D15,'C Report'!I$300:I$399),SUMIF('C Report'!$A$100:$A$199,'C Report Grouper'!$D15,'C Report'!I$100:I$199)) -> 0 | L15: =IF($D$4="MAP+ADM Waivers",SUMIF('C Report'!$A$100:$A$199,'C Report Grouper'!$D15,'C Report'!J$100:J$199)+SUMIF('C Report'!$A$300:$A$399,'C Report Grouper'!$D15,'C Report'!J$300:J$399),SUMIF('C Report'!$A$100:$A$199,'C Report Grouper'!$D15,'C Report'!J$100:J$199)) -> 0 | M15: =IF($D$4="MAP+ADM Waivers",SUMIF('C Report'!$A$100:$A$199,'C Report Grouper'!$D15,'C Report'!K$100:K$199)+SUMIF('C Report'!$A$300:$A$399,'C Report Grouper'!$D15,'C Report'!K$300:K$399),SUMIF('C Report'!$A$100:$A$199,'C Report Grouper'!$D15,'C Report'!K$100:K$199)) -> 0 | N15: =IF($D$4="MAP+ADM Waivers",SUMIF('C Report'!$A$100:$A$199,'C Report Grouper'!$D15,'C Report'!L$100:L$199)+SUMIF('C Report'!$A$300:$A$399,'C Report Grouper'!$D15,'C Report'!L$300:L$399),SUMIF('C Report'!$A$100:$A$199,'C Report Grouper'!$D15,'C Report'!L$100:L$199)) -> 0 | O15: =IF($D$4="MAP+ADM Waivers",SUMIF('C Report'!$A$100:$A$199,'C Report Grouper'!$D15,'C Report'!M$100:M$199)+SUMIF('C Report'!$A$300:$A$399,'C Report Grouper'!$D15,'C Report'!M$300:M$399),SUMIF('C Report'!$A$100:$A$199,'C Report Grouper'!$D15,'C Report'!M$100:M$199)) -> 0 | P15: =IF($D$4="MAP+ADM Waivers",SUMIF('C Report'!$A$100:$A$199,'C Report Grouper'!$D15,'C Report'!N$100:N$199)+SUMIF('C Report'!$A$300:$A$399,'C Report Grouper'!$D15,'C Report'!N$300:N$399),SUMIF('C Report'!$A$100:$A$199,'C Report Grouper'!$D15,'C Report'!N$100:N$199)) -> 0 | Q15: =IF($D$4="MAP+ADM Waivers",SUMIF('C Report'!$A$100:$A$199,'C Report Grouper'!$D15,'C Report'!O$100:O$199)+SUMIF('C Report'!$A$300:$A$399,'C Report Grouper'!$D15,'C Report'!O$300:O$399),SUMIF('C Report'!$A$100:$A$199,'C Report Grouper'!$D15,'C Report'!O$100:O$199)) -> 0 | R15: =IF($D$4="MAP+ADM Waivers",SUMIF('C Report'!$A$100:$A$199,'C Report Grouper'!$D15,'C Report'!P$100:P$199)+SUMIF('C Report'!$A$300:$A$399,'C Report Grouper'!$D15,'C Report'!P$300:P$399),SUMIF('C Report'!$A$100:$A$199,'C Report Grouper'!$D15,'C Report'!P$100:P$199)) -> 0 | S15: =IF($D$4="MAP+ADM Waivers",SUMIF('C Report'!$A$100:$A$199,'C Report Grouper'!$D15,'C Report'!Q$100:Q$199)+SUMIF('C Report'!$A$300:$A$399,'C Report Grouper'!$D15,'C Report'!Q$300:Q$399),SUMIF('C Report'!$A$100:$A$199,'C Report Grouper'!$D15,'C Report'!Q$100:Q$199)) -> 0 | T15: =IF($D$4="MAP+ADM Waivers",SUMIF('C Report'!$A$100:$A$199,'C Report Grouper'!$D15,'C Report'!R$100:R$199)+SUMIF('C Report'!$A$300:$A$399,'C Report Grouper'!$D15,'C Report'!R$300:R$399),SUMIF('C Report'!$A$100:$A$199,'C Report Grouper'!$D15,'C Report'!R$100:R$199)) -> 0 | U15: =IF($D$4="MAP+ADM Waivers",SUMIF('C Report'!$A$100:$A$199,'C Report Grouper'!$D15,'C Report'!S$100:S$199)+SUMIF('C Report'!$A$300:$A$399,'C Report Grouper'!$D15,'C Report'!S$300:S$399),SUMIF('C Report'!$A$100:$A$199,'C Report Grouper'!$D15,'C Report'!S$100:S$199)) -> 0 | V15: =IF($D$4="MAP+ADM Waivers",SUMIF('C Report'!$A$100:$A$199,'C Report Grouper'!$D15,'C Report'!T$100:T$199)+SUMIF('C Report'!$A$300:$A$399,'C Report Grouper'!$D15,'C Report'!T$300:T$399),SUMIF('C Report'!$A$100:$A$199,'C Report Grouper'!$D15,'C Report'!T$100:T$199)) -> 0 | W15: =IF($D$4="MAP+ADM Waivers",SUMIF('C Report'!$A$100:$A$199,'C Report Grouper'!$D15,'C Report'!U$100:U$199)+SUMIF('C Report'!$A$300:$A$399,'C Report Grouper'!$D15,'C Report'!U$300:U$399),SUMIF('C Report'!$A$100:$A$199,'C Report Grouper'!$D15,'C Report'!U$100:U$199)) -> 0 | X15: =IF($D$4="MAP+ADM Waivers",SUMIF('C Report'!$A$100:$A$199,'C Report Grouper'!$D15,'C Report'!V$100:V$199)+SUMIF('C Report'!$A$300:$A$399,'C Report Grouper'!$D15,'C Report'!V$300:V$399),SUMIF('C Report'!$A$100:$A$199,'C Report Grouper'!$D15,'C Report'!V$100:V$199)) -> 0 | Y15: =IF($D$4="MAP+ADM Waivers",SUMIF('C Report'!$A$100:$A$199,'C Report Grouper'!$D15,'C Report'!W$100:W$199)+SUMIF('C Report'!$A$300:$A$399,'C Report Grouper'!$D15,'C Report'!W$300:W$399),SUMIF('C Report'!$A$100:$A$199,'C Report Grouper'!$D15,'C Report'!W$100:W$199)) -> 0 | Z15: =IF($D$4="MAP+ADM Waivers",SUMIF('C Report'!$A$100:$A$199,'C Report Grouper'!$D15,'C Report'!X$100:X$199)+SUMIF('C Report'!$A$300:$A$399,'C Report Grouper'!$D15,'C Report'!X$300:X$399),SUMIF('C Report'!$A$100:$A$199,'C Report Grouper'!$D15,'C Report'!X$100:X$199)) -> 0 | AA15: =IF($D$4="MAP+ADM Waivers",SUMIF('C Report'!$A$100:$A$199,'C Report Grouper'!$D15,'C Report'!Y$100:Y$199)+SUMIF('C Report'!$A$300:$A$399,'C Report Grouper'!$D15,'C Report'!Y$300:Y$399),SUMIF('C Report'!$A$100:$A$199,'C Report Grouper'!$D15,'C Report'!Y$100:Y$199)) -> 0 | AB15: =IF($D$4="MAP+ADM Waivers",SUMIF('C Report'!$A$100:$A$199,'C Report Grouper'!$D15,'C Report'!Z$100:Z$199)+SUMIF('C Report'!$A$300:$A$399,'C Report Grouper'!$D15,'C Report'!Z$300:Z$399),SUMIF('C Report'!$A$100:$A$199,'C Report Grouper'!$D15,'C Report'!Z$100:Z$199)) -> 0 | AC15: =IF($D$4="MAP+ADM Waivers",SUMIF('C Report'!$A$100:$A$199,'C Report Grouper'!$D15,'C Report'!AA$100:AA$199)+SUMIF('C Report'!$A$300:$A$399,'C Report Grouper'!$D15,'C Report'!AA$300:AA$399),SUMIF('C Report'!$A$100:$A$199,'C Report Grouper'!$D15,'C Report'!AA$100:AA$199)) -> 0 | AD15: =IF($D$4="MAP+ADM Waivers",SUMIF('C Report'!$A$100:$A$199,'C Report Grouper'!$D15,'C Report'!AB$100:AB$199)+SUMIF('C Report'!$A$300:$A$399,'C Report Grouper'!$D15,'C Report'!AB$300:AB$399),SUMIF('C Report'!$A$100:$A$199,'C Report Grouper'!$D15,'C Report'!AB$100:AB$199)) -> 0 | AE15: =IF($D$4="MAP+ADM Waivers",SUMIF('C Report'!$A$100:$A$199,'C Report Grouper'!$D15,'C Report'!AC$100:AC$199)+SUMIF('C Report'!$A$300:$A$399,'C Report Grouper'!$D15,'C Report'!AC$300:AC$399),SUMIF('C Report'!$A$100:$A$199,'C Report Grouper'!$D15,'C Report'!AC$100:AC$199)) -> 0 | AF15: =IF($D$4="MAP+ADM Waivers",SUMIF('C Report'!$A$100:$A$199,'C Report Grouper'!$D15,'C Report'!AD$100:AD$199)+SUMIF('C Report'!$A$300:$A$399,'C Report Grouper'!$D15,'C Report'!AD$300:AD$399),SUMIF('C Report'!$A$100:$A$199,'C Report Grouper'!$D15,'C Report'!AD$100:AD$199)) -> 0 | AG15: =IF($D$4="MAP+ADM Waivers",SUMIF('C Report'!$A$100:$A$199,'C Report Grouper'!$D15,'C Report'!AE$100:AE$199)+SUMIF('C Report'!$A$300:$A$399,'C Report Grouper'!$D15,'C Report'!AE$300:AE$399),SUMIF('C Report'!$A$100:$A$199,'C Report Grouper'!$D15,'C Report'!AE$100:AE$199)) -> 0 | AH15: =IF($D$4="MAP+ADM Waivers",SUMIF('C Report'!$A$100:$A$199,'C Report Grouper'!$D15,'C Report'!AF$100:AF$199)+SUMIF('C Report'!$A$300:$A$399,'C Report Grouper'!$D15,'C Report'!AF$300:AF$399),SUMIF('C Report'!$A$100:$A$199,'C Report Grouper'!$D15,'C Report'!AF$100:AF$199)) -> 0
B16: =IFERROR(VLOOKUP(C16,'MEG Def'!$A$7:$B$14,2),"") -> 1902 (r) 2 RO | C16: 7 | D16: 1902 (r)(2) XXI RO | E16: =IF($D$4="MAP+ADM Waivers",SUMIF('C Report'!$A$100:$A$199,'C Report Grouper'!$D16,'C Report'!C$100:C$199)+SUMIF('C Report'!$A$300:$A$399,'C Report Grouper'!$D16,'C Report'!C$300:C$399),SUMIF('C Report'!$A$100:$A$199,'C Report Grouper'!$D16,'C Report'!C$100:C$199)) -> 0 | F16: =IF($D$4="MAP+ADM Waivers",SUMIF('C Report'!$A$100:$A$199,'C Report Grouper'!$D16,'C Report'!D$100:D$199)+SUMIF('C Report'!$A$300:$A$399,'C Report Grouper'!$D16,'C Report'!D$300:D$399),SUMIF('C Report'!$A$100:$A$199,'C Report Grouper'!$D16,'C Report'!D$100:D$199)) -> 0 | G16: =IF($D$4="MAP+ADM Waivers",SUMIF('C Report'!$A$100:$A$199,'C Report Grouper'!$D16,'C Report'!E$100:E$199)+SUMIF('C Report'!$A$300:$A$399,'C Report Grouper'!$D16,'C Report'!E$300:E$399),SUMIF('C Report'!$A$100:$A$199,'C Report Grouper'!$D16,'C Report'!E$100:E$199)) -> 0 | H16: =IF($D$4="MAP+ADM Waivers",SUMIF('C Report'!$A$100:$A$199,'C Report Grouper'!$D16,'C Report'!F$100:F$199)+SUMIF('C Report'!$A$300:$A$399,'C Report Grouper'!$D16,'C Report'!F$300:F$399),SUMIF('C Report'!$A$100:$A$199,'C Report Grouper'!$D16,'C Report'!F$100:F$199)) -> 0 | I16: =IF($D$4="MAP+ADM Waivers",SUMIF('C Report'!$A$100:$A$199,'C Report Grouper'!$D16,'C Report'!G$100:G$199)+SUMIF('C Report'!$A$300:$A$399,'C Report Grouper'!$D16,'C Report'!G$300:G$399),SUMIF('C Report'!$A$100:$A$199,'C Report Grouper'!$D16,'C Report'!G$100:G$199)) -> 0 | J16: =IF($D$4="MAP+ADM Waivers",SUMIF('C Report'!$A$100:$A$199,'C Report Grouper'!$D16,'C Report'!H$100:H$199)+SUMIF('C Report'!$A$300:$A$399,'C Report Grouper'!$D16,'C Report'!H$300:H$399),SUMIF('C Report'!$A$100:$A$199,'C Report Grouper'!$D16,'C Report'!H$100:H$199)) -> 0 | K16: =IF($D$4="MAP+ADM Waivers",SUMIF('C Report'!$A$100:$A$199,'C Report Grouper'!$D16,'C Report'!I$100:I$199)+SUMIF('C Report'!$A$300:$A$399,'C Report Grouper'!$D16,'C Report'!I$300:I$399),SUMIF('C Report'!$A$100:$A$199,'C Report Grouper'!$D16,'C Report'!I$100:I$199)) -> 0 | L16: =IF($D$4="MAP+ADM Waivers",SUMIF('C Report'!$A$100:$A$199,'C Report Grouper'!$D16,'C Report'!J$100:J$199)+SUMIF('C Report'!$A$300:$A$399,'C Report Grouper'!$D16,'C Report'!J$300:J$399),SUMIF('C Report'!$A$100:$A$199,'C Report Grouper'!$D16,'C Report'!J$100:J$199)) -> 0 | M16: =IF($D$4="MAP+ADM Waivers",SUMIF('C Report'!$A$100:$A$199,'C Report Grouper'!$D16,'C Report'!K$100:K$199)+SUMIF('C Report'!$A$300:$A$399,'C Report Grouper'!$D16,'C Report'!K$300:K$399),SUMIF('C Report'!$A$100:$A$199,'C Report Grouper'!$D16,'C Report'!K$100:K$199)) -> 0 | N16: =IF($D$4="MAP+ADM Waivers",SUMIF('C Report'!$A$100:$A$199,'C Report Grouper'!$D16,'C Report'!L$100:L$199)+SUMIF('C Report'!$A$300:$A$399,'C Report Grouper'!$D16,'C Report'!L$300:L$399),SUMIF('C Report'!$A$100:$A$199,'C Report Grouper'!$D16,'C Report'!L$100:L$199)) -> 0 | O16: =IF($D$4="MAP+ADM Waivers",SUMIF('C Report'!$A$100:$A$199,'C Report Grouper'!$D16,'C Report'!M$100:M$199)+SUMIF('C Report'!$A$300:$A$399,'C Report Grouper'!$D16,'C Report'!M$300:M$399),SUMIF('C Report'!$A$100:$A$199,'C Report Grouper'!$D16,'C Report'!M$100:M$199)) -> 0 | P16: =IF($D$4="MAP+ADM Waivers",SUMIF('C Report'!$A$100:$A$199,'C Report Grouper'!$D16,'C Report'!N$100:N$199)+SUMIF('C Report'!$A$300:$A$399,'C Report Grouper'!$D16,'C Report'!N$300:N$399),SUMIF('C Report'!$A$100:$A$199,'C Report Grouper'!$D16,'C Report'!N$100:N$199)) -> 0 | Q16: =IF($D$4="MAP+ADM Waivers",SUMIF('C Report'!$A$100:$A$199,'C Report Grouper'!$D16,'C Report'!O$100:O$199)+SUMIF('C Report'!$A$300:$A$399,'C Report Grouper'!$D16,'C Report'!O$300:O$399),SUMIF('C Report'!$A$100:$A$199,'C Report Grouper'!$D16,'C Report'!O$100:O$199)) -> 0 | R16: =IF($D$4="MAP+ADM Waivers",SUMIF('C Report'!$A$100:$A$199,'C Report Grouper'!$D16,'C Report'!P$100:P$199)+SUMIF('C Report'!$A$300:$A$399,'C Report Grouper'!$D16,'C Report'!P$300:P$399),SUMIF('C Report'!$A$100:$A$199,'C Report Grouper'!$D16,'C Report'!P$100:P$199)) -> 0 | S16: =IF($D$4="MAP+ADM Waivers",SUMIF('C Report'!$A$100:$A$199,'C Report Grouper'!$D16,'C Report'!Q$100:Q$199)+SUMIF('C Report'!$A$300:$A$399,'C Report Grouper'!$D16,'C Report'!Q$300:Q$399),SUMIF('C Report'!$A$100:$A$199,'C Report Grouper'!$D16,'C Report'!Q$100:Q$199)) -> 0 | T16: =IF($D$4="MAP+ADM Waivers",SUMIF('C Report'!$A$100:$A$199,'C Report Grouper'!$D16,'C Report'!R$100:R$199)+SUMIF('C Report'!$A$300:$A$399,'C Report Grouper'!$D16,'C Report'!R$300:R$399),SUMIF('C Report'!$A$100:$A$199,'C Report Grouper'!$D16,'C Report'!R$100:R$199)) -> 0 | U16: =IF($D$4="MAP+ADM Waivers",SUMIF('C Report'!$A$100:$A$199,'C Report Grouper'!$D16,'C Report'!S$100:S$199)+SUMIF('C Report'!$A$300:$A$399,'C Report Grouper'!$D16,'C Report'!S$300:S$399),SUMIF('C Report'!$A$100:$A$199,'C Report Grouper'!$D16,'C Report'!S$100:S$199)) -> 0 | V16: =IF($D$4="MAP+ADM Waivers",SUMIF('C Report'!$A$100:$A$199,'C Report Grouper'!$D16,'C Report'!T$100:T$199)+SUMIF('C Report'!$A$300:$A$399,'C Report Grouper'!$D16,'C Report'!T$300:T$399),SUMIF('C Report'!$A$100:$A$199,'C Report Grouper'!$D16,'C Report'!T$100:T$199)) -> 0 | W16: =IF($D$4="MAP+ADM Waivers",SUMIF('C Report'!$A$100:$A$199,'C Report Grouper'!$D16,'C Report'!U$100:U$199)+SUMIF('C Report'!$A$300:$A$399,'C Report Grouper'!$D16,'C Report'!U$300:U$399),SUMIF('C Report'!$A$100:$A$199,'C Report Grouper'!$D16,'C Report'!U$100:U$199)) -> 0 | X16: =IF($D$4="MAP+ADM Waivers",SUMIF('C Report'!$A$100:$A$199,'C Report Grouper'!$D16,'C Report'!V$100:V$199)+SUMIF('C Report'!$A$300:$A$399,'C Report Grouper'!$D16,'C Report'!V$300:V$399),SUMIF('C Report'!$A$100:$A$199,'C Report Grouper'!$D16,'C Report'!V$100:V$199)) -> 0 | Y16: =IF($D$4="MAP+ADM Waivers",SUMIF('C Report'!$A$100:$A$199,'C Report Grouper'!$D16,'C Report'!W$100:W$199)+SUMIF('C Report'!$A$300:$A$399,'C Report Grouper'!$D16,'C Report'!W$300:W$399),SUMIF('C Report'!$A$100:$A$199,'C Report Grouper'!$D16,'C Report'!W$100:W$199)) -> 0 | Z16: =IF($D$4="MAP+ADM Waivers",SUMIF('C Report'!$A$100:$A$199,'C Report Grouper'!$D16,'C Report'!X$100:X$199)+SUMIF('C Report'!$A$300:$A$399,'C Report Grouper'!$D16,'C Report'!X$300:X$399),SUMIF('C Report'!$A$100:$A$199,'C Report Grouper'!$D16,'C Report'!X$100:X$199)) -> 0 | AA16: =IF($D$4="MAP+ADM Waivers",SUMIF('C Report'!$A$100:$A$199,'C Report Grouper'!$D16,'C Report'!Y$100:Y$199)+SUMIF('C Report'!$A$300:$A$399,'C Report Grouper'!$D16,'C Report'!Y$300:Y$399),SUMIF('C Report'!$A$100:$A$199,'C Report Grouper'!$D16,'C Report'!Y$100:Y$199)) -> 0 | AB16: =IF($D$4="MAP+ADM Waivers",SUMIF('C Report'!$A$100:$A$199,'C Report Grouper'!$D16,'C Report'!Z$100:Z$199)+SUMIF('C Report'!$A$300:$A$399,'C Report Grouper'!$D16,'C Report'!Z$300:Z$399),SUMIF('C Report'!$A$100:$A$199,'C Report Grouper'!$D16,'C Report'!Z$100:Z$199)) -> 0 | AC16: =IF($D$4="MAP+ADM Waivers",SUMIF('C Report'!$A$100:$A$199,'C Report Grouper'!$D16,'C Report'!AA$100:AA$199)+SUMIF('C Report'!$A$300:$A$399,'C Report Grouper'!$D16,'C Report'!AA$300:AA$399),SUMIF('C Report'!$A$100:$A$199,'C Report Grouper'!$D16,'C Report'!AA$100:AA$199)) -> 0 | AD16: =IF($D$4="MAP+ADM Waivers",SUMIF('C Report'!$A$100:$A$199,'C Report Grouper'!$D16,'C Report'!AB$100:AB$199)+SUMIF('C Report'!$A$300:$A$399,'C Report Grouper'!$D16,'C Report'!AB$300:AB$399),SUMIF('C Report'!$A$100:$A$199,'C Report Grouper'!$D16,'C Report'!AB$100:AB$199)) -> 0 | AE16: =IF($D$4="MAP+ADM Waivers",SUMIF('C Report'!$A$100:$A$199,'C Report Grouper'!$D16,'C Report'!AC$100:AC$199)+SUMIF('C Report'!$A$300:$A$399,'C Report Grouper'!$D16,'C Report'!AC$300:AC$399),SUMIF('C Report'!$A$100:$A$199,'C Report Grouper'!$D16,'C Report'!AC$100:AC$199)) -> 0 | AF16: =IF($D$4="MAP+ADM Waivers",SUMIF('C Report'!$A$100:$A$199,'C Report Grouper'!$D16,'C Report'!AD$100:AD$199)+SUMIF('C Report'!$A$300:$A$399,'C Report Grouper'!$D16,'C Report'!AD$300:AD$399),SUMIF('C Report'!$A$100:$A$199,'C Report Grouper'!$D16,'C Report'!AD$100:AD$199)) -> 0 | AG16: =IF($D$4="MAP+ADM Waivers",SUMIF('C Report'!$A$100:$A$199,'C Report Grouper'!$D16,'C Report'!AE$100:AE$199)+SUMIF('C Report'!$A$300:$A$399,'C Report Grouper'!$D16,'C Report'!AE$300:AE$399),SUMIF('C Report'!$A$100:$A$199,'C Report Grouper'!$D16,'C Report'!AE$100:AE$199)) -> 0 | AH16: =IF($D$4="MAP+ADM Waivers",SUMIF('C Report'!$A$100:$A$199,'C Report Grouper'!$D16,'C Report'!AF$100:AF$199)+SUMIF('C Report'!$A$300:$A$399,'C Report Grouper'!$D16,'C Report'!AF$300:AF$399),SUMIF('C Report'!$A$100:$A$199,'C Report Grouper'!$D16,'C Report'!AF$100:AF$199)) -> 0
E17: =IF($D$4="MAP+ADM Waivers",SUMIF('C Report'!$A$100:$A$199,'C Report Grouper'!$D17,'C Report'!C$100:C$199)+SUMIF('C Report'!$A$300:$A$399,'C Report Grouper'!$D17,'C Report'!C$300:C$399),SUMIF('C Report'!$A$100:$A$199,'C Report Grouper'!$D17,'C Report'!C$100:C$199)) -> 0 | F17: =IF($D$4="MAP+ADM Waivers",SUMIF('C Report'!$A$100:$A$199,'C Report Grouper'!$D17,'C Report'!D$100:D$199)+SUMIF('C Report'!$A$300:$A$399,'C Report Grouper'!$D17,'C Report'!D$300:D$399),SUMIF('C Report'!$A$100:$A$199,'C Report Grouper'!$D17,'C Report'!D$100:D$199)) -> 0 | G17: =IF($D$4="MAP+ADM Waivers",SUMIF('C Report'!$A$100:$A$199,'C Report Grouper'!$D17,'C Report'!E$100:E$199)+SUMIF('C Report'!$A$300:$A$399,'C Report Grouper'!$D17,'C Report'!E$300:E$399),SUMIF('C Report'!$A$100:$A$199,'C Report Grouper'!$D17,'C Report'!E$100:E$199)) -> 0 | H17: =IF($D$4="MAP+ADM Waivers",SUMIF('C Report'!$A$100:$A$199,'C Report Grouper'!$D17,'C Report'!F$100:F$199)+SUMIF('C Report'!$A$300:$A$399,'C Report Grouper'!$D17,'C Report'!F$300:F$399),SUMIF('C Report'!$A$100:$A$199,'C Report Grouper'!$D17,'C Report'!F$100:F$199)) -> 0 | I17: =IF($D$4="MAP+ADM Waivers",SUMIF('C Report'!$A$100:$A$199,'C Report Grouper'!$D17,'C Report'!G$100:G$199)+SUMIF('C Report'!$A$300:$A$399,'C Report Grouper'!$D17,'C Report'!G$300:G$399),SUMIF('C Report'!$A$100:$A$199,'C Report Grouper'!$D17,'C Report'!G$100:G$199)) -> 0 | J17: =IF($D$4="MAP+ADM Waivers",SUMIF('C Report'!$A$100:$A$199,'C Report Grouper'!$D17,'C Report'!H$100:H$199)+SUMIF('C Report'!$A$300:$A$399,'C Report Grouper'!$D17,'C Report'!H$300:H$399),SUMIF('C Report'!$A$100:$A$199,'C Report Grouper'!$D17,'C Report'!H$100:H$199)) -> 0 | K17: =IF($D$4="MAP+ADM Waivers",SUMIF('C Report'!$A$100:$A$199,'C Report Grouper'!$D17,'C Report'!I$100:I$199)+SUMIF('C Report'!$A$300:$A$399,'C Report Grouper'!$D17,'C Report'!I$300:I$399),SUMIF('C Report'!$A$100:$A$199,'C Report Grouper'!$D17,'C Report'!I$100:I$199)) -> 0 | L17: =IF($D$4="MAP+ADM Waivers",SUMIF('C Report'!$A$100:$A$199,'C Report Grouper'!$D17,'C Report'!J$100:J$199)+SUMIF('C Report'!$A$300:$A$399,'C Report Grouper'!$D17,'C Report'!J$300:J$399),SUMIF('C Report'!$A$100:$A$199,'C Report Grouper'!$D17,'C Report'!J$100:J$199)) -> 0 | M17: =IF($D$4="MAP+ADM Waivers",SUMIF('C Report'!$A$100:$A$199,'C Report Grouper'!$D17,'C Report'!K$100:K$199)+SUMIF('C Report'!$A$300:$A$399,'C Report Grouper'!$D17,'C Report'!K$300:K$399),SUMIF('C Report'!$A$100:$A$199,'C Report Grouper'!$D17,'C Report'!K$100:K$199)) -> 0 | N17: =IF($D$4="MAP+ADM Waivers",SUMIF('C Report'!$A$100:$A$199,'C Report Grouper'!$D17,'C Report'!L$100:L$199)+SUMIF('C Report'!$A$300:$A$399,'C Report Grouper'!$D17,'C Report'!L$300:L$399),SUMIF('C Report'!$A$100:$A$199,'C Report Grouper'!$D17,'C Report'!L$100:L$199)) -> 0 | O17: =IF($D$4="MAP+ADM Waivers",SUMIF('C Report'!$A$100:$A$199,'C Report Grouper'!$D17,'C Report'!M$100:M$199)+SUMIF('C Report'!$A$300:$A$399,'C Report Grouper'!$D17,'C Report'!M$300:M$399),SUMIF('C Report'!$A$100:$A$199,'C Report Grouper'!$D17,'C Report'!M$100:M$199)) -> 0 | P17: =IF($D$4="MAP+ADM Waivers",SUMIF('C Report'!$A$100:$A$199,'C Report Grouper'!$D17,'C Report'!N$100:N$199)+SUMIF('C Report'!$A$300:$A$399,'C Report Grouper'!$D17,'C Report'!N$300:N$399),SUMIF('C Report'!$A$100:$A$199,'C Report Grouper'!$D17,'C Report'!N$100:N$199)) -> 0 | Q17: =IF($D$4="MAP+ADM Waivers",SUMIF('C Report'!$A$100:$A$199,'C Report Grouper'!$D17,'C Report'!O$100:O$199)+SUMIF('C Report'!$A$300:$A$399,'C Report Grouper'!$D17,'C Report'!O$300:O$399),SUMIF('C Report'!$A$100:$A$199,'C Report Grouper'!$D17,'C Report'!O$100:O$199)) -> 0 | R17: =IF($D$4="MAP+ADM Waivers",SUMIF('C Report'!$A$100:$A$199,'C Report Grouper'!$D17,'C Report'!P$100:P$199)+SUMIF('C Report'!$A$300:$A$399,'C Report Grouper'!$D17,'C Report'!P$300:P$399),SUMIF('C Report'!$A$100:$A$199,'C Report Grouper'!$D17,'C Report'!P$100:P$199)) -> 0 | S17: =IF($D$4="MAP+ADM Waivers",SUMIF('C Report'!$A$100:$A$199,'C Report Grouper'!$D17,'C Report'!Q$100:Q$199)+SUMIF('C Report'!$A$300:$A$399,'C Report Grouper'!$D17,'C Report'!Q$300:Q$399),SUMIF('C Report'!$A$100:$A$199,'C Report Grouper'!$D17,'C Report'!Q$100:Q$199)) -> 0 | T17: =IF($D$4="MAP+ADM Waivers",SUMIF('C Report'!$A$100:$A$199,'C Report Grouper'!$D17,'C Report'!R$100:R$199)+SUMIF('C Report'!$A$300:$A$399,'C Report Grouper'!$D17,'C Report'!R$300:R$399),SUMIF('C Report'!$A$100:$A$199,'C Report Grouper'!$D17,'C Report'!R$100:R$199)) -> 0 | U17: =IF($D$4="MAP+ADM Waivers",SUMIF('C Report'!$A$100:$A$199,'C Report Grouper'!$D17,'C Report'!S$100:S$199)+SUMIF('C Report'!$A$300:$A$399,'C Report Grouper'!$D17,'C Report'!S$300:S$399),SUMIF('C Report'!$A$100:$A$199,'C Report Grouper'!$D17,'C Report'!S$100:S$199)) -> 0 | V17: =IF($D$4="MAP+ADM Waivers",SUMIF('C Report'!$A$100:$A$199,'C Report Grouper'!$D17,'C Report'!T$100:T$199)+SUMIF('C Report'!$A$300:$A$399,'C Report Grouper'!$D17,'C Report'!T$300:T$399),SUMIF('C Report'!$A$100:$A$199,'C Report Grouper'!$D17,'C Report'!T$100:T$199)) -> 0 | W17: =IF($D$4="MAP+ADM Waivers",SUMIF('C Report'!$A$100:$A$199,'C Report Grouper'!$D17,'C Report'!U$100:U$199)+SUMIF('C Report'!$A$300:$A$399,'C Report Grouper'!$D17,'C Report'!U$300:U$399),SUMIF('C Report'!$A$100:$A$199,'C Report Grouper'!$D17,'C Report'!U$100:U$199)) -> 0 | X17: =IF($D$4="MAP+ADM Waivers",SUMIF('C Report'!$A$100:$A$199,'C Report Grouper'!$D17,'C Report'!V$100:V$199)+SUMIF('C Report'!$A$300:$A$399,'C Report Grouper'!$D17,'C Report'!V$300:V$399),SUMIF('C Report'!$A$100:$A$199,'C Report Grouper'!$D17,'C Report'!V$100:V$199)) -> 0 | Y17: =IF($D$4="MAP+ADM Waivers",SUMIF('C Report'!$A$100:$A$199,'C Report Grouper'!$D17,'C Report'!W$100:W$199)+SUMIF('C Report'!$A$300:$A$399,'C Report Grouper'!$D17,'C Report'!W$300:W$399),SUMIF('C Report'!$A$100:$A$199,'C Report Grouper'!$D17,'C Report'!W$100:W$199)) -> 0 | Z17: =IF($D$4="MAP+ADM Waivers",SUMIF('C Report'!$A$100:$A$199,'C Report Grouper'!$D17,'C Report'!X$100:X$199)+SUMIF('C Report'!$A$300:$A$399,'C Report Grouper'!$D17,'C Report'!X$300:X$399),SUMIF('C Report'!$A$100:$A$199,'C Report Grouper'!$D17,'C Report'!X$100:X$199)) -> 0 | AA17: =IF($D$4="MAP+ADM Waivers",SUMIF('C Report'!$A$100:$A$199,'C Report Grouper'!$D17,'C Report'!Y$100:Y$199)+SUMIF('C Report'!$A$300:$A$399,'C Report Grouper'!$D17,'C Report'!Y$300:Y$399),SUMIF('C Report'!$A$100:$A$199,'C Report Grouper'!$D17,'C Report'!Y$100:Y$199)) -> 0 | AB17: =IF($D$4="MAP+ADM Waivers",SUMIF('C Report'!$A$100:$A$199,'C Report Grouper'!$D17,'C Report'!Z$100:Z$199)+SUMIF('C Report'!$A$300:$A$399,'C Report Grouper'!$D17,'C Report'!Z$300:Z$399),SUMIF('C Report'!$A$100:$A$199,'C Report Grouper'!$D17,'C Report'!Z$100:Z$199)) -> 0 | AC17: =IF($D$4="MAP+ADM Waivers",SUMIF('C Report'!$A$100:$A$199,'C Report Grouper'!$D17,'C Report'!AA$100:AA$199)+SUMIF('C Report'!$A$300:$A$399,'C Report Grouper'!$D17,'C Report'!AA$300:AA$399),SUMIF('C Report'!$A$100:$A$199,'C Report Grouper'!$D17,'C Report'!AA$100:AA$199)) -> 0 | AD17: =IF($D$4="MAP+ADM Waivers",SUMIF('C Report'!$A$100:$A$199,'C Report Grouper'!$D17,'C Report'!AB$100:AB$199)+SUMIF('C Report'!$A$300:$A$399,'C Report Grouper'!$D17,'C Report'!AB$300:AB$399),SUMIF('C Report'!$A$100:$A$199,'C Report Grouper'!$D17,'C Report'!AB$100:AB$199)) -> 0 | AE17: =IF($D$4="MAP+ADM Waivers",SUMIF('C Report'!$A$100:$A$199,'C Report Grouper'!$D17,'C Report'!AC$100:AC$199)+SUMIF('C Report'!$A$300:$A$399,'C Report Grouper'!$D17,'C Report'!AC$300:AC$399),SUMIF('C Report'!$A$100:$A$199,'C Report Grouper'!$D17,'C Report'!AC$100:AC$199)) -> 0 | AF17: =IF($D$4="MAP+ADM Waivers",SUMIF('C Report'!$A$100:$A$199,'C Report Grouper'!$D17,'C Report'!AD$100:AD$199)+SUMIF('C Report'!$A$300:$A$399,'C Report Grouper'!$D17,'C Report'!AD$300:AD$399),SUMIF('C Report'!$A$100:$A$199,'C Report Grouper'!$D17,'C Report'!AD$100:AD$199)) -> 0 | AG17: =IF($D$4="MAP+ADM Waivers",SUMIF('C Report'!$A$100:$A$199,'C Report Grouper'!$D17,'C Report'!AE$100:AE$199)+SUMIF('C Report'!$A$300:$A$399,'C Report Grouper'!$D17,'C Report'!AE$300:AE$399),SUMIF('C Report'!$A$100:$A$199,'C Report Grouper'!$D17,'C Report'!AE$100:AE$199)) -> 0 | AH17: =IF($D$4="MAP+ADM Waivers",SUMIF('C Report'!$A$100:$A$199,'C Report Grouper'!$D17,'C Report'!AF$100:AF$199)+SUMIF('C Report'!$A$300:$A$399,'C Report Grouper'!$D17,'C Report'!AF$300:AF$399),SUMIF('C Report'!$A$100:$A$199,'C Report Grouper'!$D17,'C Report'!AF$100:AF$199)) -> 0
B18: Medicaid Aggregate | E18: =IF($D$4="MAP+ADM Waivers",SUMIF('C Report'!$A$100:$A$199,'C Report Grouper'!$D18,'C Report'!C$100:C$199)+SUMIF('C Report'!$A$300:$A$399,'C Report Grouper'!$D18,'C Report'!C$300:C$399),SUMIF('C Report'!$A$100:$A$199,'C Report Grouper'!$D18,'C Report'!C$100:C$199)) -> 0 | F18: =IF($D$4="MAP+ADM Waivers",SUMIF('C Report'!$A$100:$A$199,'C Report Grouper'!$D18,'C Report'!D$100:D$199)+SUMIF('C Report'!$A$300:$A$399,'C Report Grouper'!$D18,'C Report'!D$300:D$399),SUMIF('C Report'!$A$100:$A$199,'C Report Grouper'!$D18,'C Report'!D$100:D$199)) -> 0 | G18: =IF($D$4="MAP+ADM Waivers",SUMIF('C Report'!$A$100:$A$199,'C Report Grouper'!$D18,'C Report'!E$100:E$199)+SUMIF('C Report'!$A$300:$A$399,'C Report Grouper'!$D18,'C Report'!E$300:E$399),SUMIF('C Report'!$A$100:$A$199,'C Report Grouper'!$D18,'C Report'!E$100:E$199)) -> 0 | H18: =IF($D$4="MAP+ADM Waivers",SUMIF('C Report'!$A$100:$A$199,'C Report Grouper'!$D18,'C Report'!F$100:F$199)+SUMIF('C Report'!$A$300:$A$399,'C Report Grouper'!$D18,'C Report'!F$300:F$399),SUMIF('C Report'!$A$100:$A$199,'C Report Grouper'!$D18,'C Report'!F$100:F$199)) -> 0 | I18: =IF($D$4="MAP+ADM Waivers",SUMIF('C Report'!$A$100:$A$199,'C Report Grouper'!$D18,'C Report'!G$100:G$199)+SUMIF('C Report'!$A$300:$A$399,'C Report Grouper'!$D18,'C Report'!G$300:G$399),SUMIF('C Report'!$A$100:$A$199,'C Report Grouper'!$D18,'C Report'!G$100:G$199)) -> 0 | J18: =IF($D$4="MAP+ADM Waivers",SUMIF('C Report'!$A$100:$A$199,'C Report Grouper'!$D18,'C Report'!H$100:H$199)+SUMIF('C Report'!$A$300:$A$399,'C Report Grouper'!$D18,'C Report'!H$300:H$399),SUMIF('C Report'!$A$100:$A$199,'C Report Grouper'!$D18,'C Report'!H$100:H$199)) -> 0 | K18: =IF($D$4="MAP+ADM Waivers",SUMIF('C Report'!$A$100:$A$199,'C Report Grouper'!$D18,'C Report'!I$100:I$199)+SUMIF('C Report'!$A$300:$A$399,'C Report Grouper'!$D18,'C Report'!I$300:I$399),SUMIF('C Report'!$A$100:$A$199,'C Report Grouper'!$D18,'C Report'!I$100:I$199)) -> 0 | L18: =IF($D$4="MAP+ADM Waivers",SUMIF('C Report'!$A$100:$A$199,'C Report Grouper'!$D18,'C Report'!J$100:J$199)+SUMIF('C Report'!$A$300:$A$399,'C Report Grouper'!$D18,'C Report'!J$300:J$399),SUMIF('C Report'!$A$100:$A$199,'C Report Grouper'!$D18,'C Report'!J$100:J$199)) -> 0 | M18: =IF($D$4="MAP+ADM Waivers",SUMIF('C Report'!$A$100:$A$199,'C Report Grouper'!$D18,'C Report'!K$100:K$199)+SUMIF('C Report'!$A$300:$A$399,'C Report Grouper'!$D18,'C Report'!K$300:K$399),SUMIF('C Report'!$A$100:$A$199,'C Report Grouper'!$D18,'C Report'!K$100:K$199)) -> 0 | N18: =IF($D$4="MAP+ADM Waivers",SUMIF('C Report'!$A$100:$A$199,'C Report Grouper'!$D18,'C Report'!L$100:L$199)+SUMIF('C Report'!$A$300:$A$399,'C Report Grouper'!$D18,'C Report'!L$300:L$399),SUMIF('C Report'!$A$100:$A$199,'C Report Grouper'!$D18,'C Report'!L$100:L$199)) -> 0 | O18: =IF($D$4="MAP+ADM Waivers",SUMIF('C Report'!$A$100:$A$199,'C Report Grouper'!$D18,'C Report'!M$100:M$199)+SUMIF('C Report'!$A$300:$A$399,'C Report Grouper'!$D18,'C Report'!M$300:M$399),SUMIF('C Report'!$A$100:$A$199,'C Report Grouper'!$D18,'C Report'!M$100:M$199)) -> 0 | P18: =IF($D$4="MAP+ADM Waivers",SUMIF('C Report'!$A$100:$A$199,'C Report Grouper'!$D18,'C Report'!N$100:N$199)+SUMIF('C Report'!$A$300:$A$399,'C Report Grouper'!$D18,'C Report'!N$300:N$399),SUMIF('C Report'!$A$100:$A$199,'C Report Grouper'!$D18,'C Report'!N$100:N$199)) -> 0 | Q18: =IF($D$4="MAP+ADM Waivers",SUMIF('C Report'!$A$100:$A$199,'C Report Grouper'!$D18,'C Report'!O$100:O$199)+SUMIF('C Report'!$A$300:$A$399,'C Report Grouper'!$D18,'C Report'!O$300:O$399),SUMIF('C Report'!$A$100:$A$199,'C Report Grouper'!$D18,'C Report'!O$100:O$199)) -> 0 | R18: =IF($D$4="MAP+ADM Waivers",SUMIF('C Report'!$A$100:$A$199,'C Report Grouper'!$D18,'C Report'!P$100:P$199)+SUMIF('C Report'!$A$300:$A$399,'C Report Grouper'!$D18,'C Report'!P$300:P$399),SUMIF('C Report'!$A$100:$A$199,'C Report Grouper'!$D18,'C Report'!P$100:P$199)) -> 0 | S18: =IF($D$4="MAP+ADM Waivers",SUMIF('C Report'!$A$100:$A$199,'C Report Grouper'!$D18,'C Report'!Q$100:Q$199)+SUMIF('C Report'!$A$300:$A$399,'C Report Grouper'!$D18,'C Report'!Q$300:Q$399),SUMIF('C Report'!$A$100:$A$199,'C Report Grouper'!$D18,'C Report'!Q$100:Q$199)) -> 0 | T18: =IF($D$4="MAP+ADM Waivers",SUMIF('C Report'!$A$100:$A$199,'C Report Grouper'!$D18,'C Report'!R$100:R$199)+SUMIF('C Report'!$A$300:$A$399,'C Report Grouper'!$D18,'C Report'!R$300:R$399),SUMIF('C Report'!$A$100:$A$199,'C Report Grouper'!$D18,'C Report'!R$100:R$199)) -> 0 | U18: =IF($D$4="MAP+ADM Waivers",SUMIF('C Report'!$A$100:$A$199,'C Report Grouper'!$D18,'C Report'!S$100:S$199)+SUMIF('C Report'!$A$300:$A$399,'C Report Grouper'!$D18,'C Report'!S$300:S$399),SUMIF('C Report'!$A$100:$A$199,'C Report Grouper'!$D18,'C Report'!S$100:S$199)) -> 0 | V18: =IF($D$4="MAP+ADM Waivers",SUMIF('C Report'!$A$100:$A$199,'C Report Grouper'!$D18,'C Report'!T$100:T$199)+SUMIF('C Report'!$A$300:$A$399,'C Report Grouper'!$D18,'C Report'!T$300:T$399),SUMIF('C Report'!$A$100:$A$199,'C Report Grouper'!$D18,'C Report'!T$100:T$199)) -> 0 | W18: =IF($D$4="MAP+ADM Waivers",SUMIF('C Report'!$A$100:$A$199,'C Report Grouper'!$D18,'C Report'!U$100:U$199)+SUMIF('C Report'!$A$300:$A$399,'C Report Grouper'!$D18,'C Report'!U$300:U$399),SUMIF('C Report'!$A$100:$A$199,'C Report Grouper'!$D18,'C Report'!U$100:U$199)) -> 0 | X18: =IF($D$4="MAP+ADM Waivers",SUMIF('C Report'!$A$100:$A$199,'C Report Grouper'!$D18,'C Report'!V$100:V$199)+SUMIF('C Report'!$A$300:$A$399,'C Report Grouper'!$D18,'C Report'!V$300:V$399),SUMIF('C Report'!$A$100:$A$199,'C Report Grouper'!$D18,'C Report'!V$100:V$199)) -> 0 | Y18: =IF($D$4="MAP+ADM Waivers",SUMIF('C Report'!$A$100:$A$199,'C Report Grouper'!$D18,'C Report'!W$100:W$199)+SUMIF('C Report'!$A$300:$A$399,'C Report Grouper'!$D18,'C Report'!W$300:W$399),SUMIF('C Report'!$A$100:$A$199,'C Report Grouper'!$D18,'C Report'!W$100:W$199)) -> 0 | Z18: =IF($D$4="MAP+ADM Waivers",SUMIF('C Report'!$A$100:$A$199,'C Report Grouper'!$D18,'C Report'!X$100:X$199)+SUMIF('C Report'!$A$300:$A$399,'C Report Grouper'!$D18,'C Report'!X$300:X$399),SUMIF('C Report'!$A$100:$A$199,'C Report Grouper'!$D18,'C Report'!X$100:X$199)) -> 0 | AA18: =IF($D$4="MAP+ADM Waivers",SUMIF('C Report'!$A$100:$A$199,'C Report Grouper'!$D18,'C Report'!Y$100:Y$199)+SUMIF('C Report'!$A$300:$A$399,'C Report Grouper'!$D18,'C Report'!Y$300:Y$399),SUMIF('C Report'!$A$100:$A$199,'C Report Grouper'!$D18,'C Report'!Y$100:Y$199)) -> 0 | AB18: =IF($D$4="MAP+ADM Waivers",SUMIF('C Report'!$A$100:$A$199,'C Report Grouper'!$D18,'C Report'!Z$100:Z$199)+SUMIF('C Report'!$A$300:$A$399,'C Report Grouper'!$D18,'C Report'!Z$300:Z$399),SUMIF('C Report'!$A$100:$A$199,'C Report Grouper'!$D18,'C Report'!Z$100:Z$199)) -> 0 | AC18: =IF($D$4="MAP+ADM Waivers",SUMIF('C Report'!$A$100:$A$199,'C Report Grouper'!$D18,'C Report'!AA$100:AA$199)+SUMIF('C Report'!$A$300:$A$399,'C Report Grouper'!$D18,'C Report'!AA$300:AA$399),SUMIF('C Report'!$A$100:$A$199,'C Report Grouper'!$D18,'C Report'!AA$100:AA$199)) -> 0 | AD18: =IF($D$4="MAP+ADM Waivers",SUMIF('C Report'!$A$100:$A$199,'C Report Grouper'!$D18,'C Report'!AB$100:AB$199)+SUMIF('C Report'!$A$300:$A$399,'C Report Grouper'!$D18,'C Report'!AB$300:AB$399),SUMIF('C Report'!$A$100:$A$199,'C Report Grouper'!$D18,'C Report'!AB$100:AB$199)) -> 0 | AE18: =IF($D$4="MAP+ADM Waivers",SUMIF('C Report'!$A$100:$A$199,'C Report Grouper'!$D18,'C Report'!AC$100:AC$199)+SUMIF('C Report'!$A$300:$A$399,'C Report Grouper'!$D18,'C Report'!AC$300:AC$399),SUMIF('C Report'!$A$100:$A$199,'C Report Grouper'!$D18,'C Report'!AC$100:AC$199)) -> 0 | AF18: =IF($D$4="MAP+ADM Waivers",SUMIF('C Report'!$A$100:$A$199,'C Report Grouper'!$D18,'C Report'!AD$100:AD$199)+SUMIF('C Report'!$A$300:$A$399,'C Report Grouper'!$D18,'C Report'!AD$300:AD$399),SUMIF('C Report'!$A$100:$A$199,'C Report Grouper'!$D18,'C Report'!AD$100:AD$199)) -> 0 | AG18: =IF($D$4="MAP+ADM Waivers",SUMIF('C Report'!$A$100:$A$199,'C Report Grouper'!$D18,'C Report'!AE$100:AE$199)+SUMIF('C Report'!$A$300:$A$399,'C Report Grouper'!$D18,'C Report'!AE$300:AE$399),SUMIF('C Report'!$A$100:$A$199,'C Report Grouper'!$D18,'C Report'!AE$100:AE$199)) -> 0 | AH18: =IF($D$4="MAP+ADM Waivers",SUMIF('C Report'!$A$100:$A$199,'C Report Grouper'!$D18,'C Report'!AF$100:AF$199)+SUMIF('C Report'!$A$300:$A$399,'C Report Grouper'!$D18,'C Report'!AF$300:AF$399),SUMIF('C Report'!$A$100:$A$199,'C Report Grouper'!$D18,'C Report'!AF$100:AF$199)) -> 0
B19: =IFERROR(VLOOKUP(C19,'MEG Def'!$A$23:$B$28,2),"") ->  | E19: =IF($D$4="MAP+ADM Waivers",SUMIF('C Report'!$A$100:$A$199,'C Report Grouper'!$D19,'C Report'!C$100:C$199)+SUMIF('C Report'!$A$300:$A$399,'C Report Grouper'!$D19,'C Report'!C$300:C$399),SUMIF('C Report'!$A$100:$A$199,'C Report Grouper'!$D19,'C Report'!C$100:C$199)) -> 0 | F19: =IF($D$4="MAP+ADM Waivers",SUMIF('C Report'!$A$100:$A$199,'C Report Grouper'!$D19,'C Report'!D$100:D$199)+SUMIF('C Report'!$A$300:$A$399,'C Report Grouper'!$D19,'C Report'!D$300:D$399),SUMIF('C Report'!$A$100:$A$199,'C Report Grouper'!$D19,'C Report'!D$100:D$199)) -> 0 | G19: =IF($D$4="MAP+ADM Waivers",SUMIF('C Report'!$A$100:$A$199,'C Report Grouper'!$D19,'C Report'!E$100:E$199)+SUMIF('C Report'!$A$300:$A$399,'C Report Grouper'!$D19,'C Report'!E$300:E$399),SUMIF('C Report'!$A$100:$A$199,'C Report Grouper'!$D19,'C Report'!E$100:E$199)) -> 0 | H19: =IF($D$4="MAP+ADM Waivers",SUMIF('C Report'!$A$100:$A$199,'C Report Grouper'!$D19,'C Report'!F$100:F$199)+SUMIF('C Report'!$A$300:$A$399,'C Report Grouper'!$D19,'C Report'!F$300:F$399),SUMIF('C Report'!$A$100:$A$199,'C Report Grouper'!$D19,'C Report'!F$100:F$199)) -> 0 | I19: =IF($D$4="MAP+ADM Waivers",SUMIF('C Report'!$A$100:$A$199,'C Report Grouper'!$D19,'C Report'!G$100:G$199)+SUMIF('C Report'!$A$300:$A$399,'C Report Grouper'!$D19,'C Report'!G$300:G$399),SUMIF('C Report'!$A$100:$A$199,'C Report Grouper'!$D19,'C Report'!G$100:G$199)) -> 0 | J19: =IF($D$4="MAP+ADM Waivers",SUMIF('C Report'!$A$100:$A$199,'C Report Grouper'!$D19,'C Report'!H$100:H$199)+SUMIF('C Report'!$A$300:$A$399,'C Report Grouper'!$D19,'C Report'!H$300:H$399),SUMIF('C Report'!$A$100:$A$199,'C Report Grouper'!$D19,'C Report'!H$100:H$199)) -> 0 | K19: =IF($D$4="MAP+ADM Waivers",SUMIF('C Report'!$A$100:$A$199,'C Report Grouper'!$D19,'C Report'!I$100:I$199)+SUMIF('C Report'!$A$300:$A$399,'C Report Grouper'!$D19,'C Report'!I$300:I$399),SUMIF('C Report'!$A$100:$A$199,'C Report Grouper'!$D19,'C Report'!I$100:I$199)) -> 0 | L19: =IF($D$4="MAP+ADM Waivers",SUMIF('C Report'!$A$100:$A$199,'C Report Grouper'!$D19,'C Report'!J$100:J$199)+SUMIF('C Report'!$A$300:$A$399,'C Report Grouper'!$D19,'C Report'!J$300:J$399),SUMIF('C Report'!$A$100:$A$199,'C Report Grouper'!$D19,'C Report'!J$100:J$199)) -> 0 | M19: =IF($D$4="MAP+ADM Waivers",SUMIF('C Report'!$A$100:$A$199,'C Report Grouper'!$D19,'C Report'!K$100:K$199)+SUMIF('C Report'!$A$300:$A$399,'C Report Grouper'!$D19,'C Report'!K$300:K$399),SUMIF('C Report'!$A$100:$A$199,'C Report Grouper'!$D19,'C Report'!K$100:K$199)) -> 0 | N19: =IF($D$4="MAP+ADM Waivers",SUMIF('C Report'!$A$100:$A$199,'C Report Grouper'!$D19,'C Report'!L$100:L$199)+SUMIF('C Report'!$A$300:$A$399,'C Report Grouper'!$D19,'C Report'!L$300:L$399),SUMIF('C Report'!$A$100:$A$199,'C Report Grouper'!$D19,'C Report'!L$100:L$199)) -> 0 | O19: =IF($D$4="MAP+ADM Waivers",SUMIF('C Report'!$A$100:$A$199,'C Report Grouper'!$D19,'C Report'!M$100:M$199)+SUMIF('C Report'!$A$300:$A$399,'C Report Grouper'!$D19,'C Report'!M$300:M$399),SUMIF('C Report'!$A$100:$A$199,'C Report Grouper'!$D19,'C Report'!M$100:M$199)) -> 0 | P19: =IF($D$4="MAP+ADM Waivers",SUMIF('C Report'!$A$100:$A$199,'C Report Grouper'!$D19,'C Report'!N$100:N$199)+SUMIF('C Report'!$A$300:$A$399,'C Report Grouper'!$D19,'C Report'!N$300:N$399),SUMIF('C Report'!$A$100:$A$199,'C Report Grouper'!$D19,'C Report'!N$100:N$199)) -> 0 | Q19: =IF($D$4="MAP+ADM Waivers",SUMIF('C Report'!$A$100:$A$199,'C Report Grouper'!$D19,'C Report'!O$100:O$199)+SUMIF('C Report'!$A$300:$A$399,'C Report Grouper'!$D19,'C Report'!O$300:O$399),SUMIF('C Report'!$A$100:$A$199,'C Report Grouper'!$D19,'C Report'!O$100:O$199)) -> 0 | R19: =IF($D$4="MAP+ADM Waivers",SUMIF('C Report'!$A$100:$A$199,'C Report Grouper'!$D19,'C Report'!P$100:P$199)+SUMIF('C Report'!$A$300:$A$399,'C Report Grouper'!$D19,'C Report'!P$300:P$399),SUMIF('C Report'!$A$100:$A$199,'C Report Grouper'!$D19,'C Report'!P$100:P$199)) -> 0 | S19: =IF($D$4="MAP+ADM Waivers",SUMIF('C Report'!$A$100:$A$199,'C Report Grouper'!$D19,'C Report'!Q$100:Q$199)+SUMIF('C Report'!$A$300:$A$399,'C Report Grouper'!$D19,'C Report'!Q$300:Q$399),SUMIF('C Report'!$A$100:$A$199,'C Report Grouper'!$D19,'C Report'!Q$100:Q$199)) -> 0 | T19: =IF($D$4="MAP+ADM Waivers",SUMIF('C Report'!$A$100:$A$199,'C Report Grouper'!$D19,'C Report'!R$100:R$199)+SUMIF('C Report'!$A$300:$A$399,'C Report Grouper'!$D19,'C Report'!R$300:R$399),SUMIF('C Report'!$A$100:$A$199,'C Report Grouper'!$D19,'C Report'!R$100:R$199)) -> 0 | U19: =IF($D$4="MAP+ADM Waivers",SUMIF('C Report'!$A$100:$A$199,'C Report Grouper'!$D19,'C Report'!S$100:S$199)+SUMIF('C Report'!$A$300:$A$399,'C Report Grouper'!$D19,'C Report'!S$300:S$399),SUMIF('C Report'!$A$100:$A$199,'C Report Grouper'!$D19,'C Report'!S$100:S$199)) -> 0 | V19: =IF($D$4="MAP+ADM Waivers",SUMIF('C Report'!$A$100:$A$199,'C Report Grouper'!$D19,'C Report'!T$100:T$199)+SUMIF('C Report'!$A$300:$A$399,'C Report Grouper'!$D19,'C Report'!T$300:T$399),SUMIF('C Report'!$A$100:$A$199,'C Report Grouper'!$D19,'C Report'!T$100:T$199)) -> 0 | W19: =IF($D$4="MAP+ADM Waivers",SUMIF('C Report'!$A$100:$A$199,'C Report Grouper'!$D19,'C Report'!U$100:U$199)+SUMIF('C Report'!$A$300:$A$399,'C Report Grouper'!$D19,'C Report'!U$300:U$399),SUMIF('C Report'!$A$100:$A$199,'C Report Grouper'!$D19,'C Report'!U$100:U$199)) -> 0 | X19: =IF($D$4="MAP+ADM Waivers",SUMIF('C Report'!$A$100:$A$199,'C Report Grouper'!$D19,'C Report'!V$100:V$199)+SUMIF('C Report'!$A$300:$A$399,'C Report Grouper'!$D19,'C Report'!V$300:V$399),SUMIF('C Report'!$A$100:$A$199,'C Report Grouper'!$D19,'C Report'!V$100:V$199)) -> 0 | Y19: =IF($D$4="MAP+ADM Waivers",SUMIF('C Report'!$A$100:$A$199,'C Report Grouper'!$D19,'C Report'!W$100:W$199)+SUMIF('C Report'!$A$300:$A$399,'C Report Grouper'!$D19,'C Report'!W$300:W$399),SUMIF('C Report'!$A$100:$A$199,'C Report Grouper'!$D19,'C Report'!W$100:W$199)) -> 0 | Z19: =IF($D$4="MAP+ADM Waivers",SUMIF('C Report'!$A$100:$A$199,'C Report Grouper'!$D19,'C Report'!X$100:X$199)+SUMIF('C Report'!$A$300:$A$399,'C Report Grouper'!$D19,'C Report'!X$300:X$399),SUMIF('C Report'!$A$100:$A$199,'C Report Grouper'!$D19,'C Report'!X$100:X$199)) -> 0 | AA19: =IF($D$4="MAP+ADM Waivers",SUMIF('C Report'!$A$100:$A$199,'C Report Grouper'!$D19,'C Report'!Y$100:Y$199)+SUMIF('C Report'!$A$300:$A$399,'C Report Grouper'!$D19,'C Report'!Y$300:Y$399),SUMIF('C Report'!$A$100:$A$199,'C Report Grouper'!$D19,'C Report'!Y$100:Y$199)) -> 0 | AB19: =IF($D$4="MAP+ADM Waivers",SUMIF('C Report'!$A$100:$A$199,'C Report Grouper'!$D19,'C Report'!Z$100:Z$199)+SUMIF('C Report'!$A$300:$A$399,'C Report Grouper'!$D19,'C Report'!Z$300:Z$399),SUMIF('C Report'!$A$100:$A$199,'C Report Grouper'!$D19,'C Report'!Z$100:Z$199)) -> 0 | AC19: =IF($D$4="MAP+ADM Waivers",SUMIF('C Report'!$A$100:$A$199,'C Report Grouper'!$D19,'C Report'!AA$100:AA$199)+SUMIF('C Report'!$A$300:$A$399,'C Report Grouper'!$D19,'C Report'!AA$300:AA$399),SUMIF('C Report'!$A$100:$A$199,'C Report Grouper'!$D19,'C Report'!AA$100:AA$199)) -> 0 | AD19: =IF($D$4="MAP+ADM Waivers",SUMIF('C Report'!$A$100:$A$199,'C Report Grouper'!$D19,'C Report'!AB$100:AB$199)+SUMIF('C Report'!$A$300:$A$399,'C Report Grouper'!$D19,'C Report'!AB$300:AB$399),SUMIF('C Report'!$A$100:$A$199,'C Report Grouper'!$D19,'C Report'!AB$100:AB$199)) -> 0 | AE19: =IF($D$4="MAP+ADM Waivers",SUMIF('C Report'!$A$100:$A$199,'C Report Grouper'!$D19,'C Report'!AC$100:AC$199)+SUMIF('C Report'!$A$300:$A$399,'C Report Grouper'!$D19,'C Report'!AC$300:AC$399),SUMIF('C Report'!$A$100:$A$199,'C Report Grouper'!$D19,'C Report'!AC$100:AC$199)) -> 0 | AF19: =IF($D$4="MAP+ADM Waivers",SUMIF('C Report'!$A$100:$A$199,'C Report Grouper'!$D19,'C Report'!AD$100:AD$199)+SUMIF('C Report'!$A$300:$A$399,'C Report Grouper'!$D19,'C Report'!AD$300:AD$399),SUMIF('C Report'!$A$100:$A$199,'C Report Grouper'!$D19,'C Report'!AD$100:AD$199)) -> 0 | AG19: =IF($D$4="MAP+ADM Waivers",SUMIF('C Report'!$A$100:$A$199,'C Report Grouper'!$D19,'C Report'!AE$100:AE$199)+SUMIF('C Report'!$A$300:$A$399,'C Report Grouper'!$D19,'C Report'!AE$300:AE$399),SUMIF('C Report'!$A$100:$A$199,'C Report Grouper'!$D19,'C Report'!AE$100:AE$199)) -> 0 | AH19: =IF($D$4="MAP+ADM Waivers",SUMIF('C Report'!$A$100:$A$199,'C Report Grouper'!$D19,'C Report'!AF$100:AF$199)+SUMIF('C Report'!$A$300:$A$399,'C Report Grouper'!$D19,'C Report'!AF$300:AF$399),SUMIF('C Report'!$A$100:$A$199,'C Report Grouper'!$D19,'C Report'!AF$100:AF$199)) -> 0
B20: =IFERROR(VLOOKUP(C20,'MEG Def'!$A$23:$B$28,2),"") ->  | E20: =IF($D$4="MAP+ADM Waivers",SUMIF('C Report'!$A$100:$A$199,'C Report Grouper'!$D20,'C Report'!C$100:C$199)+SUMIF('C Report'!$A$300:$A$399,'C Report Grouper'!$D20,'C Report'!C$300:C$399),SUMIF('C Report'!$A$100:$A$199,'C Report Grouper'!$D20,'C Report'!C$100:C$199)) -> 0 | F20: =IF($D$4="MAP+ADM Waivers",SUMIF('C Report'!$A$100:$A$199,'C Report Grouper'!$D20,'C Report'!D$100:D$199)+SUMIF('C Report'!$A$300:$A$399,'C Report Grouper'!$D20,'C Report'!D$300:D$399),SUMIF('C Report'!$A$100:$A$199,'C Report Grouper'!$D20,'C Report'!D$100:D$199)) -> 0 | G20: =IF($D$4="MAP+ADM Waivers",SUMIF('C Report'!$A$100:$A$199,'C Report Grouper'!$D20,'C Report'!E$100:E$199)+SUMIF('C Report'!$A$300:$A$399,'C Report Grouper'!$D20,'C Report'!E$300:E$399),SUMIF('C Report'!$A$100:$A$199,'C Report Grouper'!$D20,'C Report'!E$100:E$199)) -> 0 | H20: =IF($D$4="MAP+ADM Waivers",SUMIF('C Report'!$A$100:$A$199,'C Report Grouper'!$D20,'C Report'!F$100:F$199)+SUMIF('C Report'!$A$300:$A$399,'C Report Grouper'!$D20,'C Report'!F$300:F$399),SUMIF('C Report'!$A$100:$A$199,'C Report Grouper'!$D20,'C Report'!F$100:F$199)) -> 0 | I20: =IF($D$4="MAP+ADM Waivers",SUMIF('C Report'!$A$100:$A$199,'C Report Grouper'!$D20,'C Report'!G$100:G$199)+SUMIF('C Report'!$A$300:$A$399,'C Report Grouper'!$D20,'C Report'!G$300:G$399),SUMIF('C Report'!$A$100:$A$199,'C Report Grouper'!$D20,'C Report'!G$100:G$199)) -> 0 | J20: =IF($D$4="MAP+ADM Waivers",SUMIF('C Report'!$A$100:$A$199,'C Report Grouper'!$D20,'C Report'!H$100:H$199)+SUMIF('C Report'!$A$300:$A$399,'C Report Grouper'!$D20,'C Report'!H$300:H$399),SUMIF('C Report'!$A$100:$A$199,'C Report Grouper'!$D20,'C Report'!H$100:H$199)) -> 0 | K20: =IF($D$4="MAP+ADM Waivers",SUMIF('C Report'!$A$100:$A$199,'C Report Grouper'!$D20,'C Report'!I$100:I$199)+SUMIF('C Report'!$A$300:$A$399,'C Report Grouper'!$D20,'C Report'!I$300:I$399),SUMIF('C Report'!$A$100:$A$199,'C Report Grouper'!$D20,'C Report'!I$100:I$199)) -> 0 | L20: =IF($D$4="MAP+ADM Waivers",SUMIF('C Report'!$A$100:$A$199,'C Report Grouper'!$D20,'C Report'!J$100:J$199)+SUMIF('C Report'!$A$300:$A$399,'C Report Grouper'!$D20,'C Report'!J$300:J$399),SUMIF('C Report'!$A$100:$A$199,'C Report Grouper'!$D20,'C Report'!J$100:J$199)) -> 0 | M20: =IF($D$4="MAP+ADM Waivers",SUMIF('C Report'!$A$100:$A$199,'C Report Grouper'!$D20,'C Report'!K$100:K$199)+SUMIF('C Report'!$A$300:$A$399,'C Report Grouper'!$D20,'C Report'!K$300:K$399),SUMIF('C Report'!$A$100:$A$199,'C Report Grouper'!$D20,'C Report'!K$100:K$199)) -> 0 | N20: =IF($D$4="MAP+ADM Waivers",SUMIF('C Report'!$A$100:$A$199,'C Report Grouper'!$D20,'C Report'!L$100:L$199)+SUMIF('C Report'!$A$300:$A$399,'C Report Grouper'!$D20,'C Report'!L$300:L$399),SUMIF('C Report'!$A$100:$A$199,'C Report Grouper'!$D20,'C Report'!L$100:L$199)) -> 0 | O20: =IF($D$4="MAP+ADM Waivers",SUMIF('C Report'!$A$100:$A$199,'C Report Grouper'!$D20,'C Report'!M$100:M$199)+SUMIF('C Report'!$A$300:$A$399,'C Report Grouper'!$D20,'C Report'!M$300:M$399),SUMIF('C Report'!$A$100:$A$199,'C Report Grouper'!$D20,'C Report'!M$100:M$199)) -> 0 | P20: =IF($D$4="MAP+ADM Waivers",SUMIF('C Report'!$A$100:$A$199,'C Report Grouper'!$D20,'C Report'!N$100:N$199)+SUMIF('C Report'!$A$300:$A$399,'C Report Grouper'!$D20,'C Report'!N$300:N$399),SUMIF('C Report'!$A$100:$A$199,'C Report Grouper'!$D20,'C Report'!N$100:N$199)) -> 0 | Q20: =IF($D$4="MAP+ADM Waivers",SUMIF('C Report'!$A$100:$A$199,'C Report Grouper'!$D20,'C Report'!O$100:O$199)+SUMIF('C Report'!$A$300:$A$399,'C Report Grouper'!$D20,'C Report'!O$300:O$399),SUMIF('C Report'!$A$100:$A$199,'C Report Grouper'!$D20,'C Report'!O$100:O$199)) -> 0 | R20: =IF($D$4="MAP+ADM Waivers",SUMIF('C Report'!$A$100:$A$199,'C Report Grouper'!$D20,'C Report'!P$100:P$199)+SUMIF('C Report'!$A$300:$A$399,'C Report Grouper'!$D20,'C Report'!P$300:P$399),SUMIF('C Report'!$A$100:$A$199,'C Report Grouper'!$D20,'C Report'!P$100:P$199)) -> 0 | S20: =IF($D$4="MAP+ADM Waivers",SUMIF('C Report'!$A$100:$A$199,'C Report Grouper'!$D20,'C Report'!Q$100:Q$199)+SUMIF('C Report'!$A$300:$A$399,'C Report Grouper'!$D20,'C Report'!Q$300:Q$399),SUMIF('C Report'!$A$100:$A$199,'C Report Grouper'!$D20,'C Report'!Q$100:Q$199)) -> 0 | T20: =IF($D$4="MAP+ADM Waivers",SUMIF('C Report'!$A$100:$A$199,'C Report Grouper'!$D20,'C Report'!R$100:R$199)+SUMIF('C Report'!$A$300:$A$399,'C Report Grouper'!$D20,'C Report'!R$300:R$399),SUMIF('C Report'!$A$100:$A$199,'C Report Grouper'!$D20,'C Report'!R$100:R$199)) -> 0 | U20: =IF($D$4="MAP+ADM Waivers",SUMIF('C Report'!$A$100:$A$199,'C Report Grouper'!$D20,'C Report'!S$100:S$199)+SUMIF('C Report'!$A$300:$A$399,'C Report Grouper'!$D20,'C Report'!S$300:S$399),SUMIF('C Report'!$A$100:$A$199,'C Report Grouper'!$D20,'C Report'!S$100:S$199)) -> 0 | V20: =IF($D$4="MAP+ADM Waivers",SUMIF('C Report'!$A$100:$A$199,'C Report Grouper'!$D20,'C Report'!T$100:T$199)+SUMIF('C Report'!$A$300:$A$399,'C Report Grouper'!$D20,'C Report'!T$300:T$399),SUMIF('C Report'!$A$100:$A$199,'C Report Grouper'!$D20,'C Report'!T$100:T$199)) -> 0 | W20: =IF($D$4="MAP+ADM Waivers",SUMIF('C Report'!$A$100:$A$199,'C Report Grouper'!$D20,'C Report'!U$100:U$199)+SUMIF('C Report'!$A$300:$A$399,'C Report Grouper'!$D20,'C Report'!U$300:U$399),SUMIF('C Report'!$A$100:$A$199,'C Report Grouper'!$D20,'C Report'!U$100:U$199)) -> 0 | X20: =IF($D$4="MAP+ADM Waivers",SUMIF('C Report'!$A$100:$A$199,'C Report Grouper'!$D20,'C Report'!V$100:V$199)+SUMIF('C Report'!$A$300:$A$399,'C Report Grouper'!$D20,'C Report'!V$300:V$399),SUMIF('C Report'!$A$100:$A$199,'C Report Grouper'!$D20,'C Report'!V$100:V$199)) -> 0 | Y20: =IF($D$4="MAP+ADM Waivers",SUMIF('C Report'!$A$100:$A$199,'C Report Grouper'!$D20,'C Report'!W$100:W$199)+SUMIF('C Report'!$A$300:$A$399,'C Report Grouper'!$D20,'C Report'!W$300:W$399),SUMIF('C Report'!$A$100:$A$199,'C Report Grouper'!$D20,'C Report'!W$100:W$199)) -> 0 | Z20: =IF($D$4="MAP+ADM Waivers",SUMIF('C Report'!$A$100:$A$199,'C Report Grouper'!$D20,'C Report'!X$100:X$199)+SUMIF('C Report'!$A$300:$A$399,'C Report Grouper'!$D20,'C Report'!X$300:X$399),SUMIF('C Report'!$A$100:$A$199,'C Report Grouper'!$D20,'C Report'!X$100:X$199)) -> 0 | AA20: =IF($D$4="MAP+ADM Waivers",SUMIF('C Report'!$A$100:$A$199,'C Report Grouper'!$D20,'C Report'!Y$100:Y$199)+SUMIF('C Report'!$A$300:$A$399,'C Report Grouper'!$D20,'C Report'!Y$300:Y$399),SUMIF('C Report'!$A$100:$A$199,'C Report Grouper'!$D20,'C Report'!Y$100:Y$199)) -> 0 | AB20: =IF($D$4="MAP+ADM Waivers",SUMIF('C Report'!$A$100:$A$199,'C Report Grouper'!$D20,'C Report'!Z$100:Z$199)+SUMIF('C Report'!$A$300:$A$399,'C Report Grouper'!$D20,'C Report'!Z$300:Z$399),SUMIF('C Report'!$A$100:$A$199,'C Report Grouper'!$D20,'C Report'!Z$100:Z$199)) -> 0 | AC20: =IF($D$4="MAP+ADM Waivers",SUMIF('C Report'!$A$100:$A$199,'C Report Grouper'!$D20,'C Report'!AA$100:AA$199)+SUMIF('C Report'!$A$300:$A$399,'C Report Grouper'!$D20,'C Report'!AA$300:AA$399),SUMIF('C Report'!$A$100:$A$199,'C Report Grouper'!$D20,'C Report'!AA$100:AA$199)) -> 0 | AD20: =IF($D$4="MAP+ADM Waivers",SUMIF('C Report'!$A$100:$A$199,'C Report Grouper'!$D20,'C Report'!AB$100:AB$199)+SUMIF('C Report'!$A$300:$A$399,'C Report Grouper'!$D20,'C Report'!AB$300:AB$399),SUMIF('C Report'!$A$100:$A$199,'C Report Grouper'!$D20,'C Report'!AB$100:AB$199)) -> 0 | AE20: =IF($D$4="MAP+ADM Waivers",SUMIF('C Report'!$A$100:$A$199,'C Report Grouper'!$D20,'C Report'!AC$100:AC$199)+SUMIF('C Report'!$A$300:$A$399,'C Report Grouper'!$D20,'C Report'!AC$300:AC$399),SUMIF('C Report'!$A$100:$A$199,'C Report Grouper'!$D20,'C Report'!AC$100:AC$199)) -> 0 | AF20: =IF($D$4="MAP+ADM Waivers",SUMIF('C Report'!$A$100:$A$199,'C Report Grouper'!$D20,'C Report'!AD$100:AD$199)+SUMIF('C Report'!$A$300:$A$399,'C Report Grouper'!$D20,'C Report'!AD$300:AD$399),SUMIF('C Report'!$A$100:$A$199,'C Report Grouper'!$D20,'C Report'!AD$100:AD$199)) -> 0 | AG20: =IF($D$4="MAP+ADM Waivers",SUMIF('C Report'!$A$100:$A$199,'C Report Grouper'!$D20,'C Report'!AE$100:AE$199)+SUMIF('C Report'!$A$300:$A$399,'C Report Grouper'!$D20,'C Report'!AE$300:AE$399),SUMIF('C Report'!$A$100:$A$199,'C Report Grouper'!$D20,'C Report'!AE$100:AE$199)) -> 0 | AH20: =IF($D$4="MAP+ADM Waivers",SUMIF('C Report'!$A$100:$A$199,'C Report Grouper'!$D20,'C Report'!AF$100:AF$199)+SUMIF('C Report'!$A$300:$A$399,'C Report Grouper'!$D20,'C Report'!AF$300:AF$399),SUMIF('C Report'!$A$100:$A$199,'C Report Grouper'!$D20,'C Report'!AF$100:AF$199)) -> 0
B21: =IFERROR(VLOOKUP(C21,'MEG Def'!$A$23:$B$28,2),"") ->  | E21: =IF($D$4="MAP+ADM Waivers",SUMIF('C Report'!$A$100:$A$199,'C Report Grouper'!$D21,'C Report'!C$100:C$199)+SUMIF('C Report'!$A$300:$A$399,'C Report Grouper'!$D21,'C Report'!C$300:C$399),SUMIF('C Report'!$A$100:$A$199,'C Report Grouper'!$D21,'C Report'!C$100:C$199)) -> 0 | F21: =IF($D$4="MAP+ADM Waivers",SUMIF('C Report'!$A$100:$A$199,'C Report Grouper'!$D21,'C Report'!D$100:D$199)+SUMIF('C Report'!$A$300:$A$399,'C Report Grouper'!$D21,'C Report'!D$300:D$399),SUMIF('C Report'!$A$100:$A$199,'C Report Grouper'!$D21,'C Report'!D$100:D$199)) -> 0 | G21: =IF($D$4="MAP+ADM Waivers",SUMIF('C Report'!$A$100:$A$199,'C Report Grouper'!$D21,'C Report'!E$100:E$199)+SUMIF('C Report'!$A$300:$A$399,'C Report Grouper'!$D21,'C Report'!E$300:E$399),SUMIF('C Report'!$A$100:$A$199,'C Report Grouper'!$D21,'C Report'!E$100:E$199)) -> 0 | H21: =IF($D$4="MAP+ADM Waivers",SUMIF('C Report'!$A$100:$A$199,'C Report Grouper'!$D21,'C Report'!F$100:F$199)+SUMIF('C Report'!$A$300:$A$399,'C Report Grouper'!$D21,'C Report'!F$300:F$399),SUMIF('C Report'!$A$100:$A$199,'C Report Grouper'!$D21,'C Report'!F$100:F$199)) -> 0 | I21: =IF($D$4="MAP+ADM Waivers",SUMIF('C Report'!$A$100:$A$199,'C Report Grouper'!$D21,'C Report'!G$100:G$199)+SUMIF('C Report'!$A$300:$A$399,'C Report Grouper'!$D21,'C Report'!G$300:G$399),SUMIF('C Report'!$A$100:$A$199,'C Report Grouper'!$D21,'C Report'!G$100:G$199)) -> 0 | J21: =IF($D$4="MAP+ADM Waivers",SUMIF('C Report'!$A$100:$A$199,'C Report Grouper'!$D21,'C Report'!H$100:H$199)+SUMIF('C Report'!$A$300:$A$399,'C Report Grouper'!$D21,'C Report'!H$300:H$399),SUMIF('C Report'!$A$100:$A$199,'C Report Grouper'!$D21,'C Report'!H$100:H$199)) -> 0 | K21: =IF($D$4="MAP+ADM Waivers",SUMIF('C Report'!$A$100:$A$199,'C Report Grouper'!$D21,'C Report'!I$100:I$199)+SUMIF('C Report'!$A$300:$A$399,'C Report Grouper'!$D21,'C Report'!I$300:I$399),SUMIF('C Report'!$A$100:$A$199,'C Report Grouper'!$D21,'C Report'!I$100:I$199)) -> 0 | L21: =IF($D$4="MAP+ADM Waivers",SUMIF('C Report'!$A$100:$A$199,'C Report Grouper'!$D21,'C Report'!J$100:J$199)+SUMIF('C Report'!$A$300:$A$399,'C Report Grouper'!$D21,'C Report'!J$300:J$399),SUMIF('C Report'!$A$100:$A$199,'C Report Grouper'!$D21,'C Report'!J$100:J$199)) -> 0 | M21: =IF($D$4="MAP+ADM Waivers",SUMIF('C Report'!$A$100:$A$199,'C Report Grouper'!$D21,'C Report'!K$100:K$199)+SUMIF('C Report'!$A$300:$A$399,'C Report Grouper'!$D21,'C Report'!K$300:K$399),SUMIF('C Report'!$A$100:$A$199,'C Report Grouper'!$D21,'C Report'!K$100:K$199)) -> 0 | N21: =IF($D$4="MAP+ADM Waivers",SUMIF('C Report'!$A$100:$A$199,'C Report Grouper'!$D21,'C Report'!L$100:L$199)+SUMIF('C Report'!$A$300:$A$399,'C Report Grouper'!$D21,'C Report'!L$300:L$399),SUMIF('C Report'!$A$100:$A$199,'C Report Grouper'!$D21,'C Report'!L$100:L$199)) -> 0 | O21: =IF($D$4="MAP+ADM Waivers",SUMIF('C Report'!$A$100:$A$199,'C Report Grouper'!$D21,'C Report'!M$100:M$199)+SUMIF('C Report'!$A$300:$A$399,'C Report Grouper'!$D21,'C Report'!M$300:M$399),SUMIF('C Report'!$A$100:$A$199,'C Report Grouper'!$D21,'C Report'!M$100:M$199)) -> 0 | P21: =IF($D$4="MAP+ADM Waivers",SUMIF('C Report'!$A$100:$A$199,'C Report Grouper'!$D21,'C Report'!N$100:N$199)+SUMIF('C Report'!$A$300:$A$399,'C Report Grouper'!$D21,'C Report'!N$300:N$399),SUMIF('C Report'!$A$100:$A$199,'C Report Grouper'!$D21,'C Report'!N$100:N$199)) -> 0 | Q21: =IF($D$4="MAP+ADM Waivers",SUMIF('C Report'!$A$100:$A$199,'C Report Grouper'!$D21,'C Report'!O$100:O$199)+SUMIF('C Report'!$A$300:$A$399,'C Report Grouper'!$D21,'C Report'!O$300:O$399),SUMIF('C Report'!$A$100:$A$199,'C Report Grouper'!$D21,'C Report'!O$100:O$199)) -> 0 | R21: =IF($D$4="MAP+ADM Waivers",SUMIF('C Report'!$A$100:$A$199,'C Report Grouper'!$D21,'C Report'!P$100:P$199)+SUMIF('C Report'!$A$300:$A$399,'C Report Grouper'!$D21,'C Report'!P$300:P$399),SUMIF('C Report'!$A$100:$A$199,'C Report Grouper'!$D21,'C Report'!P$100:P$199)) -> 0 | S21: =IF($D$4="MAP+ADM Waivers",SUMIF('C Report'!$A$100:$A$199,'C Report Grouper'!$D21,'C Report'!Q$100:Q$199)+SUMIF('C Report'!$A$300:$A$399,'C Report Grouper'!$D21,'C Report'!Q$300:Q$399),SUMIF('C Report'!$A$100:$A$199,'C Report Grouper'!$D21,'C Report'!Q$100:Q$199)) -> 0 | T21: =IF($D$4="MAP+ADM Waivers",SUMIF('C Report'!$A$100:$A$199,'C Report Grouper'!$D21,'C Report'!R$100:R$199)+SUMIF('C Report'!$A$300:$A$399,'C Report Grouper'!$D21,'C Report'!R$300:R$399),SUMIF('C Report'!$A$100:$A$199,'C Report Grouper'!$D21,'C Report'!R$100:R$199)) -> 0 | U21: =IF($D$4="MAP+ADM Waivers",SUMIF('C Report'!$A$100:$A$199,'C Report Grouper'!$D21,'C Report'!S$100:S$199)+SUMIF('C Report'!$A$300:$A$399,'C Report Grouper'!$D21,'C Report'!S$300:S$399),SUMIF('C Report'!$A$100:$A$199,'C Report Grouper'!$D21,'C Report'!S$100:S$199)) -> 0 | V21: =IF($D$4="MAP+ADM Waivers",SUMIF('C Report'!$A$100:$A$199,'C Report Grouper'!$D21,'C Report'!T$100:T$199)+SUMIF('C Report'!$A$300:$A$399,'C Report Grouper'!$D21,'C Report'!T$300:T$399),SUMIF('C Report'!$A$100:$A$199,'C Report Grouper'!$D21,'C Report'!T$100:T$199)) -> 0 | W21: =IF($D$4="MAP+ADM Waivers",SUMIF('C Report'!$A$100:$A$199,'C Report Grouper'!$D21,'C Report'!U$100:U$199)+SUMIF('C Report'!$A$300:$A$399,'C Report Grouper'!$D21,'C Report'!U$300:U$399),SUMIF('C Report'!$A$100:$A$199,'C Report Grouper'!$D21,'C Report'!U$100:U$199)) -> 0 | X21: =IF($D$4="MAP+ADM Waivers",SUMIF('C Report'!$A$100:$A$199,'C Report Grouper'!$D21,'C Report'!V$100:V$199)+SUMIF('C Report'!$A$300:$A$399,'C Report Grouper'!$D21,'C Report'!V$300:V$399),SUMIF('C Report'!$A$100:$A$199,'C Report Grouper'!$D21,'C Report'!V$100:V$199)) -> 0 | Y21: =IF($D$4="MAP+ADM Waivers",SUMIF('C Report'!$A$100:$A$199,'C Report Grouper'!$D21,'C Report'!W$100:W$199)+SUMIF('C Report'!$A$300:$A$399,'C Report Grouper'!$D21,'C Report'!W$300:W$399),SUMIF('C Report'!$A$100:$A$199,'C Report Grouper'!$D21,'C Report'!W$100:W$199)) -> 0 | Z21: =IF($D$4="MAP+ADM Waivers",SUMIF('C Report'!$A$100:$A$199,'C Report Grouper'!$D21,'C Report'!X$100:X$199)+SUMIF('C Report'!$A$300:$A$399,'C Report Grouper'!$D21,'C Report'!X$300:X$399),SUMIF('C Report'!$A$100:$A$199,'C Report Grouper'!$D21,'C Report'!X$100:X$199)) -> 0 | AA21: =IF($D$4="MAP+ADM Waivers",SUMIF('C Report'!$A$100:$A$199,'C Report Grouper'!$D21,'C Report'!Y$100:Y$199)+SUMIF('C Report'!$A$300:$A$399,'C Report Grouper'!$D21,'C Report'!Y$300:Y$399),SUMIF('C Report'!$A$100:$A$199,'C Report Grouper'!$D21,'C Report'!Y$100:Y$199)) -> 0 | AB21: =IF($D$4="MAP+ADM Waivers",SUMIF('C Report'!$A$100:$A$199,'C Report Grouper'!$D21,'C Report'!Z$100:Z$199)+SUMIF('C Report'!$A$300:$A$399,'C Report Grouper'!$D21,'C Report'!Z$300:Z$399),SUMIF('C Report'!$A$100:$A$199,'C Report Grouper'!$D21,'C Report'!Z$100:Z$199)) -> 0 | AC21: =IF($D$4="MAP+ADM Waivers",SUMIF('C Report'!$A$100:$A$199,'C Report Grouper'!$D21,'C Report'!AA$100:AA$199)+SUMIF('C Report'!$A$300:$A$399,'C Report Grouper'!$D21,'C Report'!AA$300:AA$399),SUMIF('C Report'!$A$100:$A$199,'C Report Grouper'!$D21,'C Report'!AA$100:AA$199)) -> 0 | AD21: =IF($D$4="MAP+ADM Waivers",SUMIF('C Report'!$A$100:$A$199,'C Report Grouper'!$D21,'C Report'!AB$100:AB$199)+SUMIF('C Report'!$A$300:$A$399,'C Report Grouper'!$D21,'C Report'!AB$300:AB$399),SUMIF('C Report'!$A$100:$A$199,'C Report Grouper'!$D21,'C Report'!AB$100:AB$199)) -> 0 | AE21: =IF($D$4="MAP+ADM Waivers",SUMIF('C Report'!$A$100:$A$199,'C Report Grouper'!$D21,'C Report'!AC$100:AC$199)+SUMIF('C Report'!$A$300:$A$399,'C Report Grouper'!$D21,'C Report'!AC$300:AC$399),SUMIF('C Report'!$A$100:$A$199,'C Report Grouper'!$D21,'C Report'!AC$100:AC$199)) -> 0 | AF21: =IF($D$4="MAP+ADM Waivers",SUMIF('C Report'!$A$100:$A$199,'C Report Grouper'!$D21,'C Report'!AD$100:AD$199)+SUMIF('C Report'!$A$300:$A$399,'C Report Grouper'!$D21,'C Report'!AD$300:AD$399),SUMIF('C Report'!$A$100:$A$199,'C Report Grouper'!$D21,'C Report'!AD$100:AD$199)) -> 0 | AG21: =IF($D$4="MAP+ADM Waivers",SUMIF('C Report'!$A$100:$A$199,'C Report Grouper'!$D21,'C Report'!AE$100:AE$199)+SUMIF('C Report'!$A$300:$A$399,'C Report Grouper'!$D21,'C Report'!AE$300:AE$399),SUMIF('C Report'!$A$100:$A$199,'C Report Grouper'!$D21,'C Report'!AE$100:AE$199)) -> 0 | AH21: =IF($D$4="MAP+ADM Waivers",SUMIF('C Report'!$A$100:$A$199,'C Report Grouper'!$D21,'C Report'!AF$100:AF$199)+SUMIF('C Report'!$A$300:$A$399,'C Report Grouper'!$D21,'C Report'!AF$300:AF$399),SUMIF('C Report'!$A$100:$A$199,'C Report Grouper'!$D21,'C Report'!AF$100:AF$199)) -> 0
B22: =IFERROR(VLOOKUP(C22,'MEG Def'!$A$23:$B$28,2),"") ->  | E22: =IF($D$4="MAP+ADM Waivers",SUMIF('C Report'!$A$100:$A$199,'C Report Grouper'!$D22,'C Report'!C$100:C$199)+SUMIF('C Report'!$A$300:$A$399,'C Report Grouper'!$D22,'C Report'!C$300:C$399),SUMIF('C Report'!$A$100:$A$199,'C Report Grouper'!$D22,'C Report'!C$100:C$199)) -> 0 | F22: =IF($D$4="MAP+ADM Waivers",SUMIF('C Report'!$A$100:$A$199,'C Report Grouper'!$D22,'C Report'!D$100:D$199)+SUMIF('C Report'!$A$300:$A$399,'C Report Grouper'!$D22,'C Report'!D$300:D$399),SUMIF('C Report'!$A$100:$A$199,'C Report Grouper'!$D22,'C Report'!D$100:D$199)) -> 0 | G22: =IF($D$4="MAP+ADM Waivers",SUMIF('C Report'!$A$100:$A$199,'C Report Grouper'!$D22,'C Report'!E$100:E$199)+SUMIF('C Report'!$A$300:$A$399,'C Report Grouper'!$D22,'C Report'!E$300:E$399),SUMIF('C Report'!$A$100:$A$199,'C Report Grouper'!$D22,'C Report'!E$100:E$199)) -> 0 | H22: =IF($D$4="MAP+ADM Waivers",SUMIF('C Report'!$A$100:$A$199,'C Report Grouper'!$D22,'C Report'!F$100:F$199)+SUMIF('C Report'!$A$300:$A$399,'C Report Grouper'!$D22,'C Report'!F$300:F$399),SUMIF('C Report'!$A$100:$A$199,'C Report Grouper'!$D22,'C Report'!F$100:F$199)) -> 0 | I22: =IF($D$4="MAP+ADM Waivers",SUMIF('C Report'!$A$100:$A$199,'C Report Grouper'!$D22,'C Report'!G$100:G$199)+SUMIF('C Report'!$A$300:$A$399,'C Report Grouper'!$D22,'C Report'!G$300:G$399),SUMIF('C Report'!$A$100:$A$199,'C Report Grouper'!$D22,'C Report'!G$100:G$199)) -> 0 | J22: =IF($D$4="MAP+ADM Waivers",SUMIF('C Report'!$A$100:$A$199,'C Report Grouper'!$D22,'C Report'!H$100:H$199)+SUMIF('C Report'!$A$300:$A$399,'C Report Grouper'!$D22,'C Report'!H$300:H$399),SUMIF('C Report'!$A$100:$A$199,'C Report Grouper'!$D22,'C Report'!H$100:H$199)) -> 0 | K22: =IF($D$4="MAP+ADM Waivers",SUMIF('C Report'!$A$100:$A$199,'C Report Grouper'!$D22,'C Report'!I$100:I$199)+SUMIF('C Report'!$A$300:$A$399,'C Report Grouper'!$D22,'C Report'!I$300:I$399),SUMIF('C Report'!$A$100:$A$199,'C Report Grouper'!$D22,'C Report'!I$100:I$199)) -> 0 | L22: =IF($D$4="MAP+ADM Waivers",SUMIF('C Report'!$A$100:$A$199,'C Report Grouper'!$D22,'C Report'!J$100:J$199)+SUMIF('C Report'!$A$300:$A$399,'C Report Grouper'!$D22,'C Report'!J$300:J$399),SUMIF('C Report'!$A$100:$A$199,'C Report Grouper'!$D22,'C Report'!J$100:J$199)) -> 0 | M22: =IF($D$4="MAP+ADM Waivers",SUMIF('C Report'!$A$100:$A$199,'C Report Grouper'!$D22,'C Report'!K$100:K$199)+SUMIF('C Report'!$A$300:$A$399,'C Report Grouper'!$D22,'C Report'!K$300:K$399),SUMIF('C Report'!$A$100:$A$199,'C Report Grouper'!$D22,'C Report'!K$100:K$199)) -> 0 | N22: =IF($D$4="MAP+ADM Waivers",SUMIF('C Report'!$A$100:$A$199,'C Report Grouper'!$D22,'C Report'!L$100:L$199)+SUMIF('C Report'!$A$300:$A$399,'C Report Grouper'!$D22,'C Report'!L$300:L$399),SUMIF('C Report'!$A$100:$A$199,'C Report Grouper'!$D22,'C Report'!L$100:L$199)) -> 0 | O22: =IF($D$4="MAP+ADM Waivers",SUMIF('C Report'!$A$100:$A$199,'C Report Grouper'!$D22,'C Report'!M$100:M$199)+SUMIF('C Report'!$A$300:$A$399,'C Report Grouper'!$D22,'C Report'!M$300:M$399),SUMIF('C Report'!$A$100:$A$199,'C Report Grouper'!$D22,'C Report'!M$100:M$199)) -> 0 | P22: =IF($D$4="MAP+ADM Waivers",SUMIF('C Report'!$A$100:$A$199,'C Report Grouper'!$D22,'C Report'!N$100:N$199)+SUMIF('C Report'!$A$300:$A$399,'C Report Grouper'!$D22,'C Report'!N$300:N$399),SUMIF('C Report'!$A$100:$A$199,'C Report Grouper'!$D22,'C Report'!N$100:N$199)) -> 0 | Q22: =IF($D$4="MAP+ADM Waivers",SUMIF('C Report'!$A$100:$A$199,'C Report Grouper'!$D22,'C Report'!O$100:O$199)+SUMIF('C Report'!$A$300:$A$399,'C Report Grouper'!$D22,'C Report'!O$300:O$399),SUMIF('C Report'!$A$100:$A$199,'C Report Grouper'!$D22,'C Report'!O$100:O$199)) -> 0 | R22: =IF($D$4="MAP+ADM Waivers",SUMIF('C Report'!$A$100:$A$199,'C Report Grouper'!$D22,'C Report'!P$100:P$199)+SUMIF('C Report'!$A$300:$A$399,'C Report Grouper'!$D22,'C Report'!P$300:P$399),SUMIF('C Report'!$A$100:$A$199,'C Report Grouper'!$D22,'C Report'!P$100:P$199)) -> 0 | S22: =IF($D$4="MAP+ADM Waivers",SUMIF('C Report'!$A$100:$A$199,'C Report Grouper'!$D22,'C Report'!Q$100:Q$199)+SUMIF('C Report'!$A$300:$A$399,'C Report Grouper'!$D22,'C Report'!Q$300:Q$399),SUMIF('C Report'!$A$100:$A$199,'C Report Grouper'!$D22,'C Report'!Q$100:Q$199)) -> 0 | T22: =IF($D$4="MAP+ADM Waivers",SUMIF('C Report'!$A$100:$A$199,'C Report Grouper'!$D22,'C Report'!R$100:R$199)+SUMIF('C Report'!$A$300:$A$399,'C Report Grouper'!$D22,'C Report'!R$300:R$399),SUMIF('C Report'!$A$100:$A$199,'C Report Grouper'!$D22,'C Report'!R$100:R$199)) -> 0 | U22: =IF($D$4="MAP+ADM Waivers",SUMIF('C Report'!$A$100:$A$199,'C Report Grouper'!$D22,'C Report'!S$100:S$199)+SUMIF('C Report'!$A$300:$A$399,'C Report Grouper'!$D22,'C Report'!S$300:S$399),SUMIF('C Report'!$A$100:$A$199,'C Report Grouper'!$D22,'C Report'!S$100:S$199)) -> 0 | V22: =IF($D$4="MAP+ADM Waivers",SUMIF('C Report'!$A$100:$A$199,'C Report Grouper'!$D22,'C Report'!T$100:T$199)+SUMIF('C Report'!$A$300:$A$399,'C Report Grouper'!$D22,'C Report'!T$300:T$399),SUMIF('C Report'!$A$100:$A$199,'C Report Grouper'!$D22,'C Report'!T$100:T$199)) -> 0 | W22: =IF($D$4="MAP+ADM Waivers",SUMIF('C Report'!$A$100:$A$199,'C Report Grouper'!$D22,'C Report'!U$100:U$199)+SUMIF('C Report'!$A$300:$A$399,'C Report Grouper'!$D22,'C Report'!U$300:U$399),SUMIF('C Report'!$A$100:$A$199,'C Report Grouper'!$D22,'C Report'!U$100:U$199)) -> 0 | X22: =IF($D$4="MAP+ADM Waivers",SUMIF('C Report'!$A$100:$A$199,'C Report Grouper'!$D22,'C Report'!V$100:V$199)+SUMIF('C Report'!$A$300:$A$399,'C Report Grouper'!$D22,'C Report'!V$300:V$399),SUMIF('C Report'!$A$100:$A$199,'C Report Grouper'!$D22,'C Report'!V$100:V$199)) -> 0 | Y22: =IF($D$4="MAP+ADM Waivers",SUMIF('C Report'!$A$100:$A$199,'C Report Grouper'!$D22,'C Report'!W$100:W$199)+SUMIF('C Report'!$A$300:$A$399,'C Report Grouper'!$D22,'C Report'!W$300:W$399),SUMIF('C Report'!$A$100:$A$199,'C Report Grouper'!$D22,'C Report'!W$100:W$199)) -> 0 | Z22: =IF($D$4="MAP+ADM Waivers",SUMIF('C Report'!$A$100:$A$199,'C Report Grouper'!$D22,'C Report'!X$100:X$199)+SUMIF('C Report'!$A$300:$A$399,'C Report Grouper'!$D22,'C Report'!X$300:X$399),SUMIF('C Report'!$A$100:$A$199,'C Report Grouper'!$D22,'C Report'!X$100:X$199)) -> 0 | AA22: =IF($D$4="MAP+ADM Waivers",SUMIF('C Report'!$A$100:$A$199,'C Report Grouper'!$D22,'C Report'!Y$100:Y$199)+SUMIF('C Report'!$A$300:$A$399,'C Report Grouper'!$D22,'C Report'!Y$300:Y$399),SUMIF('C Report'!$A$100:$A$199,'C Report Grouper'!$D22,'C Report'!Y$100:Y$199)) -> 0 | AB22: =IF($D$4="MAP+ADM Waivers",SUMIF('C Report'!$A$100:$A$199,'C Report Grouper'!$D22,'C Report'!Z$100:Z$199)+SUMIF('C Report'!$A$300:$A$399,'C Report Grouper'!$D22,'C Report'!Z$300:Z$399),SUMIF('C Report'!$A$100:$A$199,'C Report Grouper'!$D22,'C Report'!Z$100:Z$199)) -> 0 | AC22: =IF($D$4="MAP+ADM Waivers",SUMIF('C Report'!$A$100:$A$199,'C Report Grouper'!$D22,'C Report'!AA$100:AA$199)+SUMIF('C Report'!$A$300:$A$399,'C Report Grouper'!$D22,'C Report'!AA$300:AA$399),SUMIF('C Report'!$A$100:$A$199,'C Report Grouper'!$D22,'C Report'!AA$100:AA$199)) -> 0 | AD22: =IF($D$4="MAP+ADM Waivers",SUMIF('C Report'!$A$100:$A$199,'C Report Grouper'!$D22,'C Report'!AB$100:AB$199)+SUMIF('C Report'!$A$300:$A$399,'C Report Grouper'!$D22,'C Report'!AB$300:AB$399),SUMIF('C Report'!$A$100:$A$199,'C Report Grouper'!$D22,'C Report'!AB$100:AB$199)) -> 0 | AE22: =IF($D$4="MAP+ADM Waivers",SUMIF('C Report'!$A$100:$A$199,'C Report Grouper'!$D22,'C Report'!AC$100:AC$199)+SUMIF('C Report'!$A$300:$A$399,'C Report Grouper'!$D22,'C Report'!AC$300:AC$399),SUMIF('C Report'!$A$100:$A$199,'C Report Grouper'!$D22,'C Report'!AC$100:AC$199)) -> 0 | AF22: =IF($D$4="MAP+ADM Waivers",SUMIF('C Report'!$A$100:$A$199,'C Report Grouper'!$D22,'C Report'!AD$100:AD$199)+SUMIF('C Report'!$A$300:$A$399,'C Report Grouper'!$D22,'C Report'!AD$300:AD$399),SUMIF('C Report'!$A$100:$A$199,'C Report Grouper'!$D22,'C Report'!AD$100:AD$199)) -> 0 | AG22: =IF($D$4="MAP+ADM Waivers",SUMIF('C Report'!$A$100:$A$199,'C Report Grouper'!$D22,'C Report'!AE$100:AE$199)+SUMIF('C Report'!$A$300:$A$399,'C Report Grouper'!$D22,'C Report'!AE$300:AE$399),SUMIF('C Report'!$A$100:$A$199,'C Report Grouper'!$D22,'C Report'!AE$100:AE$199)) -> 0 | AH22: =IF($D$4="MAP+ADM Waivers",SUMIF('C Report'!$A$100:$A$199,'C Report Grouper'!$D22,'C Report'!AF$100:AF$199)+SUMIF('C Report'!$A$300:$A$399,'C Report Grouper'!$D22,'C Report'!AF$300:AF$399),SUMIF('C Report'!$A$100:$A$199,'C Report Grouper'!$D22,'C Report'!AF$100:AF$199)) -> 0
B23: =IFERROR(VLOOKUP(C23,'MEG Def'!$A$23:$B$28,2),"") ->  | E23: =IF($D$4="MAP+ADM Waivers",SUMIF('C Report'!$A$100:$A$199,'C Report Grouper'!$D23,'C Report'!C$100:C$199)+SUMIF('C Report'!$A$300:$A$399,'C Report Grouper'!$D23,'C Report'!C$300:C$399),SUMIF('C Report'!$A$100:$A$199,'C Report Grouper'!$D23,'C Report'!C$100:C$199)) -> 0 | F23: =IF($D$4="MAP+ADM Waivers",SUMIF('C Report'!$A$100:$A$199,'C Report Grouper'!$D23,'C Report'!D$100:D$199)+SUMIF('C Report'!$A$300:$A$399,'C Report Grouper'!$D23,'C Report'!D$300:D$399),SUMIF('C Report'!$A$100:$A$199,'C Report Grouper'!$D23,'C Report'!D$100:D$199)) -> 0 | G23: =IF($D$4="MAP+ADM Waivers",SUMIF('C Report'!$A$100:$A$199,'C Report Grouper'!$D23,'C Report'!E$100:E$199)+SUMIF('C Report'!$A$300:$A$399,'C Report Grouper'!$D23,'C Report'!E$300:E$399),SUMIF('C Report'!$A$100:$A$199,'C Report Grouper'!$D23,'C Report'!E$100:E$199)) -> 0 | H23: =IF($D$4="MAP+ADM Waivers",SUMIF('C Report'!$A$100:$A$199,'C Report Grouper'!$D23,'C Report'!F$100:F$199)+SUMIF('C Report'!$A$300:$A$399,'C Report Grouper'!$D23,'C Report'!F$300:F$399),SUMIF('C Report'!$A$100:$A$199,'C Report Grouper'!$D23,'C Report'!F$100:F$199)) -> 0 | I23: =IF($D$4="MAP+ADM Waivers",SUMIF('C Report'!$A$100:$A$199,'C Report Grouper'!$D23,'C Report'!G$100:G$199)+SUMIF('C Report'!$A$300:$A$399,'C Report Grouper'!$D23,'C Report'!G$300:G$399),SUMIF('C Report'!$A$100:$A$199,'C Report Grouper'!$D23,'C Report'!G$100:G$199)) -> 0 | J23: =IF($D$4="MAP+ADM Waivers",SUMIF('C Report'!$A$100:$A$199,'C Report Grouper'!$D23,'C Report'!H$100:H$199)+SUMIF('C Report'!$A$300:$A$399,'C Report Grouper'!$D23,'C Report'!H$300:H$399),SUMIF('C Report'!$A$100:$A$199,'C Report Grouper'!$D23,'C Report'!H$100:H$199)) -> 0 | K23: =IF($D$4="MAP+ADM Waivers",SUMIF('C Report'!$A$100:$A$199,'C Report Grouper'!$D23,'C Report'!I$100:I$199)+SUMIF('C Report'!$A$300:$A$399,'C Report Grouper'!$D23,'C Report'!I$300:I$399),SUMIF('C Report'!$A$100:$A$199,'C Report Grouper'!$D23,'C Report'!I$100:I$199)) -> 0 | L23: =IF($D$4="MAP+ADM Waivers",SUMIF('C Report'!$A$100:$A$199,'C Report Grouper'!$D23,'C Report'!J$100:J$199)+SUMIF('C Report'!$A$300:$A$399,'C Report Grouper'!$D23,'C Report'!J$300:J$399),SUMIF('C Report'!$A$100:$A$199,'C Report Grouper'!$D23,'C Report'!J$100:J$199)) -> 0 | M23: =IF($D$4="MAP+ADM Waivers",SUMIF('C Report'!$A$100:$A$199,'C Report Grouper'!$D23,'C Report'!K$100:K$199)+SUMIF('C Report'!$A$300:$A$399,'C Report Grouper'!$D23,'C Report'!K$300:K$399),SUMIF('C Report'!$A$100:$A$199,'C Report Grouper'!$D23,'C Report'!K$100:K$199)) -> 0 | N23: =IF($D$4="MAP+ADM Waivers",SUMIF('C Report'!$A$100:$A$199,'C Report Grouper'!$D23,'C Report'!L$100:L$199)+SUMIF('C Report'!$A$300:$A$399,'C Report Grouper'!$D23,'C Report'!L$300:L$399),SUMIF('C Report'!$A$100:$A$199,'C Report Grouper'!$D23,'C Report'!L$100:L$199)) -> 0 | O23: =IF($D$4="MAP+ADM Waivers",SUMIF('C Report'!$A$100:$A$199,'C Report Grouper'!$D23,'C Report'!M$100:M$199)+SUMIF('C Report'!$A$300:$A$399,'C Report Grouper'!$D23,'C Report'!M$300:M$399),SUMIF('C Report'!$A$100:$A$199,'C Report Grouper'!$D23,'C Report'!M$100:M$199)) -> 0 | P23: =IF($D$4="MAP+ADM Waivers",SUMIF('C Report'!$A$100:$A$199,'C Report Grouper'!$D23,'C Report'!N$100:N$199)+SUMIF('C Report'!$A$300:$A$399,'C Report Grouper'!$D23,'C Report'!N$300:N$399),SUMIF('C Report'!$A$100:$A$199,'C Report Grouper'!$D23,'C Report'!N$100:N$199)) -> 0 | Q23: =IF($D$4="MAP+ADM Waivers",SUMIF('C Report'!$A$100:$A$199,'C Report Grouper'!$D23,'C Report'!O$100:O$199)+SUMIF('C Report'!$A$300:$A$399,'C Report Grouper'!$D23,'C Report'!O$300:O$399),SUMIF('C Report'!$A$100:$A$199,'C Report Grouper'!$D23,'C Report'!O$100:O$199)) -> 0 | R23: =IF($D$4="MAP+ADM Waivers",SUMIF('C Report'!$A$100:$A$199,'C Report Grouper'!$D23,'C Report'!P$100:P$199)+SUMIF('C Report'!$A$300:$A$399,'C Report Grouper'!$D23,'C Report'!P$300:P$399),SUMIF('C Report'!$A$100:$A$199,'C Report Grouper'!$D23,'C Report'!P$100:P$199)) -> 0 | S23: =IF($D$4="MAP+ADM Waivers",SUMIF('C Report'!$A$100:$A$199,'C Report Grouper'!$D23,'C Report'!Q$100:Q$199)+SUMIF('C Report'!$A$300:$A$399,'C Report Grouper'!$D23,'C Report'!Q$300:Q$399),SUMIF('C Report'!$A$100:$A$199,'C Report Grouper'!$D23,'C Report'!Q$100:Q$199)) -> 0 | T23: =IF($D$4="MAP+ADM Waivers",SUMIF('C Report'!$A$100:$A$199,'C Report Grouper'!$D23,'C Report'!R$100:R$199)+SUMIF('C Report'!$A$300:$A$399,'C Report Grouper'!$D23,'C Report'!R$300:R$399),SUMIF('C Report'!$A$100:$A$199,'C Report Grouper'!$D23,'C Report'!R$100:R$199)) -> 0 | U23: =IF($D$4="MAP+ADM Waivers",SUMIF('C Report'!$A$100:$A$199,'C Report Grouper'!$D23,'C Report'!S$100:S$199)+SUMIF('C Report'!$A$300:$A$399,'C Report Grouper'!$D23,'C Report'!S$300:S$399),SUMIF('C Report'!$A$100:$A$199,'C Report Grouper'!$D23,'C Report'!S$100:S$199)) -> 0 | V23: =IF($D$4="MAP+ADM Waivers",SUMIF('C Report'!$A$100:$A$199,'C Report Grouper'!$D23,'C Report'!T$100:T$199)+SUMIF('C Report'!$A$300:$A$399,'C Report Grouper'!$D23,'C Report'!T$300:T$399),SUMIF('C Report'!$A$100:$A$199,'C Report Grouper'!$D23,'C Report'!T$100:T$199)) -> 0 | W23: =IF($D$4="MAP+ADM Waivers",SUMIF('C Report'!$A$100:$A$199,'C Report Grouper'!$D23,'C Report'!U$100:U$199)+SUMIF('C Report'!$A$300:$A$399,'C Report Grouper'!$D23,'C Report'!U$300:U$399),SUMIF('C Report'!$A$100:$A$199,'C Report Grouper'!$D23,'C Report'!U$100:U$199)) -> 0 | X23: =IF($D$4="MAP+ADM Waivers",SUMIF('C Report'!$A$100:$A$199,'C Report Grouper'!$D23,'C Report'!V$100:V$199)+SUMIF('C Report'!$A$300:$A$399,'C Report Grouper'!$D23,'C Report'!V$300:V$399),SUMIF('C Report'!$A$100:$A$199,'C Report Grouper'!$D23,'C Report'!V$100:V$199)) -> 0 | Y23: =IF($D$4="MAP+ADM Waivers",SUMIF('C Report'!$A$100:$A$199,'C Report Grouper'!$D23,'C Report'!W$100:W$199)+SUMIF('C Report'!$A$300:$A$399,'C Report Grouper'!$D23,'C Report'!W$300:W$399),SUMIF('C Report'!$A$100:$A$199,'C Report Grouper'!$D23,'C Report'!W$100:W$199)) -> 0 | Z23: =IF($D$4="MAP+ADM Waivers",SUMIF('C Report'!$A$100:$A$199,'C Report Grouper'!$D23,'C Report'!X$100:X$199)+SUMIF('C Report'!$A$300:$A$399,'C Report Grouper'!$D23,'C Report'!X$300:X$399),SUMIF('C Report'!$A$100:$A$199,'C Report Grouper'!$D23,'C Report'!X$100:X$199)) -> 0 | AA23: =IF($D$4="MAP+ADM Waivers",SUMIF('C Report'!$A$100:$A$199,'C Report Grouper'!$D23,'C Report'!Y$100:Y$199)+SUMIF('C Report'!$A$300:$A$399,'C Report Grouper'!$D23,'C Report'!Y$300:Y$399),SUMIF('C Report'!$A$100:$A$199,'C Report Grouper'!$D23,'C Report'!Y$100:Y$199)) -> 0 | AB23: =IF($D$4="MAP+ADM Waivers",SUMIF('C Report'!$A$100:$A$199,'C Report Grouper'!$D23,'C Report'!Z$100:Z$199)+SUMIF('C Report'!$A$300:$A$399,'C Report Grouper'!$D23,'C Report'!Z$300:Z$399),SUMIF('C Report'!$A$100:$A$199,'C Report Grouper'!$D23,'C Report'!Z$100:Z$199)) -> 0 | AC23: =IF($D$4="MAP+ADM Waivers",SUMIF('C Report'!$A$100:$A$199,'C Report Grouper'!$D23,'C Report'!AA$100:AA$199)+SUMIF('C Report'!$A$300:$A$399,'C Report Grouper'!$D23,'C Report'!AA$300:AA$399),SUMIF('C Report'!$A$100:$A$199,'C Report Grouper'!$D23,'C Report'!AA$100:AA$199)) -> 0 | AD23: =IF($D$4="MAP+ADM Waivers",SUMIF('C Report'!$A$100:$A$199,'C Report Grouper'!$D23,'C Report'!AB$100:AB$199)+SUMIF('C Report'!$A$300:$A$399,'C Report Grouper'!$D23,'C Report'!AB$300:AB$399),SUMIF('C Report'!$A$100:$A$199,'C Report Grouper'!$D23,'C Report'!AB$100:AB$199)) -> 0 | AE23: =IF($D$4="MAP+ADM Waivers",SUMIF('C Report'!$A$100:$A$199,'C Report Grouper'!$D23,'C Report'!AC$100:AC$199)+SUMIF('C Report'!$A$300:$A$399,'C Report Grouper'!$D23,'C Report'!AC$300:AC$399),SUMIF('C Report'!$A$100:$A$199,'C Report Grouper'!$D23,'C Report'!AC$100:AC$199)) -> 0 | AF23: =IF($D$4="MAP+ADM Waivers",SUMIF('C Report'!$A$100:$A$199,'C Report Grouper'!$D23,'C Report'!AD$100:AD$199)+SUMIF('C Report'!$A$300:$A$399,'C Report Grouper'!$D23,'C Report'!AD$300:AD$399),SUMIF('C Report'!$A$100:$A$199,'C Report Grouper'!$D23,'C Report'!AD$100:AD$199)) -> 0 | AG23: =IF($D$4="MAP+ADM Waivers",SUMIF('C Report'!$A$100:$A$199,'C Report Grouper'!$D23,'C Report'!AE$100:AE$199)+SUMIF('C Report'!$A$300:$A$399,'C Report Grouper'!$D23,'C Report'!AE$300:AE$399),SUMIF('C Report'!$A$100:$A$199,'C Report Grouper'!$D23,'C Report'!AE$100:AE$199)) -> 0 | AH23: =IF($D$4="MAP+ADM Waivers",SUMIF('C Report'!$A$100:$A$199,'C Report Grouper'!$D23,'C Report'!AF$100:AF$199)+SUMIF('C Report'!$A$300:$A$399,'C Report Grouper'!$D23,'C Report'!AF$300:AF$399),SUMIF('C Report'!$A$100:$A$199,'C Report Grouper'!$D23,'C Report'!AF$100:AF$199)) -> 0
E24: =IF($D$4="MAP+ADM Waivers",SUMIF('C Report'!$A$100:$A$199,'C Report Grouper'!$D24,'C Report'!C$100:C$199)+SUMIF('C Report'!$A$300:$A$399,'C Report Grouper'!$D24,'C Report'!C$300:C$399),SUMIF('C Report'!$A$100:$A$199,'C Report Grouper'!$D24,'C Report'!C$100:C$199)) -> 0 | F24: =IF($D$4="MAP+ADM Waivers",SUMIF('C Report'!$A$100:$A$199,'C Report Grouper'!$D24,'C Report'!D$100:D$199)+SUMIF('C Report'!$A$300:$A$399,'C Report Grouper'!$D24,'C Report'!D$300:D$399),SUMIF('C Report'!$A$100:$A$199,'C Report Grouper'!$D24,'C Report'!D$100:D$199)) -> 0 | G24: =IF($D$4="MAP+ADM Waivers",SUMIF('C Report'!$A$100:$A$199,'C Report Grouper'!$D24,'C Report'!E$100:E$199)+SUMIF('C Report'!$A$300:$A$399,'C Report Grouper'!$D24,'C Report'!E$300:E$399),SUMIF('C Report'!$A$100:$A$199,'C Report Grouper'!$D24,'C Report'!E$100:E$199)) -> 0 | H24: =IF($D$4="MAP+ADM Waivers",SUMIF('C Report'!$A$100:$A$199,'C Report Grouper'!$D24,'C Report'!F$100:F$199)+SUMIF('C Report'!$A$300:$A$399,'C Report Grouper'!$D24,'C Report'!F$300:F$399),SUMIF('C Report'!$A$100:$A$199,'C Report Grouper'!$D24,'C Report'!F$100:F$199)) -> 0 | I24: =IF($D$4="MAP+ADM Waivers",SUMIF('C Report'!$A$100:$A$199,'C Report Grouper'!$D24,'C Report'!G$100:G$199)+SUMIF('C Report'!$A$300:$A$399,'C Report Grouper'!$D24,'C Report'!G$300:G$399),SUMIF('C Report'!$A$100:$A$199,'C Report Grouper'!$D24,'C Report'!G$100:G$199)) -> 0 | J24: =IF($D$4="MAP+ADM Waivers",SUMIF('C Report'!$A$100:$A$199,'C Report Grouper'!$D24,'C Report'!H$100:H$199)+SUMIF('C Report'!$A$300:$A$399,'C Report Grouper'!$D24,'C Report'!H$300:H$399),SUMIF('C Report'!$A$100:$A$199,'C Report Grouper'!$D24,'C Report'!H$100:H$199)) -> 0 | K24: =IF($D$4="MAP+ADM Waivers",SUMIF('C Report'!$A$100:$A$199,'C Report Grouper'!$D24,'C Report'!I$100:I$199)+SUMIF('C Report'!$A$300:$A$399,'C Report Grouper'!$D24,'C Report'!I$300:I$399),SUMIF('C Report'!$A$100:$A$199,'C Report Grouper'!$D24,'C Report'!I$100:I$199)) -> 0 | L24: =IF($D$4="MAP+ADM Waivers",SUMIF('C Report'!$A$100:$A$199,'C Report Grouper'!$D24,'C Report'!J$100:J$199)+SUMIF('C Report'!$A$300:$A$399,'C Report Grouper'!$D24,'C Report'!J$300:J$399),SUMIF('C Report'!$A$100:$A$199,'C Report Grouper'!$D24,'C Report'!J$100:J$199)) -> 0 | M24: =IF($D$4="MAP+ADM Waivers",SUMIF('C Report'!$A$100:$A$199,'C Report Grouper'!$D24,'C Report'!K$100:K$199)+SUMIF('C Report'!$A$300:$A$399,'C Report Grouper'!$D24,'C Report'!K$300:K$399),SUMIF('C Report'!$A$100:$A$199,'C Report Grouper'!$D24,'C Report'!K$100:K$199)) -> 0 | N24: =IF($D$4="MAP+ADM Waivers",SUMIF('C Report'!$A$100:$A$199,'C Report Grouper'!$D24,'C Report'!L$100:L$199)+SUMIF('C Report'!$A$300:$A$399,'C Report Grouper'!$D24,'C Report'!L$300:L$399),SUMIF('C Report'!$A$100:$A$199,'C Report Grouper'!$D24,'C Report'!L$100:L$199)) -> 0 | O24: =IF($D$4="MAP+ADM Waivers",SUMIF('C Report'!$A$100:$A$199,'C Report Grouper'!$D24,'C Report'!M$100:M$199)+SUMIF('C Report'!$A$300:$A$399,'C Report Grouper'!$D24,'C Report'!M$300:M$399),SUMIF('C Report'!$A$100:$A$199,'C Report Grouper'!$D24,'C Report'!M$100:M$199)) -> 0 | P24: =IF($D$4="MAP+ADM Waivers",SUMIF('C Report'!$A$100:$A$199,'C Report Grouper'!$D24,'C Report'!N$100:N$199)+SUMIF('C Report'!$A$300:$A$399,'C Report Grouper'!$D24,'C Report'!N$300:N$399),SUMIF('C Report'!$A$100:$A$199,'C Report Grouper'!$D24,'C Report'!N$100:N$199)) -> 0 | Q24: =IF($D$4="MAP+ADM Waivers",SUMIF('C Report'!$A$100:$A$199,'C Report Grouper'!$D24,'C Report'!O$100:O$199)+SUMIF('C Report'!$A$300:$A$399,'C Report Grouper'!$D24,'C Report'!O$300:O$399),SUMIF('C Report'!$A$100:$A$199,'C Report Grouper'!$D24,'C Report'!O$100:O$199)) -> 0 | R24: =IF($D$4="MAP+ADM Waivers",SUMIF('C Report'!$A$100:$A$199,'C Report Grouper'!$D24,'C Report'!P$100:P$199)+SUMIF('C Report'!$A$300:$A$399,'C Report Grouper'!$D24,'C Report'!P$300:P$399),SUMIF('C Report'!$A$100:$A$199,'C Report Grouper'!$D24,'C Report'!P$100:P$199)) -> 0 | S24: =IF($D$4="MAP+ADM Waivers",SUMIF('C Report'!$A$100:$A$199,'C Report Grouper'!$D24,'C Report'!Q$100:Q$199)+SUMIF('C Report'!$A$300:$A$399,'C Report Grouper'!$D24,'C Report'!Q$300:Q$399),SUMIF('C Report'!$A$100:$A$199,'C Report Grouper'!$D24,'C Report'!Q$100:Q$199)) -> 0 | T24: =IF($D$4="MAP+ADM Waivers",SUMIF('C Report'!$A$100:$A$199,'C Report Grouper'!$D24,'C Report'!R$100:R$199)+SUMIF('C Report'!$A$300:$A$399,'C Report Grouper'!$D24,'C Report'!R$300:R$399),SUMIF('C Report'!$A$100:$A$199,'C Report Grouper'!$D24,'C Report'!R$100:R$199)) -> 0 | U24: =IF($D$4="MAP+ADM Waivers",SUMIF('C Report'!$A$100:$A$199,'C Report Grouper'!$D24,'C Report'!S$100:S$199)+SUMIF('C Report'!$A$300:$A$399,'C Report Grouper'!$D24,'C Report'!S$300:S$399),SUMIF('C Report'!$A$100:$A$199,'C Report Grouper'!$D24,'C Report'!S$100:S$199)) -> 0 | V24: =IF($D$4="MAP+ADM Waivers",SUMIF('C Report'!$A$100:$A$199,'C Report Grouper'!$D24,'C Report'!T$100:T$199)+SUMIF('C Report'!$A$300:$A$399,'C Report Grouper'!$D24,'C Report'!T$300:T$399),SUMIF('C Report'!$A$100:$A$199,'C Report Grouper'!$D24,'C Report'!T$100:T$199)) -> 0 | W24: =IF($D$4="MAP+ADM Waivers",SUMIF('C Report'!$A$100:$A$199,'C Report Grouper'!$D24,'C Report'!U$100:U$199)+SUMIF('C Report'!$A$300:$A$399,'C Report Grouper'!$D24,'C Report'!U$300:U$399),SUMIF('C Report'!$A$100:$A$199,'C Report Grouper'!$D24,'C Report'!U$100:U$199)) -> 0 | X24: =IF($D$4="MAP+ADM Waivers",SUMIF('C Report'!$A$100:$A$199,'C Report Grouper'!$D24,'C Report'!V$100:V$199)+SUMIF('C Report'!$A$300:$A$399,'C Report Grouper'!$D24,'C Report'!V$300:V$399),SUMIF('C Report'!$A$100:$A$199,'C Report Grouper'!$D24,'C Report'!V$100:V$199)) -> 0 | Y24: =IF($D$4="MAP+ADM Waivers",SUMIF('C Report'!$A$100:$A$199,'C Report Grouper'!$D24,'C Report'!W$100:W$199)+SUMIF('C Report'!$A$300:$A$399,'C Report Grouper'!$D24,'C Report'!W$300:W$399),SUMIF('C Report'!$A$100:$A$199,'C Report Grouper'!$D24,'C Report'!W$100:W$199)) -> 0 | Z24: =IF($D$4="MAP+ADM Waivers",SUMIF('C Report'!$A$100:$A$199,'C Report Grouper'!$D24,'C Report'!X$100:X$199)+SUMIF('C Report'!$A$300:$A$399,'C Report Grouper'!$D24,'C Report'!X$300:X$399),SUMIF('C Report'!$A$100:$A$199,'C Report Grouper'!$D24,'C Report'!X$100:X$199)) -> 0 | AA24: =IF($D$4="MAP+ADM Waivers",SUMIF('C Report'!$A$100:$A$199,'C Report Grouper'!$D24,'C Report'!Y$100:Y$199)+SUMIF('C Report'!$A$300:$A$399,'C Report Grouper'!$D24,'C Report'!Y$300:Y$399),SUMIF('C Report'!$A$100:$A$199,'C Report Grouper'!$D24,'C Report'!Y$100:Y$199)) -> 0 | AB24: =IF($D$4="MAP+ADM Waivers",SUMIF('C Report'!$A$100:$A$199,'C Report Grouper'!$D24,'C Report'!Z$100:Z$199)+SUMIF('C Report'!$A$300:$A$399,'C Report Grouper'!$D24,'C Report'!Z$300:Z$399),SUMIF('C Report'!$A$100:$A$199,'C Report Grouper'!$D24,'C Report'!Z$100:Z$199)) -> 0 | AC24: =IF($D$4="MAP+ADM Waivers",SUMIF('C Report'!$A$100:$A$199,'C Report Grouper'!$D24,'C Report'!AA$100:AA$199)+SUMIF('C Report'!$A$300:$A$399,'C Report Grouper'!$D24,'C Report'!AA$300:AA$399),SUMIF('C Report'!$A$100:$A$199,'C Report Grouper'!$D24,'C Report'!AA$100:AA$199)) -> 0 | AD24: =IF($D$4="MAP+ADM Waivers",SUMIF('C Report'!$A$100:$A$199,'C Report Grouper'!$D24,'C Report'!AB$100:AB$199)+SUMIF('C Report'!$A$300:$A$399,'C Report Grouper'!$D24,'C Report'!AB$300:AB$399),SUMIF('C Report'!$A$100:$A$199,'C Report Grouper'!$D24,'C Report'!AB$100:AB$199)) -> 0 | AE24: =IF($D$4="MAP+ADM Waivers",SUMIF('C Report'!$A$100:$A$199,'C Report Grouper'!$D24,'C Report'!AC$100:AC$199)+SUMIF('C Report'!$A$300:$A$399,'C Report Grouper'!$D24,'C Report'!AC$300:AC$399),SUMIF('C Report'!$A$100:$A$199,'C Report Grouper'!$D24,'C Report'!AC$100:AC$199)) -> 0 | AF24: =IF($D$4="MAP+ADM Waivers",SUMIF('C Report'!$A$100:$A$199,'C Report Grouper'!$D24,'C Report'!AD$100:AD$199)+SUMIF('C Report'!$A$300:$A$399,'C Report Grouper'!$D24,'C Report'!AD$300:AD$399),SUMIF('C Report'!$A$100:$A$199,'C Report Grouper'!$D24,'C Report'!AD$100:AD$199)) -> 0 | AG24: =IF($D$4="MAP+ADM Waivers",SUMIF('C Report'!$A$100:$A$199,'C Report Grouper'!$D24,'C Report'!AE$100:AE$199)+SUMIF('C Report'!$A$300:$A$399,'C Report Grouper'!$D24,'C Report'!AE$300:AE$399),SUMIF('C Report'!$A$100:$A$199,'C Report Grouper'!$D24,'C Report'!AE$100:AE$199)) -> 0 | AH24: =IF($D$4="MAP+ADM Waivers",SUMIF('C Report'!$A$100:$A$199,'C Report Grouper'!$D24,'C Report'!AF$100:AF$199)+SUMIF('C Report'!$A$300:$A$399,'C Report Grouper'!$D24,'C Report'!AF$300:AF$399),SUMIF('C Report'!$A$100:$A$199,'C Report Grouper'!$D24,'C Report'!AF$100:AF$199)) -> 0
B25: Medicaid Aggregate - WW only | E25: =IF($D$4="MAP+ADM Waivers",SUMIF('C Report'!$A$100:$A$199,'C Report Grouper'!$D25,'C Report'!C$100:C$199)+SUMIF('C Report'!$A$300:$A$399,'C Report Grouper'!$D25,'C Report'!C$300:C$399),SUMIF('C Report'!$A$100:$A$199,'C Report Grouper'!$D25,'C Report'!C$100:C$199)) -> 0 | F25: =IF($D$4="MAP+ADM Waivers",SUMIF('C Report'!$A$100:$A$199,'C Report Grouper'!$D25,'C Report'!D$100:D$199)+SUMIF('C Report'!$A$300:$A$399,'C Report Grouper'!$D25,'C Report'!D$300:D$399),SUMIF('C Report'!$A$100:$A$199,'C Report Grouper'!$D25,'C Report'!D$100:D$199)) -> 0 | G25: =IF($D$4="MAP+ADM Waivers",SUMIF('C Report'!$A$100:$A$199,'C Report Grouper'!$D25,'C Report'!E$100:E$199)+SUMIF('C Report'!$A$300:$A$399,'C Report Grouper'!$D25,'C Report'!E$300:E$399),SUMIF('C Report'!$A$100:$A$199,'C Report Grouper'!$D25,'C Report'!E$100:E$199)) -> 0 | H25: =IF($D$4="MAP+ADM Waivers",SUMIF('C Report'!$A$100:$A$199,'C Report Grouper'!$D25,'C Report'!F$100:F$199)+SUMIF('C Report'!$A$300:$A$399,'C Report Grouper'!$D25,'C Report'!F$300:F$399),SUMIF('C Report'!$A$100:$A$199,'C Report Grouper'!$D25,'C Report'!F$100:F$199)) -> 0 | I25: =IF($D$4="MAP+ADM Waivers",SUMIF('C Report'!$A$100:$A$199,'C Report Grouper'!$D25,'C Report'!G$100:G$199)+SUMIF('C Report'!$A$300:$A$399,'C Report Grouper'!$D25,'C Report'!G$300:G$399),SUMIF('C Report'!$A$100:$A$199,'C Report Grouper'!$D25,'C Report'!G$100:G$199)) -> 0 | J25: =IF($D$4="MAP+ADM Waivers",SUMIF('C Report'!$A$100:$A$199,'C Report Grouper'!$D25,'C Report'!H$100:H$199)+SUMIF('C Report'!$A$300:$A$399,'C Report Grouper'!$D25,'C Report'!H$300:H$399),SUMIF('C Report'!$A$100:$A$199,'C Report Grouper'!$D25,'C Report'!H$100:H$199)) -> 0 | K25: =IF($D$4="MAP+ADM Waivers",SUMIF('C Report'!$A$100:$A$199,'C Report Grouper'!$D25,'C Report'!I$100:I$199)+SUMIF('C Report'!$A$300:$A$399,'C Report Grouper'!$D25,'C Report'!I$300:I$399),SUMIF('C Report'!$A$100:$A$199,'C Report Grouper'!$D25,'C Report'!I$100:I$199)) -> 0 | L25: =IF($D$4="MAP+ADM Waivers",SUMIF('C Report'!$A$100:$A$199,'C Report Grouper'!$D25,'C Report'!J$100:J$199)+SUMIF('C Report'!$A$300:$A$399,'C Report Grouper'!$D25,'C Report'!J$300:J$399),SUMIF('C Report'!$A$100:$A$199,'C Report Grouper'!$D25,'C Report'!J$100:J$199)) -> 0 | M25: =IF($D$4="MAP+ADM Waivers",SUMIF('C Report'!$A$100:$A$199,'C Report Grouper'!$D25,'C Report'!K$100:K$199)+SUMIF('C Report'!$A$300:$A$399,'C Report Grouper'!$D25,'C Report'!K$300:K$399),SUMIF('C Report'!$A$100:$A$199,'C Report Grouper'!$D25,'C Report'!K$100:K$199)) -> 0 | N25: =IF($D$4="MAP+ADM Waivers",SUMIF('C Report'!$A$100:$A$199,'C Report Grouper'!$D25,'C Report'!L$100:L$199)+SUMIF('C Report'!$A$300:$A$399,'C Report Grouper'!$D25,'C Report'!L$300:L$399),SUMIF('C Report'!$A$100:$A$199,'C Report Grouper'!$D25,'C Report'!L$100:L$199)) -> 0 | O25: =IF($D$4="MAP+ADM Waivers",SUMIF('C Report'!$A$100:$A$199,'C Report Grouper'!$D25,'C Report'!M$100:M$199)+SUMIF('C Report'!$A$300:$A$399,'C Report Grouper'!$D25,'C Report'!M$300:M$399),SUMIF('C Report'!$A$100:$A$199,'C Report Grouper'!$D25,'C Report'!M$100:M$199)) -> 0 | P25: =IF($D$4="MAP+ADM Waivers",SUMIF('C Report'!$A$100:$A$199,'C Report Grouper'!$D25,'C Report'!N$100:N$199)+SUMIF('C Report'!$A$300:$A$399,'C Report Grouper'!$D25,'C Report'!N$300:N$399),SUMIF('C Report'!$A$100:$A$199,'C Report Grouper'!$D25,'C Report'!N$100:N$199)) -> 0 | Q25: =IF($D$4="MAP+ADM Waivers",SUMIF('C Report'!$A$100:$A$199,'C Report Grouper'!$D25,'C Report'!O$100:O$199)+SUMIF('C Report'!$A$300:$A$399,'C Report Grouper'!$D25,'C Report'!O$300:O$399),SUMIF('C Report'!$A$100:$A$199,'C Report Grouper'!$D25,'C Report'!O$100:O$199)) -> 0 | R25: =IF($D$4="MAP+ADM Waivers",SUMIF('C Report'!$A$100:$A$199,'C Report Grouper'!$D25,'C Report'!P$100:P$199)+SUMIF('C Report'!$A$300:$A$399,'C Report Grouper'!$D25,'C Report'!P$300:P$399),SUMIF('C Report'!$A$100:$A$199,'C Report Grouper'!$D25,'C Report'!P$100:P$199)) -> 0 | S25: =IF($D$4="MAP+ADM Waivers",SUMIF('C Report'!$A$100:$A$199,'C Report Grouper'!$D25,'C Report'!Q$100:Q$199)+SUMIF('C Report'!$A$300:$A$399,'C Report Grouper'!$D25,'C Report'!Q$300:Q$399),SUMIF('C Report'!$A$100:$A$199,'C Report Grouper'!$D25,'C Report'!Q$100:Q$199)) -> 0 | T25: =IF($D$4="MAP+ADM Waivers",SUMIF('C Report'!$A$100:$A$199,'C Report Grouper'!$D25,'C Report'!R$100:R$199)+SUMIF('C Report'!$A$300:$A$399,'C Report Grouper'!$D25,'C Report'!R$300:R$399),SUMIF('C Report'!$A$100:$A$199,'C Report Grouper'!$D25,'C Report'!R$100:R$199)) -> 0 | U25: =IF($D$4="MAP+ADM Waivers",SUMIF('C Report'!$A$100:$A$199,'C Report Grouper'!$D25,'C Report'!S$100:S$199)+SUMIF('C Report'!$A$300:$A$399,'C Report Grouper'!$D25,'C Report'!S$300:S$399),SUMIF('C Report'!$A$100:$A$199,'C Report Grouper'!$D25,'C Report'!S$100:S$199)) -> 0 | V25: =IF($D$4="MAP+ADM Waivers",SUMIF('C Report'!$A$100:$A$199,'C Report Grouper'!$D25,'C Report'!T$100:T$199)+SUMIF('C Report'!$A$300:$A$399,'C Report Grouper'!$D25,'C Report'!T$300:T$399),SUMIF('C Report'!$A$100:$A$199,'C Report Grouper'!$D25,'C Report'!T$100:T$199)) -> 0 | W25: =IF($D$4="MAP+ADM Waivers",SUMIF('C Report'!$A$100:$A$199,'C Report Grouper'!$D25,'C Report'!U$100:U$199)+SUMIF('C Report'!$A$300:$A$399,'C Report Grouper'!$D25,'C Report'!U$300:U$399),SUMIF('C Report'!$A$100:$A$199,'C Report Grouper'!$D25,'C Report'!U$100:U$199)) -> 0 | X25: =IF($D$4="MAP+ADM Waivers",SUMIF('C Report'!$A$100:$A$199,'C Report Grouper'!$D25,'C Report'!V$100:V$199)+SUMIF('C Report'!$A$300:$A$399,'C Report Grouper'!$D25,'C Report'!V$300:V$399),SUMIF('C Report'!$A$100:$A$199,'C Report Grouper'!$D25,'C Report'!V$100:V$199)) -> 0 | Y25: =IF($D$4="MAP+ADM Waivers",SUMIF('C Report'!$A$100:$A$199,'C Report Grouper'!$D25,'C Report'!W$100:W$199)+SUMIF('C Report'!$A$300:$A$399,'C Report Grouper'!$D25,'C Report'!W$300:W$399),SUMIF('C Report'!$A$100:$A$199,'C Report Grouper'!$D25,'C Report'!W$100:W$199)) -> 0 | Z25: =IF($D$4="MAP+ADM Waivers",SUMIF('C Report'!$A$100:$A$199,'C Report Grouper'!$D25,'C Report'!X$100:X$199)+SUMIF('C Report'!$A$300:$A$399,'C Report Grouper'!$D25,'C Report'!X$300:X$399),SUMIF('C Report'!$A$100:$A$199,'C Report Grouper'!$D25,'C Report'!X$100:X$199)) -> 0 | AA25: =IF($D$4="MAP+ADM Waivers",SUMIF('C Report'!$A$100:$A$199,'C Report Grouper'!$D25,'C Report'!Y$100:Y$199)+SUMIF('C Report'!$A$300:$A$399,'C Report Grouper'!$D25,'C Report'!Y$300:Y$399),SUMIF('C Report'!$A$100:$A$199,'C Report Grouper'!$D25,'C Report'!Y$100:Y$199)) -> 0 | AB25: =IF($D$4="MAP+ADM Waivers",SUMIF('C Report'!$A$100:$A$199,'C Report Grouper'!$D25,'C Report'!Z$100:Z$199)+SUMIF('C Report'!$A$300:$A$399,'C Report Grouper'!$D25,'C Report'!Z$300:Z$399),SUMIF('C Report'!$A$100:$A$199,'C Report Grouper'!$D25,'C Report'!Z$100:Z$199)) -> 0 | AC25: =IF($D$4="MAP+ADM Waivers",SUMIF('C Report'!$A$100:$A$199,'C Report Grouper'!$D25,'C Report'!AA$100:AA$199)+SUMIF('C Report'!$A$300:$A$399,'C Report Grouper'!$D25,'C Report'!AA$300:AA$399),SUMIF('C Report'!$A$100:$A$199,'C Report Grouper'!$D25,'C Report'!AA$100:AA$199)) -> 0 | AD25: =IF($D$4="MAP+ADM Waivers",SUMIF('C Report'!$A$100:$A$199,'C Report Grouper'!$D25,'C Report'!AB$100:AB$199)+SUMIF('C Report'!$A$300:$A$399,'C Report Grouper'!$D25,'C Report'!AB$300:AB$399),SUMIF('C Report'!$A$100:$A$199,'C Report Grouper'!$D25,'C Report'!AB$100:AB$199)) -> 0 | AE25: =IF($D$4="MAP+ADM Waivers",SUMIF('C Report'!$A$100:$A$199,'C Report Grouper'!$D25,'C Report'!AC$100:AC$199)+SUMIF('C Report'!$A$300:$A$399,'C Report Grouper'!$D25,'C Report'!AC$300:AC$399),SUMIF('C Report'!$A$100:$A$199,'C Report Grouper'!$D25,'C Report'!AC$100:AC$199)) -> 0 | AF25: =IF($D$4="MAP+ADM Waivers",SUMIF('C Report'!$A$100:$A$199,'C Report Grouper'!$D25,'C Report'!AD$100:AD$199)+SUMIF('C Report'!$A$300:$A$399,'C Report Grouper'!$D25,'C Report'!AD$300:AD$399),SUMIF('C Report'!$A$100:$A$199,'C Report Grouper'!$D25,'C Report'!AD$100:AD$199)) -> 0 | AG25: =IF($D$4="MAP+ADM Waivers",SUMIF('C Report'!$A$100:$A$199,'C Report Grouper'!$D25,'C Report'!AE$100:AE$199)+SUMIF('C Report'!$A$300:$A$399,'C Report Grouper'!$D25,'C Report'!AE$300:AE$399),SUMIF('C Report'!$A$100:$A$199,'C Report Grouper'!$D25,'C Report'!AE$100:AE$199)) -> 0 | AH25: =IF($D$4="MAP+ADM Waivers",SUMIF('C Report'!$A$100:$A$199,'C Report Grouper'!$D25,'C Report'!AF$100:AF$199)+SUMIF('C Report'!$A$300:$A$399,'C Report Grouper'!$D25,'C Report'!AF$300:AF$399),SUMIF('C Report'!$A$100:$A$199,'C Report Grouper'!$D25,'C Report'!AF$100:AF$199)) -> 0
B26: =IFERROR(VLOOKUP(C26,'MEG Def'!$A$37:$B$57,2),"") -> e-Family Assistance | C26: 1 | D26: e-Family Assistance | E26: =IF($D$4="MAP+ADM Waivers",SUMIF('C Report'!$A$100:$A$199,'C Report Grouper'!$D26,'C Report'!C$100:C$199)+SUMIF('C Report'!$A$300:$A$399,'C Report Grouper'!$D26,'C Report'!C$300:C$399),SUMIF('C Report'!$A$100:$A$199,'C Report Grouper'!$D26,'C Report'!C$100:C$199)) -> 0 | F26: =IF($D$4="MAP+ADM Waivers",SUMIF('C Report'!$A$100:$A$199,'C Report Grouper'!$D26,'C Report'!D$100:D$199)+SUMIF('C Report'!$A$300:$A$399,'C Report Grouper'!$D26,'C Report'!D$300:D$399),SUMIF('C Report'!$A$100:$A$199,'C Report Grouper'!$D26,'C Report'!D$100:D$199)) -> 0 | G26: =IF($D$4="MAP+ADM Waivers",SUMIF('C Report'!$A$100:$A$199,'C Report Grouper'!$D26,'C Report'!E$100:E$199)+SUMIF('C Report'!$A$300:$A$399,'C Report Grouper'!$D26,'C Report'!E$300:E$399),SUMIF('C Report'!$A$100:$A$199,'C Report Grouper'!$D26,'C Report'!E$100:E$199)) -> 0 | H26: =IF($D$4="MAP+ADM Waivers",SUMIF('C Report'!$A$100:$A$199,'C Report Grouper'!$D26,'C Report'!F$100:F$199)+SUMIF('C Report'!$A$300:$A$399,'C Report Grouper'!$D26,'C Report'!F$300:F$399),SUMIF('C Report'!$A$100:$A$199,'C Report Grouper'!$D26,'C Report'!F$100:F$199)) -> 0 | I26: =IF($D$4="MAP+ADM Waivers",SUMIF('C Report'!$A$100:$A$199,'C Report Grouper'!$D26,'C Report'!G$100:G$199)+SUMIF('C Report'!$A$300:$A$399,'C Report Grouper'!$D26,'C Report'!G$300:G$399),SUMIF('C Report'!$A$100:$A$199,'C Report Grouper'!$D26,'C Report'!G$100:G$199)) -> 0 | J26: =IF($D$4="MAP+ADM Waivers",SUMIF('C Report'!$A$100:$A$199,'C Report Grouper'!$D26,'C Report'!H$100:H$199)+SUMIF('C Report'!$A$300:$A$399,'C Report Grouper'!$D26,'C Report'!H$300:H$399),SUMIF('C Report'!$A$100:$A$199,'C Report Grouper'!$D26,'C Report'!H$100:H$199)) -> 0 | K26: =IF($D$4="MAP+ADM Waivers",SUMIF('C Report'!$A$100:$A$199,'C Report Grouper'!$D26,'C Report'!I$100:I$199)+SUMIF('C Report'!$A$300:$A$399,'C Report Grouper'!$D26,'C Report'!I$300:I$399),SUMIF('C Report'!$A$100:$A$199,'C Report Grouper'!$D26,'C Report'!I$100:I$199)) -> 7 | L26: =IF($D$4="MAP+ADM Waivers",SUMIF('C Report'!$A$100:$A$199,'C Report Grouper'!$D26,'C Report'!J$100:J$199)+SUMIF('C Report'!$A$300:$A$399,'C Report Grouper'!$D26,'C Report'!J$300:J$399),SUMIF('C Report'!$A$100:$A$199,'C Report Grouper'!$D26,'C Report'!J$100:J$199)) -> 42938 | M26: =IF($D$4="MAP+ADM Waivers",SUMIF('C Report'!$A$100:$A$199,'C Report Grouper'!$D26,'C Report'!K$100:K$199)+SUMIF('C Report'!$A$300:$A$399,'C Report Grouper'!$D26,'C Report'!K$300:K$399),SUMIF('C Report'!$A$100:$A$199,'C Report Grouper'!$D26,'C Report'!K$100:K$199)) -> 3503369 | N26: =IF($D$4="MAP+ADM Waivers",SUMIF('C Report'!$A$100:$A$199,'C Report Grouper'!$D26,'C Report'!L$100:L$199)+SUMIF('C Report'!$A$300:$A$399,'C Report Grouper'!$D26,'C Report'!L$300:L$399),SUMIF('C Report'!$A$100:$A$199,'C Report Grouper'!$D26,'C Report'!L$100:L$199)) -> 3919053 | O26: =IF($D$4="MAP+ADM Waivers",SUMIF('C Report'!$A$100:$A$199,'C Report Grouper'!$D26,'C Report'!M$100:M$199)+SUMIF('C Report'!$A$300:$A$399,'C Report Grouper'!$D26,'C Report'!M$300:M$399),SUMIF('C Report'!$A$100:$A$199,'C Report Grouper'!$D26,'C Report'!M$100:M$199)) -> 5809164 | P26: =IF($D$4="MAP+ADM Waivers",SUMIF('C Report'!$A$100:$A$199,'C Report Grouper'!$D26,'C Report'!N$100:N$199)+SUMIF('C Report'!$A$300:$A$399,'C Report Grouper'!$D26,'C Report'!N$300:N$399),SUMIF('C Report'!$A$100:$A$199,'C Report Grouper'!$D26,'C Report'!N$100:N$199)) -> 6864268 | Q26: =IF($D$4="MAP+ADM Waivers",SUMIF('C Report'!$A$100:$A$199,'C Report Grouper'!$D26,'C Report'!O$100:O$199)+SUMIF('C Report'!$A$300:$A$399,'C Report Grouper'!$D26,'C Report'!O$300:O$399),SUMIF('C Report'!$A$100:$A$199,'C Report Grouper'!$D26,'C Report'!O$100:O$199)) -> 11672531 | R26: =IF($D$4="MAP+ADM Waivers",SUMIF('C Report'!$A$100:$A$199,'C Report Grouper'!$D26,'C Report'!P$100:P$199)+SUMIF('C Report'!$A$300:$A$399,'C Report Grouper'!$D26,'C Report'!P$300:P$399),SUMIF('C Report'!$A$100:$A$199,'C Report Grouper'!$D26,'C Report'!P$100:P$199)) -> 13420464 | S26: =IF($D$4="MAP+ADM Waivers",SUMIF('C Report'!$A$100:$A$199,'C Report Grouper'!$D26,'C Report'!Q$100:Q$199)+SUMIF('C Report'!$A$300:$A$399,'C Report Grouper'!$D26,'C Report'!Q$300:Q$399),SUMIF('C Report'!$A$100:$A$199,'C Report Grouper'!$D26,'C Report'!Q$100:Q$199)) -> 0 | T26: =IF($D$4="MAP+ADM Waivers",SUMIF('C Report'!$A$100:$A$199,'C Report Grouper'!$D26,'C Report'!R$100:R$199)+SUMIF('C Report'!$A$300:$A$399,'C Report Grouper'!$D26,'C Report'!R$300:R$399),SUMIF('C Report'!$A$100:$A$199,'C Report Grouper'!$D26,'C Report'!R$100:R$199)) -> 0 | U26: =IF($D$4="MAP+ADM Waivers",SUMIF('C Report'!$A$100:$A$199,'C Report Grouper'!$D26,'C Report'!S$100:S$199)+SUMIF('C Report'!$A$300:$A$399,'C Report Grouper'!$D26,'C Report'!S$300:S$399),SUMIF('C Report'!$A$100:$A$199,'C Report Grouper'!$D26,'C Report'!S$100:S$199)) -> 0 | V26: =IF($D$4="MAP+ADM Waivers",SUMIF('C Report'!$A$100:$A$199,'C Report Grouper'!$D26,'C Report'!T$100:T$199)+SUMIF('C Report'!$A$300:$A$399,'C Report Grouper'!$D26,'C Report'!T$300:T$399),SUMIF('C Report'!$A$100:$A$199,'C Report Grouper'!$D26,'C Report'!T$100:T$199)) -> 0 | W26: =IF($D$4="MAP+ADM Waivers",SUMIF('C Report'!$A$100:$A$199,'C Report Grouper'!$D26,'C Report'!U$100:U$199)+SUMIF('C Report'!$A$300:$A$399,'C Report Grouper'!$D26,'C Report'!U$300:U$399),SUMIF('C Report'!$A$100:$A$199,'C Report Grouper'!$D26,'C Report'!U$100:U$199)) -> 0 | X26: =IF($D$4="MAP+ADM Waivers",SUMIF('C Report'!$A$100:$A$199,'C Report Grouper'!$D26,'C Report'!V$100:V$199)+SUMIF('C Report'!$A$300:$A$399,'C Report Grouper'!$D26,'C Report'!V$300:V$399),SUMIF('C Report'!$A$100:$A$199,'C Report Grouper'!$D26,'C Report'!V$100:V$199)) -> 0 | Y26: =IF($D$4="MAP+ADM Waivers",SUMIF('C Report'!$A$100:$A$199,'C Report Grouper'!$D26,'C Report'!W$100:W$199)+SUMIF('C Report'!$A$300:$A$399,'C Report Grouper'!$D26,'C Report'!W$300:W$399),SUMIF('C Report'!$A$100:$A$199,'C Report Grouper'!$D26,'C Report'!W$100:W$199)) -> 0 | Z26: =IF($D$4="MAP+ADM Waivers",SUMIF('C Report'!$A$100:$A$199,'C Report Grouper'!$D26,'C Report'!X$100:X$199)+SUMIF('C Report'!$A$300:$A$399,'C Report Grouper'!$D26,'C Report'!X$300:X$399),SUMIF('C Report'!$A$100:$A$199,'C Report Grouper'!$D26,'C Report'!X$100:X$199)) -> 0 | AA26: =IF($D$4="MAP+ADM Waivers",SUMIF('C Report'!$A$100:$A$199,'C Report Grouper'!$D26,'C Report'!Y$100:Y$199)+SUMIF('C Report'!$A$300:$A$399,'C Report Grouper'!$D26,'C Report'!Y$300:Y$399),SUMIF('C Report'!$A$100:$A$199,'C Report Grouper'!$D26,'C Report'!Y$100:Y$199)) -> 0 | AB26: =IF($D$4="MAP+ADM Waivers",SUMIF('C Report'!$A$100:$A$199,'C Report Grouper'!$D26,'C Report'!Z$100:Z$199)+SUMIF('C Report'!$A$300:$A$399,'C Report Grouper'!$D26,'C Report'!Z$300:Z$399),SUMIF('C Report'!$A$100:$A$199,'C Report Grouper'!$D26,'C Report'!Z$100:Z$199)) -> 0 | AC26: =IF($D$4="MAP+ADM Waivers",SUMIF('C Report'!$A$100:$A$199,'C Report Grouper'!$D26,'C Report'!AA$100:AA$199)+SUMIF('C Report'!$A$300:$A$399,'C Report Grouper'!$D26,'C Report'!AA$300:AA$399),SUMIF('C Report'!$A$100:$A$199,'C Report Grouper'!$D26,'C Report'!AA$100:AA$199)) -> 0 | AD26: =IF($D$4="MAP+ADM Waivers",SUMIF('C Report'!$A$100:$A$199,'C Report Grouper'!$D26,'C Report'!AB$100:AB$199)+SUMIF('C Report'!$A$300:$A$399,'C Report Grouper'!$D26,'C Report'!AB$300:AB$399),SUMIF('C Report'!$A$100:$A$199,'C Report Grouper'!$D26,'C Report'!AB$100:AB$199)) -> 0 | AE26: =IF($D$4="MAP+ADM Waivers",SUMIF('C Report'!$A$100:$A$199,'C Report Grouper'!$D26,'C Report'!AC$100:AC$199)+SUMIF('C Report'!$A$300:$A$399,'C Report Grouper'!$D26,'C Report'!AC$300:AC$399),SUMIF('C Report'!$A$100:$A$199,'C Report Grouper'!$D26,'C Report'!AC$100:AC$199)) -> 0 | AF26: =IF($D$4="MAP+ADM Waivers",SUMIF('C Report'!$A$100:$A$199,'C Report Grouper'!$D26,'C Report'!AD$100:AD$199)+SUMIF('C Report'!$A$300:$A$399,'C Report Grouper'!$D26,'C Report'!AD$300:AD$399),SUMIF('C Report'!$A$100:$A$199,'C Report Grouper'!$D26,'C Report'!AD$100:AD$199)) -> 0 | AG26: =IF($D$4="MAP+ADM Waivers",SUMIF('C Report'!$A$100:$A$199,'C Report Grouper'!$D26,'C Report'!AE$100:AE$199)+SUMIF('C Report'!$A$300:$A$399,'C Report Grouper'!$D26,'C Report'!AE$300:AE$399),SUMIF('C Report'!$A$100:$A$199,'C Report Grouper'!$D26,'C Report'!AE$100:AE$199)) -> 0 | AH26: =IF($D$4="MAP+ADM Waivers",SUMIF('C Report'!$A$100:$A$199,'C Report Grouper'!$D26,'C Report'!AF$100:AF$199)+SUMIF('C Report'!$A$300:$A$399,'C Report Grouper'!$D26,'C Report'!AF$300:AF$399),SUMIF('C Report'!$A$100:$A$199,'C Report Grouper'!$D26,'C Report'!AF$100:AF$199)) -> 0
B27: =IFERROR(VLOOKUP(C27,'MEG Def'!$A$37:$B$57,2),"") -> e-HIV/FA | C27: 2 | D27: e-HIV/FA | E27: =IF($D$4="MAP+ADM Waivers",SUMIF('C Report'!$A$100:$A$199,'C Report Grouper'!$D27,'C Report'!C$100:C$199)+SUMIF('C Report'!$A$300:$A$399,'C Report Grouper'!$D27,'C Report'!C$300:C$399),SUMIF('C Report'!$A$100:$A$199,'C Report Grouper'!$D27,'C Report'!C$100:C$199)) -> 0 | F27: =IF($D$4="MAP+ADM Waivers",SUMIF('C Report'!$A$100:$A$199,'C Report Grouper'!$D27,'C Report'!D$100:D$199)+SUMIF('C Report'!$A$300:$A$399,'C Report Grouper'!$D27,'C Report'!D$300:D$399),SUMIF('C Report'!$A$100:$A$199,'C Report Grouper'!$D27,'C Report'!D$100:D$199)) -> 0 | G27: =IF($D$4="MAP+ADM Waivers",SUMIF('C Report'!$A$100:$A$199,'C Report Grouper'!$D27,'C Report'!E$100:E$199)+SUMIF('C Report'!$A$300:$A$399,'C Report Grouper'!$D27,'C Report'!E$300:E$399),SUMIF('C Report'!$A$100:$A$199,'C Report Grouper'!$D27,'C Report'!E$100:E$199)) -> 0 | H27: =IF($D$4="MAP+ADM Waivers",SUMIF('C Report'!$A$100:$A$199,'C Report Grouper'!$D27,'C Report'!F$100:F$199)+SUMIF('C Report'!$A$300:$A$399,'C Report Grouper'!$D27,'C Report'!F$300:F$399),SUMIF('C Report'!$A$100:$A$199,'C Report Grouper'!$D27,'C Report'!F$100:F$199)) -> 0 | I27: =IF($D$4="MAP+ADM Waivers",SUMIF('C Report'!$A$100:$A$199,'C Report Grouper'!$D27,'C Report'!G$100:G$199)+SUMIF('C Report'!$A$300:$A$399,'C Report Grouper'!$D27,'C Report'!G$300:G$399),SUMIF('C Report'!$A$100:$A$199,'C Report Grouper'!$D27,'C Report'!G$100:G$199)) -> 15818 | J27: =IF($D$4="MAP+ADM Waivers",SUMIF('C Report'!$A$100:$A$199,'C Report Grouper'!$D27,'C Report'!H$100:H$199)+SUMIF('C Report'!$A$300:$A$399,'C Report Grouper'!$D27,'C Report'!H$300:H$399),SUMIF('C Report'!$A$100:$A$199,'C Report Grouper'!$D27,'C Report'!H$100:H$199)) -> 1332 | K27: =IF($D$4="MAP+ADM Waivers",SUMIF('C Report'!$A$100:$A$199,'C Report Grouper'!$D27,'C Report'!I$100:I$199)+SUMIF('C Report'!$A$300:$A$399,'C Report Grouper'!$D27,'C Report'!I$300:I$399),SUMIF('C Report'!$A$100:$A$199,'C Report Grouper'!$D27,'C Report'!I$100:I$199)) -> -7824 | L27: =IF($D$4="MAP+ADM Waivers",SUMIF('C Report'!$A$100:$A$199,'C Report Grouper'!$D27,'C Report'!J$100:J$199)+SUMIF('C Report'!$A$300:$A$399,'C Report Grouper'!$D27,'C Report'!J$300:J$399),SUMIF('C Report'!$A$100:$A$199,'C Report Grouper'!$D27,'C Report'!J$100:J$199)) -> 874100 | M27: =IF($D$4="MAP+ADM Waivers",SUMIF('C Report'!$A$100:$A$199,'C Report Grouper'!$D27,'C Report'!K$100:K$199)+SUMIF('C Report'!$A$300:$A$399,'C Report Grouper'!$D27,'C Report'!K$300:K$399),SUMIF('C Report'!$A$100:$A$199,'C Report Grouper'!$D27,'C Report'!K$100:K$199)) -> 14500059 | N27: =IF($D$4="MAP+ADM Waivers",SUMIF('C Report'!$A$100:$A$199,'C Report Grouper'!$D27,'C Report'!L$100:L$199)+SUMIF('C Report'!$A$300:$A$399,'C Report Grouper'!$D27,'C Report'!L$300:L$399),SUMIF('C Report'!$A$100:$A$199,'C Report Grouper'!$D27,'C Report'!L$100:L$199)) -> 16346143 | O27: =IF($D$4="MAP+ADM Waivers",SUMIF('C Report'!$A$100:$A$199,'C Report Grouper'!$D27,'C Report'!M$100:M$199)+SUMIF('C Report'!$A$300:$A$399,'C Report Grouper'!$D27,'C Report'!M$300:M$399),SUMIF('C Report'!$A$100:$A$199,'C Report Grouper'!$D27,'C Report'!M$100:M$199)) -> 18350702 | P27: =IF($D$4="MAP+ADM Waivers",SUMIF('C Report'!$A$100:$A$199,'C Report Grouper'!$D27,'C Report'!N$100:N$199)+SUMIF('C Report'!$A$300:$A$399,'C Report Grouper'!$D27,'C Report'!N$300:N$399),SUMIF('C Report'!$A$100:$A$199,'C Report Grouper'!$D27,'C Report'!N$100:N$199)) -> 19735876 | Q27: =IF($D$4="MAP+ADM Waivers",SUMIF('C Report'!$A$100:$A$199,'C Report Grouper'!$D27,'C Report'!O$100:O$199)+SUMIF('C Report'!$A$300:$A$399,'C Report Grouper'!$D27,'C Report'!O$300:O$399),SUMIF('C Report'!$A$100:$A$199,'C Report Grouper'!$D27,'C Report'!O$100:O$199)) -> 23747195 | R27: =IF($D$4="MAP+ADM Waivers",SUMIF('C Report'!$A$100:$A$199,'C Report Grouper'!$D27,'C Report'!P$100:P$199)+SUMIF('C Report'!$A$300:$A$399,'C Report Grouper'!$D27,'C Report'!P$300:P$399),SUMIF('C Report'!$A$100:$A$199,'C Report Grouper'!$D27,'C Report'!P$100:P$199)) -> 24861045 | S27: =IF($D$4="MAP+ADM Waivers",SUMIF('C Report'!$A$100:$A$199,'C Report Grouper'!$D27,'C Report'!Q$100:Q$199)+SUMIF('C Report'!$A$300:$A$399,'C Report Grouper'!$D27,'C Report'!Q$300:Q$399),SUMIF('C Report'!$A$100:$A$199,'C Report Grouper'!$D27,'C Report'!Q$100:Q$199)) -> 24483613 | T27: =IF($D$4="MAP+ADM Waivers",SUMIF('C Report'!$A$100:$A$199,'C Report Grouper'!$D27,'C Report'!R$100:R$199)+SUMIF('C Report'!$A$300:$A$399,'C Report Grouper'!$D27,'C Report'!R$300:R$399),SUMIF('C Report'!$A$100:$A$199,'C Report Grouper'!$D27,'C Report'!R$100:R$199)) -> 26098662 | U27: =IF($D$4="MAP+ADM Waivers",SUMIF('C Report'!$A$100:$A$199,'C Report Grouper'!$D27,'C Report'!S$100:S$199)+SUMIF('C Report'!$A$300:$A$399,'C Report Grouper'!$D27,'C Report'!S$300:S$399),SUMIF('C Report'!$A$100:$A$199,'C Report Grouper'!$D27,'C Report'!S$100:S$199)) -> 18356043 | V27: =IF($D$4="MAP+ADM Waivers",SUMIF('C Report'!$A$100:$A$199,'C Report Grouper'!$D27,'C Report'!T$100:T$199)+SUMIF('C Report'!$A$300:$A$399,'C Report Grouper'!$D27,'C Report'!T$300:T$399),SUMIF('C Report'!$A$100:$A$199,'C Report Grouper'!$D27,'C Report'!T$100:T$199)) -> 8063606 | W27: =IF($D$4="MAP+ADM Waivers",SUMIF('C Report'!$A$100:$A$199,'C Report Grouper'!$D27,'C Report'!U$100:U$199)+SUMIF('C Report'!$A$300:$A$399,'C Report Grouper'!$D27,'C Report'!U$300:U$399),SUMIF('C Report'!$A$100:$A$199,'C Report Grouper'!$D27,'C Report'!U$100:U$199)) -> 7691151 | X27: =IF($D$4="MAP+ADM Waivers",SUMIF('C Report'!$A$100:$A$199,'C Report Grouper'!$D27,'C Report'!V$100:V$199)+SUMIF('C Report'!$A$300:$A$399,'C Report Grouper'!$D27,'C Report'!V$300:V$399),SUMIF('C Report'!$A$100:$A$199,'C Report Grouper'!$D27,'C Report'!V$100:V$199)) -> 8151752 | Y27: =IF($D$4="MAP+ADM Waivers",SUMIF('C Report'!$A$100:$A$199,'C Report Grouper'!$D27,'C Report'!W$100:W$199)+SUMIF('C Report'!$A$300:$A$399,'C Report Grouper'!$D27,'C Report'!W$300:W$399),SUMIF('C Report'!$A$100:$A$199,'C Report Grouper'!$D27,'C Report'!W$100:W$199)) -> 9630164 | Z27: =IF($D$4="MAP+ADM Waivers",SUMIF('C Report'!$A$100:$A$199,'C Report Grouper'!$D27,'C Report'!X$100:X$199)+SUMIF('C Report'!$A$300:$A$399,'C Report Grouper'!$D27,'C Report'!X$300:X$399),SUMIF('C Report'!$A$100:$A$199,'C Report Grouper'!$D27,'C Report'!X$100:X$199)) -> 11725819 | AA27: =IF($D$4="MAP+ADM Waivers",SUMIF('C Report'!$A$100:$A$199,'C Report Grouper'!$D27,'C Report'!Y$100:Y$199)+SUMIF('C Report'!$A$300:$A$399,'C Report Grouper'!$D27,'C Report'!Y$300:Y$399),SUMIF('C Report'!$A$100:$A$199,'C Report Grouper'!$D27,'C Report'!Y$100:Y$199)) -> 11205798 | AB27: =IF($D$4="MAP+ADM Waivers",SUMIF('C Report'!$A$100:$A$199,'C Report Grouper'!$D27,'C Report'!Z$100:Z$199)+SUMIF('C Report'!$A$300:$A$399,'C Report Grouper'!$D27,'C Report'!Z$300:Z$399),SUMIF('C Report'!$A$100:$A$199,'C Report Grouper'!$D27,'C Report'!Z$100:Z$199)) -> 2317520 | AC27: =IF($D$4="MAP+ADM Waivers",SUMIF('C Report'!$A$100:$A$199,'C Report Grouper'!$D27,'C Report'!AA$100:AA$199)+SUMIF('C Report'!$A$300:$A$399,'C Report Grouper'!$D27,'C Report'!AA$300:AA$399),SUMIF('C Report'!$A$100:$A$199,'C Report Grouper'!$D27,'C Report'!AA$100:AA$199)) -> 0 | AD27: =IF($D$4="MAP+ADM Waivers",SUMIF('C Report'!$A$100:$A$199,'C Report Grouper'!$D27,'C Report'!AB$100:AB$199)+SUMIF('C Report'!$A$300:$A$399,'C Report Grouper'!$D27,'C Report'!AB$300:AB$399),SUMIF('C Report'!$A$100:$A$199,'C Report Grouper'!$D27,'C Report'!AB$100:AB$199)) -> 0 | AE27: =IF($D$4="MAP+ADM Waivers",SUMIF('C Report'!$A$100:$A$199,'C Report Grouper'!$D27,'C Report'!AC$100:AC$199)+SUMIF('C Report'!$A$300:$A$399,'C Report Grouper'!$D27,'C Report'!AC$300:AC$399),SUMIF('C Report'!$A$100:$A$199,'C Report Grouper'!$D27,'C Report'!AC$100:AC$199)) -> 0 | AF27: =IF($D$4="MAP+ADM Waivers",SUMIF('C Report'!$A$100:$A$199,'C Report Grouper'!$D27,'C Report'!AD$100:AD$199)+SUMIF('C Report'!$A$300:$A$399,'C Report Grouper'!$D27,'C Report'!AD$300:AD$399),SUMIF('C Report'!$A$100:$A$199,'C Report Grouper'!$D27,'C Report'!AD$100:AD$199)) -> 0 | AG27: =IF($D$4="MAP+ADM Waivers",SUMIF('C Report'!$A$100:$A$199,'C Report Grouper'!$D27,'C Report'!AE$100:AE$199)+SUMIF('C Report'!$A$300:$A$399,'C Report Grouper'!$D27,'C Report'!AE$300:AE$399),SUMIF('C Report'!$A$100:$A$199,'C Report Grouper'!$D27,'C Report'!AE$100:AE$199)) -> 0 | AH27: =IF($D$4="MAP+ADM Waivers",SUMIF('C Report'!$A$100:$A$199,'C Report Grouper'!$D27,'C Report'!AF$100:AF$199)+SUMIF('C Report'!$A$300:$A$399,'C Report Grouper'!$D27,'C Report'!AF$300:AF$399),SUMIF('C Report'!$A$100:$A$199,'C Report Grouper'!$D27,'C Report'!AF$100:AF$199)) -> 0
